Workbook

Sheet Inputs
E2: Generators tariffs are excluded | O2: Version 6.13 02 October 2023
B4: Tariff Input Sheet
B6: Please enter the required information below:
D8: Customer Name | I8: Enter the customer name as it is displayed on the rates bill.
D9: Account number | I9: Enter the account number as it is displayed on the rates bill.
D10: Point of delivery ID | I10: Enter the Point of Delivery ID as it is displayed on the rates bill.
D11: Number of PODs | H11: 1
D13: Select your tariff category | I13: Select either Non-Local Authority (Eskom), Local Authority (Municipality)
D15: Select customer classification | I15: Select the appropriate customer category - Small Power User (SPU) or Large Power User (LPU)
D17: Select supply size | I17: Select the appropriate customer supply size (kVA)
D19: Select tariff | I19: Drop box selection driven by the supply voltage inputs
D21: Select supply voltage | I21: Select the appropriate supply voltage (V)
D23: Select transmission zone | I23: =IF(Selected_Customer_Category_ID=1,"Not Applicable to Small Power Users but used for LPU tariff conversions","Select the appropriate transmission zone (km)") -> Not Applicable to Small Power Users but used for LPU tariff conversions
P24: =IF(D30<=TOU_Period,YEAR(TOU_Period),YEAR(TOU_Period)+1) -> 2025
B25: Please enter your consumption data in the table below
G27: Peak energy | H27: Standard energy | I27: Off-peak energy | J27: Chargeable demand | K27: Utilised capacity | L27: Excess reactive energy | M27: Total energy | O27: Year | P27: ESKOM Financial Year | Q27: Municipal Financial Year | R27: Month ID
D28: Month | E28: Season | G28: kWh | H28: kWh | I28: kWh | J28: kVA | K28: kVA | L28: kVArh | M28: kWh
C30: =D30-EOMONTH(D30,-1) -> 30 | D30: =DATE(YEAR(Period)-1,R30+1,) -> 2024-04-30 | E30: =INDEX(List_Seasons,R30,0) -> Low Demand | M30: =SUM($G30:$I30) -> 0 | O30: =INDEX(P30:Q30,0,Selected_Tariff_Category_ID) -> 2025 | P30: =IF(D30<=TOU_Period,YEAR(TOU_Period),YEAR(TOU_Period)+1) -> 2025 | Q30: =IF(Selected_Tariff_Category_ID = 2, YEAR(Municipality_Period), IF(D30<=EOMONTH(Municipality_Period,-12),YEAR(Municipality_Period)-1,YEAR(Municipality_Period))) -> 2024 | R30: =MONTH(Period)+IF(Selected_Tariff_Category_ID=2, 4, 1) -> 4 | S30: =IF(Selected_Tariff_Category_ID = 2, "Apr " & YEAR(Municipality_Period), "") -> 
C31: =D31-EOMONTH(D31,-1) -> 31 | D31: =EOMONTH(D30,1) -> 2024-05-31 | E31: =INDEX(List_Seasons,R31,0) -> Low Demand | M31: =SUM($G31:$I31) -> 0 | O31: 2025 | P31: 2025 | Q31: =IF(Selected_Tariff_Category_ID = 2, YEAR(Municipality_Period), IF(D31<=EOMONTH(Municipality_Period,-12),YEAR(Municipality_Period)-1,YEAR(Municipality_Period))) -> 2024 | R31: =MONTH(D31) -> 5 | S31: =IF(Selected_Tariff_Category_ID = 2, "May " & YEAR(Municipality_Period), "") -> 
C32: 30 | D32: =EOMONTH(D31,1) -> 2024-06-30 | E32: High Demand | M32: 0 | O32: 2025 | P32: 2025 | Q32: =IF(Selected_Tariff_Category_ID = 2, YEAR(Municipality_Period), IF(D32<=EOMONTH(Municipality_Period,-12),YEAR(Municipality_Period)-1,YEAR(Municipality_Period))) -> 2024 | R32: 6 | S32: =IF(Selected_Tariff_Category_ID = 2, "Jun " & YEAR(Municipality_Period), "") -> 
C33: 31 | D33: 2024-07-31 | E33: High Demand | M33: 0 | O33: 2025 | P33: 2025 | Q33: =IF(D33<=EOMONTH(Municipality_Period,-12),YEAR(Municipality_Period)-1,YEAR(Municipality_Period)) -> 2025 | R33: 7
C34: 31 | D34: 2024-08-31 | E34: High Demand | M34: 0 | O34: 2025 | P34: 2025 | Q34: 2025 | R34: 8
C35: 30 | D35: 2024-09-30 | E35: Low Demand | M35: 0 | O35: 2025 | P35: 2025 | Q35: 2025 | R35: 9
C36: 31 | D36: 2024-10-31 | E36: Low Demand | M36: 0 | O36: 2025 | P36: 2025 | Q36: 2025 | R36: 10
C37: 30 | D37: 2024-11-30 | E37: Low Demand | M37: 0 | O37: 2025 | P37: 2025 | Q37: 2025 | R37: 11
C38: 31 | D38: 2024-12-31 | E38: Low Demand | M38: 0 | O38: 2025 | P38: 2025 | Q38: 2025 | R38: 12
C39: 31 | D39: 2025-01-31 | E39: Low Demand | M39: 0 | O39: 2025 | P39: 2025 | Q39: 2025 | R39: 1
C40: 28 | D40: 2025-02-28 | E40: Low Demand | M40: 0 | O40: 2025 | P40: 2025 | Q40: 2025 | R40: 2
C41: 31 | D41: 2025-03-31 | E41: Low Demand | M41: 0 | O41: 2025 | P41: 2025 | Q41: 2025 | R41: 3
D43: Total | G43: =SUM(G30:G41) -> 0 | H43: =SUM(H30:H41) -> 0 | I43: 0 | L43: 0 | M43: 0
B45: Consumption Data Summary
D47: Season | E47: Days | G47: =G$27 -> Peak energy | H47: =H$27 -> Standard energy | I47: Off-peak energy | J47: Chargeable demand | K47: Utilised capacity | L47: Excess reactive energy | M47: Total energy
D49: Low Demand | E49: =SUMIFS(C$30:C$41,$E$30:$E$41,$D49,$O$30:$O$41,$P49) - IF(D40-EOMONTH(D40,-1) = 29, 1, 0) -> 273 | G49: =SUMIFS(G$30:G$41,$E$30:$E$41,$D49,$O$30:$O$41,$P49) -> 0 | H49: 0 | I49: 0 | J49: 0 | K49: 0 | L49: 0 | M49: 0 | P49: =YEAR(TOU_Period) -> 2025 | Q49: =COUNTIF($E$30:$E$41,D49) -> 9
D50: High Demand | E50: =SUMIFS(C$30:C$41,$E$30:$E$41,$D50,$O$30:$O$41,$P50) -> 92 | G50: 0 | H50: 0 | I50: 0 | J50: 0 | K50: 0 | L50: 0 | M50: 0 | P50: =YEAR(TOU_Period) -> 2025 | Q50: =COUNTIF($E$30:$E$41,D50) -> 3
D52: Total | E52: =SUM(E49:E50) -> 365 | G52: =SUM(G49:G50) -> 0 | H52: =SUM(H49:H50) -> 0 | I52: 0 | L52: 0 | M52: 0
C55: Note
C56: Calculations are based on the average number of days per month: Ave days per month = Total number of days in year (365) / months (12) = 30.416667

Sheet Bill Comparison
B4: ="High demand vs low demand cost comparison for "&New_Period&" rates" -> High demand vs low demand cost comparison for 2024/2025 rates | I4: =D10 -> Homepower 2 | K4: =B4 -> High demand vs low demand cost comparison for 2024/2025 rates | R4: =I4 -> Homepower 2
B6: High Demand | K6: Low Demand
B8: Customer Name: | D8: =Customer_Name -> 0 | F8: High Demand Consumption Data | K8: =B8 -> Customer Name: | M8: =D8 -> 0 | O8: Low Demand Consumption Data
B9: =Inputs!D10 -> Point of delivery ID | D9: =Delivery_ID -> 0 | F9: Sum of Utilised Capacity | H9: =TOU_High_UC -> 0 | I9: kVA | K9: =B9 -> Point of delivery ID | M9: 0 | O9: Sum of Utilised Capacity | Q9: =TOU_Low_UC -> 0 | R9: kVA
C10: Tariff | D10: =Selected_Base_Tariff -> Homepower 2 | F10: Sum of Chargeable Demands | H10: =TOU_High_Demand -> 0 | I10: kVA | L10: =C10 -> Tariff | M10: Homepower 2 | O10: Sum of Chargeable Demands | Q10: =TOU_Low_Demand -> 0 | R10: kVA
C11: Tariff Category | D11: =INDEX(Full_Tariff_Type,MATCH(D10,Full_Tariff_List,0)) -> Urban | F11: Peak Consumption | H11: =TOU_High_Peak -> 0 | I11: kWh | L11: Tariff Category | M11: Urban | O11: Peak Consumption | Q11: =TOU_Low_Peak -> 0 | R11: kWh
C12: Supply voltage | D12: =Selected_Supply_Voltage -> < 500V | F12: Standard Consumption | H12: =TOU_High_Standard -> 0 | I12: kWh | L12: Supply voltage | M12: < 500V | O12: Standard Consumption | Q12: =TOU_Low_Standard -> 0 | R12: kWh
C13: Transmission zone | D13: =Selected_Transmission -> [0 - 300km] | F13: Off Peak Consumption | H13: =TOU_High_OffPeak -> 0 | I13: kWh | L13: Transmission zone | M13: [0 - 300km] | O13: Off Peak Consumption | Q13: =TOU_Low_OffPeak -> 0 | R13: kWh
C14: Tariff Classification | D14: =Selected_Tariff_Category -> Non-Local Authority | F14: Total Consumption | H14: =SUM(H11:H13) -> 0 | I14: kWh | L14: Tariff Classification | M14: Non-Local Authority | O14: Total Consumption | Q14: =SUM(Q11:Q13) -> 0 | R14: kWh
C15: No of PODS | D15: =PODs -> 1 | F15: Excess Reactive Energy | H15: =TOU_High_Excess_RE -> 0 | I15: kVArh | L15: No of PODS | M15: 1 | O15: Excess Reactive Energy | Q15: =TOU_Low_Excess_RE -> 0 | R15: kVArh
C16: Size of supply | D16: =Selected_Supply_Size -> 50kVA | F16: Days | H16: =TOU_High_Days -> 92 | I16: days | L16: Size of supply | M16: 50kVA | O16: Days | Q16: =TOU_Low_Days -> 273 | R16: days
B18: Network charges | D18: Units | E18: =Current_Period &" Rates" -> 2023/2024 Rates | F18: =New_Period &" Rates" -> 2024/2025 Rates | G18: =Current_Period&" Charges" -> 2023/2024 Charges | H18: =New_Period&" Charges" -> 2024/2025 Charges | I18: % Change | K18: Network charges | M18: Units | N18: =Current_Period &" Rates" -> 2023/2024 Rates | O18: =New_Period &" Rates" -> 2024/2025 Rates | P18: =Current_Period&" Charges" -> 2023/2024 Charges | Q18: =New_Period&" Charges" -> 2024/2025 Charges | R18: % Change
A20: =IF(COUNTIF(B20:R20,"n/a")>0,"n/a","") -> n/a | C20: Transmission network charge | D20: R/kVA | E20: ='Rates Table'!E10 -> n/a | F20: ='Rates Table'!AL10 -> n/a | G20: =IFERROR(E20*High_Utilised_Capacity,0) -> 0 | H20: =IFERROR(F20*High_Utilised_Capacity,0) -> 0 | I20: =IFERROR(H20/G20-1,0) -> 0 | L20: =C20 -> Transmission network charge | M20: =D20 -> R/kVA | N20: =E20 -> n/a | O20: =F20 -> n/a | P20: =IFERROR(N20*Low_Utilised_Capacity,0) -> 0 | Q20: =IFERROR(O20*Low_Utilised_Capacity,0) -> 0 | R20: =IFERROR(Q20/P20-1,0) -> 0
A21: =IF(COUNTIF(B21:R21,"n/a")>0,"n/a","") -> n/a | C21: Distribution network capacity charge | D21: R/kVA | E21: ='Rates Table'!E11 -> n/a | F21: ='Rates Table'!AL11 -> n/a | G21: =IFERROR(E21*High_Utilised_Capacity,0) -> 0 | H21: =IFERROR(F21*High_Utilised_Capacity,0) -> 0 | I21: =IFERROR(H21/G21-1,0) -> 0 | L21: =C21 -> Distribution network capacity charge | M21: =D21 -> R/kVA | N21: =E21 -> n/a | O21: n/a | P21: =IFERROR(N21*Low_Utilised_Capacity,0) -> 0 | Q21: =IFERROR(O21*Low_Utilised_Capacity,0) -> 0 | R21: =IFERROR(Q21/P21-1,0) -> 0
A22: n/a | C22: Distribution network demand charge | D22: R/kVA | E22: ='Rates Table'!E12 -> n/a | F22: ='Rates Table'!AL12 -> n/a | G22: =IFERROR(E22*High_Demand,0) -> 0 | H22: =IFERROR(F22*High_Demand,0) -> 0 | I22: 0 | L22: Distribution network demand charge | M22: R/kVA | N22: n/a | O22: n/a | P22: =IFERROR(N22*Low_Demand,0) -> 0 | Q22: =IFERROR(O22*Low_Demand,0) -> 0 | R22: 0
C23: Network demand charge | D23: c/kWh | E23: ='Rates Table'!E13 -> 0 | F23: ='Rates Table'!AL13 -> 0 | G23: =IFERROR(E23*IF($D$10="Miniflex",(High_Peak+High_Standard),High_Total_Energy),0)/100 -> 0 | H23: =IFERROR(F23*IF($D$10="Miniflex",(High_Peak+High_Standard),High_Total_Energy),0)/100 -> 0 | I23: =IFERROR(H23/G23-1,0) -> 0 | L23: Network demand charge | M23: c/kWh | N23: 0 | O23: 0 | P23: =IFERROR(N23*IF($M$10="Miniflex",(Low_Peak+Low_Standard),Low_Total_Energy),0)/100 -> 0 | Q23: =IFERROR(O23*IF($M$10="Miniflex",(Low_Peak+Low_Standard),Low_Total_Energy),0)/100 -> 0 | R23: 0
A24: n/a | C24: LV Subsidy Charge | D24: R/kVA | E24: ='Rates Table'!E15 -> n/a | F24: ='Rates Table'!AL15 -> n/a | G24: =IFERROR(E24*High_Utilised_Capacity,0) -> 0 | H24: =IFERROR(F24*High_Utilised_Capacity,0) -> 0 | I24: 0 | L24: LV Subsidy Charge | M24: R/kVA | N24: n/a | O24: n/a | P24: =IFERROR(N24*Low_Utilised_Capacity,0) -> 0 | Q24: =IFERROR(O24*Low_Utilised_Capacity,0) -> 0 | R24: 0
C25: Network demand charge, Ancillary service charge and retail | D25: c/kWh | E25: ='Rates Table'!E14 -> 0 | F25: ='Rates Table'!AL14 -> 0 | G25: =IFERROR(E25*IF($D$10="Miniflex",(High_Peak+High_Standard),High_Total_Energy),0)/100 -> 0 | H25: =IFERROR(F25*IF($D$10="Miniflex",(High_Peak+High_Standard),High_Total_Energy),0)/100 -> 0 | I25: 0 | L25: Network demand charge, Ancillary service charge and retail | M25: c/kWh | N25: =E25 -> 0 | O25: =F25 -> 0 | P25: =IFERROR(N25*IF($M$10="Miniflex",(Low_Peak+Low_Standard),Low_Total_Energy),0)/100 -> 0 | Q25: =IFERROR(O25*IF($M$10="Miniflex",(Low_Peak+Low_Standard),Low_Total_Energy),0)/100 -> 0 | R25: =IFERROR(Q25/P25-1,0) -> 0
C26: Network capacity charge | D26: =IF(Table_1=1,"R/kVA","R/day") -> R/day | E26: ='Rates Table'!E16 -> 17.48 | F26: ='Rates Table'!AL16 -> 19.71 | G26: =IFERROR(IF(Table_1=1,E26*High_Utilised_Capacity,E26*PODs*High_Days),0) -> 1608.16 | H26: =IFERROR(IF(Table_1=1,F26*High_Utilised_Capacity,F26*PODs*High_Days),0) -> 1813.32 | I26: 0.1275743707 | L26: Network capacity charge | M26: R/day | N26: 17.48 | O26: 19.71 | P26: =IFERROR(IF(Table_1=1,N26*Low_Utilised_Capacity,N26*PODs*Low_Days),0) -> 4772.04 | Q26: =IFERROR(IF(Table_1=1,O26*Low_Utilised_Capacity,O26*PODs*Low_Days),0) -> 5380.83 | R26: 0.1275743707
B28: Total network charges | G28: =SUM(G20:G26) -> 1608.16 | H28: =SUM(H20:H26) -> 1813.32 | I28: 0.1275743707 | K28: Total network charges | P28: =SUM(P20:P26) -> 4772.04 | Q28: =SUM(Q20:Q26) -> 5380.83 | R28: =IFERROR(Q28/P28-1,0) -> 0.1275743707
B30: Energy charges | D30: Units | E30: =E18 -> 2023/2024 Rates | F30: =F18 -> 2024/2025 Rates | G30: 2023/2024 Charges | H30: 2024/2025 Charges | I30: % Change | K30: Energy charges | M30: Units | N30: =N18 -> 2023/2024 Rates | O30: =O18 -> 2024/2025 Rates | P30: 2023/2024 Charges | Q30: 2024/2025 Charges | R30: % Change
A32: n/a | C32: Peak | D32: c/kWh | E32: ='Rates Table'!E22 -> n/a | F32: ='Rates Table'!AL22 -> n/a | G32: =IFERROR(E32*High_Peak,0)/100 -> 0 | H32: =IFERROR(F32*High_Peak,0)/100 -> 0 | I32: =IFERROR(H32/G32-1,0) -> 0 | L32: Peak consumption | M32: =D32 -> c/kWh | N32: ='Rates Table'!E35 -> n/a | O32: ='Rates Table'!AL35 -> n/a | P32: =IFERROR(N32*Low_Peak,0)/100 -> 0 | Q32: =IFERROR(O32*Low_Peak,0)/100 -> 0 | R32: =IFERROR(Q32/P32-1,0) -> 0
A33: n/a | C33: Standard | D33: c/kWh | E33: ='Rates Table'!E23 -> n/a | F33: ='Rates Table'!AL23 -> n/a | G33: =IFERROR(E33*High_Standard,0)/100 -> 0 | H33: =IFERROR(F33*High_Standard,0)/100 -> 0 | I33: 0 | L33: Standard consumption | M33: c/kWh | N33: ='Rates Table'!E36 -> n/a | O33: ='Rates Table'!AL36 -> n/a | P33: =IFERROR(N33*Low_Standard,0)/100 -> 0 | Q33: =IFERROR(O33*Low_Standard,0)/100 -> 0 | R33: 0
A34: n/a | C34: Off-Peak | D34: c/kWh | E34: ='Rates Table'!E24 -> n/a | F34: ='Rates Table'!AL24 -> n/a | G34: =IFERROR(E34*High_OffPeak,0)/100 -> 0 | H34: =IFERROR(F34*High_OffPeak,0)/100 -> 0 | I34: 0 | L34: Off-Peak consumption | M34: c/kWh | N34: ='Rates Table'!E37 -> n/a | O34: ='Rates Table'!AL37 -> n/a | P34: =IFERROR(N34*Low_OffPeak,0)/100 -> 0 | Q34: =IFERROR(O34*Low_OffPeak,0)/100 -> 0 | R34: 0
A35: =A34 -> n/a
A36: =A35 -> n/a | C36: Sub Total (TOU) | G36: =SUM(G32:G34) -> 0 | H36: =SUM(H32:H34) -> 0 | I36: =IFERROR(H36/G36-1,0) -> 0 | L36: =C36 -> Sub Total (TOU) | P36: =SUM(P32:P34) -> 0 | Q36: =SUM(Q32:Q34) -> 0 | R36: =IFERROR(Q36/P36-1,0) -> 0
C38: Sub Total (non-TOU) | D38: c/kWh | E38: ='Rates Table'!E26 -> 0 | F38: ='Rates Table'!AL26 -> 0 | G38: =IFERROR(E38*(High_Total_Energy),0)/100 -> 0 | H38: =IFERROR(F38*(High_Total_Energy),0)/100 -> 0 | I38: =IFERROR(H38/G38-1,0) -> 0 | L38: =C38 -> Sub Total (non-TOU) | M38: =D38 -> c/kWh | N38: ='Rates Table'!E39 -> 0 | O38: ='Rates Table'!AL39 -> 0 | P38: =IFERROR(N38*(Low_Total_Energy),0)/100 -> 0 | Q38: =IFERROR(O38*(Low_Total_Energy),0)/100 -> 0 | R38: =IFERROR(Q38/P38-1,0) -> 0
C39: Energy - Block 1 | D39: c/kWh | E39: ='Rates Table'!E27 -> 217.79 | F39: ='Rates Table'!AL27 -> 245.54 | G39: =IFERROR(E39*(High_Block_1),0)/100 -> 0 | H39: =IFERROR(F39*(High_Block_1),0)/100 -> 0 | I39: =IFERROR(H39/G39-1,0) -> 0 | L39: =C39 -> Energy - Block 1 | M39: c/kWh | N39: ='Rates Table'!E40 -> 217.79 | O39: ='Rates Table'!AL40 -> 245.54 | P39: =IFERROR(N39*(Low_Block_1),0)/100 -> 0 | Q39: =IFERROR(O39*(Low_Block_1),0)/100 -> 0 | R39: 0
C40: Energy - Block 2 | D40: c/kWh | E40: ='Rates Table'!E28 -> 335.33 | F40: ='Rates Table'!AL28 -> 378.05 | G40: =IFERROR(E40*(High_Block_2),0)/100 -> 0 | H40: =IFERROR(F40*(High_Block_2),0)/100 -> 0 | I40: =IFERROR(H40/G40-1,0) -> 0 | L40: Energy - Block 2 | M40: c/kWh | N40: ='Rates Table'!E41 -> 335.33 | O40: ='Rates Table'!AL41 -> 378.05 | P40: =IFERROR(N40*(Low_Block_2),0)/100 -> 0 | Q40: =IFERROR(O40*(Low_Block_2),0)/100 -> 0 | R40: 0
A41: n/a | C41: Energy Demand | D41: R/kVA | E41: ='Rates Table'!E29 -> n/a | F41: ='Rates Table'!AL29 -> n/a | G41: =IFERROR(E41*High_Demand,0) -> 0 | H41: =IFERROR(F41*High_Demand,0) -> 0 | I41: 0 | L41: Energy Demand | M41: R/kVA | N41: ='Rates Table'!E42 -> n/a | O41: ='Rates Table'!AL42 -> n/a | P41: =IFERROR(N41*Low_Demand,0) -> 0 | Q41: =IFERROR(O41*Low_Demand,0) -> 0 | R41: 0
B43: Total energy charges | G43: =SUM(G36:G41) -> 0 | H43: =SUM(H36:H41) -> 0 | I43: =IFERROR(H43/G43-1,0) -> 0 | K43: Total energy charges | P43: =SUM(P36:P41) -> 0 | Q43: =SUM(Q36:Q41) -> 0 | R43: =IFERROR(Q43/P43-1,0) -> 0
B45: Other charges | D45: Units | E45: =E18 -> 2023/2024 Rates | F45: =F18 -> 2024/2025 Rates | G45: =G18 -> 2023/2024 Charges | H45: =H18 -> 2024/2025 Charges | I45: % Change | K45: Other charges | M45: Units | N45: =N18 -> 2023/2024 Rates | O45: =O18 -> 2024/2025 Rates | P45: =P18 -> 2023/2024 Charges | Q45: =Q18 -> 2024/2025 Charges | R45: % Change
C47: Ancillary service charge | D47: c/kWh | E47: ='Rates Table'!E48 -> 0 | F47: ='Rates Table'!AL48 -> 0 | G47: =IFERROR(High_Total_Energy*E47,0)/100 -> 0 | H47: =IFERROR(High_Total_Energy*F47,0)/100 -> 0 | I47: =IFERROR(H47/G47-1,0) -> 0 | L47: =C47 -> Ancillary service charge | M47: =D47 -> c/kWh | N47: =E47 -> 0 | O47: =F47 -> 0 | P47: =IFERROR(Low_Total_Energy*N47,0)/100 -> 0 | Q47: =IFERROR(Low_Total_Energy*O47,0)/100 -> 0 | R47: =IFERROR(Q47/P47-1,0) -> 0
A48: n/a | C48: Reactive energy charge | D48: c/kVArh | E48: ='Rates Table'!E49 -> n/a | F48: ='Rates Table'!AL49 -> n/a | G48: =IFERROR(High_Excess_RE*E48,0)/100 -> 0 | H48: =IFERROR(High_Excess_RE*F48,0)/100 -> 0 | I48: 0 | L48: =C48 -> Reactive energy charge | M48: c/kVArh | N48: 0 | O48: 0 | P48: =IFERROR(Low_Excess_RE*N48,0)/100 -> 0 | Q48: =IFERROR(Low_Excess_RE*O48,0)/100 -> 0 | R48: 0
A49: n/a | C49: Electrification and rural subsidy charge | D49: c/kWh | E49: ='Rates Table'!E50 -> n/a | F49: ='Rates Table'!AL50 -> n/a | G49: =IFERROR(High_Total_Energy*E49,0)/100 -> 0 | H49: 0 | I49: 0 | L49: Electrification and rural subsidy charge | M49: c/kWh | N49: =E49 -> n/a | O49: =F49 -> n/a | P49: =IFERROR(Low_Total_Energy*N49,0)/100 -> 0 | Q49: 0 | R49: 0
A50: n/a | C50: Affordability subsidy charge | D50: c/kWh | E50: ='Rates Table'!E51 -> n/a | F50: ='Rates Table'!AL51 -> n/a | G50: 0 | H50: 0 | I50: 0 | L50: Affordability subsidy charge | M50: c/kWh | N50: n/a | O50: n/a | P50: 0 | Q50: 0 | R50: 0
A51: n/a | C51: Administration charge | D51: R/day | E51: ='Rates Table'!E52 -> n/a | F51: ='Rates Table'!AL52 -> n/a | G51: =IFERROR(E51*PODs*High_Days,0) -> 0 | H51: =IFERROR(F51*PODs*High_Days,0) -> 0 | I51: =IFERROR(H51/G51-1,0) -> 0 | L51: Administration charge | M51: R/day | N51: n/a | O51: n/a | P51: =IFERROR(N51*PODs*Low_Days,0) -> 0 | Q51: =IFERROR(O51*PODs*Low_Days,0) -> 0 | R51: 0
C52: Service charge | D52: =IF(Table_1=1,"R/day","R/day") -> R/day | E52: ='Rates Table'!E53 -> 0 | F52: ='Rates Table'!AL53 -> 0 | G52: =IFERROR(IF(Table_1=1,E52*1*High_Days,E52*PODs*High_Days),0) -> 0 | H52: =IFERROR(IF(Table_1=1,F52*1*High_Days,F52*PODs*High_Days),0) -> 0 | I52: 0 | L52: Service charge | M52: R/day | N52: 0 | O52: 0 | P52: =IFERROR(IF(Table_1=1,N52*1*Low_Days,N52*PODs*Low_Days),0) -> 0 | Q52: =IFERROR(IF(Table_1=1,O52*1*Low_Days,O52*PODs*Low_Days),0) -> 0 | R52: 0
B54: Total other charges | G54: =SUM(G47:G52) -> 0 | H54: =SUM(H47:H52) -> 0 | I54: =IFERROR(H54/G54-1,0) -> 0 | K54: Total other charges | P54: =SUM(P47:P52) -> 0 | Q54: =SUM(Q47:Q52) -> 0 | R54: =IFERROR(Q54/P54-1,0) -> 0
B56: Total excl VAT | G56: =G54+G43+G28 -> 1608.16 | H56: =H54+H43+H28 -> 1813.32 | I56: =IFERROR(H56/G56-1,0) -> 0.1275743707 | K56: Total excl VAT | P56: =P54+P43+P28 -> 4772.04 | Q56: =Q54+Q43+Q28 -> 5380.83 | R56: =IFERROR(Q56/P56-1,0) -> 0.1275743707
B57: VAT | D57: =VAT -> 0.15 | G57: =G56*$D57 -> 241.224 | H57: =H56*$D57 -> 271.998 | K57: VAT | M57: =VAT -> 0.15 | P57: =P56*$D57 -> 715.806 | Q57: =Q56*$D57 -> 807.1245
B59: Total account | G59: =SUM(G56:G57) -> 1849.384 | H59: =SUM(H56:H57) -> 2085.318 | I59: =IFERROR(H59/G59-1,0) -> 0.1275743707 | K59: Total account | P59: =SUM(P56:P57) -> 5487.846 | Q59: =SUM(Q56:Q57) -> 6187.9545 | R59: =IFERROR(Q59/P59-1,0) -> 0.1275743707
B61: Average price | D61: c/kWh | G61: =IFERROR(G56/High_Total_Energy*100,0) -> 0 | H61: =IFERROR(H56/High_Total_Energy*100,0) -> 0 | I61: =IFERROR(H61/G61-1,0) -> 0 | K61: Average price | M61: c/kWh | P61: =IFERROR(P56/Low_Total_Energy*100,0) -> 0 | Q61: =IFERROR(Q56/Low_Total_Energy*100,0) -> 0 | R61: =IFERROR(Q61/P61-1,0) -> 0
B63: Annual
B65: Network charges | D65: Units | E65: =E$18 -> 2023/2024 Rates | F65: =F$18 -> 2024/2025 Rates | G65: 2023/2024 Charges | H65: 2024/2025 Charges | I65: % Change
A67: =A20 -> n/a | C67: =C20 -> Transmission network charge | D67: R/kVA | G67: =G20+P20 -> 0 | H67: 0 | I67: =IFERROR(H67/G67-1,0) -> 0
A68: =A21 -> n/a | C68: Distribution network capacity charge | D68: R/kVA | G68: 0 | H68: 0 | I68: =IFERROR(H68/G68-1,0) -> 0
A69: =A22 -> n/a | C69: Distribution network demand charge | D69: R/kVA | G69: 0 | H69: 0 | I69: 0
A70: =A23 ->  | C70: Network demand charge | D70: c/kWh | G70: 0 | H70: 0 | I70: 0
A71: =A24 -> n/a | C71: LV Subsidy Charge | D71: R/kVA | G71: 0 | H71: 0 | I71: 0
A72: =A26 ->  | C72: =C26 -> Network capacity charge | D72: =D26 -> R/day | G72: =G26+P26 -> 6380.2 | H72: 7194.15 | I72: 0.1275743707
B74: Total network charges | G74: =SUM(G67:G72) -> 6380.2 | H74: =SUM(H67:H72) -> 7194.15 | I74: =IFERROR(H74/G74-1,0) -> 0.1275743707
B76: Energy charges | D76: Units | E76: =E$18 -> 2023/2024 Rates | F76: =F$18 -> 2024/2025 Rates | G76: 2023/2024 Charges | H76: 2024/2025 Charges | I76: % Change
A78: n/a | C78: Peak consumption | D78: =D32 -> c/kWh | G78: =G32+P32 -> 0 | H78: 0 | I78: =IFERROR(H78/G78-1,0) -> 0
A79: n/a | C79: Standard consumption | D79: =D33 -> c/kWh | G79: 0 | H79: 0 | I79: 0
A80: n/a | C80: Off-Peak consumption | D80: =D34 -> c/kWh | G80: 0 | H80: 0 | I80: 0
A81: n/a
A82: n/a | C82: Sub Total (TOU) | G82: =SUM(G78:G80) -> 0 | H82: =SUM(H78:H80) -> 0 | I82: =IFERROR(H82/G82-1,0) -> 0
C84: =C38 -> Sub Total (non-TOU) | D84: =D38 -> c/kWh | G84: =G38+P38 -> 0 | H84: 0 | I84: =IFERROR(H84/G84-1,0) -> 0
C85: Energy - Block 1 | D85: =D39 -> c/kWh | G85: 0 | H85: 0 | I85: 0
C86: Energy - Block 2 | D86: =D40 -> c/kWh | G86: 0 | H86: 0 | I86: 0
A87: n/a | C87: =C41 -> Energy Demand | D87: =D41 -> R/kVA | G87: =G41+P41 -> 0 | H87: 0 | I87: 0
B89: Total energy charges | G89: =SUM(G82:G87) -> 0 | H89: =SUM(H82:H87) -> 0 | I89: =IFERROR(H89/G89-1,0) -> 0
B91: Other charges | D91: Units | E91: =E$18 -> 2023/2024 Rates | F91: =F$18 -> 2024/2025 Rates | G91: 2023/2024 Charges | H91: 2024/2025 Charges | I91: % Change
C93: Ancillary service charge | D93: =D47 -> c/kWh | G93: =G47+P47 -> 0 | H93: 0 | I93: =IFERROR(H93/G93-1,0) -> 0
A94: n/a | C94: Reactive energy charge | D94: c/kVArh | G94: 0 | H94: 0 | I94: 0
A95: n/a | C95: Electrification and rural subsidy | D95: c/kWh | G95: 0 | H95: 0 | I95: 0
A96: n/a | C96: Affordability subsidy | D96: c/kWh | G96: 0 | H96: 0 | I96: 0
A97: n/a | C97: Administration charge | D97: R/day | G97: 0 | H97: 0 | I97: 0
C98: Service charge | D98: R/day | G98: 0 | H98: 0 | I98: 0
B100: Total other charges | G100: =SUM(G93:G98) -> 0 | H100: =SUM(H93:H98) -> 0 | I100: =IFERROR(H100/G100-1,0) -> 0
B102: Total excl VAT | G102: =G100+G89+G74 -> 6380.2 | H102: =H100+H89+H74 -> 7194.15 | I102: =IFERROR(H102/G102-1,0) -> 0.1275743707
B103: VAT | D103: =VAT -> 0.15 | G103: =G102*$D103 -> 957.03 | H103: =H102*$D103 -> 1079.1225
B105: Total account | G105: =SUM(G102:G103) -> 7337.23 | H105: =SUM(H102:H103) -> 8273.2725 | I105: =IFERROR(H105/G105-1,0) -> 0.1275743707
B107: Average price | D107: c/kWh | G107: =IFERROR(G102/(High_Total_Energy+Low_Total_Energy)*100,0) -> 0 | H107: =IFERROR(H102/(High_Total_Energy+Low_Total_Energy)*100,0) -> 0 | I107: =IFERROR(H107/G107-1,0) -> 0
B109: Summary | E109: =G109 -> 2023/2024 | F109: =H109 -> 2024/2025 | G109: =Current_Period -> 2023/2024 | H109: =New_Period -> 2024/2025 | I109: % Change
C111: High Demand | E111: =G111 -> 1849.384 | F111: =H111 -> 2085.318 | G111: =G59 -> 1849.384 | H111: =H59 -> 2085.318 | I111: =IFERROR(H111/G111-1,0) -> 0.1275743707
C112: Low Demand | E112: =G112 -> 5487.846 | F112: =H112 -> 6187.9545 | G112: =P59 -> 5487.846 | H112: =Q59 -> 6187.9545 | I112: =IFERROR(H112/G112-1,0) -> 0.1275743707
C113: Total | G113: =SUM(G111:G112) -> 7337.23 | H113: =SUM(H111:H112) -> 8273.2725 | I113: =IFERROR(H113/G113-1,0) -> 0.1275743707
B115: Blocks
C116: Block 1 | D116: =IF(High_Total_Energy / High_Months > Block_1_Upper, Block_1_Upper * High_Months, High_Total_Energy) -> 0 | E116: =IF(D10 = Lists!B21, Block1_max_HL20A, Block1_max_HL60A) -> 600 | L116: Block 1 | M116: =IF(Low_Total_Energy / Low_Months > Block_1_Upper, Block_1_Upper * Low_Months, Low_Total_Energy) -> 0
C117: Block 2 | D117: =High_Total_Energy - D116 -> 0 | L117: Block 2 | M117: =Low_Total_Energy - M116 -> 0

Sheet Monthly Comparison
B4: ="Cost comparison for " & New_Period & " rates" -> Cost comparison for 2024/2025 rates | Q4: =D8 -> Homepower 2
C6: Customer Name: | D6: =Customer_Name -> 0 | J6: Consumption Data
C7: =Inputs!D10 -> Point of delivery ID | D7: =Delivery_ID -> 0 | J7: Sum of Utilised Capacity | L7: =TOU_High_UC + TOU_Low_UC -> 0 | M7: kVA | N7: Peak Consumption | P7: =TOU_High_Peak + TOU_Low_Peak -> 0 | Q7: kWh
C8: Tariff | D8: =Selected_Base_Tariff -> Homepower 2 | F8: Tariff Classification | H8: =Selected_Tariff_Category -> Non-Local Authority | J8: Sum of Chargeable Demands | L8: =TOU_High_Demand + TOU_Low_Demand -> 0 | M8: kVA | N8: Standard Consumption | P8: =TOU_High_Standard + TOU_Low_Standard -> 0 | Q8: kWh
C9: Tariff Category | D9: =INDEX(Full_Tariff_Type,MATCH(D8,Full_Tariff_List,0)) -> Urban | F9: No of PODS | H9: =PODs -> 1 | J9: Excess Reactive Energy | L9: =TOU_High_Excess_RE + TOU_Low_Excess_RE -> 0 | M9: kVArh | N9: Off Peak Consumption | P9: =TOU_High_OffPeak + TOU_Low_OffPeak -> 0 | Q9: kWh
C10: Supply voltage | D10: =Selected_Supply_Voltage -> < 500V | F10: Size of supply | H10: =Selected_Supply_Size -> 50kVA | J10: Days | L10: =TOU_High_Days + TOU_Low_Days -> 365 | M10: days | N10: Total Consumption | P10: =SUM(P7:P9) -> 0 | Q10: kWh
C11: Transmission zone | D11: =Selected_Transmission -> [0 - 300km]
B13: Network charges | E13: =Inputs!D30 -> 2024-04-30 | F13: =Inputs!D31 -> 2024-05-31 | G13: =Inputs!D32 -> 2024-06-30 | H13: =Inputs!D33 -> 2024-07-31 | I13: =Inputs!D34 -> 2024-08-31 | J13: =Inputs!D35 -> 2024-09-30 | K13: =Inputs!D36 -> 2024-10-31 | L13: =Inputs!D37 -> 2024-11-30 | M13: =Inputs!D38 -> 2024-12-31 | N13: =Inputs!D39 -> 2025-01-31 | O13: =Inputs!D40 -> 2025-02-28 | P13: =Inputs!D41 -> 2025-03-31 | Q13: Total | AA13: check | AB13: =SUM(AB14:AB90) -> -1.818989404e-12
C14: Transmission network charge - R/kVA | D14: =New_Period -> 2024/2025 | E14: =IFERROR(Inputs!$K$30 * 'Rates Table'!$AL$10, 0) -> 0 | F14: =IFERROR(Inputs!$K$31 * 'Rates Table'!$AL$10, 0) -> 0 | G14: =IFERROR(Inputs!$K$32 * 'Rates Table'!$AL$10, 0) -> 0 | H14: =IFERROR(Inputs!$K$33 * 'Rates Table'!$AL$10, 0) -> 0 | I14: =IFERROR(Inputs!$K$34 * 'Rates Table'!$AL$10, 0) -> 0 | J14: =IFERROR(Inputs!$K$35 * 'Rates Table'!$AL$10, 0) -> 0 | K14: =IFERROR(Inputs!$K$36 * 'Rates Table'!$AL$10, 0) -> 0 | L14: =IFERROR(Inputs!$K$37 * 'Rates Table'!$AL$10, 0) -> 0 | M14: =IFERROR(Inputs!$K$38 * 'Rates Table'!$AL$10, 0) -> 0 | N14: =IFERROR(Inputs!$K$39 * 'Rates Table'!$AL$10, 0) -> 0 | O14: =IFERROR(Inputs!$K$40 * 'Rates Table'!$AL$10, 0) -> 0 | P14: =IFERROR(Inputs!$K$41 * 'Rates Table'!$AL$10, 0) -> 0 | Q14: =SUM(E14:P14) -> 0 | AA14: ='Bill Comparison'!H67 -> 0 | AB14: =IFERROR(Q14 - AA14, "") -> 0
D15: =Current_Period -> 2023/2024 | E15: =IFERROR(Inputs!$K$30 * 'Rates Table'!$E$10, 0) -> 0 | F15: =IFERROR(Inputs!$K$31 * 'Rates Table'!$E$10, 0) -> 0 | G15: =IFERROR(Inputs!$K$32 * 'Rates Table'!$E$10, 0) -> 0 | H15: =IFERROR(Inputs!$K$33 * 'Rates Table'!$E$10, 0) -> 0 | I15: =IFERROR(Inputs!$K$34 * 'Rates Table'!$E$10, 0) -> 0 | J15: =IFERROR(Inputs!$K$35 * 'Rates Table'!$E$10, 0) -> 0 | K15: =IFERROR(Inputs!$K$36 * 'Rates Table'!$E$10, 0) -> 0 | L15: =IFERROR(Inputs!$K$37 * 'Rates Table'!$E$10, 0) -> 0 | M15: =IFERROR(Inputs!$K$38 * 'Rates Table'!$E$10, 0) -> 0 | N15: =IFERROR(Inputs!$K$39 * 'Rates Table'!$E$10, 0) -> 0 | O15: =IFERROR(Inputs!$K$40 * 'Rates Table'!$E$10, 0) -> 0 | P15: =IFERROR(Inputs!$K$41 * 'Rates Table'!$E$10, 0) -> 0 | Q15: =SUM(E15:P15) -> 0 | AA15: ='Bill Comparison'!G67 -> 0 | AB15: =IFERROR(Q15 - AA15, "") -> 0
D16: % change | E16: =IFERROR((E14 - E15) / E15, "") ->  | F16: =IFERROR((F14 - F15) / F15, "") -> 
C17: Distribution network capacity charge | D17: =New_Period -> 2024/2025 | E17: =IFERROR('Rates Table'!$AL$11*Inputs!$K$30,0) -> 0 | F17: =IFERROR('Rates Table'!$AL$11*Inputs!$K$31,0) -> 0 | G17: =IFERROR('Rates Table'!$AL$11*Inputs!$K$32,0) -> 0 | H17: =IFERROR('Rates Table'!$AL$11*Inputs!$K$33,0) -> 0 | I17: =IFERROR('Rates Table'!$AL$11*Inputs!$K$34,0) -> 0 | J17: =IFERROR('Rates Table'!$AL$11*Inputs!$K$35,0) -> 0 | K17: =IFERROR('Rates Table'!$AL$11*Inputs!$K$36,0) -> 0 | L17: =IFERROR('Rates Table'!$AL$11*Inputs!$K$37,0) -> 0 | M17: =IFERROR('Rates Table'!$AL$11*Inputs!$K$38,0) -> 0 | N17: =IFERROR('Rates Table'!$AL$11*Inputs!$K$39,0) -> 0 | O17: =IFERROR('Rates Table'!$AL$11*Inputs!$K$40,0) -> 0 | P17: =IFERROR('Rates Table'!$AL$11*Inputs!$K$41,0) -> 0 | Q17: =SUM(E17:P17) -> 0 | AA17: ='Bill Comparison'!H68 -> 0 | AB17: =IFERROR(Q17 - AA17, "") -> 0
D18: =Current_Period -> 2023/2024 | E18: =IFERROR('Rates Table'!$E$11*Inputs!$K$30,0) -> 0 | F18: =IFERROR('Rates Table'!$E$11*Inputs!$K$31,0) -> 0 | G18: =IFERROR('Rates Table'!$E$11*Inputs!$K$32,0) -> 0 | H18: =IFERROR('Rates Table'!$E$11*Inputs!$K$33,0) -> 0 | I18: =IFERROR('Rates Table'!$E$11*Inputs!$K$34,0) -> 0 | J18: =IFERROR('Rates Table'!$E$11*Inputs!$K$35,0) -> 0 | K18: =IFERROR('Rates Table'!$E$11*Inputs!$K$36,0) -> 0 | L18: =IFERROR('Rates Table'!$E$11*Inputs!$K$37,0) -> 0 | M18: =IFERROR('Rates Table'!$E$11*Inputs!$K$38,0) -> 0 | N18: =IFERROR('Rates Table'!$E$11*Inputs!$K$39,0) -> 0 | O18: =IFERROR('Rates Table'!$E$11*Inputs!$K$40,0) -> 0 | P18: =IFERROR('Rates Table'!$E$11*Inputs!$K$41,0) -> 0 | Q18: =SUM(E18:P18) -> 0 | AA18: ='Bill Comparison'!G68 -> 0 | AB18: =IFERROR(Q18 - AA18, "") -> 0
D19: % change | E19: =IFERROR((E17 - E18) / E18, "") ->  | F19: =IFERROR((F17 - F18) / F18, "") ->  | G19: =IFERROR((G17 - G18) / G18, "") ->  | H19: =IFERROR((H17 - H18) / H18, "") ->  | I19: =IFERROR((I17 - I18) / I18, "") ->  | J19: =IFERROR((J17 - J18) / J18, "") ->  | K19: =IFERROR((K17 - K18) / K18, "") ->  | L19: =IFERROR((L17 - L18) / L18, "") ->  | M19: =IFERROR((M17 - M18) / M18, "") ->  | N19: =IFERROR((N17 - N18) / N18, "") ->  | O19: =IFERROR((O17 - O18) / O18, "") ->  | P19: =IFERROR((P17 - P18) / P18, "") ->  | Q19: =IFERROR((Q17 - Q18) / Q18, "") -> 
C20: Distribution network demand charge - R/kVA | D20: =New_Period -> 2024/2025 | E20: =IFERROR(Inputs!$J$30 * 'Rates Table'!$AL$12, 0) -> 0 | F20: =IFERROR(Inputs!$J$31 * 'Rates Table'!$AL$12, 0) -> 0 | G20: =IFERROR(Inputs!$J$32 * 'Rates Table'!$AL$12, 0) -> 0 | H20: =IFERROR(Inputs!$J$33 * 'Rates Table'!$AL$12, 0) -> 0 | I20: =IFERROR(Inputs!$J$34 * 'Rates Table'!$AL$12, 0) -> 0 | J20: =IFERROR(Inputs!$J$35 * 'Rates Table'!$AL$12, 0) -> 0 | K20: =IFERROR(Inputs!$J$36 * 'Rates Table'!$AL$12, 0) -> 0 | L20: =IFERROR(Inputs!$J$37 * 'Rates Table'!$AL$12, 0) -> 0 | M20: =IFERROR(Inputs!$J$38 * 'Rates Table'!$AL$12, 0) -> 0 | N20: =IFERROR(Inputs!$J$39 * 'Rates Table'!$AL$12, 0) -> 0 | O20: =IFERROR(Inputs!$J$40 * 'Rates Table'!$AL$12, 0) -> 0 | P20: =IFERROR(Inputs!$J$41 * 'Rates Table'!$AL$12, 0) -> 0 | Q20: =SUM(E20:P20) -> 0 | AA20: ='Bill Comparison'!H69 -> 0 | AB20: =IFERROR(Q20 - AA20, "") -> 0
D21: =Current_Period -> 2023/2024 | E21: =IFERROR(Inputs!$J$30 * 'Rates Table'!$E$12, 0) -> 0 | F21: =IFERROR(Inputs!$J$31 * 'Rates Table'!$E$12, 0) -> 0 | G21: =IFERROR(Inputs!$J$32 * 'Rates Table'!$E$12, 0) -> 0 | H21: =IFERROR(Inputs!$J$33 * 'Rates Table'!$E$12, 0) -> 0 | I21: =IFERROR(Inputs!$J$34 * 'Rates Table'!$E$12, 0) -> 0 | J21: =IFERROR(Inputs!$J$35 * 'Rates Table'!$E$12, 0) -> 0 | K21: =IFERROR(Inputs!$J$36 * 'Rates Table'!$E$12, 0) -> 0 | L21: =IFERROR(Inputs!$J$37 * 'Rates Table'!$E$12, 0) -> 0 | M21: =IFERROR(Inputs!$J$38 * 'Rates Table'!$E$12, 0) -> 0 | N21: =IFERROR(Inputs!$J$39 * 'Rates Table'!$E$12, 0) -> 0 | O21: =IFERROR(Inputs!$J$40 * 'Rates Table'!$E$12, 0) -> 0 | P21: =IFERROR(Inputs!$J$41 * 'Rates Table'!$E$12, 0) -> 0 | Q21: =SUM(E21:P21) -> 0 | AA21: ='Bill Comparison'!G69 -> 0 | AB21: =IFERROR(Q21 - AA21, "") -> 0
D22: % change | E22: =IFERROR((E20 - E21) / E21, "") ->  | F22: =IFERROR((F20 - F21) / F21, "") ->  | G22: =IFERROR((G20 - G21) / G21, "") ->  | H22: =IFERROR((H20 - H21) / H21, "") ->  | I22: =IFERROR((I20 - I21) / I21, "") ->  | J22: =IFERROR((J20 - J21) / J21, "") ->  | K22: =IFERROR((K20 - K21) / K21, "") ->  | L22: =IFERROR((L20 - L21) / L21, "") ->  | M22: =IFERROR((M20 - M21) / M21, "") ->  | N22: =IFERROR((N20 - N21) / N21, "") ->  | O22: =IFERROR((O20 - O21) / O21, "") ->  | P22: =IFERROR((P20 - P21) / P21, "") ->  | Q22: =IFERROR((Q20 - Q21) / Q21, "") -> 
C23: Network demand charge - c/kWh | D23: =New_Period -> 2024/2025 | E23: =IFERROR('Rates Table'!$AL$13*IF($D$8="Miniflex",Inputs!$G$30+Inputs!$H$30,Inputs!$M$30),0)/100 -> 0 | F23: =IFERROR('Rates Table'!$AL$13*IF($D$8="Miniflex",Inputs!$G$31+Inputs!$H$31,Inputs!$M$31),0)/100 -> 0 | G23: =IFERROR('Rates Table'!$AL$13*IF($D$8="Miniflex",Inputs!$G$32+Inputs!$H$32,Inputs!$M$32),0)/100 -> 0 | H23: =IFERROR('Rates Table'!$AL$13*IF($D$8="Miniflex",Inputs!$G$33+Inputs!$H$33,Inputs!$M$33),0)/100 -> 0 | I23: =IFERROR('Rates Table'!$AL$13*IF($D$8="Miniflex",Inputs!$G$34+Inputs!$H$34,Inputs!$M$34),0)/100 -> 0 | J23: =IFERROR('Rates Table'!$AL$13*IF($D$8="Miniflex",Inputs!$G$35+Inputs!$H$35,Inputs!$M$35),0)/100 -> 0 | K23: =IFERROR('Rates Table'!$AL$13*IF($D$8="Miniflex",Inputs!$G$36+Inputs!$H$36,Inputs!$M$36),0)/100 -> 0 | L23: =IFERROR('Rates Table'!$AL$13*IF($D$8="Miniflex",Inputs!$G$37+Inputs!$H$37,Inputs!$M$37),0)/100 -> 0 | M23: =IFERROR('Rates Table'!$AL$13*IF($D$8="Miniflex",Inputs!$G$38+Inputs!$H$38,Inputs!$M$38),0)/100 -> 0 | N23: =IFERROR('Rates Table'!$AL$13*IF($D$8="Miniflex",Inputs!$G$39+Inputs!$H$39,Inputs!$M$39),0)/100 -> 0 | O23: =IFERROR('Rates Table'!$AL$13*IF($D$8="Miniflex",Inputs!$G$40+Inputs!$H$40,Inputs!$M$40),0)/100 -> 0 | P23: =IFERROR('Rates Table'!$AL$13*IF($D$8="Miniflex",Inputs!$G$41+Inputs!$H$41,Inputs!$M$41),0)/100 -> 0 | Q23: =SUM(E23:P23) -> 0 | AA23: ='Bill Comparison'!H70 -> 0 | AB23: =IFERROR(Q23 - AA23, "") -> 0
D24: =Current_Period -> 2023/2024 | E24: =IFERROR('Rates Table'!$E$13*IF($D$8="Miniflex",Inputs!$G$30+Inputs!$H$30,Inputs!$M$30),0)/100 -> 0 | F24: =IFERROR('Rates Table'!$E$13*IF($D$8="Miniflex",Inputs!$G$31+Inputs!$H$31,Inputs!$M$31),0)/100 -> 0 | G24: =IFERROR('Rates Table'!$E$13*IF($D$8="Miniflex",Inputs!$G$32+Inputs!$H$32,Inputs!$M$32),0)/100 -> 0 | H24: =IFERROR('Rates Table'!$E$13*IF($D$8="Miniflex",Inputs!$G$33+Inputs!$H$33,Inputs!$M$33),0)/100 -> 0 | I24: =IFERROR('Rates Table'!$E$13*IF($D$8="Miniflex",Inputs!$G$34+Inputs!$H$34,Inputs!$M$34),0)/100 -> 0 | J24: =IFERROR('Rates Table'!$E$13*IF($D$8="Miniflex",Inputs!$G$35+Inputs!$H$35,Inputs!$M$35),0)/100 -> 0 | K24: =IFERROR('Rates Table'!$E$13*IF($D$8="Miniflex",Inputs!$G$36+Inputs!$H$36,Inputs!$M$36),0)/100 -> 0 | L24: =IFERROR('Rates Table'!$E$13*IF($D$8="Miniflex",Inputs!$G$37+Inputs!$H$37,Inputs!$M$37),0)/100 -> 0 | M24: =IFERROR('Rates Table'!$E$13*IF($D$8="Miniflex",Inputs!$G$38+Inputs!$H$38,Inputs!$M$38),0)/100 -> 0 | N24: =IFERROR('Rates Table'!$E$13*IF($D$8="Miniflex",Inputs!$G$39+Inputs!$H$39,Inputs!$M$39),0)/100 -> 0 | O24: =IFERROR('Rates Table'!$E$13*IF($D$8="Miniflex",Inputs!$G$40+Inputs!$H$40,Inputs!$M$40),0)/100 -> 0 | P24: =IFERROR('Rates Table'!$E$13*IF($D$8="Miniflex",Inputs!$G$41+Inputs!$H$41,Inputs!$M$41),0)/100 -> 0 | Q24: =SUM(E24:P24) -> 0 | AA24: ='Bill Comparison'!G70 -> 0 | AB24: =IFERROR(Q24 - AA24, "") -> 0
D25: % change | E25: =IFERROR((E23 - E24) / E24, "") ->  | F25: =IFERROR((F23 - F24) / F24, "") ->  | Q25: =IFERROR((Q23 - Q24) / Q24, "") -> 
C26: Network demand charge, Ancillary service charge and retail - c/kWh | D26: =New_Period -> 2024/2025 | E26: =IFERROR('Rates Table'!$AL$14*IF($D$8="Miniflex",Inputs!$G$30+Inputs!$H$30,Inputs!$M$30),0)/100 -> 0 | F26: =IFERROR('Rates Table'!$AL$14*IF($D$8="Miniflex",Inputs!$G$31+Inputs!$H$31,Inputs!$M$31),0)/100 -> 0 | G26: =IFERROR('Rates Table'!$AL$14*IF($D$8="Miniflex",Inputs!$G$32+Inputs!$H$32,Inputs!$M$32),0)/100 -> 0 | H26: =IFERROR('Rates Table'!$AL$14*IF($D$8="Miniflex",Inputs!$G$33+Inputs!$H$33,Inputs!$M$33),0)/100 -> 0 | I26: =IFERROR('Rates Table'!$AL$14*IF($D$8="Miniflex",Inputs!$G$34+Inputs!$H$34,Inputs!$M$34),0)/100 -> 0 | J26: =IFERROR('Rates Table'!$AL$14*IF($D$8="Miniflex",Inputs!$G$35+Inputs!$H$35,Inputs!$M$35),0)/100 -> 0 | K26: =IFERROR('Rates Table'!$AL$14*IF($D$8="Miniflex",Inputs!$G$36+Inputs!$H$36,Inputs!$M$36),0)/100 -> 0 | L26: =IFERROR('Rates Table'!$AL$14*IF($D$8="Miniflex",Inputs!$G$37+Inputs!$H$37,Inputs!$M$37),0)/100 -> 0 | M26: =IFERROR('Rates Table'!$AL$14*IF($D$8="Miniflex",Inputs!$G$38+Inputs!$H$38,Inputs!$M$38),0)/100 -> 0 | N26: =IFERROR('Rates Table'!$AL$14*IF($D$8="Miniflex",Inputs!$G$39+Inputs!$H$39,Inputs!$M$39),0)/100 -> 0 | O26: =IFERROR('Rates Table'!$AL$14*IF($D$8="Miniflex",Inputs!$G$40+Inputs!$H$40,Inputs!$M$40),0)/100 -> 0 | P26: =IFERROR('Rates Table'!$AL$14*IF($D$8="Miniflex",Inputs!$G$41+Inputs!$H$41,Inputs!$M$41),0)/100 -> 0 | Q26: =SUM(E26:P26) -> 0
D27: =Current_Period -> 2023/2024 | E27: =IFERROR('Rates Table'!$E$14*IF($D$8="Miniflex",Inputs!$G$30+Inputs!$H$30,Inputs!$M$30),0)/100 -> 0 | F27: =IFERROR('Rates Table'!$E$14*IF($D$8="Miniflex",Inputs!$G$31+Inputs!$H$31,Inputs!$M$31),0)/100 -> 0 | G27: =IFERROR('Rates Table'!$E$14*IF($D$8="Miniflex",Inputs!$G$32+Inputs!$H$32,Inputs!$M$32),0)/100 -> 0 | H27: =IFERROR('Rates Table'!$E$14*IF($D$8="Miniflex",Inputs!$G$33+Inputs!$H$33,Inputs!$M$33),0)/100 -> 0 | I27: =IFERROR('Rates Table'!$E$14*IF($D$8="Miniflex",Inputs!$G$34+Inputs!$H$34,Inputs!$M$34),0)/100 -> 0 | J27: =IFERROR('Rates Table'!$E$14*IF($D$8="Miniflex",Inputs!$G$35+Inputs!$H$35,Inputs!$M$35),0)/100 -> 0 | K27: =IFERROR('Rates Table'!$E$14*IF($D$8="Miniflex",Inputs!$G$36+Inputs!$H$36,Inputs!$M$36),0)/100 -> 0 | L27: =IFERROR('Rates Table'!$E$14*IF($D$8="Miniflex",Inputs!$G$37+Inputs!$H$37,Inputs!$M$37),0)/100 -> 0 | M27: =IFERROR('Rates Table'!$E$14*IF($D$8="Miniflex",Inputs!$G$38+Inputs!$H$38,Inputs!$M$38),0)/100 -> 0 | N27: =IFERROR('Rates Table'!$E$14*IF($D$8="Miniflex",Inputs!$G$39+Inputs!$H$39,Inputs!$M$39),0)/100 -> 0 | O27: =IFERROR('Rates Table'!$E$14*IF($D$8="Miniflex",Inputs!$G$40+Inputs!$H$40,Inputs!$M$40),0)/100 -> 0 | P27: =IFERROR('Rates Table'!$E$14*IF($D$8="Miniflex",Inputs!$G$41+Inputs!$H$41,Inputs!$M$41),0)/100 -> 0 | Q27: =SUM(E27:P27) -> 0
D28: % change | E28: =IFERROR((E26 - E27) / E27, "") ->  | F28: =IFERROR((F26 - F27) / F27, "") -> 
C29: LV subsidy charge | D29: =New_Period -> 2024/2025 | E29: =IFERROR(Inputs!$K$30 * 'Rates Table'!$AL$15, 0) -> 0 | F29: =IFERROR(Inputs!$K$31 * 'Rates Table'!$AL$15, 0) -> 0 | G29: =IFERROR(Inputs!$K$32 * 'Rates Table'!$AL$15, 0) -> 0 | H29: =IFERROR(Inputs!$K$33 * 'Rates Table'!$AL$15, 0) -> 0 | I29: =IFERROR(Inputs!$K$34 * 'Rates Table'!$AL$15, 0) -> 0 | J29: =IFERROR(Inputs!$K$35 * 'Rates Table'!$AL$15, 0) -> 0 | K29: =IFERROR(Inputs!$K$36 * 'Rates Table'!$AL$15, 0) -> 0 | L29: =IFERROR(Inputs!$K$37 * 'Rates Table'!$AL$15, 0) -> 0 | M29: =IFERROR(Inputs!$K$38 * 'Rates Table'!$AL$15, 0) -> 0 | N29: =IFERROR(Inputs!$K$39 * 'Rates Table'!$AL$15, 0) -> 0 | O29: =IFERROR(Inputs!$K$40 * 'Rates Table'!$AL$15, 0) -> 0 | P29: =IFERROR(Inputs!$K$41 * 'Rates Table'!$AL$15, 0) -> 0 | Q29: =SUM(E29:P29) -> 0 | AB29: =IFERROR(Q29 - AA29, "") -> 0
D30: =Current_Period -> 2023/2024 | E30: =IFERROR(Inputs!$K$30 * 'Rates Table'!$E$15, 0) -> 0 | F30: =IFERROR(Inputs!$K$31 * 'Rates Table'!$E$15, 0) -> 0 | G30: =IFERROR(Inputs!$K$32 * 'Rates Table'!$E$15, 0) -> 0 | H30: =IFERROR(Inputs!$K$33 * 'Rates Table'!$E$15, 0) -> 0 | I30: =IFERROR(Inputs!$K$34 * 'Rates Table'!$E$15, 0) -> 0 | J30: =IFERROR(Inputs!$K$35 * 'Rates Table'!$E$15, 0) -> 0 | K30: =IFERROR(Inputs!$K$36 * 'Rates Table'!$E$15, 0) -> 0 | L30: =IFERROR(Inputs!$K$37 * 'Rates Table'!$E$15, 0) -> 0 | M30: =IFERROR(Inputs!$K$38 * 'Rates Table'!$E$15, 0) -> 0 | N30: =IFERROR(Inputs!$K$39 * 'Rates Table'!$E$15, 0) -> 0 | O30: =IFERROR(Inputs!$K$40 * 'Rates Table'!$E$15, 0) -> 0 | P30: =IFERROR(Inputs!$K$41 * 'Rates Table'!$E$15, 0) -> 0 | Q30: =SUM(E30:P30) -> 0 | AB30: =IFERROR(Q30 - AA30, "") -> 0
D31: % change | E31: =IFERROR((E29 - E30) / E30, "") ->  | F31: =IFERROR((F29 - F30) / F30, "") ->  | Q31: =IFERROR((Q29 - Q30) / Q30, "") -> 
C32: Network capacity charge - R/kVA | D32: =New_Period -> 2024/2025 | E32: =IFERROR(IF(Table_1=1,'Rates Table'!$AL$16*Inputs!$K$30,'Rates Table'!$AL$16*PODs*(TOU_High_Days + TOU_Low_Days)/12),0) -> 599.5125 | F32: =IFERROR(IF(Table_1=1,'Rates Table'!$AL$16*Inputs!$K$31,'Rates Table'!$AL$16*PODs*(TOU_High_Days + TOU_Low_Days)/12),0) -> 599.5125 | G32: =IFERROR(IF(Table_1=1,'Rates Table'!$AL$16*Inputs!$K$32,'Rates Table'!$AL$16*PODs*(TOU_High_Days + TOU_Low_Days)/12),0) -> 599.5125 | H32: =IFERROR(IF(Table_1=1,'Rates Table'!$AL$16*Inputs!$K$33,'Rates Table'!$AL$16*PODs*(TOU_High_Days + TOU_Low_Days)/12),0) -> 599.5125 | I32: =IFERROR(IF(Table_1=1,'Rates Table'!$AL$16*Inputs!$K$34,'Rates Table'!$AL$16*PODs*(TOU_High_Days + TOU_Low_Days)/12),0) -> 599.5125 | J32: =IFERROR(IF(Table_1=1,'Rates Table'!$AL$16*Inputs!$K$35,'Rates Table'!$AL$16*PODs*(TOU_High_Days + TOU_Low_Days)/12),0) -> 599.5125 | K32: =IFERROR(IF(Table_1=1,'Rates Table'!$AL$16*Inputs!$K$36,'Rates Table'!$AL$16*PODs*(TOU_High_Days + TOU_Low_Days)/12),0) -> 599.5125 | L32: =IFERROR(IF(Table_1=1,'Rates Table'!$AL$16*Inputs!$K$37,'Rates Table'!$AL$16*PODs*(TOU_High_Days + TOU_Low_Days)/12),0) -> 599.5125 | M32: =IFERROR(IF(Table_1=1,'Rates Table'!$AL$16*Inputs!$K$38,'Rates Table'!$AL$16*PODs*(TOU_High_Days + TOU_Low_Days)/12),0) -> 599.5125 | N32: =IFERROR(IF(Table_1=1,'Rates Table'!$AL$16*Inputs!$K$39,'Rates Table'!$AL$16*PODs*(TOU_High_Days + TOU_Low_Days)/12),0) -> 599.5125 | O32: =IFERROR(IF(Table_1=1,'Rates Table'!$AL$16*Inputs!$K$40,'Rates Table'!$AL$16*PODs*(TOU_High_Days + TOU_Low_Days)/12),0) -> 599.5125 | P32: =IFERROR(IF(Table_1=1,'Rates Table'!$AL$16*Inputs!$K$41,'Rates Table'!$AL$16*PODs*(TOU_High_Days + TOU_Low_Days)/12),0) -> 599.5125 | Q32: =SUM(E32:P32) -> 7194.15 | AA32: ='Bill Comparison'!H72 -> 7194.15 | AB32: =IFERROR(Q32 - AA32, "") -> -9.094947018e-13
D33: =Current_Period -> 2023/2024 | E33: =IFERROR(IF(Table_1=1,'Rates Table'!$E$16*Inputs!$K$30,'Rates Table'!$E$16*PODs*(TOU_High_Days + TOU_Low_Days)/12),0) -> 531.6833333 | F33: =IFERROR(IF(Table_1=1,'Rates Table'!$E$16*Inputs!$K$31,'Rates Table'!$E$16*PODs*(TOU_High_Days + TOU_Low_Days)/12),0) -> 531.6833333 | G33: =IFERROR(IF(Table_1=1,'Rates Table'!$E$16*Inputs!$K$32,'Rates Table'!$E$16*PODs*(TOU_High_Days + TOU_Low_Days)/12),0) -> 531.6833333 | H33: =IFERROR(IF(Table_1=1,'Rates Table'!$E$16*Inputs!$K$33,'Rates Table'!$E$16*PODs*(TOU_High_Days + TOU_Low_Days)/12),0) -> 531.6833333 | I33: =IFERROR(IF(Table_1=1,'Rates Table'!$E$16*Inputs!$K$34,'Rates Table'!$E$16*PODs*(TOU_High_Days + TOU_Low_Days)/12),0) -> 531.6833333 | J33: =IFERROR(IF(Table_1=1,'Rates Table'!$E$16*Inputs!$K$35,'Rates Table'!$E$16*PODs*(TOU_High_Days + TOU_Low_Days)/12),0) -> 531.6833333 | K33: =IFERROR(IF(Table_1=1,'Rates Table'!$E$16*Inputs!$K$36,'Rates Table'!$E$16*PODs*(TOU_High_Days + TOU_Low_Days)/12),0) -> 531.6833333 | L33: =IFERROR(IF(Table_1=1,'Rates Table'!$E$16*Inputs!$K$37,'Rates Table'!$E$16*PODs*(TOU_High_Days + TOU_Low_Days)/12),0) -> 531.6833333 | M33: =IFERROR(IF(Table_1=1,'Rates Table'!$E$16*Inputs!$K$38,'Rates Table'!$E$16*PODs*(TOU_High_Days + TOU_Low_Days)/12),0) -> 531.6833333 | N33: =IFERROR(IF(Table_1=1,'Rates Table'!$E$16*Inputs!$K$39,'Rates Table'!$E$16*PODs*(TOU_High_Days + TOU_Low_Days)/12),0) -> 531.6833333 | O33: =IFERROR(IF(Table_1=1,'Rates Table'!$E$16*Inputs!$K$40,'Rates Table'!$E$16*PODs*(TOU_High_Days + TOU_Low_Days)/12),0) -> 531.6833333 | P33: =IFERROR(IF(Table_1=1,'Rates Table'!$E$16*Inputs!$K$41,'Rates Table'!$E$16*PODs*(TOU_High_Days + TOU_Low_Days)/12),0) -> 531.6833333 | Q33: =SUM(E33:P33) -> 6380.2 | AA33: ='Bill Comparison'!G72 -> 6380.2 | AB33: =IFERROR(Q33 - AA33, "") -> 0
D34: % change | E34: =IFERROR((E32 - E33) / E33, "") -> 0.1275743707 | F34: =IFERROR((F32 - F33) / F33, "") -> 0.1275743707 | G34: 0.1275743707 | H34: 0.1275743707 | I34: 0.1275743707 | J34: 0.1275743707 | K34: 0.1275743707 | L34: 0.1275743707 | M34: 0.1275743707 | N34: 0.1275743707 | O34: 0.1275743707 | P34: 0.1275743707 | Q34: =IFERROR((Q32 - Q33) / Q33, "") -> 0.1275743707
C35: Total network charges | D35: =New_Period -> 2024/2025 | E35: =SUM(E17,E20,E23,E26,E29,E32,E14) -> 599.5125 | F35: =SUM(F17,F20,F23,F26,F29,F32,F14) -> 599.5125 | G35: 599.5125 | H35: 599.5125 | I35: 599.5125 | J35: 599.5125 | K35: 599.5125 | L35: 599.5125 | M35: 599.5125 | N35: 599.5125 | O35: 599.5125 | P35: 599.5125 | Q35: 7194.15
D36: =Current_Period -> 2023/2024 | E36: =SUM(E18,E21,E24,E27,E30,E33,E15) -> 531.6833333 | F36: =SUM(F18,F21,F24,F27,F30,F33,F15) -> 531.6833333 | G36: 531.6833333 | H36: 531.6833333 | I36: 531.6833333 | J36: 531.6833333 | K36: 531.6833333 | L36: 531.6833333 | M36: 531.6833333 | N36: 531.6833333 | O36: 531.6833333 | P36: 531.6833333 | Q36: 6380.2
D37: % change | E37: =IFERROR((E35 - E36) / E36, "") -> 0.1275743707 | F37: =IFERROR((F35 - F36) / F36, "") -> 0.1275743707 | G37: =IFERROR((G35 - G36) / G36, "") -> 0.1275743707 | H37: =IFERROR((H35 - H36) / H36, "") -> 0.1275743707 | I37: =IFERROR((I35 - I36) / I36, "") -> 0.1275743707 | J37: =IFERROR((J35 - J36) / J36, "") -> 0.1275743707 | K37: =IFERROR((K35 - K36) / K36, "") -> 0.1275743707 | L37: =IFERROR((L35 - L36) / L36, "") -> 0.1275743707 | M37: =IFERROR((M35 - M36) / M36, "") -> 0.1275743707 | N37: =IFERROR((N35 - N36) / N36, "") -> 0.1275743707 | O37: =IFERROR((O35 - O36) / O36, "") -> 0.1275743707 | P37: =IFERROR((P35 - P36) / P36, "") -> 0.1275743707 | Q37: =IFERROR((Q35 - Q36) / Q36, "") -> 0.1275743707
B39: Energy charges | E39: =E$13 -> 2024-04-30 | F39: =F$13 -> 2024-05-31 | G39: 2024-06-30 | H39: 2024-07-31 | I39: 2024-08-31 | J39: 2024-09-30 | K39: 2024-10-31 | L39: 2024-11-30 | M39: 2024-12-31 | N39: 2025-01-31 | O39: 2025-02-28 | P39: 2025-03-31 | Q39: Total
C40: Peak energy charge | D40: =New_Period -> 2024/2025 | E40: =IF(TOU_indicator = "Y", Inputs!$G$30 * IF(Inputs!$E$30 = "High Demand", NewRate_kWh_P_high, NewRate_kWh_P_low) / 100, "") ->  | F40: =IF(TOU_indicator = "Y", Inputs!$G$31 * IF(Inputs!$E$31 = "High Demand", NewRate_kWh_P_high, NewRate_kWh_P_low) / 100, "") ->  | G40: =IF(TOU_indicator = "Y", Inputs!$G$32 * IF(Inputs!$E$32 = "High Demand", NewRate_kWh_P_high, NewRate_kWh_P_low) / 100, "") ->  | H40: =IF(TOU_indicator = "Y", Inputs!$G$33 * IF(Inputs!$E$33 = "High Demand", NewRate_kWh_P_high, NewRate_kWh_P_low) / 100, "") ->  | I40: =IF(TOU_indicator = "Y", Inputs!$G$34 * IF(Inputs!$E$34 = "High Demand", NewRate_kWh_P_high, NewRate_kWh_P_low) / 100, "") ->  | J40: =IF(TOU_indicator = "Y", Inputs!$G$35 * IF(Inputs!$E$35 = "High Demand", NewRate_kWh_P_high, NewRate_kWh_P_low) / 100, "") ->  | K40: =IF(TOU_indicator = "Y", Inputs!$G$36 * IF(Inputs!$E$36 = "High Demand", NewRate_kWh_P_high, NewRate_kWh_P_low) / 100, "") ->  | L40: =IF(TOU_indicator = "Y", Inputs!$G$37 * IF(Inputs!$E$37 = "High Demand", NewRate_kWh_P_high, NewRate_kWh_P_low) / 100, "") ->  | M40: =IF(TOU_indicator = "Y", Inputs!$G$38 * IF(Inputs!$E$38 = "High Demand", NewRate_kWh_P_high, NewRate_kWh_P_low) / 100, "") ->  | N40: =IF(TOU_indicator = "Y", Inputs!$G$39 * IF(Inputs!$E$39 = "High Demand", NewRate_kWh_P_high, NewRate_kWh_P_low) / 100, "") ->  | O40: =IF(TOU_indicator = "Y", Inputs!$G$40 * IF(Inputs!$E$40 = "High Demand", NewRate_kWh_P_high, NewRate_kWh_P_low) / 100, "") ->  | P40: =IF(TOU_indicator = "Y", Inputs!$G$41 * IF(Inputs!$E$41 = "High Demand", NewRate_kWh_P_high, NewRate_kWh_P_low) / 100, "") ->  | Q40: =IF(E40 = "", "", SUM(E40:P40)) ->  | AA40: ='Bill Comparison'!H78 -> 0 | AB40: =IFERROR(Q40 - AA40, "") -> 
D41: =Current_Period -> 2023/2024 | E41: =IF(TOU_indicator = "Y", Inputs!$G$30 * IF(Inputs!$E$30 = "High Demand", CurrRate_kWh_P_high, CurrRate_kWh_P_low) / 100, "") ->  | F41: =IF(TOU_indicator = "Y", Inputs!$G$31 * IF(Inputs!$E$31 = "High Demand", CurrRate_kWh_P_high, CurrRate_kWh_P_low) / 100, "") ->  | G41: =IF(TOU_indicator = "Y", Inputs!$G$32 * IF(Inputs!$E$32 = "High Demand", CurrRate_kWh_P_high, CurrRate_kWh_P_low) / 100, "") ->  | H41: =IF(TOU_indicator = "Y", Inputs!$G$33 * IF(Inputs!$E$33 = "High Demand", CurrRate_kWh_P_high, CurrRate_kWh_P_low) / 100, "") ->  | I41: =IF(TOU_indicator = "Y", Inputs!$G$34 * IF(Inputs!$E$34 = "High Demand", CurrRate_kWh_P_high, CurrRate_kWh_P_low) / 100, "") ->  | J41: =IF(TOU_indicator = "Y", Inputs!$G$35 * IF(Inputs!$E$35 = "High Demand", CurrRate_kWh_P_high, CurrRate_kWh_P_low) / 100, "") ->  | K41: =IF(TOU_indicator = "Y", Inputs!$G$36 * IF(Inputs!$E$36 = "High Demand", CurrRate_kWh_P_high, CurrRate_kWh_P_low) / 100, "") ->  | L41: =IF(TOU_indicator = "Y", Inputs!$G$37 * IF(Inputs!$E$37 = "High Demand", CurrRate_kWh_P_high, CurrRate_kWh_P_low) / 100, "") ->  | M41: =IF(TOU_indicator = "Y", Inputs!$G$38 * IF(Inputs!$E$38 = "High Demand", CurrRate_kWh_P_high, CurrRate_kWh_P_low) / 100, "") ->  | N41: =IF(TOU_indicator = "Y", Inputs!$G$39 * IF(Inputs!$E$39 = "High Demand", CurrRate_kWh_P_high, CurrRate_kWh_P_low) / 100, "") ->  | O41: =IF(TOU_indicator = "Y", Inputs!$G$40 * IF(Inputs!$E$40 = "High Demand", CurrRate_kWh_P_high, CurrRate_kWh_P_low) / 100, "") ->  | P41: =IF(TOU_indicator = "Y", Inputs!$G$41 * IF(Inputs!$E$41 = "High Demand", CurrRate_kWh_P_high, CurrRate_kWh_P_low) / 100, "") ->  | AA41: ='Bill Comparison'!G78 -> 0 | AB41: =IFERROR(Q41 - AA41, "") -> 
D42: % change | E42: =IFERROR((E40 - E41) / E41, "") ->  | F42: =IFERROR((F40 - F41) / F41, "") -> 
C43: Standard energy charge | D43: =New_Period -> 2024/2025 | E43: =IF(TOU_indicator = "Y", Inputs!$H$30 * IF(Inputs!$E$30 = "High Demand", NewRate_kWh_S_high, NewRate_kWh_S_low) / 100, "") ->  | F43: =IF(TOU_indicator = "Y", Inputs!$H$31 * IF(Inputs!$E$31 = "High Demand", NewRate_kWh_S_high, NewRate_kWh_S_low) / 100, "") ->  | G43: =IF(TOU_indicator = "Y", Inputs!$H$32 * IF(Inputs!$E$32 = "High Demand", NewRate_kWh_S_high, NewRate_kWh_S_low) / 100, "") ->  | H43: =IF(TOU_indicator = "Y", Inputs!$H$33 * IF(Inputs!$E$33 = "High Demand", NewRate_kWh_S_high, NewRate_kWh_S_low) / 100, "") ->  | I43: =IF(TOU_indicator = "Y", Inputs!$H$34 * IF(Inputs!$E$34 = "High Demand", NewRate_kWh_S_high, NewRate_kWh_S_low) / 100, "") ->  | J43: =IF(TOU_indicator = "Y", Inputs!$H$35 * IF(Inputs!$E$35 = "High Demand", NewRate_kWh_S_high, NewRate_kWh_S_low) / 100, "") ->  | K43: =IF(TOU_indicator = "Y", Inputs!$H$36 * IF(Inputs!$E$36 = "High Demand", NewRate_kWh_S_high, NewRate_kWh_S_low) / 100, "") ->  | L43: =IF(TOU_indicator = "Y", Inputs!$H$37 * IF(Inputs!$E$37 = "High Demand", NewRate_kWh_S_high, NewRate_kWh_S_low) / 100, "") ->  | M43: =IF(TOU_indicator = "Y", Inputs!$H$38 * IF(Inputs!$E$38 = "High Demand", NewRate_kWh_S_high, NewRate_kWh_S_low) / 100, "") ->  | N43: =IF(TOU_indicator = "Y", Inputs!$H$39 * IF(Inputs!$E$39 = "High Demand", NewRate_kWh_S_high, NewRate_kWh_S_low) / 100, "") ->  | O43: =IF(TOU_indicator = "Y", Inputs!$H$40 * IF(Inputs!$E$40 = "High Demand", NewRate_kWh_S_high, NewRate_kWh_S_low) / 100, "") ->  | P43: =IF(TOU_indicator = "Y", Inputs!$H$41 * IF(Inputs!$E$41 = "High Demand", NewRate_kWh_S_high, NewRate_kWh_S_low) / 100, "") ->  | Q43: =IF(E43 = "", "", SUM(E43:P43)) ->  | AA43: ='Bill Comparison'!H79 -> 0 | AB43: =IFERROR(Q43 - AA43, "") -> 
D44: =Current_Period -> 2023/2024 | E44: =IF(TOU_indicator = "Y", Inputs!$H$30 * IF(Inputs!$E$30 = "High Demand", CurrRate_kWh_S_high, CurrRate_kWh_S_low) / 100, "") ->  | F44: =IF(TOU_indicator = "Y", Inputs!$H$31 * IF(Inputs!$E$31 = "High Demand", CurrRate_kWh_S_high, CurrRate_kWh_S_low) / 100, "") ->  | G44: =IF(TOU_indicator = "Y", Inputs!$H$32 * IF(Inputs!$E$32 = "High Demand", CurrRate_kWh_S_high, CurrRate_kWh_S_low) / 100, "") ->  | H44: =IF(TOU_indicator = "Y", Inputs!$H$33 * IF(Inputs!$E$33 = "High Demand", CurrRate_kWh_S_high, CurrRate_kWh_S_low) / 100, "") ->  | I44: =IF(TOU_indicator = "Y", Inputs!$H$34 * IF(Inputs!$E$34 = "High Demand", CurrRate_kWh_S_high, CurrRate_kWh_S_low) / 100, "") ->  | J44: =IF(TOU_indicator = "Y", Inputs!$H$35 * IF(Inputs!$E$35 = "High Demand", CurrRate_kWh_S_high, CurrRate_kWh_S_low) / 100, "") ->  | K44: =IF(TOU_indicator = "Y", Inputs!$H$36 * IF(Inputs!$E$36 = "High Demand", CurrRate_kWh_S_high, CurrRate_kWh_S_low) / 100, "") ->  | L44: =IF(TOU_indicator = "Y", Inputs!$H$37 * IF(Inputs!$E$37 = "High Demand", CurrRate_kWh_S_high, CurrRate_kWh_S_low) / 100, "") ->  | M44: =IF(TOU_indicator = "Y", Inputs!$H$38 * IF(Inputs!$E$38 = "High Demand", CurrRate_kWh_S_high, CurrRate_kWh_S_low) / 100, "") ->  | N44: =IF(TOU_indicator = "Y", Inputs!$H$39 * IF(Inputs!$E$39 = "High Demand", CurrRate_kWh_S_high, CurrRate_kWh_S_low) / 100, "") ->  | O44: =IF(TOU_indicator = "Y", Inputs!$H$40 * IF(Inputs!$E$40 = "High Demand", CurrRate_kWh_S_high, CurrRate_kWh_S_low) / 100, "") ->  | P44: =IF(TOU_indicator = "Y", Inputs!$H$41 * IF(Inputs!$E$41 = "High Demand", CurrRate_kWh_S_high, CurrRate_kWh_S_low) / 100, "") ->  | AA44: ='Bill Comparison'!G79 -> 0 | AB44: =IFERROR(Q44 - AA44, "") -> 
D45: % change | E45: =IFERROR((E43 - E44) / E44, "") ->  | F45: =IFERROR((F43 - F44) / F44, "") ->  | G45: =IFERROR((G43 - G44) / G44, "") ->  | H45: =IFERROR((H43 - H44) / H44, "") ->  | I45: =IFERROR((I43 - I44) / I44, "") ->  | J45: =IFERROR((J43 - J44) / J44, "") ->  | K45: =IFERROR((K43 - K44) / K44, "") ->  | L45: =IFERROR((L43 - L44) / L44, "") ->  | M45: =IFERROR((M43 - M44) / M44, "") ->  | N45: =IFERROR((N43 - N44) / N44, "") ->  | O45: =IFERROR((O43 - O44) / O44, "") ->  | P45: =IFERROR((P43 - P44) / P44, "") ->  | Q45: =IFERROR((Q43 - Q44) / Q44, "") -> 
C46: Off-Peak energy charge | D46: =New_Period -> 2024/2025 | E46: =IF(TOU_indicator = "Y", Inputs!$I$30 * IF(Inputs!$E$30 = "High Demand", NewRate_kWh_O_high, NewRate_kWh_O_low) / 100, "") ->  | F46: =IF(TOU_indicator = "Y", Inputs!$I$31 * IF(Inputs!$E$31 = "High Demand", NewRate_kWh_O_high, NewRate_kWh_O_low) / 100, "") ->  | G46: =IF(TOU_indicator = "Y", Inputs!$I$32 * IF(Inputs!$E$32 = "High Demand", NewRate_kWh_O_high, NewRate_kWh_O_low) / 100, "") ->  | H46: =IF(TOU_indicator = "Y", Inputs!$I$33 * IF(Inputs!$E$33 = "High Demand", NewRate_kWh_O_high, NewRate_kWh_O_low) / 100, "") ->  | I46: =IF(TOU_indicator = "Y", Inputs!$I$34 * IF(Inputs!$E$34 = "High Demand", NewRate_kWh_O_high, NewRate_kWh_O_low) / 100, "") ->  | J46: =IF(TOU_indicator = "Y", Inputs!$I$35 * IF(Inputs!$E$35 = "High Demand", NewRate_kWh_O_high, NewRate_kWh_O_low) / 100, "") ->  | K46: =IF(TOU_indicator = "Y", Inputs!$I$36 * IF(Inputs!$E$36 = "High Demand", NewRate_kWh_O_high, NewRate_kWh_O_low) / 100, "") ->  | L46: =IF(TOU_indicator = "Y", Inputs!$I$37 * IF(Inputs!$E$37 = "High Demand", NewRate_kWh_O_high, NewRate_kWh_O_low) / 100, "") ->  | M46: =IF(TOU_indicator = "Y", Inputs!$I$38 * IF(Inputs!$E$38 = "High Demand", NewRate_kWh_O_high, NewRate_kWh_O_low) / 100, "") ->  | N46: =IF(TOU_indicator = "Y", Inputs!$I$39 * IF(Inputs!$E$39 = "High Demand", NewRate_kWh_O_high, NewRate_kWh_O_low) / 100, "") ->  | O46: =IF(TOU_indicator = "Y", Inputs!$I$40 * IF(Inputs!$E$40 = "High Demand", NewRate_kWh_O_high, NewRate_kWh_O_low) / 100, "") ->  | P46: =IF(TOU_indicator = "Y", Inputs!$I$41 * IF(Inputs!$E$41 = "High Demand", NewRate_kWh_O_high, NewRate_kWh_O_low) / 100, "") ->  | Q46: =IF(E46 = "", "", SUM(E46:P46)) ->  | AA46: ='Bill Comparison'!H80 -> 0 | AB46: =IFERROR(Q46 - AA46, "") -> 
D47: =Current_Period -> 2023/2024 | E47: =IF(TOU_indicator = "Y", Inputs!$I$30 * IF(Inputs!$E$30 = "High Demand", CurrRate_kWh_O_high, CurrRate_kWh_O_low) / 100, "") ->  | F47: =IF(TOU_indicator = "Y", Inputs!$I$31 * IF(Inputs!$E$31 = "High Demand", CurrRate_kWh_O_high, CurrRate_kWh_O_low) / 100, "") ->  | G47: =IF(TOU_indicator = "Y", Inputs!$I$32 * IF(Inputs!$E$32 = "High Demand", CurrRate_kWh_O_high, CurrRate_kWh_O_low) / 100, "") ->  | H47: =IF(TOU_indicator = "Y", Inputs!$I$33 * IF(Inputs!$E$33 = "High Demand", CurrRate_kWh_O_high, CurrRate_kWh_O_low) / 100, "") ->  | I47: =IF(TOU_indicator = "Y", Inputs!$I$34 * IF(Inputs!$E$34 = "High Demand", CurrRate_kWh_O_high, CurrRate_kWh_O_low) / 100, "") ->  | J47: =IF(TOU_indicator = "Y", Inputs!$I$35 * IF(Inputs!$E$35 = "High Demand", CurrRate_kWh_O_high, CurrRate_kWh_O_low) / 100, "") ->  | K47: =IF(TOU_indicator = "Y", Inputs!$I$36 * IF(Inputs!$E$36 = "High Demand", CurrRate_kWh_O_high, CurrRate_kWh_O_low) / 100, "") ->  | L47: =IF(TOU_indicator = "Y", Inputs!$I$37 * IF(Inputs!$E$37 = "High Demand", CurrRate_kWh_O_high, CurrRate_kWh_O_low) / 100, "") ->  | M47: =IF(TOU_indicator = "Y", Inputs!$I$38 * IF(Inputs!$E$38 = "High Demand", CurrRate_kWh_O_high, CurrRate_kWh_O_low) / 100, "") ->  | N47: =IF(TOU_indicator = "Y", Inputs!$I$39 * IF(Inputs!$E$39 = "High Demand", CurrRate_kWh_O_high, CurrRate_kWh_O_low) / 100, "") ->  | O47: =IF(TOU_indicator = "Y", Inputs!$I$40 * IF(Inputs!$E$40 = "High Demand", CurrRate_kWh_O_high, CurrRate_kWh_O_low) / 100, "") ->  | P47: =IF(TOU_indicator = "Y", Inputs!$I$41 * IF(Inputs!$E$41 = "High Demand", CurrRate_kWh_O_high, CurrRate_kWh_O_low) / 100, "") ->  | AA47: ='Bill Comparison'!G80 -> 0 | AB47: =IFERROR(Q47 - AA47, "") -> 
D48: % change | E48: =IFERROR((E46 - E47) / E47, "") ->  | F48: =IFERROR((F46 - F47) / F47, "") ->  | G48: =IFERROR((G46 - G47) / G47, "") ->  | H48: =IFERROR((H46 - H47) / H47, "") ->  | I48: =IFERROR((I46 - I47) / I47, "") ->  | J48: =IFERROR((J46 - J47) / J47, "") ->  | K48: =IFERROR((K46 - K47) / K47, "") ->  | L48: =IFERROR((L46 - L47) / L47, "") ->  | M48: =IFERROR((M46 - M47) / M47, "") ->  | N48: =IFERROR((N46 - N47) / N47, "") ->  | O48: =IFERROR((O46 - O47) / O47, "") ->  | P48: =IFERROR((P46 - P47) / P47, "") ->  | Q48: =IFERROR((Q46 - Q47) / Q47, "") -> 
C49: Non-TOU energy charge | D49: =New_Period -> 2024/2025 | E49: =IF(TOU_indicator = "N", Inputs!$M$30 * IF(Inputs!$E$30 = "High Demand", NewRate_kWh_H_nontou, NewRate_kWh_L_nontou) / 100, "") -> 0 | F49: =IF(TOU_indicator = "N", Inputs!$M$31 * IF(Inputs!$E$31 = "High Demand", NewRate_kWh_H_nontou, NewRate_kWh_L_nontou) / 100, "") -> 0 | G49: =IF(TOU_indicator = "N", Inputs!$M$32 * IF(Inputs!$E$32 = "High Demand", NewRate_kWh_H_nontou, NewRate_kWh_L_nontou) / 100, "") -> 0 | H49: =IF(TOU_indicator = "N", Inputs!$M$33 * IF(Inputs!$E$33 = "High Demand", NewRate_kWh_H_nontou, NewRate_kWh_L_nontou) / 100, "") -> 0 | I49: =IF(TOU_indicator = "N", Inputs!$M$34 * IF(Inputs!$E$34 = "High Demand", NewRate_kWh_H_nontou, NewRate_kWh_L_nontou) / 100, "") -> 0 | J49: =IF(TOU_indicator = "N", Inputs!$M$35 * IF(Inputs!$E$35 = "High Demand", NewRate_kWh_H_nontou, NewRate_kWh_L_nontou) / 100, "") -> 0 | K49: =IF(TOU_indicator = "N", Inputs!$M$36 * IF(Inputs!$E$36 = "High Demand", NewRate_kWh_H_nontou, NewRate_kWh_L_nontou) / 100, "") -> 0 | L49: =IF(TOU_indicator = "N", Inputs!$M$37 * IF(Inputs!$E$37 = "High Demand", NewRate_kWh_H_nontou, NewRate_kWh_L_nontou) / 100, "") -> 0 | M49: =IF(TOU_indicator = "N", Inputs!$M$38 * IF(Inputs!$E$38 = "High Demand", NewRate_kWh_H_nontou, NewRate_kWh_L_nontou) / 100, "") -> 0 | N49: =IF(TOU_indicator = "N", Inputs!$M$39 * IF(Inputs!$E$39 = "High Demand", NewRate_kWh_H_nontou, NewRate_kWh_L_nontou) / 100, "") -> 0 | O49: =IF(TOU_indicator = "N", Inputs!$M$40 * IF(Inputs!$E$40 = "High Demand", NewRate_kWh_H_nontou, NewRate_kWh_L_nontou) / 100, "") -> 0 | P49: =IF(TOU_indicator = "N", Inputs!$M$41 * IF(Inputs!$E$41 = "High Demand", NewRate_kWh_H_nontou, NewRate_kWh_L_nontou) / 100, "") -> 0 | Q49: =IF(E49 = "", "", SUM(E49:P49)) -> 0 | AA49: ='Bill Comparison'!H84 -> 0 | AB49: =IFERROR(Q49 - AA49, "") -> 0
D50: =Current_Period -> 2023/2024 | E50: =IF(TOU_indicator = "N", Inputs!$M$30 * IF(Inputs!$E$30 = "High Demand", CurrRate_kWh_H_nontou, CurrRate_kWh_L_nontou) / 100, "") -> 0 | F50: =IF(TOU_indicator = "N", Inputs!$M$31 * IF(Inputs!$E$31 = "High Demand", CurrRate_kWh_H_nontou, CurrRate_kWh_L_nontou) / 100, "") -> 0 | G50: =IF(TOU_indicator = "N", Inputs!$M$32 * IF(Inputs!$E$32 = "High Demand", CurrRate_kWh_H_nontou, CurrRate_kWh_L_nontou) / 100, "") -> 0 | H50: =IF(TOU_indicator = "N", Inputs!$M$33 * IF(Inputs!$E$33 = "High Demand", CurrRate_kWh_H_nontou, CurrRate_kWh_L_nontou) / 100, "") -> 0 | I50: =IF(TOU_indicator = "N", Inputs!$M$34 * IF(Inputs!$E$34 = "High Demand", CurrRate_kWh_H_nontou, CurrRate_kWh_L_nontou) / 100, "") -> 0 | J50: =IF(TOU_indicator = "N", Inputs!$M$35 * IF(Inputs!$E$35 = "High Demand", CurrRate_kWh_H_nontou, CurrRate_kWh_L_nontou) / 100, "") -> 0 | K50: =IF(TOU_indicator = "N", Inputs!$M$36 * IF(Inputs!$E$36 = "High Demand", CurrRate_kWh_H_nontou, CurrRate_kWh_L_nontou) / 100, "") -> 0 | L50: =IF(TOU_indicator = "N", Inputs!$M$37 * IF(Inputs!$E$37 = "High Demand", CurrRate_kWh_H_nontou, CurrRate_kWh_L_nontou) / 100, "") -> 0 | M50: =IF(TOU_indicator = "N", Inputs!$M$38 * IF(Inputs!$E$38 = "High Demand", CurrRate_kWh_H_nontou, CurrRate_kWh_L_nontou) / 100, "") -> 0 | N50: =IF(TOU_indicator = "N", Inputs!$M$39 * IF(Inputs!$E$39 = "High Demand", CurrRate_kWh_H_nontou, CurrRate_kWh_L_nontou) / 100, "") -> 0 | O50: =IF(TOU_indicator = "N", Inputs!$M$40 * IF(Inputs!$E$40 = "High Demand", CurrRate_kWh_H_nontou, CurrRate_kWh_L_nontou) / 100, "") -> 0 | P50: =IF(TOU_indicator = "N", Inputs!$M$41 * IF(Inputs!$E$41 = "High Demand", CurrRate_kWh_H_nontou, CurrRate_kWh_L_nontou) / 100, "") -> 0 | Q50: =IF(E50 = "", "", SUM(E50:P50)) -> 0 | AA50: ='Bill Comparison'!G84 -> 0 | AB50: =IFERROR(Q50 - AA50, "") -> 0
D51: % change | E51: =IFERROR((E49 - E50) / E50, "") ->  | F51: =IFERROR((F49 - F50) / F50, "") -> 
C52: Energy demand charge | D52: =New_Period -> 2024/2025 | E52: =IFERROR(Inputs!$J$30 * IF(Inputs!$E$30 = "High Demand", NewRate_EDC_H, NewRate_EDC_L), "") ->  | F52: =IFERROR(Inputs!$J$31 * IF(Inputs!$E$31 = "High Demand", NewRate_EDC_H, NewRate_EDC_L), "") ->  | G52: =IFERROR(Inputs!$J$32 * IF(Inputs!$E$32 = "High Demand", NewRate_EDC_H, NewRate_EDC_L), "") ->  | H52: =IFERROR(Inputs!$J$33 * IF(Inputs!$E$33 = "High Demand", NewRate_EDC_H, NewRate_EDC_L), "") ->  | I52: =IFERROR(Inputs!$J$34 * IF(Inputs!$E$34 = "High Demand", NewRate_EDC_H, NewRate_EDC_L), "") ->  | J52: =IFERROR(Inputs!$J$35 * IF(Inputs!$E$35 = "High Demand", NewRate_EDC_H, NewRate_EDC_L), "") ->  | K52: =IFERROR(Inputs!$J$36 * IF(Inputs!$E$36 = "High Demand", NewRate_EDC_H, NewRate_EDC_L), "") ->  | L52: =IFERROR(Inputs!$J$37 * IF(Inputs!$E$37 = "High Demand", NewRate_EDC_H, NewRate_EDC_L), "") ->  | M52: =IFERROR(Inputs!$J$38 * IF(Inputs!$E$38 = "High Demand", NewRate_EDC_H, NewRate_EDC_L), "") ->  | N52: =IFERROR(Inputs!$J$39 * IF(Inputs!$E$39 = "High Demand", NewRate_EDC_H, NewRate_EDC_L), "") ->  | O52: =IFERROR(Inputs!$J$40 * IF(Inputs!$E$40 = "High Demand", NewRate_EDC_H, NewRate_EDC_L), "") ->  | P52: =IFERROR(Inputs!$J$41 * IF(Inputs!$E$41 = "High Demand", NewRate_EDC_H, NewRate_EDC_L), "") ->  | Q52: =IF(E52 = "", "", SUM(E52:P52)) ->  | AA52: ='Bill Comparison'!H87 -> 0 | AB52: =IFERROR(Q52 - AA52, "") -> 
D53: =Current_Period -> 2023/2024 | E53: =IFERROR(Inputs!$J$30 * IF(Inputs!$E$30 = "High Demand", CurrRate_EDC_H, CurrRate_EDC_L), "") ->  | F53: =IFERROR(Inputs!$J$31 * IF(Inputs!$E$31 = "High Demand", CurrRate_EDC_H, CurrRate_EDC_L), "") ->  | G53: =IFERROR(Inputs!$J$32 * IF(Inputs!$E$32 = "High Demand", CurrRate_EDC_H, CurrRate_EDC_L), "") ->  | H53: =IFERROR(Inputs!$J$33 * IF(Inputs!$E$33 = "High Demand", CurrRate_EDC_H, CurrRate_EDC_L), "") ->  | I53: =IFERROR(Inputs!$J$34 * IF(Inputs!$E$34 = "High Demand", CurrRate_EDC_H, CurrRate_EDC_L), "") ->  | J53: =IFERROR(Inputs!$J$35 * IF(Inputs!$E$35 = "High Demand", CurrRate_EDC_H, CurrRate_EDC_L), "") ->  | K53: =IFERROR(Inputs!$J$36 * IF(Inputs!$E$36 = "High Demand", CurrRate_EDC_H, CurrRate_EDC_L), "") ->  | L53: =IFERROR(Inputs!$J$37 * IF(Inputs!$E$37 = "High Demand", CurrRate_EDC_H, CurrRate_EDC_L), "") ->  | M53: =IFERROR(Inputs!$J$38 * IF(Inputs!$E$38 = "High Demand", CurrRate_EDC_H, CurrRate_EDC_L), "") ->  | N53: =IFERROR(Inputs!$J$39 * IF(Inputs!$E$39 = "High Demand", CurrRate_EDC_H, CurrRate_EDC_L), "") ->  | O53: =IFERROR(Inputs!$J$40 * IF(Inputs!$E$40 = "High Demand", CurrRate_EDC_H, CurrRate_EDC_L), "") ->  | P53: =IFERROR(Inputs!$J$41 * IF(Inputs!$E$41 = "High Demand", CurrRate_EDC_H, CurrRate_EDC_L), "") ->  | AA53: ='Bill Comparison'!G87 -> 0 | AB53: =IFERROR(Q53 - AA53, "") -> 
D54: % change | E54: =IFERROR((E52 - E53) / E53, "") ->  | F54: =IFERROR((F52 - F53) / F53, "") ->  | G54: =IFERROR((G52 - G53) / G53, "") ->  | H54: =IFERROR((H52 - H53) / H53, "") ->  | I54: =IFERROR((I52 - I53) / I53, "") ->  | J54: =IFERROR((J52 - J53) / J53, "") ->  | K54: =IFERROR((K52 - K53) / K53, "") ->  | L54: =IFERROR((L52 - L53) / L53, "") ->  | M54: =IFERROR((M52 - M53) / M53, "") ->  | N54: =IFERROR((N52 - N53) / N53, "") ->  | O54: =IFERROR((O52 - O53) / O53, "") ->  | P54: =IFERROR((P52 - P53) / P53, "") ->  | Q54: =IFERROR((Q52 - Q53) / Q53, "") -> 
C55: Energy - Block 1 | D55: =New_Period -> 2024/2025 | E55: =IFERROR('Rates Table'!$AL$27*( IF(Inputs!$M$30 > 600, 600 *1, Inputs!$M$30)),0)/100 -> 0 | F55: =IFERROR('Rates Table'!$AL$27*( IF(Inputs!$M$31 > 600, 600 *1, Inputs!$M$31)),0)/100 -> 0 | G55: =IFERROR('Rates Table'!$AL$27*( IF(Inputs!$M$32 > 600, 600 *1, Inputs!$M$32)),0)/100 -> 0 | H55: =IFERROR('Rates Table'!$AL$27*( IF(Inputs!$M$33 > 600, 600 *1, Inputs!$M$33)),0)/100 -> 0 | I55: =IFERROR('Rates Table'!$AL$27*( IF(Inputs!$M$34 > 600, 600 *1, Inputs!$M$34)),0)/100 -> 0 | J55: =IFERROR('Rates Table'!$AL$27*( IF(Inputs!$M$35> 600, 600 *1, Inputs!$M$35)),0)/100 -> 0 | K55: =IFERROR('Rates Table'!$AL$27*( IF(Inputs!$M$36> 600, 600 *1, Inputs!$M$36)),0)/100 -> 0 | L55: =IFERROR('Rates Table'!$AL$27*( IF(Inputs!$M$37> 600, 600 *1, Inputs!$M$37)),0)/100 -> 0 | M55: =IFERROR('Rates Table'!$AL$27*( IF(Inputs!$M$38> 600, 600 *1, Inputs!$M$38)),0)/100 -> 0 | N55: =IFERROR('Rates Table'!$AL$27*( IF(Inputs!$M$39> 600, 600 *1, Inputs!$M$39)),0)/100 -> 0 | O55: =IFERROR('Rates Table'!$AL$27*( IF(Inputs!$M$40> 600, 600 *1, Inputs!$M$40)),0)/100 -> 0 | P55: =IFERROR('Rates Table'!$AL$27*( IF(Inputs!$M$41> 600, 600 *1, Inputs!$M$41)),0)/100 -> 0 | Q55: =IF(E55 = "", "", SUM(E55:P55)) -> 0 | AB55: =IFERROR(Q55 - AA55, "") -> 0
D56: =Current_Period -> 2023/2024 | E56: =IFERROR('Rates Table'!$E$27*( IF(Inputs!$M$30 > 600, 600 *1, Inputs!$M$30)),0)/100 -> 0 | F56: =IFERROR('Rates Table'!$E$27*( IF(Inputs!$M$31 > 600, 600 *1, Inputs!$M$31)),0)/100 -> 0 | G56: =IFERROR('Rates Table'!$E$27*( IF(Inputs!$M$32 > 600, 600 *1, Inputs!$M$32)),0)/100 -> 0 | H56: =IFERROR('Rates Table'!$E$27*( IF(Inputs!$M$33 > 600, 600 *1, Inputs!$M$33)),0)/100 -> 0 | I56: =IFERROR('Rates Table'!$E$27*( IF(Inputs!$M$34 > 600, 600 *1, Inputs!$M$34)),0)/100 -> 0 | J56: =IFERROR('Rates Table'!$E$27*( IF(Inputs!$M$35> 600, 600 *1, Inputs!$M$35)),0)/100 -> 0 | K56: =IFERROR('Rates Table'!$E$27*( IF(Inputs!$M$36> 600, 600 *1, Inputs!$M$36)),0)/100 -> 0 | L56: =IFERROR('Rates Table'!$E$27*( IF(Inputs!$M$37> 600, 600 *1, Inputs!$M$37)),0)/100 -> 0 | M56: =IFERROR('Rates Table'!$E$27*( IF(Inputs!$M$38> 600, 600 *1, Inputs!$M$38)),0)/100 -> 0 | N56: =IFERROR('Rates Table'!$E$27*( IF(Inputs!$M$39> 600, 600 *1, Inputs!$M$39)),0)/100 -> 0 | O56: =IFERROR('Rates Table'!$E$27*( IF(Inputs!$M$40> 600, 600 *1, Inputs!$M$40)),0)/100 -> 0 | P56: =IFERROR('Rates Table'!$E$27*( IF(Inputs!$M$41> 600, 600 *1, Inputs!$M$41)),0)/100 -> 0 | Q56: =IF(E56 = "", "", SUM(E56:P56)) -> 0 | AB56: =IFERROR(Q56 - AA56, "") -> 0
D57: % change | E57: =IFERROR((E55 - E56) / E56, "") ->  | F57: =IFERROR((F55 - F56) / F56, "") ->  | Q57: =IFERROR((Q55 - Q56) / Q56, "") -> 
C58: Energy - Block 2 | D58: =New_Period -> 2024/2025 | E58: =IFERROR('Rates Table'!$AL$28*(Inputs!$M$30 - IF(Inputs!$M$30 > 600, 600 *1, Inputs!$M$30)),0)/100 -> 0 | F58: =IFERROR('Rates Table'!$AL$28*(Inputs!$M$31 - IF(Inputs!$M$31 > 600, 600 *1, Inputs!$M$31)),0)/100 -> 0 | G58: =IFERROR('Rates Table'!$AL$28*(Inputs!$M$32 - IF(Inputs!$M$32 > 600, 600 *1, Inputs!$M$32)),0)/100 -> 0 | H58: =IFERROR('Rates Table'!$AL$28*(Inputs!$M$33 - IF(Inputs!$M$33 > 600, 600 *1, Inputs!$M$33)),0)/100 -> 0 | I58: =IFERROR('Rates Table'!$AL$28*(Inputs!$M$34 - IF(Inputs!$M$34 > 600, 600 *1, Inputs!$M$34)),0)/100 -> 0 | J58: =IFERROR('Rates Table'!$AL$28*(Inputs!$M$35 - IF(Inputs!$M$35 > 600, 600 *1, Inputs!$M$35)),0)/100 -> 0 | K58: =IFERROR('Rates Table'!$AL$28*(Inputs!$M$36 - IF(Inputs!$M$36 > 600, 600 *1, Inputs!$M$36)),0)/100 -> 0 | L58: =IFERROR('Rates Table'!$AL$28*(Inputs!$M$37 - IF(Inputs!$M$37 > 600, 600 *1, Inputs!$M$37)),0)/100 -> 0 | M58: =IFERROR('Rates Table'!$AL$28*(Inputs!$M$38 - IF(Inputs!$M$38 > 600, 600 *1, Inputs!$M$38)),0)/100 -> 0 | N58: =IFERROR('Rates Table'!$AL$28*(Inputs!$M$39 - IF(Inputs!$M$39 > 600, 600 *1, Inputs!$M$39)),0)/100 -> 0 | O58: =IFERROR('Rates Table'!$AL$41*(Inputs!$M$39 - IF(Inputs!$M$40 > 600, 600 *1, Inputs!$M$40)),0)/100 -> 0 | P58: =IFERROR('Rates Table'!$AL$41*(Inputs!$M$41 - IF(Inputs!$M$41 > 600, 600 *1, Inputs!$M$41)),0)/100 -> 0 | Q58: =IF(E58 = "", "", SUM(E58:P58)) -> 0 | AB58: =IFERROR(Q58 - AA58, "") -> 0
D59: =Current_Period -> 2023/2024 | E59: =IFERROR('Rates Table'!$E$28*(Inputs!$M$30 - IF(Inputs!$M$30 > 600, 600 *1, Inputs!$M$30)),0)/100 -> 0 | F59: =IFERROR('Rates Table'!$E$28*(Inputs!$M$31 - IF(Inputs!$M$31 > 600, 600 *1, Inputs!$M$31)),0)/100 -> 0 | G59: =IFERROR('Rates Table'!$E$28*(Inputs!$M$32 - IF(Inputs!$M$32 > 600, 600 *1, Inputs!$M$32)),0)/100 -> 0 | H59: =IFERROR('Rates Table'!$E$28*(Inputs!$M$33 - IF(Inputs!$M$33 > 600, 600 *1, Inputs!$M$33)),0)/100 -> 0 | I59: =IFERROR('Rates Table'!$E$28*(Inputs!$M$34 - IF(Inputs!$M$34 > 600, 600 *1, Inputs!$M$34)),0)/100 -> 0 | J59: =IFERROR('Rates Table'!$E$28*(Inputs!$M$35 - IF(Inputs!$M$35 > 600, 600 *1, Inputs!$M$35)),0)/100 -> 0 | K59: =IFERROR('Rates Table'!$E$28*(Inputs!$M$36 - IF(Inputs!$M$36 > 600, 600 *1, Inputs!$M$36)),0)/100 -> 0 | L59: =IFERROR('Rates Table'!$E$28*(Inputs!$M$37 - IF(Inputs!$M$37 > 600, 600 *1, Inputs!$M$37)),0)/100 -> 0 | M59: =IFERROR('Rates Table'!$E$28*(Inputs!$M$38 - IF(Inputs!$M$38 > 600, 600 *1, Inputs!$M$38)),0)/100 -> 0 | N59: =IFERROR('Rates Table'!$E$28*(Inputs!$M$39 - IF(Inputs!$M$39 > 600, 600 *1, Inputs!$M$39)),0)/100 -> 0 | O59: =IFERROR('Rates Table'!$E$41*(Inputs!$M$39 - IF(Inputs!$M$40 > 600, 600 *1, Inputs!$M$40)),0)/100 -> 0 | P59: =IFERROR('Rates Table'!$E$41*(Inputs!$M$41 - IF(Inputs!$M$41 > 600, 600 *1, Inputs!$M$41)),0)/100 -> 0 | Q59: 0 | AB59: =IFERROR(Q59 - AA59, "") -> 0
D60: % change | E60: =IFERROR((E58 - E59) / E59, "") ->  | F60: =IFERROR((F58 - F59) / F59, "") -> 
C61: Total energy charges | D61: =New_Period -> 2024/2025 | E61: =SUM(E40,E43,E46,E49,E52,E55,E58) -> 0 | F61: =SUM(F40,F43,F46,F49,F52,F55,F58) -> 0 | G61: 0 | H61: 0 | I61: 0 | J61: 0 | K61: 0 | L61: 0 | M61: 0 | N61: 0 | O61: 0 | P61: 0 | Q61: =IF(E61 = "", "", SUM(E61:P61)) -> 0
D62: =Current_Period -> 2023/2024 | E62: =SUM(E41,E44,E47,E50,E53,E56,E59) -> 0 | F62: =SUM(F41,F44,F47,F50,F53,F56,F59) -> 0 | G62: 0 | H62: 0 | I62: 0 | J62: 0 | K62: 0 | L62: 0 | M62: 0 | N62: 0 | O62: 0 | P62: =SUM(P41,P44,P47,P50,P53,P56,P59) -> 0 | Q62: =IF(E62 = "", "", SUM(E62:P62)) -> 0
D63: % change | E63: =IFERROR((E61 - E62) / E62, "") ->  | F63: =IFERROR((F61 - F62) / F62, "") ->  | G63: =IFERROR((G61 - G62) / G62, "") ->  | H63: =IFERROR((H61 - H62) / H62, "") ->  | I63: =IFERROR((I61 - I62) / I62, "") ->  | J63: =IFERROR((J61 - J62) / J62, "") ->  | K63: =IFERROR((K61 - K62) / K62, "") ->  | L63: =IFERROR((L61 - L62) / L62, "") ->  | M63: =IFERROR((M61 - M62) / M62, "") ->  | N63: =IFERROR((N61 - N62) / N62, "") ->  | O63: =IFERROR((O61 - O62) / O62, "") ->  | P63: =IFERROR((P61 - P62) / P62, "") ->  | Q63: =IFERROR((Q61 - Q62) / Q62, "") -> 
B65: Other charges | E65: =E$13 -> 2024-04-30 | F65: =F$13 -> 2024-05-31 | G65: 2024-06-30 | H65: 2024-07-31 | I65: 2024-08-31 | J65: 2024-09-30 | K65: 2024-10-31 | L65: 2024-11-30 | M65: 2024-12-31 | N65: 2025-01-31 | O65: 2025-02-28 | P65: 2025-03-31 | Q65: Total
C66: Ancillary service charge | D66: =New_Period -> 2024/2025 | E66: =IFERROR(Inputs!$M$30 * 'Rates Table'!$AL$48/100, "") -> 0 | F66: =IFERROR(Inputs!$M$31 * 'Rates Table'!$AL$48/100, "") -> 0 | G66: =IFERROR(Inputs!$M$32 * 'Rates Table'!$AL$48/100, "") -> 0 | H66: =IFERROR(Inputs!$M$33 * 'Rates Table'!$AL$48/100, "") -> 0 | I66: =IFERROR(Inputs!$M$34 * 'Rates Table'!$AL$48/100, "") -> 0 | J66: =IFERROR(Inputs!$M$35 * 'Rates Table'!$AL$48/100, "") -> 0 | K66: =IFERROR(Inputs!$M$36 * 'Rates Table'!$AL$48/100, "") -> 0 | L66: =IFERROR(Inputs!$M$37 * 'Rates Table'!$AL$48/100, "") -> 0 | M66: =IFERROR(Inputs!$M$38 * 'Rates Table'!$AL$48/100, "") -> 0 | N66: =IFERROR(Inputs!$M$39 * 'Rates Table'!$AL$48/100, "") -> 0 | O66: =IFERROR(Inputs!$M$40 * 'Rates Table'!$AL$48/100, "") -> 0 | P66: =IFERROR(Inputs!$M$41 * 'Rates Table'!$AL$48/100, "") -> 0 | Q66: =SUM(E66:P66) -> 0 | AA66: ='Bill Comparison'!H93 -> 0 | AB66: =IFERROR(Q66 - AA66, "") -> 0
D67: =Current_Period -> 2023/2024 | E67: =IFERROR(Inputs!$M$30 * 'Rates Table'!$E$48/100, "") -> 0 | F67: =IFERROR(Inputs!$M$31 * 'Rates Table'!$E$48/100, "") -> 0 | G67: =IFERROR(Inputs!$M$32 * 'Rates Table'!$E$48/100, "") -> 0 | H67: =IFERROR(Inputs!$M$33 * 'Rates Table'!$E$48/100, "") -> 0 | I67: =IFERROR(Inputs!$M$34 * 'Rates Table'!$E$48/100, "") -> 0 | J67: =IFERROR(Inputs!$M$35 * 'Rates Table'!$E$48/100, "") -> 0 | K67: =IFERROR(Inputs!$M$36 * 'Rates Table'!$E$48/100, "") -> 0 | L67: =IFERROR(Inputs!$M$37 * 'Rates Table'!$E$48/100, "") -> 0 | M67: =IFERROR(Inputs!$M$38 * 'Rates Table'!$E$48/100, "") -> 0 | N67: =IFERROR(Inputs!$M$39 * 'Rates Table'!$E$48/100, "") -> 0 | O67: =IFERROR(Inputs!$M$40 * 'Rates Table'!$E$48/100, "") -> 0 | P67: =IFERROR(Inputs!$M$41 * 'Rates Table'!$E$48/100, "") -> 0 | Q67: =SUM(E67:P67) -> 0 | AA67: ='Bill Comparison'!G93 -> 0 | AB67: =IFERROR(Q67 - AA67, "") -> 0
D68: % change | E68: =IFERROR((E66 - E67) / E67, "") ->  | F68: =IFERROR((F66 - F67) / F67, "") ->  | G68: =IFERROR((G66 - G67) / G67, "") ->  | H68: =IFERROR((H66 - H67) / H67, "") ->  | I68: =IFERROR((I66 - I67) / I67, "") ->  | J68: =IFERROR((J66 - J67) / J67, "") ->  | K68: =IFERROR((K66 - K67) / K67, "") ->  | L68: =IFERROR((L66 - L67) / L67, "") ->  | M68: =IFERROR((M66 - M67) / M67, "") ->  | N68: =IFERROR((N66 - N67) / N67, "") ->  | O68: =IFERROR((O66 - O67) / O67, "") ->  | P68: =IFERROR((P66 - P67) / P67, "") ->  | Q68: =IFERROR((Q66 - Q67) / Q67, "") -> 
C69: Reactive energy charge | D69: =New_Period -> 2024/2025 | E69: =IFERROR(Inputs!$L$30 * IF(Inputs!$E$30 = "High Demand", 'Rates Table'!$AL$49/100, 0), 0) -> 0 | F69: =IFERROR(Inputs!$L$31 * IF(Inputs!$E$31 = "High Demand", 'Rates Table'!$AL$49/100, 0), 0) -> 0 | G69: =IFERROR(Inputs!$L$32 * IF(Inputs!$E$32 = "High Demand", 'Rates Table'!$AL$49/100, 0), 0) -> 0 | H69: =IFERROR(Inputs!$L$33 * IF(Inputs!$E$33 = "High Demand", 'Rates Table'!$AL$49/100, 0), 0) -> 0 | I69: =IFERROR(Inputs!$L$34 * IF(Inputs!$E$34 = "High Demand", 'Rates Table'!$AL$49/100, 0), 0) -> 0 | J69: =IFERROR(Inputs!$L$35 * IF(Inputs!$E$35 = "High Demand", 'Rates Table'!$AL$49/100, 0), 0) -> 0 | K69: =IFERROR(Inputs!$L$36 * IF(Inputs!$E$36 = "High Demand", 'Rates Table'!$AL$49/100, 0), 0) -> 0 | L69: =IFERROR(Inputs!$L$37 * IF(Inputs!$E$37 = "High Demand", 'Rates Table'!$AL$49/100, 0), 0) -> 0 | M69: =IFERROR(Inputs!$L$38 * IF(Inputs!$E$38 = "High Demand", 'Rates Table'!$AL$49/100, 0), 0) -> 0 | N69: =IFERROR(Inputs!$L$39 * IF(Inputs!$E$39 = "High Demand", 'Rates Table'!$AL$49/100, 0), 0) -> 0 | O69: =IFERROR(Inputs!$L$40 * IF(Inputs!$E$40 = "High Demand", 'Rates Table'!$AL$49/100, 0), 0) -> 0 | P69: =IFERROR(Inputs!$L$41 * IF(Inputs!$E$41 = "High Demand", 'Rates Table'!$AL$49/100, 0), 0) -> 0 | Q69: =SUM(E69:P69) -> 0 | AA69: ='Bill Comparison'!H94 -> 0 | AB69: =IFERROR(Q69 - AA69, "") -> 0
D70: =Current_Period -> 2023/2024 | E70: =IFERROR(Inputs!$L$30 * IF(Inputs!$E$30 = "High Demand", 'Rates Table'!$E$49/100, 0), 0) -> 0 | F70: =IFERROR(Inputs!$L$31 * IF(Inputs!$E$31 = "High Demand", 'Rates Table'!$E$49/100, 0), 0) -> 0 | G70: =IFERROR(Inputs!$L$32 * IF(Inputs!$E$32 = "High Demand", 'Rates Table'!$E$49/100, 0), 0) -> 0 | H70: =IFERROR(Inputs!$L$33 * IF(Inputs!$E$33 = "High Demand", 'Rates Table'!$E$49/100, 0), 0) -> 0 | I70: =IFERROR(Inputs!$L$34 * IF(Inputs!$E$34 = "High Demand", 'Rates Table'!$E$49/100, 0), 0) -> 0 | J70: =IFERROR(Inputs!$L$35 * IF(Inputs!$E$35 = "High Demand", 'Rates Table'!$E$49/100, 0), 0) -> 0 | K70: =IFERROR(Inputs!$L$36 * IF(Inputs!$E$36 = "High Demand", 'Rates Table'!$E$49/100, 0), 0) -> 0 | L70: =IFERROR(Inputs!$L$37 * IF(Inputs!$E$37 = "High Demand", 'Rates Table'!$E$49/100, 0), 0) -> 0 | M70: =IFERROR(Inputs!$L$38 * IF(Inputs!$E$38 = "High Demand", 'Rates Table'!$E$49/100, 0), 0) -> 0 | N70: =IFERROR(Inputs!$L$39 * IF(Inputs!$E$39 = "High Demand", 'Rates Table'!$E$49/100, 0), 0) -> 0 | O70: =IFERROR(Inputs!$L$40 * IF(Inputs!$E$40 = "High Demand", 'Rates Table'!$E$49/100, 0), 0) -> 0 | P70: =IFERROR(Inputs!$L$41 * IF(Inputs!$E$41 = "High Demand", 'Rates Table'!$E$49/100, 0), 0) -> 0 | Q70: =SUM(E70:P70) -> 0 | AA70: ='Bill Comparison'!G94 -> 0 | AB70: =IFERROR(Q70 - AA70, "") -> 0
D71: % change | E71: =IFERROR((E69 - E70) / E70, "") ->  | F71: =IFERROR((F69 - F70) / F70, "") ->  | G71: =IFERROR((G69 - G70) / G70, "") ->  | H71: =IFERROR((H69 - H70) / H70, "") ->  | I71: =IFERROR((I69 - I70) / I70, "") ->  | J71: =IFERROR((J69 - J70) / J70, "") ->  | K71: =IFERROR((K69 - K70) / K70, "") ->  | L71: =IFERROR((L69 - L70) / L70, "") ->  | M71: =IFERROR((M69 - M70) / M70, "") ->  | N71: =IFERROR((N69 - N70) / N70, "") ->  | O71: =IFERROR((O69 - O70) / O70, "") ->  | P71: =IFERROR((P69 - P70) / P70, "") ->  | Q71: =IFERROR((Q69 - Q70) / Q70, "") -> 
C72: Electrification and rural subsidy charge | D72: =New_Period -> 2024/2025 | E72: =IFERROR(Inputs!$M$30 * 'Rates Table'!$AL$50/100, 0) -> 0 | F72: =IFERROR(Inputs!$M$31 * 'Rates Table'!$AL$50/100, 0) -> 0 | G72: =IFERROR(Inputs!$M$32 * 'Rates Table'!$AL$50/100, 0) -> 0 | H72: =IFERROR(Inputs!$M$33 * 'Rates Table'!$AL$50/100, 0) -> 0 | I72: =IFERROR(Inputs!$M$34 * 'Rates Table'!$AL$50/100, 0) -> 0 | J72: =IFERROR(Inputs!$M$35 * 'Rates Table'!$AL$50/100, 0) -> 0 | K72: =IFERROR(Inputs!$M$36 * 'Rates Table'!$AL$50/100, 0) -> 0 | L72: =IFERROR(Inputs!$M$37 * 'Rates Table'!$AL$50/100, 0) -> 0 | M72: =IFERROR(Inputs!$M$38 * 'Rates Table'!$AL$50/100, 0) -> 0 | N72: =IFERROR(Inputs!$M$39 * 'Rates Table'!$AL$50/100, 0) -> 0 | O72: =IFERROR(Inputs!$M$40 * 'Rates Table'!$AL$50/100, 0) -> 0 | P72: =IFERROR(Inputs!$M$41 * 'Rates Table'!$AL$50/100, 0) -> 0 | Q72: =SUM(E72:P72) -> 0 | AA72: ='Bill Comparison'!H95 -> 0 | AB72: =IFERROR(Q72 - AA72, "") -> 0
D73: =Current_Period -> 2023/2024 | E73: =IFERROR(Inputs!$M$30 * 'Rates Table'!$E$50/100, 0) -> 0 | F73: =IFERROR(Inputs!$M$31 * 'Rates Table'!$E$50/100, 0) -> 0 | G73: =IFERROR(Inputs!$M$32 * 'Rates Table'!$E$50/100, 0) -> 0 | H73: =IFERROR(Inputs!$M$33 * 'Rates Table'!$E$50/100, 0) -> 0 | I73: =IFERROR(Inputs!$M$34 * 'Rates Table'!$E$50/100, 0) -> 0 | J73: =IFERROR(Inputs!$M$35 * 'Rates Table'!$E$50/100, 0) -> 0 | K73: =IFERROR(Inputs!$M$36 * 'Rates Table'!$E$50/100, 0) -> 0 | L73: =IFERROR(Inputs!$M$37 * 'Rates Table'!$E$50/100, 0) -> 0 | M73: =IFERROR(Inputs!$M$38 * 'Rates Table'!$E$50/100, 0) -> 0 | N73: =IFERROR(Inputs!$M$39 * 'Rates Table'!$E$50/100, 0) -> 0 | O73: =IFERROR(Inputs!$M$40 * 'Rates Table'!$E$50/100, 0) -> 0 | P73: =IFERROR(Inputs!$M$41 * 'Rates Table'!$E$50/100, 0) -> 0 | Q73: =SUM(E73:P73) -> 0 | AA73: ='Bill Comparison'!G95 -> 0 | AB73: =IFERROR(Q73 - AA73, "") -> 0
D74: % change | E74: =IFERROR((E72 - E73) / E73, "") ->  | F74: =IFERROR((F72 - F73) / F73, "") ->  | G74: =IFERROR((G72 - G73) / G73, "") ->  | H74: =IFERROR((H72 - H73) / H73, "") ->  | I74: =IFERROR((I72 - I73) / I73, "") ->  | J74: =IFERROR((J72 - J73) / J73, "") ->  | K74: =IFERROR((K72 - K73) / K73, "") ->  | L74: =IFERROR((L72 - L73) / L73, "") ->  | M74: =IFERROR((M72 - M73) / M73, "") ->  | N74: =IFERROR((N72 - N73) / N73, "") ->  | O74: =IFERROR((O72 - O73) / O73, "") ->  | P74: =IFERROR((P72 - P73) / P73, "") ->  | Q74: =IFERROR((Q72 - Q73) / Q73, "") -> 
C75: Affordability charge | D75: =New_Period -> 2024/2025 | E75: =IFERROR(Inputs!$M$30 * 'Rates Table'!$AL$51/100, 0) -> 0 | F75: =IFERROR(Inputs!$M$31 * 'Rates Table'!$AL$51/100, 0) -> 0 | G75: =IFERROR(Inputs!$M$32 * 'Rates Table'!$AL$51/100, 0) -> 0 | H75: =IFERROR(Inputs!$M$33 * 'Rates Table'!$AL$51/100, 0) -> 0 | I75: =IFERROR(Inputs!$M$34 * 'Rates Table'!$AL$51/100, 0) -> 0 | J75: =IFERROR(Inputs!$M$35 * 'Rates Table'!$AL$51/100, 0) -> 0 | K75: =IFERROR(Inputs!$M$36 * 'Rates Table'!$AL$51/100, 0) -> 0 | L75: =IFERROR(Inputs!$M$37 * 'Rates Table'!$AL$51/100, 0) -> 0 | M75: =IFERROR(Inputs!$M$38 * 'Rates Table'!$AL$51/100, 0) -> 0 | N75: =IFERROR(Inputs!$M$39 * 'Rates Table'!$AL$51/100, 0) -> 0 | O75: =IFERROR(Inputs!$M$40 * 'Rates Table'!$AL$51/100, 0) -> 0 | P75: =IFERROR(Inputs!$M$41 * 'Rates Table'!$AL$51/100, 0) -> 0 | Q75: =SUM(E75:P75) -> 0 | AA75: ='Bill Comparison'!H96 -> 0 | AB75: =IFERROR(Q75 - AA75, "") -> 0
D76: =Current_Period -> 2023/2024 | E76: =IFERROR(Inputs!$M$30 * 'Rates Table'!$E$51/100, 0) -> 0 | F76: =IFERROR(Inputs!$M$31 * 'Rates Table'!$E$51/100, 0) -> 0 | G76: =IFERROR(Inputs!$M$32 * 'Rates Table'!$E$51/100, 0) -> 0 | H76: =IFERROR(Inputs!$M$33 * 'Rates Table'!$E$51/100, 0) -> 0 | I76: =IFERROR(Inputs!$M$34 * 'Rates Table'!$E$51/100, 0) -> 0 | J76: =IFERROR(Inputs!$M$35 * 'Rates Table'!$E$51/100, 0) -> 0 | K76: =IFERROR(Inputs!$M$36 * 'Rates Table'!$E$51/100, 0) -> 0 | L76: =IFERROR(Inputs!$M$37 * 'Rates Table'!$E$51/100, 0) -> 0 | M76: =IFERROR(Inputs!$M$38 * 'Rates Table'!$E$51/100, 0) -> 0 | N76: =IFERROR(Inputs!$M$39 * 'Rates Table'!$E$51/100, 0) -> 0 | O76: =IFERROR(Inputs!$M$40 * 'Rates Table'!$E$51/100, 0) -> 0 | P76: =IFERROR(Inputs!$M$41 * 'Rates Table'!$E$51/100, 0) -> 0 | Q76: =SUM(E76:P76) -> 0 | AA76: ='Bill Comparison'!G96 -> 0 | AB76: =IFERROR(Q76 - AA76, "") -> 0
D77: % change | E77: =IFERROR((E75 - E76) / E76, "") ->  | F77: =IFERROR((F75 - F76) / F76, "") ->  | G77: =IFERROR((G75 - G76) / G76, "") ->  | H77: =IFERROR((H75 - H76) / H76, "") ->  | I77: =IFERROR((I75 - I76) / I76, "") ->  | J77: =IFERROR((J75 - J76) / J76, "") ->  | K77: =IFERROR((K75 - K76) / K76, "") ->  | L77: =IFERROR((L75 - L76) / L76, "") ->  | M77: =IFERROR((M75 - M76) / M76, "") ->  | N77: =IFERROR((N75 - N76) / N76, "") ->  | O77: =IFERROR((O75 - O76) / O76, "") ->  | P77: =IFERROR((P75 - P76) / P76, "") ->  | Q77: =IFERROR((Q75 - Q76) / Q76, "") -> 
C78: Administration charge | D78: =New_Period -> 2024/2025 | E78: =IFERROR('Rates Table'!$AL$52*PODs*(TOU_High_Days + TOU_Low_Days)/12,0) -> 0 | F78: =IFERROR('Rates Table'!$AL$52*PODs*(TOU_High_Days + TOU_Low_Days)/12,0) -> 0 | G78: =IFERROR('Rates Table'!$AL$52*PODs*(TOU_High_Days + TOU_Low_Days)/12,0) -> 0 | H78: =IFERROR('Rates Table'!$AL$52*PODs*(TOU_High_Days + TOU_Low_Days)/12,0) -> 0 | I78: =IFERROR('Rates Table'!$AL$52*PODs*(TOU_High_Days + TOU_Low_Days)/12,0) -> 0 | J78: =IFERROR('Rates Table'!$AL$52*PODs*(TOU_High_Days + TOU_Low_Days)/12,0) -> 0 | K78: =IFERROR('Rates Table'!$AL$52*PODs*(TOU_High_Days + TOU_Low_Days)/12,0) -> 0 | L78: =IFERROR('Rates Table'!$AL$52*PODs*(TOU_High_Days + TOU_Low_Days)/12,0) -> 0 | M78: =IFERROR('Rates Table'!$AL$52*PODs*(TOU_High_Days + TOU_Low_Days)/12,0) -> 0 | N78: =IFERROR('Rates Table'!$AL$52*PODs*(TOU_High_Days + TOU_Low_Days)/12,0) -> 0 | O78: =IFERROR('Rates Table'!$AL$52*PODs*(TOU_High_Days + TOU_Low_Days)/12,0) -> 0 | P78: =IFERROR('Rates Table'!$AL$52*PODs*(TOU_High_Days + TOU_Low_Days)/12,0) -> 0 | Q78: =SUM(E78:P78) -> 0 | AA78: ='Bill Comparison'!H97 -> 0 | AB78: =IFERROR(Q78 - AA78, "") -> 0
D79: =Current_Period -> 2023/2024 | E79: =IFERROR('Rates Table'!$E$52*PODs*(TOU_High_Days + TOU_Low_Days)/12,0) -> 0 | F79: =IFERROR('Rates Table'!$E$52*PODs*(TOU_High_Days + TOU_Low_Days)/12,0) -> 0 | G79: =IFERROR('Rates Table'!$E$52*PODs*(TOU_High_Days + TOU_Low_Days)/12,0) -> 0 | H79: =IFERROR('Rates Table'!$E$52*PODs*(TOU_High_Days + TOU_Low_Days)/12,0) -> 0 | I79: =IFERROR('Rates Table'!$E$52*PODs*(TOU_High_Days + TOU_Low_Days)/12,0) -> 0 | J79: =IFERROR('Rates Table'!$E$52*PODs*(TOU_High_Days + TOU_Low_Days)/12,0) -> 0 | K79: =IFERROR('Rates Table'!$E$52*PODs*(TOU_High_Days + TOU_Low_Days)/12,0) -> 0 | L79: =IFERROR('Rates Table'!$E$52*PODs*(TOU_High_Days + TOU_Low_Days)/12,0) -> 0 | M79: =IFERROR('Rates Table'!$E$52*PODs*(TOU_High_Days + TOU_Low_Days)/12,0) -> 0 | N79: =IFERROR('Rates Table'!$E$52*PODs*(TOU_High_Days + TOU_Low_Days)/12,0) -> 0 | O79: =IFERROR('Rates Table'!$E$52*PODs*(TOU_High_Days + TOU_Low_Days)/12,0) -> 0 | P79: =IFERROR('Rates Table'!$E$52*PODs*(TOU_High_Days + TOU_Low_Days)/12,0) -> 0 | Q79: =SUM(E79:P79) -> 0 | AA79: ='Bill Comparison'!G97 -> 0 | AB79: =IFERROR(Q79 - AA79, "") -> 0
D80: % change | E80: =IFERROR((E78 - E79) / E79, "") ->  | F80: =IFERROR((F78 - F79) / F79, "") ->  | G80: =IFERROR((G78 - G79) / G79, "") ->  | H80: =IFERROR((H78 - H79) / H79, "") ->  | I80: =IFERROR((I78 - I79) / I79, "") ->  | J80: =IFERROR((J78 - J79) / J79, "") ->  | K80: =IFERROR((K78 - K79) / K79, "") ->  | L80: =IFERROR((L78 - L79) / L79, "") ->  | M80: =IFERROR((M78 - M79) / M79, "") ->  | N80: =IFERROR((N78 - N79) / N79, "") ->  | O80: =IFERROR((O78 - O79) / O79, "") ->  | P80: =IFERROR((P78 - P79) / P79, "") ->  | Q80: =IFERROR((Q78 - Q79) / Q79, "") -> 
C81: Service charge | D81: =New_Period -> 2024/2025 | E81: =IFERROR(IF(Table_1=1,'Rates Table'!$AL$53*1*(TOU_High_Days + TOU_Low_Days)/12,'Rates Table'!$AL$53*PODs*(TOU_High_Days + TOU_Low_Days)/12),0) -> 0 | F81: =IFERROR(IF(Table_1=1,'Rates Table'!$AL$53*1*(TOU_High_Days + TOU_Low_Days)/12,'Rates Table'!$AL$53*PODs*(TOU_High_Days + TOU_Low_Days)/12),0) -> 0 | G81: =IFERROR(IF(Table_1=1,'Rates Table'!$AL$53*1*(TOU_High_Days + TOU_Low_Days)/12,'Rates Table'!$AL$53*PODs*(TOU_High_Days + TOU_Low_Days)/12),0) -> 0 | H81: =IFERROR(IF(Table_1=1,'Rates Table'!$AL$53*1*(TOU_High_Days + TOU_Low_Days)/12,'Rates Table'!$AL$53*PODs*(TOU_High_Days + TOU_Low_Days)/12),0) -> 0 | I81: =IFERROR(IF(Table_1=1,'Rates Table'!$AL$53*1*(TOU_High_Days + TOU_Low_Days)/12,'Rates Table'!$AL$53*PODs*(TOU_High_Days + TOU_Low_Days)/12),0) -> 0 | J81: =IFERROR(IF(Table_1=1,'Rates Table'!$AL$53*1*(TOU_High_Days + TOU_Low_Days)/12,'Rates Table'!$AL$53*PODs*(TOU_High_Days + TOU_Low_Days)/12),0) -> 0 | K81: =IFERROR(IF(Table_1=1,'Rates Table'!$AL$53*1*(TOU_High_Days + TOU_Low_Days)/12,'Rates Table'!$AL$53*PODs*(TOU_High_Days + TOU_Low_Days)/12),0) -> 0 | L81: =IFERROR(IF(Table_1=1,'Rates Table'!$AL$53*1*(TOU_High_Days + TOU_Low_Days)/12,'Rates Table'!$AL$53*PODs*(TOU_High_Days + TOU_Low_Days)/12),0) -> 0 | M81: =IFERROR(IF(Table_1=1,'Rates Table'!$AL$53*1*(TOU_High_Days + TOU_Low_Days)/12,'Rates Table'!$AL$53*PODs*(TOU_High_Days + TOU_Low_Days)/12),0) -> 0 | N81: =IFERROR(IF(Table_1=1,'Rates Table'!$AL$53*1*(TOU_High_Days + TOU_Low_Days)/12,'Rates Table'!$AL$53*PODs*(TOU_High_Days + TOU_Low_Days)/12),0) -> 0 | O81: =IFERROR(IF(Table_1=1,'Rates Table'!$AL$53*1*(TOU_High_Days + TOU_Low_Days)/12,'Rates Table'!$AL$53*PODs*(TOU_High_Days + TOU_Low_Days)/12),0) -> 0 | P81: =IFERROR(IF(Table_1=1,'Rates Table'!$AL$53*1*(TOU_High_Days + TOU_Low_Days)/12,'Rates Table'!$AL$53*PODs*(TOU_High_Days + TOU_Low_Days)/12),0) -> 0 | Q81: =SUM(E81:P81) -> 0 | AA81: ='Bill Comparison'!H98 -> 0 | AB81: =IFERROR(Q81 - AA81, "") -> 0
D82: =Current_Period -> 2023/2024 | E82: =IFERROR(IF(Table_1=1,'Rates Table'!$E$53*1*(TOU_High_Days + TOU_Low_Days)/12,'Rates Table'!$E$53*PODs*(TOU_High_Days + TOU_Low_Days)/12),0) -> 0 | F82: =IFERROR(IF(Table_1=1,'Rates Table'!$E$53*1*(TOU_High_Days + TOU_Low_Days)/12,'Rates Table'!$E$53*PODs*(TOU_High_Days + TOU_Low_Days)/12),0) -> 0 | G82: =IFERROR(IF(Table_1=1,'Rates Table'!$E$53*1*(TOU_High_Days + TOU_Low_Days)/12,'Rates Table'!$E$53*PODs*(TOU_High_Days + TOU_Low_Days)/12),0) -> 0 | H82: =IFERROR(IF(Table_1=1,'Rates Table'!$E$53*1*(TOU_High_Days + TOU_Low_Days)/12,'Rates Table'!$E$53*PODs*(TOU_High_Days + TOU_Low_Days)/12),0) -> 0 | I82: =IFERROR(IF(Table_1=1,'Rates Table'!$E$53*1*(TOU_High_Days + TOU_Low_Days)/12,'Rates Table'!$E$53*PODs*(TOU_High_Days + TOU_Low_Days)/12),0) -> 0 | J82: =IFERROR(IF(Table_1=1,'Rates Table'!$E$53*1*(TOU_High_Days + TOU_Low_Days)/12,'Rates Table'!$E$53*PODs*(TOU_High_Days + TOU_Low_Days)/12),0) -> 0 | K82: =IFERROR(IF(Table_1=1,'Rates Table'!$E$53*1*(TOU_High_Days + TOU_Low_Days)/12,'Rates Table'!$E$53*PODs*(TOU_High_Days + TOU_Low_Days)/12),0) -> 0 | L82: =IFERROR(IF(Table_1=1,'Rates Table'!$E$53*1*(TOU_High_Days + TOU_Low_Days)/12,'Rates Table'!$E$53*PODs*(TOU_High_Days + TOU_Low_Days)/12),0) -> 0 | M82: =IFERROR(IF(Table_1=1,'Rates Table'!$E$53*1*(TOU_High_Days + TOU_Low_Days)/12,'Rates Table'!$E$53*PODs*(TOU_High_Days + TOU_Low_Days)/12),0) -> 0 | N82: =IFERROR(IF(Table_1=1,'Rates Table'!$E$53*1*(TOU_High_Days + TOU_Low_Days)/12,'Rates Table'!$E$53*PODs*(TOU_High_Days + TOU_Low_Days)/12),0) -> 0 | O82: =IFERROR(IF(Table_1=1,'Rates Table'!$E$53*1*(TOU_High_Days + TOU_Low_Days)/12,'Rates Table'!$E$53*PODs*(TOU_High_Days + TOU_Low_Days)/12),0) -> 0 | P82: =IFERROR(IF(Table_1=1,'Rates Table'!$E$53*1*(TOU_High_Days + TOU_Low_Days)/12,'Rates Table'!$E$53*PODs*(TOU_High_Days + TOU_Low_Days)/12),0) -> 0 | Q82: =SUM(E82:P82) -> 0 | AA82: ='Bill Comparison'!G98 -> 0 | AB82: =IFERROR(Q82 - AA82, "") -> 0
D83: % change | E83: =IFERROR((E81 - E82) / E82, "") ->  | F83: =IFERROR((F81 - F82) / F82, "") ->  | G83: =IFERROR((G81 - G82) / G82, "") ->  | H83: =IFERROR((H81 - H82) / H82, "") ->  | I83: =IFERROR((I81 - I82) / I82, "") ->  | J83: =IFERROR((J81 - J82) / J82, "") ->  | K83: =IFERROR((K81 - K82) / K82, "") ->  | L83: =IFERROR((L81 - L82) / L82, "") ->  | M83: =IFERROR((M81 - M82) / M82, "") ->  | N83: =IFERROR((N81 - N82) / N82, "") ->  | O83: =IFERROR((O81 - O82) / O82, "") ->  | P83: =IFERROR((P81 - P82) / P82, "") ->  | Q83: =IFERROR((Q81 - Q82) / Q82, "") -> 
C84: Total other charges | D84: =New_Period -> 2024/2025 | E84: =SUM(E69,E72,E75,E78,E81,E66) -> 0 | F84: =SUM(F69,F72,F75,F78,F81,F66) -> 0 | G84: 0 | H84: 0 | I84: 0 | J84: 0 | K84: 0 | L84: 0 | M84: 0 | N84: 0 | O84: 0 | P84: 0 | Q84: =SUM(Q69,Q72,Q75,Q78,Q81,Q66) -> 0
D85: =Current_Period -> 2023/2024 | E85: =SUM(E70,E73,E76,E79,E82,E67) -> 0 | F85: 0 | G85: 0 | H85: 0 | I85: 0 | J85: 0 | K85: 0 | L85: 0 | M85: 0 | N85: 0 | O85: 0 | P85: 0 | Q85: 0
D86: % change | E86: =IFERROR((E84 - E85) / E85, "") ->  | F86: =IFERROR((F84 - F85) / F85, "") ->  | G86: =IFERROR((G84 - G85) / G85, "") ->  | H86: =IFERROR((H84 - H85) / H85, "") ->  | I86: =IFERROR((I84 - I85) / I85, "") ->  | J86: =IFERROR((J84 - J85) / J85, "") ->  | K86: =IFERROR((K84 - K85) / K85, "") ->  | L86: =IFERROR((L84 - L85) / L85, "") ->  | M86: =IFERROR((M84 - M85) / M85, "") ->  | N86: =IFERROR((N84 - N85) / N85, "") ->  | O86: =IFERROR((O84 - O85) / O85, "") ->  | P86: =IFERROR((P84 - P85) / P85, "") ->  | Q86: =IFERROR((Q84 - Q85) / Q85, "") -> 
B88: Total account charges | E88: =E$13 -> 2024-04-30 | F88: =F$13 -> 2024-05-31 | G88: 2024-06-30 | H88: 2024-07-31 | I88: 2024-08-31 | J88: 2024-09-30 | K88: 2024-10-31 | L88: 2024-11-30 | M88: 2024-12-31 | N88: 2025-01-31 | O88: 2025-02-28 | P88: 2025-03-31 | Q88: Total
C89: Total charges, excl VAT | D89: =New_Period -> 2024/2025 | E89: =SUM(E35, E61, E84) -> 599.5125 | F89: 599.5125 | G89: 599.5125 | H89: 599.5125 | I89: 599.5125 | J89: 599.5125 | K89: 599.5125 | L89: 599.5125 | M89: 599.5125 | N89: 599.5125 | O89: 599.5125 | P89: 599.5125 | Q89: 7194.15 | AA89: ='Bill Comparison'!H102 -> 7194.15 | AB89: =IFERROR(Q89 - AA89, "") -> -9.094947018e-13
D90: =Current_Period -> 2023/2024 | E90: =SUM(E36, E62, E85) -> 531.6833333 | F90: 531.6833333 | G90: 531.6833333 | H90: 531.6833333 | I90: 531.6833333 | J90: 531.6833333 | K90: 531.6833333 | L90: 531.6833333 | M90: 531.6833333 | N90: 531.6833333 | O90: 531.6833333 | P90: 531.6833333 | Q90: 6380.2 | AA90: ='Bill Comparison'!G102 -> 6380.2 | AB90: =IFERROR(Q90 - AA90, "") -> 0
D91: % change | E91: =IFERROR((E89 - E90) / E90, "") -> 0.1275743707 | F91: =IFERROR((F89 - F90) / F90, "") -> 0.1275743707 | G91: =IFERROR((G89 - G90) / G90, "") -> 0.1275743707 | H91: =IFERROR((H89 - H90) / H90, "") -> 0.1275743707 | I91: =IFERROR((I89 - I90) / I90, "") -> 0.1275743707 | J91: =IFERROR((J89 - J90) / J90, "") -> 0.1275743707 | K91: =IFERROR((K89 - K90) / K90, "") -> 0.1275743707 | L91: =IFERROR((L89 - L90) / L90, "") -> 0.1275743707 | M91: =IFERROR((M89 - M90) / M90, "") -> 0.1275743707 | N91: =IFERROR((N89 - N90) / N90, "") -> 0.1275743707 | O91: =IFERROR((O89 - O90) / O90, "") -> 0.1275743707 | P91: =IFERROR((P89 - P90) / P90, "") -> 0.1275743707 | Q91: =IFERROR((Q89 - Q90) / Q90, "") -> 0.1275743707
C93: Total account, incl VAT | D93: =New_Period -> 2024/2025 | E93: =E89 * (1 + VAT) -> 689.439375 | F93: 689.439375 | G93: 689.439375 | H93: 689.439375 | I93: 689.439375 | J93: 689.439375 | K93: 689.439375 | L93: 689.439375 | M93: 689.439375 | N93: 689.439375 | O93: 689.439375 | P93: 689.439375 | Q93: 8273.2725
D94: =Current_Period -> 2023/2024 | E94: =E90 * (1 + VAT) -> 611.4358333 | F94: 611.4358333 | G94: 611.4358333 | H94: 611.4358333 | I94: 611.4358333 | J94: 611.4358333 | K94: 611.4358333 | L94: 611.4358333 | M94: 611.4358333 | N94: 611.4358333 | O94: 611.4358333 | P94: 611.4358333 | Q94: 7337.23
D95: % change | E95: =IFERROR((E93 - E94) / E94, "") -> 0.1275743707 | F95: =IFERROR((F93 - F94) / F94, "") -> 0.1275743707 | G95: =IFERROR((G93 - G94) / G94, "") -> 0.1275743707 | H95: =IFERROR((H93 - H94) / H94, "") -> 0.1275743707 | I95: =IFERROR((I93 - I94) / I94, "") -> 0.1275743707 | J95: =IFERROR((J93 - J94) / J94, "") -> 0.1275743707 | K95: =IFERROR((K93 - K94) / K94, "") -> 0.1275743707 | L95: =IFERROR((L93 - L94) / L94, "") -> 0.1275743707 | M95: =IFERROR((M93 - M94) / M94, "") -> 0.1275743707 | N95: =IFERROR((N93 - N94) / N94, "") -> 0.1275743707 | O95: =IFERROR((O93 - O94) / O94, "") -> 0.1275743707 | P95: =IFERROR((P93 - P94) / P94, "") -> 0.1275743707 | Q95: =IFERROR((Q93 - Q94) / Q94, "") -> 0.1275743707

Sheet Tariff Comparison
H2: For comparative purposes, Utilised Capacity and Chargeable Demand figures are required for all LPU tariffs.
B4: Time of Use Comparison Data
H6: 5 | I6: =MATCH(Selected_Base_Tariff,Compare_Tariff_List,0) -> 2 | J6: =MATCH(H8,Full_Tariff_List,0) -> 11 | L6: 1 | N6: =MATCH(L8,Full_Tariff_List,0) -> 2 | P6: 2 | R6: =MATCH(P8,Full_Tariff_List,0) -> 8
D8: ='Bill Comparison'!I4 -> Homepower 2 | H8: =IFERROR(INDEX(Compare_Tariff_List,Dropdown_Compare_1),$D$8) -> Homepower Bulk | L8: =IFERROR(INDEX(Compare_Tariff_List,Dropdown_Compare_2),$D$8) -> Businessrate 2 | P8: =IFERROR(INDEX(Compare_Tariff_List,Dropdown_Compare_3),$D$8) -> Homepower 2
D9: =IFERROR(INDEX(Compare_Long_Type,Selected_Compare_Tariff_ID),"") -> Residential Urban | H9: =IFERROR(INDEX(Compare_Long_Type,Dropdown_Compare_1),"") -> Residential Urban | L9: =IFERROR(INDEX(Compare_Long_Type,Dropdown_Compare_2),"") -> Commercial Urban | P9: =IFERROR(INDEX(Compare_Long_Type,Dropdown_Compare_3),"") -> Residential Urban
B10: Comparison Tariffs | D10: =Current_Period -> 2023/2024 | E10: =New_Period -> 2024/2025 | F10: % Change | H10: =Current_Period -> 2023/2024 | I10: =New_Period -> 2024/2025 | J10: % Change | L10: =Current_Period -> 2023/2024 | M10: =New_Period -> 2024/2025 | N10: % Change | P10: =Current_Period -> 2023/2024 | Q10: =New_Period -> 2024/2025 | R10: % Change
C12: High-demand | D12: ='Bill Comparison'!G111 -> 1849.384 | E12: ='Bill Comparison'!H111 -> 2085.318 | F12: =IFERROR(E12/D12-1,0) -> 0.1275743707 | H12: =IFERROR(INDEX(High_Total_Costs_Current,0,J$6),"") -> 6261.244 | I12: =IFERROR(INDEX(High_Total_Costs_New,0,J$6),"") -> 7058.976 | J12: =IFERROR(I12/H12-1,0) -> 0.1274079081 | L12: =IFERROR(INDEX(High_Total_Costs_Current,0,N$6),"") -> 10161.032 | M12: =IFERROR(INDEX(High_Total_Costs_New,0,N$6),"") -> 11456.024 | N12: =IFERROR(M12/L12-1,0) -> 0.1274468971 | P12: =IFERROR(INDEX(High_Total_Costs_Current,0,R$6),"") -> 1849.384 | Q12: =IFERROR(INDEX(High_Total_Costs_New,0,R$6),"") -> 2085.318 | R12: =IFERROR(Q12/P12-1,0) -> 0.1275743707
C13: Low demand | D13: ='Bill Comparison'!G112 -> 5487.846 | E13: ='Bill Comparison'!H112 -> 6187.9545 | F13: =IFERROR(E13/D13-1,0) -> 0.1275743707 | H13: =IFERROR(INDEX(Low_Total_Costs_Current,0,J$6),"") -> 18579.561 | I13: =IFERROR(INDEX(Low_Total_Costs_New,0,J$6),"") -> 20946.744 | J13: =IFERROR(I13/H13-1,0) -> 0.1274079081 | L13: =IFERROR(INDEX(Low_Total_Costs_Current,0,N$6),"") -> 30151.758 | M13: =IFERROR(INDEX(Low_Total_Costs_New,0,N$6),"") -> 33994.506 | N13: =IFERROR(M13/L13-1,0) -> 0.1274468971 | P13: =IFERROR(INDEX(Low_Total_Costs_Current,0,R$6),"") -> 5487.846 | Q13: =IFERROR(INDEX(Low_Total_Costs_New,0,R$6),"") -> 6187.9545 | R13: =IFERROR(Q13/P13-1,0) -> 0.1275743707
C15: Total | D15: =SUM(D12:D13) -> 7337.23 | E15: =SUM(E12:E13) -> 8273.2725 | F15: =IFERROR(E15/D15-1,0) -> 0.1275743707 | H15: =SUM(H12:H13) -> 24840.805 | I15: =SUM(I12:I13) -> 28005.72 | J15: =IFERROR(I15/H15-1,0) -> 0.1274079081 | L15: =SUM(L12:L13) -> 40312.79 | M15: =SUM(M12:M13) -> 45450.53 | N15: =IFERROR(M15/L15-1,0) -> 0.1274468971 | P15: =SUM(P12:P13) -> 7337.23 | Q15: =SUM(Q12:Q13) -> 8273.2725 | R15: =IFERROR(Q15/P15-1,0) -> 0.1275743707
C17: Average price c/kWh | D17: ='Bill Comparison'!G107 -> 0 | E17: ='Bill Comparison'!H107 -> 0 | F17: =IFERROR(E17/D17-1,0) -> 0 | H17: =IFERROR(H15/(High_Total_Energy+Low_Total_Energy)/1.15*100,0) -> 0 | I17: =IFERROR(I15/(High_Total_Energy+Low_Total_Energy)/1.15*100,0) -> 0 | J17: =IFERROR(I17/H17-1,0) -> 0 | L17: =IFERROR(L15/(High_Total_Energy+Low_Total_Energy)/1.15*100,0) -> 0 | M17: =IFERROR(M15/(High_Total_Energy+Low_Total_Energy)/1.15*100,0) -> 0 | N17: =IFERROR(M17/L17-1,0) -> 0 | P17: =IFERROR(P15/(High_Total_Energy+Low_Total_Energy)/1.15*100,0) -> 0 | Q17: =IFERROR(Q15/(High_Total_Energy+Low_Total_Energy)/1.15*100,0) -> 0 | R17: =IFERROR(Q17/P17-1,0) -> 0
B19: Annual Comparison | D19: =Current_Period -> 2023/2024 | E19: =New_Period -> 2024/2025 | F19: % Change
C21: =D8 -> Homepower 2 | D21: =D15 -> 7337.23 | E21: =E15 -> 8273.2725 | F21: =IFERROR(E21/D21-1,0) -> 0.1275743707
C22: =H8 -> Homepower Bulk | D22: =H15 -> 24840.805 | E22: =I15 -> 28005.72 | F22: =IFERROR(E22/D22-1,0) -> 0.1274079081
C23: =L8 -> Businessrate 2 | D23: =L15 -> 40312.79 | E23: =M15 -> 45450.53 | F23: =IFERROR(E23/D23-1,0) -> 0.1274468971
C24: =P8 -> Homepower 2 | D24: =P15 -> 7337.23 | E24: =Q15 -> 8273.2725 | F24: =IFERROR(E24/D24-1,0) -> 0.1275743707

Sheet Workings High (hidden)
B4: Calculations for High Demand by Tariff
B6: Tariffs | E6: =Selected_Base_Tariff -> Homepower 2 | F6: =INDEX(Full_Tariff_List,F$7,) -> Businessrate 1 | G6: Businessrate 2 | H6: Businessrate 3 | I6: Businessrate 4 | J6: Homelight 20A | K6: Homelight 60A | L6: Homepower 1 | M6: Homepower 2 | N6: Homepower 3 | O6: Homepower 4 | P6: Homepower Bulk | Q6: Landrate 1 | R6: Landrate 2 | S6: Landrate 3 | T6: Landrate 4 | U6: Landrate Dx | V6: Megaflex | W6: Miniflex | X6: Nightsave Large | Y6: Nightsave Rural | Z6: Nightsave Small | AA6: Ruraflex | AB6: Landlight 20A | AC6: Landlight 60A | AD6: Public Lighting 24 Hours | AE6: Public Lighting All Night | AF6: Public Lighting Urban Fixed | AG6: Homeflex 1 | AH6: Homeflex 2 | AI6: Homeflex 3 | AJ6: Homeflex 4 | AL6: =E6 -> Homepower 2 | AM6: Businessrate 1 | AN6: Businessrate 2 | AO6: Businessrate 3 | AP6: Businessrate 4 | AQ6: Homelight 20A | AR6: Homelight 60A | AS6: Homepower 1 | AT6: Homepower 2 | AU6: Homepower 3 | AV6: Homepower 4 | AW6: Homepower Bulk | AX6: Landrate 1 | AY6: Landrate 2 | AZ6: Landrate 3 | BA6: Landrate 4 | BB6: Landrate Dx | BC6: Megaflex | BD6: Miniflex | BE6: Nightsave Large | BF6: Nightsave Rural | BG6: Nightsave Small | BH6: Ruraflex | BI6: Landlight 20A | BJ6: Landlight 60A | BK6: Public Lighting 24 Hours | BL6: Public Lighting All Night | BM6: Public Lighting Urban Fixed | BN6: Homeflex 1 | BO6: Homeflex 2 | BP6: Homeflex 3 | BQ6: Homeflex 4
F7: 1 | G7: =F7+1 -> 2 | H7: =G7+1 -> 3 | I7: 4 | J7: 5 | K7: 6 | L7: 7 | M7: 8 | N7: 9 | O7: 10 | P7: 11 | Q7: 12 | R7: 13 | S7: 14 | T7: 15 | U7: 16 | V7: =U7+1 -> 17 | W7: 18 | X7: 19 | Y7: 20 | Z7: 21 | AA7: 22 | AB7: =AA7+1 -> 23 | AC7: =AB7+1 -> 24 | AD7: =AC7+1 -> 25 | AE7: =AD7+1 -> 26 | AF7: =AE7+1 -> 27 | AG7: =AF7+1 -> 28 | AH7: =AG7+1 -> 29 | AI7: =AH7+1 -> 30 | AJ7: =AI7+1 -> 31
B8: Network charges | D8: Units | E8: =Current_Period&" Rates" -> 2023/2024 Rates | F8: =E8 -> 2023/2024 Rates | G8: =F8 -> 2023/2024 Rates | H8: 2023/2024 Rates | I8: 2023/2024 Rates | J8: 2023/2024 Rates | K8: 2023/2024 Rates | L8: 2023/2024 Rates | M8: 2023/2024 Rates | N8: 2023/2024 Rates | O8: 2023/2024 Rates | P8: 2023/2024 Rates | Q8: 2023/2024 Rates | R8: 2023/2024 Rates | S8: 2023/2024 Rates | T8: 2023/2024 Rates | U8: 2023/2024 Rates | V8: =U8 -> 2023/2024 Rates | W8: 2023/2024 Rates | X8: 2023/2024 Rates | Y8: 2023/2024 Rates | Z8: 2023/2024 Rates | AA8: 2023/2024 Rates | AB8: =AA8 -> 2023/2024 Rates | AC8: =AB8 -> 2023/2024 Rates | AD8: =AC8 -> 2023/2024 Rates | AE8: =AD8 -> 2023/2024 Rates | AF8: =AE8 -> 2023/2024 Rates | AG8: =AF8 -> 2023/2024 Rates | AH8: =AG8 -> 2023/2024 Rates | AI8: =AH8 -> 2023/2024 Rates | AJ8: =AI8 -> 2023/2024 Rates | AL8: =New_Period&" Rates" -> 2024/2025 Rates | AM8: =AL8 -> 2024/2025 Rates | AN8: =AM8 -> 2024/2025 Rates | AO8: 2024/2025 Rates | AP8: 2024/2025 Rates | AQ8: 2024/2025 Rates | AR8: 2024/2025 Rates | AS8: 2024/2025 Rates | AT8: 2024/2025 Rates | AU8: 2024/2025 Rates | AV8: 2024/2025 Rates | AW8: 2024/2025 Rates | AX8: 2024/2025 Rates | AY8: 2024/2025 Rates | AZ8: 2024/2025 Rates | BA8: 2024/2025 Rates | BB8: 2024/2025 Rates | BC8: 2024/2025 Rates | BD8: 2024/2025 Rates | BE8: 2024/2025 Rates | BF8: 2024/2025 Rates | BG8: 2024/2025 Rates | BH8: 2024/2025 Rates | BI8: =BH8 -> 2024/2025 Rates | BJ8: =BI8 -> 2024/2025 Rates | BK8: =BJ8 -> 2024/2025 Rates | BL8: =BK8 -> 2024/2025 Rates | BM8: =BL8 -> 2024/2025 Rates | BN8: =BM8 -> 2024/2025 Rates | BO8: =BN8 -> 2024/2025 Rates | BP8: =BO8 -> 2024/2025 Rates | BQ8: =BP8 -> 2024/2025 Rates
C10: Transmission network charge | D10: R/kVA | E10: =INDEX(F10:AJ10,0,Selected_Tariff_ID) -> 0 | F10: =IFERROR('Rates Table'!F10*High_Utilised_Capacity,0) -> 0 | G10: =IFERROR('Rates Table'!G10*High_Utilised_Capacity,0) -> 0 | H10: =IFERROR('Rates Table'!H10*High_Utilised_Capacity,0) -> 0 | I10: =IFERROR('Rates Table'!I10*High_Utilised_Capacity,0) -> 0 | J10: =IFERROR('Rates Table'!J10*High_Utilised_Capacity,0) -> 0 | K10: =IFERROR('Rates Table'!K10*High_Utilised_Capacity,0) -> 0 | L10: =IFERROR('Rates Table'!L10*High_Utilised_Capacity,0) -> 0 | M10: =IFERROR('Rates Table'!M10*High_Utilised_Capacity,0) -> 0 | N10: =IFERROR('Rates Table'!N10*High_Utilised_Capacity,0) -> 0 | O10: =IFERROR('Rates Table'!O10*High_Utilised_Capacity,0) -> 0 | P10: =IFERROR('Rates Table'!P10*High_Utilised_Capacity,0) -> 0 | Q10: =IFERROR('Rates Table'!Q10*High_Utilised_Capacity,0) -> 0 | R10: =IFERROR('Rates Table'!R10*High_Utilised_Capacity,0) -> 0 | S10: =IFERROR('Rates Table'!S10*High_Utilised_Capacity,0) -> 0 | T10: =IFERROR('Rates Table'!T10*High_Utilised_Capacity,0) -> 0 | U10: =IFERROR('Rates Table'!U10*High_Utilised_Capacity,0) -> 0 | V10: =IFERROR('Rates Table'!V10*High_Utilised_Capacity,0) -> 0 | W10: =IFERROR('Rates Table'!W10*High_Utilised_Capacity,0) -> 0 | X10: =IFERROR('Rates Table'!X10*High_Utilised_Capacity,0) -> 0 | Y10: =IFERROR('Rates Table'!Y10*High_Utilised_Capacity,0) -> 0 | Z10: =IFERROR('Rates Table'!Z10*High_Utilised_Capacity,0) -> 0 | AA10: =IFERROR('Rates Table'!AA10*High_Utilised_Capacity,0) -> 0 | AB10: =IFERROR('Rates Table'!AB10*High_Utilised_Capacity,0) -> 0 | AC10: =IFERROR('Rates Table'!AC10*High_Utilised_Capacity,0) -> 0 | AD10: =IFERROR('Rates Table'!AD10*High_Utilised_Capacity,0) -> 0 | AE10: =IFERROR('Rates Table'!AE10*High_Utilised_Capacity,0) -> 0 | AF10: =IFERROR('Rates Table'!AF10*High_Utilised_Capacity,0) -> 0 | AG10: =IFERROR('Rates Table'!AG10*High_Utilised_Capacity,0) -> 0 | AH10: =IFERROR('Rates Table'!AH10*High_Utilised_Capacity,0) -> 0 | AI10: =IFERROR('Rates Table'!AI10*High_Utilised_Capacity,0) -> 0 | AJ10: =IFERROR('Rates Table'!AJ10*High_Utilised_Capacity,0) -> 0 | AL10: =INDEX(AM10:BQ10,0,Selected_Tariff_ID) -> 0 | AM10: =IFERROR('Rates Table'!AM10*High_Utilised_Capacity,0) -> 0 | AN10: =IFERROR('Rates Table'!AN10*High_Utilised_Capacity,0) -> 0 | AO10: =IFERROR('Rates Table'!AO10*High_Utilised_Capacity,0) -> 0 | AP10: =IFERROR('Rates Table'!AP10*High_Utilised_Capacity,0) -> 0 | AQ10: =IFERROR('Rates Table'!AQ10*High_Utilised_Capacity,0) -> 0 | AR10: =IFERROR('Rates Table'!AR10*High_Utilised_Capacity,0) -> 0 | AS10: =IFERROR('Rates Table'!AS10*High_Utilised_Capacity,0) -> 0 | AT10: =IFERROR('Rates Table'!AT10*High_Utilised_Capacity,0) -> 0 | AU10: =IFERROR('Rates Table'!AU10*High_Utilised_Capacity,0) -> 0 | AV10: =IFERROR('Rates Table'!AV10*High_Utilised_Capacity,0) -> 0 | AW10: =IFERROR('Rates Table'!AW10*High_Utilised_Capacity,0) -> 0 | AX10: =IFERROR('Rates Table'!AX10*High_Utilised_Capacity,0) -> 0 | AY10: =IFERROR('Rates Table'!AY10*High_Utilised_Capacity,0) -> 0 | AZ10: =IFERROR('Rates Table'!AZ10*High_Utilised_Capacity,0) -> 0 | BA10: =IFERROR('Rates Table'!BA10*High_Utilised_Capacity,0) -> 0 | BB10: =IFERROR('Rates Table'!BB10*High_Utilised_Capacity,0) -> 0 | BC10: =IFERROR('Rates Table'!BC10*High_Utilised_Capacity,0) -> 0 | BD10: =IFERROR('Rates Table'!BD10*High_Utilised_Capacity,0) -> 0 | BE10: =IFERROR('Rates Table'!BE10*High_Utilised_Capacity,0) -> 0 | BF10: =IFERROR('Rates Table'!BF10*High_Utilised_Capacity,0) -> 0 | BG10: =IFERROR('Rates Table'!BG10*High_Utilised_Capacity,0) -> 0 | BH10: =IFERROR('Rates Table'!BH10*High_Utilised_Capacity,0) -> 0 | BI10: =IFERROR('Rates Table'!BI10*High_Utilised_Capacity,0) -> 0 | BJ10: =IFERROR('Rates Table'!BJ10*High_Utilised_Capacity,0) -> 0 | BK10: =IFERROR('Rates Table'!BK10*High_Utilised_Capacity,0) -> 0 | BL10: =IFERROR('Rates Table'!BL10*High_Utilised_Capacity,0) -> 0 | BM10: =IFERROR('Rates Table'!BM10*High_Utilised_Capacity,0) -> 0 | BN10: =IFERROR('Rates Table'!BN10*High_Utilised_Capacity,0) -> 0 | BO10: =IFERROR('Rates Table'!BO10*High_Utilised_Capacity,0) -> 0 | BP10: =IFERROR('Rates Table'!BP10*High_Utilised_Capacity,0) -> 0 | BQ10: =IFERROR('Rates Table'!BQ10*High_Utilised_Capacity,0) -> 0
C11: Distribution network capacity charge | D11: R/kVA | E11: 0 | F11: =IFERROR('Rates Table'!F11*High_Utilised_Capacity,0) -> 0 | G11: =IFERROR('Rates Table'!G11*High_Utilised_Capacity,0) -> 0 | H11: =IFERROR('Rates Table'!H11*High_Utilised_Capacity,0) -> 0 | I11: =IFERROR('Rates Table'!I11*High_Utilised_Capacity,0) -> 0 | J11: =IFERROR('Rates Table'!J11*High_Utilised_Capacity,0) -> 0 | K11: =IFERROR('Rates Table'!K11*High_Utilised_Capacity,0) -> 0 | L11: =IFERROR('Rates Table'!L11*High_Utilised_Capacity,0) -> 0 | M11: =IFERROR('Rates Table'!M11*High_Utilised_Capacity,0) -> 0 | N11: =IFERROR('Rates Table'!N11*High_Utilised_Capacity,0) -> 0 | O11: =IFERROR('Rates Table'!O11*High_Utilised_Capacity,0) -> 0 | P11: =IFERROR('Rates Table'!P11*High_Utilised_Capacity,0) -> 0 | Q11: =IFERROR('Rates Table'!Q11*High_Utilised_Capacity,0) -> 0 | R11: =IFERROR('Rates Table'!R11*High_Utilised_Capacity,0) -> 0 | S11: =IFERROR('Rates Table'!S11*High_Utilised_Capacity,0) -> 0 | T11: =IFERROR('Rates Table'!T11*High_Utilised_Capacity,0) -> 0 | U11: =IFERROR('Rates Table'!U11*High_Utilised_Capacity,0) -> 0 | V11: =IFERROR('Rates Table'!V11*High_Utilised_Capacity,0) -> 0 | W11: =IFERROR('Rates Table'!W11*High_Utilised_Capacity,0) -> 0 | X11: =IFERROR('Rates Table'!X11*High_Utilised_Capacity,0) -> 0 | Y11: =IFERROR('Rates Table'!Y11*High_Utilised_Capacity,0) -> 0 | Z11: =IFERROR('Rates Table'!Z11*High_Utilised_Capacity,0) -> 0 | AA11: =IFERROR('Rates Table'!AA11*High_Utilised_Capacity,0) -> 0 | AB11: =IFERROR('Rates Table'!AB11*High_Utilised_Capacity,0) -> 0 | AC11: =IFERROR('Rates Table'!AC11*High_Utilised_Capacity,0) -> 0 | AD11: =IFERROR('Rates Table'!AD11*High_Utilised_Capacity,0) -> 0 | AE11: =IFERROR('Rates Table'!AE11*High_Utilised_Capacity,0) -> 0 | AF11: =IFERROR('Rates Table'!AF11*High_Utilised_Capacity,0) -> 0 | AG11: =IFERROR('Rates Table'!AG11*High_Utilised_Capacity,0) -> 0 | AH11: =IFERROR('Rates Table'!AH11*High_Utilised_Capacity,0) -> 0 | AI11: =IFERROR('Rates Table'!AI11*High_Utilised_Capacity,0) -> 0 | AJ11: =IFERROR('Rates Table'!AJ11*High_Utilised_Capacity,0) -> 0 | AL11: 0 | AM11: =IFERROR('Rates Table'!AM11*High_Utilised_Capacity,0) -> 0 | AN11: =IFERROR('Rates Table'!AN11*High_Utilised_Capacity,0) -> 0 | AO11: =IFERROR('Rates Table'!AO11*High_Utilised_Capacity,0) -> 0 | AP11: =IFERROR('Rates Table'!AP11*High_Utilised_Capacity,0) -> 0 | AQ11: =IFERROR('Rates Table'!AQ11*High_Utilised_Capacity,0) -> 0 | AR11: =IFERROR('Rates Table'!AR11*High_Utilised_Capacity,0) -> 0 | AS11: =IFERROR('Rates Table'!AS11*High_Utilised_Capacity,0) -> 0 | AT11: =IFERROR('Rates Table'!AT11*High_Utilised_Capacity,0) -> 0 | AU11: =IFERROR('Rates Table'!AU11*High_Utilised_Capacity,0) -> 0 | AV11: =IFERROR('Rates Table'!AV11*High_Utilised_Capacity,0) -> 0 | AW11: =IFERROR('Rates Table'!AW11*High_Utilised_Capacity,0) -> 0 | AX11: =IFERROR('Rates Table'!AX11*High_Utilised_Capacity,0) -> 0 | AY11: =IFERROR('Rates Table'!AY11*High_Utilised_Capacity,0) -> 0 | AZ11: =IFERROR('Rates Table'!AZ11*High_Utilised_Capacity,0) -> 0 | BA11: =IFERROR('Rates Table'!BA11*High_Utilised_Capacity,0) -> 0 | BB11: =IFERROR('Rates Table'!BB11*High_Utilised_Capacity,0) -> 0 | BC11: =IFERROR('Rates Table'!BC11*High_Utilised_Capacity,0) -> 0 | BD11: =IFERROR('Rates Table'!BD11*High_Utilised_Capacity,0) -> 0 | BE11: =IFERROR('Rates Table'!BE11*High_Utilised_Capacity,0) -> 0 | BF11: =IFERROR('Rates Table'!BF11*High_Utilised_Capacity,0) -> 0 | BG11: =IFERROR('Rates Table'!BG11*High_Utilised_Capacity,0) -> 0 | BH11: =IFERROR('Rates Table'!BH11*High_Utilised_Capacity,0) -> 0 | BI11: =IFERROR('Rates Table'!BI11*High_Utilised_Capacity,0) -> 0 | BJ11: =IFERROR('Rates Table'!BJ11*High_Utilised_Capacity,0) -> 0 | BK11: =IFERROR('Rates Table'!BK11*High_Utilised_Capacity,0) -> 0 | BL11: =IFERROR('Rates Table'!BL11*High_Utilised_Capacity,0) -> 0 | BM11: =IFERROR('Rates Table'!BM11*High_Utilised_Capacity,0) -> 0 | BN11: =IFERROR('Rates Table'!BN11*High_Utilised_Capacity,0) -> 0 | BO11: =IFERROR('Rates Table'!BO11*High_Utilised_Capacity,0) -> 0 | BP11: =IFERROR('Rates Table'!BP11*High_Utilised_Capacity,0) -> 0 | BQ11: =IFERROR('Rates Table'!BQ11*High_Utilised_Capacity,0) -> 0
C12: Distribution network demand charge | D12: R/kVA | E12: 0 | F12: =IFERROR('Rates Table'!F12*High_Demand,0) -> 0 | G12: =IFERROR('Rates Table'!G12*High_Demand,0) -> 0 | H12: =IFERROR('Rates Table'!H12*High_Demand,0) -> 0 | I12: =IFERROR('Rates Table'!I12*High_Demand,0) -> 0 | J12: =IFERROR('Rates Table'!J12*High_Demand,0) -> 0 | K12: =IFERROR('Rates Table'!K12*High_Demand,0) -> 0 | L12: =IFERROR('Rates Table'!L12*High_Demand,0) -> 0 | M12: =IFERROR('Rates Table'!M12*High_Demand,0) -> 0 | N12: =IFERROR('Rates Table'!N12*High_Demand,0) -> 0 | O12: =IFERROR('Rates Table'!O12*High_Demand,0) -> 0 | P12: =IFERROR('Rates Table'!P12*High_Demand,0) -> 0 | Q12: =IFERROR('Rates Table'!Q12*High_Demand,0) -> 0 | R12: =IFERROR('Rates Table'!R12*High_Demand,0) -> 0 | S12: =IFERROR('Rates Table'!S12*High_Demand,0) -> 0 | T12: =IFERROR('Rates Table'!T12*High_Demand,0) -> 0 | U12: =IFERROR('Rates Table'!U12*High_Demand,0) -> 0 | V12: =IFERROR('Rates Table'!V12*High_Demand,0) -> 0 | W12: =IFERROR('Rates Table'!W12*High_Demand,0) -> 0 | X12: =IFERROR('Rates Table'!X12*High_Demand,0) -> 0 | Y12: =IFERROR('Rates Table'!Y12*High_Demand,0) -> 0 | Z12: =IFERROR('Rates Table'!Z12*High_Demand,0) -> 0 | AA12: =IFERROR('Rates Table'!AA12*High_Demand,0) -> 0 | AB12: =IFERROR('Rates Table'!AB12*High_Demand,0) -> 0 | AC12: =IFERROR('Rates Table'!AC12*High_Demand,0) -> 0 | AD12: =IFERROR('Rates Table'!AD12*High_Demand,0) -> 0 | AE12: =IFERROR('Rates Table'!AE12*High_Demand,0) -> 0 | AF12: =IFERROR('Rates Table'!AF12*High_Demand,0) -> 0 | AG12: =IFERROR('Rates Table'!AG12*High_Demand,0) -> 0 | AH12: =IFERROR('Rates Table'!AH12*High_Demand,0) -> 0 | AI12: =IFERROR('Rates Table'!AI12*High_Demand,0) -> 0 | AJ12: =IFERROR('Rates Table'!AJ12*High_Demand,0) -> 0 | AL12: 0 | AM12: =IFERROR('Rates Table'!AM12*High_Demand,0) -> 0 | AN12: =IFERROR('Rates Table'!AN12*High_Demand,0) -> 0 | AO12: =IFERROR('Rates Table'!AO12*High_Demand,0) -> 0 | AP12: =IFERROR('Rates Table'!AP12*High_Demand,0) -> 0 | AQ12: =IFERROR('Rates Table'!AQ12*High_Demand,0) -> 0 | AR12: =IFERROR('Rates Table'!AR12*High_Demand,0) -> 0 | AS12: =IFERROR('Rates Table'!AS12*High_Demand,0) -> 0 | AT12: =IFERROR('Rates Table'!AT12*High_Demand,0) -> 0 | AU12: =IFERROR('Rates Table'!AU12*High_Demand,0) -> 0 | AV12: =IFERROR('Rates Table'!AV12*High_Demand,0) -> 0 | AW12: =IFERROR('Rates Table'!AW12*High_Demand,0) -> 0 | AX12: =IFERROR('Rates Table'!AX12*High_Demand,0) -> 0 | AY12: =IFERROR('Rates Table'!AY12*High_Demand,0) -> 0 | AZ12: =IFERROR('Rates Table'!AZ12*High_Demand,0) -> 0 | BA12: =IFERROR('Rates Table'!BA12*High_Demand,0) -> 0 | BB12: =IFERROR('Rates Table'!BB12*High_Demand,0) -> 0 | BC12: =IFERROR('Rates Table'!BC12*High_Demand,0) -> 0 | BD12: =IFERROR('Rates Table'!BD12*High_Demand,0) -> 0 | BE12: =IFERROR('Rates Table'!BE12*High_Demand,0) -> 0 | BF12: =IFERROR('Rates Table'!BF12*High_Demand,0) -> 0 | BG12: =IFERROR('Rates Table'!BG12*High_Demand,0) -> 0 | BH12: =IFERROR('Rates Table'!BH12*High_Demand,0) -> 0 | BI12: =IFERROR('Rates Table'!BI12*High_Demand,0) -> 0 | BJ12: =IFERROR('Rates Table'!BJ12*High_Demand,0) -> 0 | BK12: =IFERROR('Rates Table'!BK12*High_Demand,0) -> 0 | BL12: =IFERROR('Rates Table'!BL12*High_Demand,0) -> 0 | BM12: =IFERROR('Rates Table'!BM12*High_Demand,0) -> 0 | BN12: =IFERROR('Rates Table'!BN12*High_Demand,0) -> 0 | BO12: =IFERROR('Rates Table'!BO12*High_Demand,0) -> 0 | BP12: =IFERROR('Rates Table'!BP12*High_Demand,0) -> 0 | BQ12: =IFERROR('Rates Table'!BQ12*High_Demand,0) -> 0
C13: Distribution network demand charge | D13: c/kWh | E13: 0 | F13: =IFERROR('Rates Table'!F13*IF(F$6="Miniflex",(High_Peak+High_Standard),High_Total_Energy),0)/100 -> 0 | G13: =IFERROR('Rates Table'!G13*IF(G$6="Miniflex",(High_Peak+High_Standard),High_Total_Energy),0)/100 -> 0 | H13: =IFERROR('Rates Table'!H13*IF(H$6="Miniflex",(High_Peak+High_Standard),High_Total_Energy),0)/100 -> 0 | I13: =IFERROR('Rates Table'!I13*IF(I$6="Miniflex",(High_Peak+High_Standard),High_Total_Energy),0)/100 -> 0 | J13: =IFERROR('Rates Table'!J13*IF(J$6="Miniflex",(High_Peak+High_Standard),High_Total_Energy),0)/100 -> 0 | K13: =IFERROR('Rates Table'!K13*IF(K$6="Miniflex",(High_Peak+High_Standard),High_Total_Energy),0)/100 -> 0 | L13: =IFERROR('Rates Table'!L13*IF(L$6="Miniflex",(High_Peak+High_Standard),High_Total_Energy),0)/100 -> 0 | M13: =IFERROR('Rates Table'!M13*IF(M$6="Miniflex",(High_Peak+High_Standard),High_Total_Energy),0)/100 -> 0 | N13: =IFERROR('Rates Table'!N13*IF(N$6="Miniflex",(High_Peak+High_Standard),High_Total_Energy),0)/100 -> 0 | O13: =IFERROR('Rates Table'!O13*IF(O$6="Miniflex",(High_Peak+High_Standard),High_Total_Energy),0)/100 -> 0 | P13: =IFERROR('Rates Table'!P13*IF(P$6="Miniflex",(High_Peak+High_Standard),High_Total_Energy),0)/100 -> 0 | Q13: =IFERROR('Rates Table'!Q13*IF(Q$6="Miniflex",(High_Peak+High_Standard),High_Total_Energy),0)/100 -> 0 | R13: =IFERROR('Rates Table'!R13*IF(R$6="Miniflex",(High_Peak+High_Standard),High_Total_Energy),0)/100 -> 0 | S13: =IFERROR('Rates Table'!S13*IF(S$6="Miniflex",(High_Peak+High_Standard),High_Total_Energy),0)/100 -> 0 | T13: =IFERROR('Rates Table'!T13*IF(T$6="Miniflex",(High_Peak+High_Standard),High_Total_Energy),0)/100 -> 0 | U13: =IFERROR('Rates Table'!U13*IF(U$6="Miniflex",(High_Peak+High_Standard),High_Total_Energy),0)/100 -> 0 | V13: =IFERROR('Rates Table'!V13*IF(V$6="Miniflex",(High_Peak+High_Standard),High_Total_Energy),0)/100 -> 0 | W13: =IFERROR('Rates Table'!W13*IF(W$6="Miniflex",(High_Peak+High_Standard),High_Total_Energy),0)/100 -> 0 | X13: =IFERROR('Rates Table'!X13*IF(X$6="Miniflex",(High_Peak+High_Standard),High_Total_Energy),0)/100 -> 0 | Y13: =IFERROR('Rates Table'!Y13*IF(Y$6="Miniflex",(High_Peak+High_Standard),High_Total_Energy),0)/100 -> 0 | Z13: =IFERROR('Rates Table'!Z13*IF(Z$6="Miniflex",(High_Peak+High_Standard),High_Total_Energy),0)/100 -> 0 | AA13: =IFERROR('Rates Table'!AA13*IF(AA$6="Miniflex",(High_Peak+High_Standard),High_Total_Energy),0)/100 -> 0 | AB13: =IFERROR('Rates Table'!AB13*IF(AB$6="Miniflex",(High_Peak+High_Standard),High_Total_Energy),0)/100 -> 0 | AC13: =IFERROR('Rates Table'!AC13*IF(AC$6="Miniflex",(High_Peak+High_Standard),High_Total_Energy),0)/100 -> 0 | AD13: =IFERROR('Rates Table'!AD13*IF(AD$6="Miniflex",(High_Peak+High_Standard),High_Total_Energy),0)/100 -> 0 | AE13: =IFERROR('Rates Table'!AE13*IF(AE$6="Miniflex",(High_Peak+High_Standard),High_Total_Energy),0)/100 -> 0 | AF13: =IFERROR('Rates Table'!AF13*IF(AF$6="Miniflex",(High_Peak+High_Standard),High_Total_Energy),0)/100 -> 0 | AG13: n/a | AH13: n/a | AI13: n/a | AJ13: n/a | AL13: 0 | AM13: =IFERROR('Rates Table'!AM13*IF(AM$6="Miniflex",(High_Peak+High_Standard),High_Total_Energy),0)/100 -> 0 | AN13: =IFERROR('Rates Table'!AN13*IF(AN$6="Miniflex",(High_Peak+High_Standard),High_Total_Energy),0)/100 -> 0 | AO13: =IFERROR('Rates Table'!AO13*IF(AO$6="Miniflex",(High_Peak+High_Standard),High_Total_Energy),0)/100 -> 0 | AP13: =IFERROR('Rates Table'!AP13*IF(AP$6="Miniflex",(High_Peak+High_Standard),High_Total_Energy),0)/100 -> 0 | AQ13: =IFERROR('Rates Table'!AQ13*IF(AQ$6="Miniflex",(High_Peak+High_Standard),High_Total_Energy),0)/100 -> 0 | AR13: =IFERROR('Rates Table'!AR13*IF(AR$6="Miniflex",(High_Peak+High_Standard),High_Total_Energy),0)/100 -> 0 | AS13: =IFERROR('Rates Table'!AS13*IF(AS$6="Miniflex",(High_Peak+High_Standard),High_Total_Energy),0)/100 -> 0 | AT13: =IFERROR('Rates Table'!AT13*IF(AT$6="Miniflex",(High_Peak+High_Standard),High_Total_Energy),0)/100 -> 0 | AU13: =IFERROR('Rates Table'!AU13*IF(AU$6="Miniflex",(High_Peak+High_Standard),High_Total_Energy),0)/100 -> 0 | AV13: =IFERROR('Rates Table'!AV13*IF(AV$6="Miniflex",(High_Peak+High_Standard),High_Total_Energy),0)/100 -> 0 | AW13: =IFERROR('Rates Table'!AW13*IF(AW$6="Miniflex",(High_Peak+High_Standard),High_Total_Energy),0)/100 -> 0 | AX13: =IFERROR('Rates Table'!AX13*IF(AX$6="Miniflex",(High_Peak+High_Standard),High_Total_Energy),0)/100 -> 0 | AY13: =IFERROR('Rates Table'!AY13*IF(AY$6="Miniflex",(High_Peak+High_Standard),High_Total_Energy),0)/100 -> 0 | AZ13: =IFERROR('Rates Table'!AZ13*IF(AZ$6="Miniflex",(High_Peak+High_Standard),High_Total_Energy),0)/100 -> 0 | BA13: =IFERROR('Rates Table'!BA13*IF(BA$6="Miniflex",(High_Peak+High_Standard),High_Total_Energy),0)/100 -> 0 | BB13: =IFERROR('Rates Table'!BB13*IF(BB$6="Miniflex",(High_Peak+High_Standard),High_Total_Energy),0)/100 -> 0 | BC13: =IFERROR('Rates Table'!BC13*IF(BC$6="Miniflex",(High_Peak+High_Standard),High_Total_Energy),0)/100 -> 0 | BD13: =IFERROR('Rates Table'!BD13*IF(BD$6="Miniflex",(High_Peak+High_Standard),High_Total_Energy),0)/100 -> 0 | BE13: =IFERROR('Rates Table'!BE13*IF(BE$6="Miniflex",(High_Peak+High_Standard),High_Total_Energy),0)/100 -> 0 | BF13: =IFERROR('Rates Table'!BF13*IF(BF$6="Miniflex",(High_Peak+High_Standard),High_Total_Energy),0)/100 -> 0 | BG13: =IFERROR('Rates Table'!BG13*IF(BG$6="Miniflex",(High_Peak+High_Standard),High_Total_Energy),0)/100 -> 0 | BH13: =IFERROR('Rates Table'!BH13*IF(BH$6="Miniflex",(High_Peak+High_Standard),High_Total_Energy),0)/100 -> 0 | BI13: =IFERROR('Rates Table'!BI13*IF(BI$6="Miniflex",(High_Peak+High_Standard),High_Total_Energy),0)/100 -> 0 | BJ13: =IFERROR('Rates Table'!BJ13*IF(BJ$6="Miniflex",(High_Peak+High_Standard),High_Total_Energy),0)/100 -> 0 | BK13: =IFERROR('Rates Table'!BK13*IF(BK$6="Miniflex",(High_Peak+High_Standard),High_Total_Energy),0)/100 -> 0 | BL13: =IFERROR('Rates Table'!BL13*IF(BL$6="Miniflex",(High_Peak+High_Standard),High_Total_Energy),0)/100 -> 0 | BM13: =IFERROR('Rates Table'!BM13*IF(BM$6="Miniflex",(High_Peak+High_Standard),High_Total_Energy),0)/100 -> 0 | BN13: n/a | BO13: n/a | BP13: n/a | BQ13: n/a
C14: Network demand charge, Ancillary service charge and retail | D14: c/kWh | E14: =INDEX(F14:AJ14,0,Selected_Tariff_ID) -> 0 | AG14: =IFERROR('Rates Table'!AG14*IF(AG$6="Miniflex",(High_Peak+High_Standard),High_Total_Energy),0)/100 -> 0 | AH14: =IFERROR('Rates Table'!AH14*IF(AH$6="Miniflex",(High_Peak+High_Standard),High_Total_Energy),0)/100 -> 0 | AI14: =IFERROR('Rates Table'!AI14*IF(AI$6="Miniflex",(High_Peak+High_Standard),High_Total_Energy),0)/100 -> 0 | AJ14: =IFERROR('Rates Table'!AJ14*IF(AJ$6="Miniflex",(High_Peak+High_Standard),High_Total_Energy),0)/100 -> 0 | AL14: =INDEX(AM14:BQ14,0,Selected_Tariff_ID) -> 0 | BN14: =IFERROR('Rates Table'!BN14*IF(BN$6="Miniflex",(High_Peak+High_Standard),High_Total_Energy),0)/100 -> 0 | BO14: =IFERROR('Rates Table'!BO14*IF(BO$6="Miniflex",(High_Peak+High_Standard),High_Total_Energy),0)/100 -> 0 | BP14: =IFERROR('Rates Table'!BP14*IF(BP$6="Miniflex",(High_Peak+High_Standard),High_Total_Energy),0)/100 -> 0 | BQ14: =IFERROR('Rates Table'!BQ14*IF(BQ$6="Miniflex",(High_Peak+High_Standard),High_Total_Energy),0)/100 -> 0
C15: LV Subsidy Charge | D15: R/kVA | E15: 0 | F15: =IFERROR('Rates Table'!F15*High_Utilised_Capacity,0) -> 0 | G15: =IFERROR('Rates Table'!G15*High_Utilised_Capacity,0) -> 0 | H15: =IFERROR('Rates Table'!H15*High_Utilised_Capacity,0) -> 0 | I15: =IFERROR('Rates Table'!I15*High_Utilised_Capacity,0) -> 0 | J15: =IFERROR('Rates Table'!J15*High_Utilised_Capacity,0) -> 0 | K15: =IFERROR('Rates Table'!K15*High_Utilised_Capacity,0) -> 0 | L15: =IFERROR('Rates Table'!L15*High_Utilised_Capacity,0) -> 0 | M15: =IFERROR('Rates Table'!M15*High_Utilised_Capacity,0) -> 0 | N15: =IFERROR('Rates Table'!N15*High_Utilised_Capacity,0) -> 0 | O15: =IFERROR('Rates Table'!O15*High_Utilised_Capacity,0) -> 0 | P15: =IFERROR('Rates Table'!P15*High_Utilised_Capacity,0) -> 0 | Q15: =IFERROR('Rates Table'!Q15*High_Utilised_Capacity,0) -> 0 | R15: =IFERROR('Rates Table'!R15*High_Utilised_Capacity,0) -> 0 | S15: =IFERROR('Rates Table'!S15*High_Utilised_Capacity,0) -> 0 | T15: =IFERROR('Rates Table'!T15*High_Utilised_Capacity,0) -> 0 | U15: =IFERROR('Rates Table'!U15*High_Utilised_Capacity,0) -> 0 | V15: =IFERROR('Rates Table'!V15*High_Utilised_Capacity,0) -> 0 | W15: =IFERROR('Rates Table'!W15*High_Utilised_Capacity,0) -> 0 | X15: =IFERROR('Rates Table'!X15*High_Utilised_Capacity,0) -> 0 | Y15: =IFERROR('Rates Table'!Y15*High_Utilised_Capacity,0) -> 0 | Z15: =IFERROR('Rates Table'!Z15*High_Utilised_Capacity,0) -> 0 | AA15: =IFERROR('Rates Table'!AA15*High_Utilised_Capacity,0) -> 0 | AB15: =IFERROR('Rates Table'!AB15*High_Utilised_Capacity,0) -> 0 | AC15: =IFERROR('Rates Table'!AC15*High_Utilised_Capacity,0) -> 0 | AD15: =IFERROR('Rates Table'!AD15*High_Utilised_Capacity,0) -> 0 | AE15: =IFERROR('Rates Table'!AE15*High_Utilised_Capacity,0) -> 0 | AF15: =IFERROR('Rates Table'!AF15*High_Utilised_Capacity,0) -> 0 | AG15: =IFERROR('Rates Table'!AG15*High_Utilised_Capacity,0) -> 0 | AH15: =IFERROR('Rates Table'!AH15*High_Utilised_Capacity,0) -> 0 | AI15: =IFERROR('Rates Table'!AI15*High_Utilised_Capacity,0) -> 0 | AJ15: =IFERROR('Rates Table'!AJ15*High_Utilised_Capacity,0) -> 0 | AL15: 0 | AM15: =IFERROR('Rates Table'!AM15*High_Utilised_Capacity,0) -> 0 | AN15: =IFERROR('Rates Table'!AN15*High_Utilised_Capacity,0) -> 0 | AO15: =IFERROR('Rates Table'!AO15*High_Utilised_Capacity,0) -> 0 | AP15: =IFERROR('Rates Table'!AP15*High_Utilised_Capacity,0) -> 0 | AQ15: =IFERROR('Rates Table'!AQ15*High_Utilised_Capacity,0) -> 0 | AR15: =IFERROR('Rates Table'!AR15*High_Utilised_Capacity,0) -> 0 | AS15: =IFERROR('Rates Table'!AS15*High_Utilised_Capacity,0) -> 0 | AT15: =IFERROR('Rates Table'!AT15*High_Utilised_Capacity,0) -> 0 | AU15: =IFERROR('Rates Table'!AU15*High_Utilised_Capacity,0) -> 0 | AV15: =IFERROR('Rates Table'!AV15*High_Utilised_Capacity,0) -> 0 | AW15: =IFERROR('Rates Table'!AW15*High_Utilised_Capacity,0) -> 0 | AX15: =IFERROR('Rates Table'!AX15*High_Utilised_Capacity,0) -> 0 | AY15: =IFERROR('Rates Table'!AY15*High_Utilised_Capacity,0) -> 0 | AZ15: =IFERROR('Rates Table'!AZ15*High_Utilised_Capacity,0) -> 0 | BA15: =IFERROR('Rates Table'!BA15*High_Utilised_Capacity,0) -> 0 | BB15: =IFERROR('Rates Table'!BB15*High_Utilised_Capacity,0) -> 0 | BC15: =IFERROR('Rates Table'!BC15*High_Utilised_Capacity,0) -> 0 | BD15: =IFERROR('Rates Table'!BD15*High_Utilised_Capacity,0) -> 0 | BE15: =IFERROR('Rates Table'!BE15*High_Utilised_Capacity,0) -> 0 | BF15: =IFERROR('Rates Table'!BF15*High_Utilised_Capacity,0) -> 0 | BG15: =IFERROR('Rates Table'!BG15*High_Utilised_Capacity,0) -> 0 | BH15: =IFERROR('Rates Table'!BH15*High_Utilised_Capacity,0) -> 0 | BI15: =IFERROR('Rates Table'!BI15*High_Utilised_Capacity,0) -> 0 | BJ15: =IFERROR('Rates Table'!BJ15*High_Utilised_Capacity,0) -> 0 | BK15: =IFERROR('Rates Table'!BK15*High_Utilised_Capacity,0) -> 0 | BL15: =IFERROR('Rates Table'!BL15*High_Utilised_Capacity,0) -> 0 | BM15: =IFERROR('Rates Table'!BM15*High_Utilised_Capacity,0) -> 0 | BN15: =IFERROR('Rates Table'!BN15*High_Utilised_Capacity,0) -> 0 | BO15: =IFERROR('Rates Table'!BO15*High_Utilised_Capacity,0) -> 0 | BP15: =IFERROR('Rates Table'!BP15*High_Utilised_Capacity,0) -> 0 | BQ15: =IFERROR('Rates Table'!BQ15*High_Utilised_Capacity,0) -> 0
C16: Network capacity charge | D16: =IF(Table_1=1,"R/kVA","R/day") -> R/day | E16: 1608.16 | F16: =IFERROR(IF(F52=1,'Rates Table'!F16*High_Utilised_Capacity,'Rates Table'!F16*PODs*High_Days),0) -> 3465.64 | G16: =IFERROR(IF(G52=1,'Rates Table'!G16*High_Utilised_Capacity,'Rates Table'!G16*PODs*High_Days),0) -> 5840.16 | H16: =IFERROR(IF(H52=1,'Rates Table'!H16*High_Utilised_Capacity,'Rates Table'!H16*PODs*High_Days),0) -> 10089.64 | I16: =IFERROR(IF(I52=1,'Rates Table'!I16*High_Utilised_Capacity,'Rates Table'!I16*PODs*High_Days),0) -> 0 | J16: =IFERROR(IF(J52=1,'Rates Table'!J16*High_Utilised_Capacity,'Rates Table'!J16*PODs*High_Days),0) -> 0 | K16: =IFERROR(IF(K52=1,'Rates Table'!K16*High_Utilised_Capacity,'Rates Table'!K16*PODs*High_Days),0) -> 0 | L16: =IFERROR(IF(L52=1,'Rates Table'!L16*High_Utilised_Capacity,'Rates Table'!L16*PODs*High_Days),0) -> 858.36 | M16: =IFERROR(IF(M52=1,'Rates Table'!M16*High_Utilised_Capacity,'Rates Table'!M16*PODs*High_Days),0) -> 1608.16 | N16: =IFERROR(IF(N52=1,'Rates Table'!N16*High_Utilised_Capacity,'Rates Table'!N16*PODs*High_Days),0) -> 3320.28 | O16: =IFERROR(IF(O52=1,'Rates Table'!O16*High_Utilised_Capacity,'Rates Table'!O16*PODs*High_Days),0) -> 524.4 | P16: =IFERROR(IF(P52=1,'Rates Table'!P16*High_Utilised_Capacity,'Rates Table'!P16*PODs*High_Days),0) -> 5444.56 | Q16: =IFERROR(IF(Q52=1,'Rates Table'!Q16*High_Utilised_Capacity,'Rates Table'!Q16*PODs*High_Days),0) -> 4543.88 | R16: =IFERROR(IF(R52=1,'Rates Table'!R16*High_Utilised_Capacity,'Rates Table'!R16*PODs*High_Days),0) -> 6984.64 | S16: =IFERROR(IF(S52=1,'Rates Table'!S16*High_Utilised_Capacity,'Rates Table'!S16*PODs*High_Days),0) -> 11166.96 | T16: =IFERROR(IF(T52=1,'Rates Table'!T16*High_Utilised_Capacity,'Rates Table'!T16*PODs*High_Days),0) -> 3618.36 | U16: =IFERROR(IF(U52=1,'Rates Table'!U16*High_Utilised_Capacity,'Rates Table'!U16*PODs*High_Days),0) -> 0 | V16: =IFERROR(IF(V52=1,'Rates Table'!V16*High_Utilised_Capacity,'Rates Table'!V16*PODs*High_Days),0) -> 0 | W16: =IFERROR(IF(W52=1,'Rates Table'!W16*High_Utilised_Capacity,'Rates Table'!W16*PODs*High_Days),0) -> 0 | X16: =IFERROR(IF(X52=1,'Rates Table'!X16*High_Utilised_Capacity,'Rates Table'!X16*PODs*High_Days),0) -> 0 | Y16: =IFERROR(IF(Y52=1,'Rates Table'!Y16*High_Utilised_Capacity,'Rates Table'!Y16*PODs*High_Days),0) -> 0 | Z16: =IFERROR(IF(Z52=1,'Rates Table'!Z16*High_Utilised_Capacity,'Rates Table'!Z16*PODs*High_Days),0) -> 0 | AA16: =IFERROR(IF(AA52=1,'Rates Table'!AA16*High_Utilised_Capacity,'Rates Table'!AA16*PODs*High_Days),0) -> 0 | AB16: =IFERROR(IF(AB52=1,'Rates Table'!AB16*High_Utilised_Capacity,'Rates Table'!AB16*PODs*High_Days),0) -> 0 | AC16: =IFERROR(IF(AC52=1,'Rates Table'!AC16*High_Utilised_Capacity,'Rates Table'!AC16*PODs*High_Days),0) -> 0 | AD16: =IFERROR(IF(AD52=1,'Rates Table'!AD16*High_Utilised_Capacity,'Rates Table'!AD16*PODs*High_Days),0) -> 0 | AE16: =IFERROR(IF(AE52=1,'Rates Table'!AE16*High_Utilised_Capacity,'Rates Table'!AE16*PODs*High_Days),0) -> 0 | AF16: =IFERROR(IF(AF52=1,'Rates Table'!AF16*High_Utilised_Capacity,'Rates Table'!AF16*PODs*High_Days),0) -> 0 | AG16: =IFERROR(IF(AG52=1,'Rates Table'!AG16*High_Utilised_Capacity,'Rates Table'!AG16*PODs*High_Days),0) -> 0 | AH16: =IFERROR(IF(AH52=1,'Rates Table'!AH16*High_Utilised_Capacity,'Rates Table'!AH16*PODs*High_Days),0) -> 0 | AI16: =IFERROR(IF(AI52=1,'Rates Table'!AI16*High_Utilised_Capacity,'Rates Table'!AI16*PODs*High_Days),0) -> 0 | AJ16: =IFERROR(IF(AJ52=1,'Rates Table'!AJ16*High_Utilised_Capacity,'Rates Table'!AJ16*PODs*High_Days),0) -> 0 | AL16: 1813.32 | AM16: =IFERROR(IF(AM52=1,'Rates Table'!AM16*High_Utilised_Capacity,'Rates Table'!AM16*PODs*High_Days),0) -> 3907.24 | AN16: =IFERROR(IF(AN52=1,'Rates Table'!AN16*High_Utilised_Capacity,'Rates Table'!AN16*PODs*High_Days),0) -> 6584.44 | AO16: =IFERROR(IF(AO52=1,'Rates Table'!AO16*High_Utilised_Capacity,'Rates Table'!AO16*PODs*High_Days),0) -> 11374.88 | AP16: =IFERROR(IF(AP52=1,'Rates Table'!AP16*High_Utilised_Capacity,'Rates Table'!AP16*PODs*High_Days),0) -> 0 | AQ16: =IFERROR(IF(AQ52=1,'Rates Table'!AQ16*High_Utilised_Capacity,'Rates Table'!AQ16*PODs*High_Days),0) -> 0 | AR16: =IFERROR(IF(AR52=1,'Rates Table'!AR16*High_Utilised_Capacity,'Rates Table'!AR16*PODs*High_Days),0) -> 0 | AS16: =IFERROR(IF(AS52=1,'Rates Table'!AS16*High_Utilised_Capacity,'Rates Table'!AS16*PODs*High_Days),0) -> 967.84 | AT16: =IFERROR(IF(AT52=1,'Rates Table'!AT16*High_Utilised_Capacity,'Rates Table'!AT16*PODs*High_Days),0) -> 1813.32 | AU16: =IFERROR(IF(AU52=1,'Rates Table'!AU16*High_Utilised_Capacity,'Rates Table'!AU16*PODs*High_Days),0) -> 3743.48 | AV16: =IFERROR(IF(AV52=1,'Rates Table'!AV16*High_Utilised_Capacity,'Rates Table'!AV16*PODs*High_Days),0) -> 591.56 | AW16: =IFERROR(IF(AW52=1,'Rates Table'!AW16*High_Utilised_Capacity,'Rates Table'!AW16*PODs*High_Days),0) -> 6138.24 | AX16: =IFERROR(IF(AX52=1,'Rates Table'!AX16*High_Utilised_Capacity,'Rates Table'!AX16*PODs*High_Days),0) -> 5122.56 | AY16: =IFERROR(IF(AY52=1,'Rates Table'!AY16*High_Utilised_Capacity,'Rates Table'!AY16*PODs*High_Days),0) -> 7874.28 | AZ16: =IFERROR(IF(AZ52=1,'Rates Table'!AZ16*High_Utilised_Capacity,'Rates Table'!AZ16*PODs*High_Days),0) -> 12589.28 | BA16: =IFERROR(IF(BA52=1,'Rates Table'!BA16*High_Utilised_Capacity,'Rates Table'!BA16*PODs*High_Days),0) -> 4079.28 | BB16: =IFERROR(IF(BB52=1,'Rates Table'!BB16*High_Utilised_Capacity,'Rates Table'!BB16*PODs*High_Days),0) -> 0 | BC16: =IFERROR(IF(BC52=1,'Rates Table'!BC16*High_Utilised_Capacity,'Rates Table'!BC16*PODs*High_Days),0) -> 0 | BD16: =IFERROR(IF(BD52=1,'Rates Table'!BD16*High_Utilised_Capacity,'Rates Table'!BD16*PODs*High_Days),0) -> 0 | BE16: =IFERROR(IF(BE52=1,'Rates Table'!BE16*High_Utilised_Capacity,'Rates Table'!BE16*PODs*High_Days),0) -> 0 | BF16: =IFERROR(IF(BF52=1,'Rates Table'!BF16*High_Utilised_Capacity,'Rates Table'!BF16*PODs*High_Days),0) -> 0 | BG16: =IFERROR(IF(BG52=1,'Rates Table'!BG16*High_Utilised_Capacity,'Rates Table'!BG16*PODs*High_Days),0) -> 0 | BH16: =IFERROR(IF(BH52=1,'Rates Table'!BH16*High_Utilised_Capacity,'Rates Table'!BH16*PODs*High_Days),0) -> 0 | BI16: =IFERROR(IF(BI52=1,'Rates Table'!BI16*High_Utilised_Capacity,'Rates Table'!BI16*PODs*High_Days),0) -> 0 | BJ16: =IFERROR(IF(BJ52=1,'Rates Table'!BJ16*High_Utilised_Capacity,'Rates Table'!BJ16*PODs*High_Days),0) -> 0 | BK16: =IFERROR(IF(BK52=1,'Rates Table'!BK16*High_Utilised_Capacity,'Rates Table'!BK16*PODs*High_Days),0) -> 0 | BL16: =IFERROR(IF(BL52=1,'Rates Table'!BL16*High_Utilised_Capacity,'Rates Table'!BL16*PODs*High_Days),0) -> 0 | BM16: =IFERROR(IF(BM52=1,'Rates Table'!BM16*High_Utilised_Capacity,'Rates Table'!BM16*PODs*High_Days),0) -> 0 | BN16: =IFERROR(IF(BN52=1,'Rates Table'!BN16*High_Utilised_Capacity,'Rates Table'!BN16*PODs*High_Days),0) -> 967.84 | BO16: =IFERROR(IF(BO52=1,'Rates Table'!BO16*High_Utilised_Capacity,'Rates Table'!BO16*PODs*High_Days),0) -> 1813.32 | BP16: =IFERROR(IF(BP52=1,'Rates Table'!BP16*High_Utilised_Capacity,'Rates Table'!BP16*PODs*High_Days),0) -> 3743.48 | BQ16: =IFERROR(IF(BQ52=1,'Rates Table'!BQ16*High_Utilised_Capacity,'Rates Table'!BQ16*PODs*High_Days),0) -> 591.56
B18: Total network charges | E18: =SUM(E10:E16) -> 1608.16 | F18: =SUM(F10:F16) -> 3465.64 | G18: =SUM(G10:G16) -> 5840.16 | H18: 10089.64 | I18: 0 | J18: 0 | K18: 0 | L18: 858.36 | M18: 1608.16 | N18: 3320.28 | O18: 524.4 | P18: 5444.56 | Q18: 4543.88 | R18: 6984.64 | S18: 11166.96 | T18: 3618.36 | U18: 0 | V18: 0 | W18: 0 | X18: 0 | Y18: 0 | Z18: 0 | AA18: 0 | AB18: =SUM(AB10:AB16) -> 0 | AC18: 0 | AD18: 0 | AE18: 0 | AF18: 0 | AG18: =SUM(AG10:AG16) -> 0 | AH18: =SUM(AH10:AH16) -> 0 | AI18: 0 | AJ18: 0 | AL18: =SUM(AL10:AL16) -> 1813.32 | AM18: =SUM(AM10:AM16) -> 3907.24 | AN18: 6584.44 | AO18: 11374.88 | AP18: 0 | AQ18: 0 | AR18: 0 | AS18: 967.84 | AT18: 1813.32 | AU18: 3743.48 | AV18: 591.56 | AW18: 6138.24 | AX18: 5122.56 | AY18: 7874.28 | AZ18: 12589.28 | BA18: 4079.28 | BB18: 0 | BC18: 0 | BD18: 0 | BE18: 0 | BF18: 0 | BG18: 0 | BH18: 0 | BI18: =SUM(BI10:BI16) -> 0 | BJ18: 0 | BK18: 0 | BL18: 0 | BM18: 0 | BN18: 967.84 | BO18: =SUM(BO10:BO16) -> 1813.32 | BP18: 3743.48 | BQ18: 591.56
B20: Energy charges - High | D20: Units | E20: =E$8 -> 2023/2024 Rates | F20: =F$8 -> 2023/2024 Rates | G20: 2023/2024 Rates | H20: 2023/2024 Rates | I20: 2023/2024 Rates | J20: 2023/2024 Rates | K20: 2023/2024 Rates | L20: 2023/2024 Rates | M20: 2023/2024 Rates | N20: 2023/2024 Rates | O20: 2023/2024 Rates | P20: 2023/2024 Rates | Q20: 2023/2024 Rates | R20: 2023/2024 Rates | S20: 2023/2024 Rates | T20: 2023/2024 Rates | U20: 2023/2024 Rates | V20: 2023/2024 Rates | W20: 2023/2024 Rates | X20: 2023/2024 Rates | Y20: 2023/2024 Rates | Z20: 2023/2024 Rates | AA20: 2023/2024 Rates | AB20: 2023/2024 Rates | AC20: 2023/2024 Rates | AD20: 2023/2024 Rates | AE20: 2023/2024 Rates | AF20: 2023/2024 Rates | AG20: 2023/2024 Rates | AH20: 2023/2024 Rates | AI20: 2023/2024 Rates | AJ20: 2023/2024 Rates | AL20: =AL$8 -> 2024/2025 Rates | AM20: =AM$8 -> 2024/2025 Rates | AN20: 2024/2025 Rates | AO20: 2024/2025 Rates | AP20: 2024/2025 Rates | AQ20: 2024/2025 Rates | AR20: 2024/2025 Rates | AS20: 2024/2025 Rates | AT20: 2024/2025 Rates | AU20: 2024/2025 Rates | AV20: 2024/2025 Rates | AW20: 2024/2025 Rates | AX20: 2024/2025 Rates | AY20: 2024/2025 Rates | AZ20: 2024/2025 Rates | BA20: 2024/2025 Rates | BB20: 2024/2025 Rates | BC20: 2024/2025 Rates | BD20: 2024/2025 Rates | BE20: 2024/2025 Rates | BF20: 2024/2025 Rates | BG20: 2024/2025 Rates | BH20: 2024/2025 Rates | BI20: 2024/2025 Rates | BJ20: 2024/2025 Rates | BK20: 2024/2025 Rates | BL20: 2024/2025 Rates | BM20: 2024/2025 Rates | BN20: 2024/2025 Rates | BO20: 2024/2025 Rates | BP20: 2024/2025 Rates | BQ20: 2024/2025 Rates
C22: Peak consumption | D22: c/kWh | E22: =INDEX(F22:AJ22,0,Selected_Tariff_ID) -> 0 | F22: =IFERROR('Rates Table'!F22*High_Peak,0)/100 -> 0 | G22: =IFERROR('Rates Table'!G22*High_Peak,0)/100 -> 0 | H22: =IFERROR('Rates Table'!H22*High_Peak,0)/100 -> 0 | I22: =IFERROR('Rates Table'!I22*High_Peak,0)/100 -> 0 | J22: =IFERROR('Rates Table'!J22*High_Peak,0)/100 -> 0 | K22: =IFERROR('Rates Table'!K22*High_Peak,0)/100 -> 0 | L22: =IFERROR('Rates Table'!L22*High_Peak,0)/100 -> 0 | M22: =IFERROR('Rates Table'!M22*High_Peak,0)/100 -> 0 | N22: =IFERROR('Rates Table'!N22*High_Peak,0)/100 -> 0 | O22: =IFERROR('Rates Table'!O22*High_Peak,0)/100 -> 0 | P22: =IFERROR('Rates Table'!P22*High_Peak,0)/100 -> 0 | Q22: =IFERROR('Rates Table'!Q22*High_Peak,0)/100 -> 0 | R22: =IFERROR('Rates Table'!R22*High_Peak,0)/100 -> 0 | S22: =IFERROR('Rates Table'!S22*High_Peak,0)/100 -> 0 | T22: =IFERROR('Rates Table'!T22*High_Peak,0)/100 -> 0 | U22: =IFERROR('Rates Table'!U22*High_Peak,0)/100 -> 0 | V22: =IFERROR('Rates Table'!V22*High_Peak,0)/100 -> 0 | W22: =IFERROR('Rates Table'!W22*High_Peak,0)/100 -> 0 | X22: =IFERROR('Rates Table'!X22*High_Peak,0)/100 -> 0 | Y22: =IFERROR('Rates Table'!Y22*High_Peak,0)/100 -> 0 | Z22: =IFERROR('Rates Table'!Z22*High_Peak,0)/100 -> 0 | AA22: =IFERROR('Rates Table'!AA22*High_Peak,0)/100 -> 0 | AB22: =IFERROR('Rates Table'!AB22*High_Peak,0)/100 -> 0 | AC22: =IFERROR('Rates Table'!AC22*High_Peak,0)/100 -> 0 | AD22: =IFERROR('Rates Table'!AD22*High_Peak,0)/100 -> 0 | AE22: =IFERROR('Rates Table'!AE22*High_Peak,0)/100 -> 0 | AF22: =IFERROR('Rates Table'!AF22*High_Peak,0)/100 -> 0 | AG22: =IFERROR('Rates Table'!AG22*High_Peak,0)/100 -> 0 | AH22: =IFERROR('Rates Table'!AH22*High_Peak,0)/100 -> 0 | AI22: =IFERROR('Rates Table'!AI22*High_Peak,0)/100 -> 0 | AJ22: =IFERROR('Rates Table'!AJ22*High_Peak,0)/100 -> 0 | AL22: =INDEX(AM22:BQ22,0,Selected_Tariff_ID) -> 0 | AM22: =IFERROR('Rates Table'!AM22*High_Peak,0)/100 -> 0 | AN22: =IFERROR('Rates Table'!AN22*High_Peak,0)/100 -> 0 | AO22: =IFERROR('Rates Table'!AO22*High_Peak,0)/100 -> 0 | AP22: =IFERROR('Rates Table'!AP22*High_Peak,0)/100 -> 0 | AQ22: =IFERROR('Rates Table'!AQ22*High_Peak,0)/100 -> 0 | AR22: =IFERROR('Rates Table'!AR22*High_Peak,0)/100 -> 0 | AS22: =IFERROR('Rates Table'!AS22*High_Peak,0)/100 -> 0 | AT22: =IFERROR('Rates Table'!AT22*High_Peak,0)/100 -> 0 | AU22: =IFERROR('Rates Table'!AU22*High_Peak,0)/100 -> 0 | AV22: =IFERROR('Rates Table'!AV22*High_Peak,0)/100 -> 0 | AW22: =IFERROR('Rates Table'!AW22*High_Peak,0)/100 -> 0 | AX22: =IFERROR('Rates Table'!AX22*High_Peak,0)/100 -> 0 | AY22: =IFERROR('Rates Table'!AY22*High_Peak,0)/100 -> 0 | AZ22: =IFERROR('Rates Table'!AZ22*High_Peak,0)/100 -> 0 | BA22: =IFERROR('Rates Table'!BA22*High_Peak,0)/100 -> 0 | BB22: =IFERROR('Rates Table'!BB22*High_Peak,0)/100 -> 0 | BC22: =IFERROR('Rates Table'!BC22*High_Peak,0)/100 -> 0 | BD22: =IFERROR('Rates Table'!BD22*High_Peak,0)/100 -> 0 | BE22: =IFERROR('Rates Table'!BE22*High_Peak,0)/100 -> 0 | BF22: =IFERROR('Rates Table'!BF22*High_Peak,0)/100 -> 0 | BG22: =IFERROR('Rates Table'!BG22*High_Peak,0)/100 -> 0 | BH22: =IFERROR('Rates Table'!BH22*High_Peak,0)/100 -> 0 | BI22: =IFERROR('Rates Table'!BI22*High_Peak,0)/100 -> 0 | BJ22: =IFERROR('Rates Table'!BJ22*High_Peak,0)/100 -> 0 | BK22: =IFERROR('Rates Table'!BK22*High_Peak,0)/100 -> 0 | BL22: =IFERROR('Rates Table'!BL22*High_Peak,0)/100 -> 0 | BM22: =IFERROR('Rates Table'!BM22*High_Peak,0)/100 -> 0 | BN22: =IFERROR('Rates Table'!BN22*High_Peak,0)/100 -> 0 | BO22: =IFERROR('Rates Table'!BO22*High_Peak,0)/100 -> 0 | BP22: =IFERROR('Rates Table'!BP22*High_Peak,0)/100 -> 0 | BQ22: =IFERROR('Rates Table'!BQ22*High_Peak,0)/100 -> 0
C23: Standard consumption | D23: c/kWh | E23: 0 | F23: =IFERROR('Rates Table'!F23*High_Standard,0)/100 -> 0 | G23: =IFERROR('Rates Table'!G23*High_Standard,0)/100 -> 0 | H23: =IFERROR('Rates Table'!H23*High_Standard,0)/100 -> 0 | I23: =IFERROR('Rates Table'!I23*High_Standard,0)/100 -> 0 | J23: =IFERROR('Rates Table'!J23*High_Standard,0)/100 -> 0 | K23: =IFERROR('Rates Table'!K23*High_Standard,0)/100 -> 0 | L23: =IFERROR('Rates Table'!L23*High_Standard,0)/100 -> 0 | M23: =IFERROR('Rates Table'!M23*High_Standard,0)/100 -> 0 | N23: =IFERROR('Rates Table'!N23*High_Standard,0)/100 -> 0 | O23: =IFERROR('Rates Table'!O23*High_Standard,0)/100 -> 0 | P23: =IFERROR('Rates Table'!P23*High_Standard,0)/100 -> 0 | Q23: =IFERROR('Rates Table'!Q23*High_Standard,0)/100 -> 0 | R23: =IFERROR('Rates Table'!R23*High_Standard,0)/100 -> 0 | S23: =IFERROR('Rates Table'!S23*High_Standard,0)/100 -> 0 | T23: =IFERROR('Rates Table'!T23*High_Standard,0)/100 -> 0 | U23: =IFERROR('Rates Table'!U23*High_Standard,0)/100 -> 0 | V23: =IFERROR('Rates Table'!V23*High_Standard,0)/100 -> 0 | W23: =IFERROR('Rates Table'!W23*High_Standard,0)/100 -> 0 | X23: =IFERROR('Rates Table'!X23*High_Standard,0)/100 -> 0 | Y23: =IFERROR('Rates Table'!Y23*High_Standard,0)/100 -> 0 | Z23: =IFERROR('Rates Table'!Z23*High_Standard,0)/100 -> 0 | AA23: =IFERROR('Rates Table'!AA23*High_Standard,0)/100 -> 0 | AB23: =IFERROR('Rates Table'!AB23*High_Standard,0)/100 -> 0 | AC23: =IFERROR('Rates Table'!AC23*High_Standard,0)/100 -> 0 | AD23: =IFERROR('Rates Table'!AD23*High_Standard,0)/100 -> 0 | AE23: =IFERROR('Rates Table'!AE23*High_Standard,0)/100 -> 0 | AF23: =IFERROR('Rates Table'!AF23*High_Standard,0)/100 -> 0 | AG23: =IFERROR('Rates Table'!AG23*High_Standard,0)/100 -> 0 | AH23: =IFERROR('Rates Table'!AH23*High_Standard,0)/100 -> 0 | AI23: =IFERROR('Rates Table'!AI23*High_Standard,0)/100 -> 0 | AJ23: =IFERROR('Rates Table'!AJ23*High_Standard,0)/100 -> 0 | AL23: 0 | AM23: =IFERROR('Rates Table'!AM23*High_Standard,0)/100 -> 0 | AN23: =IFERROR('Rates Table'!AN23*High_Standard,0)/100 -> 0 | AO23: =IFERROR('Rates Table'!AO23*High_Standard,0)/100 -> 0 | AP23: =IFERROR('Rates Table'!AP23*High_Standard,0)/100 -> 0 | AQ23: =IFERROR('Rates Table'!AQ23*High_Standard,0)/100 -> 0 | AR23: =IFERROR('Rates Table'!AR23*High_Standard,0)/100 -> 0 | AS23: =IFERROR('Rates Table'!AS23*High_Standard,0)/100 -> 0 | AT23: =IFERROR('Rates Table'!AT23*High_Standard,0)/100 -> 0 | AU23: =IFERROR('Rates Table'!AU23*High_Standard,0)/100 -> 0 | AV23: =IFERROR('Rates Table'!AV23*High_Standard,0)/100 -> 0 | AW23: =IFERROR('Rates Table'!AW23*High_Standard,0)/100 -> 0 | AX23: =IFERROR('Rates Table'!AX23*High_Standard,0)/100 -> 0 | AY23: =IFERROR('Rates Table'!AY23*High_Standard,0)/100 -> 0 | AZ23: =IFERROR('Rates Table'!AZ23*High_Standard,0)/100 -> 0 | BA23: =IFERROR('Rates Table'!BA23*High_Standard,0)/100 -> 0 | BB23: =IFERROR('Rates Table'!BB23*High_Standard,0)/100 -> 0 | BC23: =IFERROR('Rates Table'!BC23*High_Standard,0)/100 -> 0 | BD23: =IFERROR('Rates Table'!BD23*High_Standard,0)/100 -> 0 | BE23: =IFERROR('Rates Table'!BE23*High_Standard,0)/100 -> 0 | BF23: =IFERROR('Rates Table'!BF23*High_Standard,0)/100 -> 0 | BG23: =IFERROR('Rates Table'!BG23*High_Standard,0)/100 -> 0 | BH23: =IFERROR('Rates Table'!BH23*High_Standard,0)/100 -> 0 | BI23: =IFERROR('Rates Table'!BI23*High_Standard,0)/100 -> 0 | BJ23: =IFERROR('Rates Table'!BJ23*High_Standard,0)/100 -> 0 | BK23: =IFERROR('Rates Table'!BK23*High_Standard,0)/100 -> 0 | BL23: =IFERROR('Rates Table'!BL23*High_Standard,0)/100 -> 0 | BM23: =IFERROR('Rates Table'!BM23*High_Standard,0)/100 -> 0 | BN23: =IFERROR('Rates Table'!BN23*High_Standard,0)/100 -> 0 | BO23: =IFERROR('Rates Table'!BO23*High_Standard,0)/100 -> 0 | BP23: =IFERROR('Rates Table'!BP23*High_Standard,0)/100 -> 0 | BQ23: =IFERROR('Rates Table'!BQ23*High_Standard,0)/100 -> 0
C24: Off-Peak consumption | D24: c/kWh | E24: 0 | F24: =IFERROR('Rates Table'!F24*High_OffPeak,0)/100 -> 0 | G24: =IFERROR('Rates Table'!G24*High_OffPeak,0)/100 -> 0 | H24: =IFERROR('Rates Table'!H24*High_OffPeak,0)/100 -> 0 | I24: =IFERROR('Rates Table'!I24*High_OffPeak,0)/100 -> 0 | J24: =IFERROR('Rates Table'!J24*High_OffPeak,0)/100 -> 0 | K24: =IFERROR('Rates Table'!K24*High_OffPeak,0)/100 -> 0 | L24: =IFERROR('Rates Table'!L24*High_OffPeak,0)/100 -> 0 | M24: =IFERROR('Rates Table'!M24*High_OffPeak,0)/100 -> 0 | N24: =IFERROR('Rates Table'!N24*High_OffPeak,0)/100 -> 0 | O24: =IFERROR('Rates Table'!O24*High_OffPeak,0)/100 -> 0 | P24: =IFERROR('Rates Table'!P24*High_OffPeak,0)/100 -> 0 | Q24: =IFERROR('Rates Table'!Q24*High_OffPeak,0)/100 -> 0 | R24: =IFERROR('Rates Table'!R24*High_OffPeak,0)/100 -> 0 | S24: =IFERROR('Rates Table'!S24*High_OffPeak,0)/100 -> 0 | T24: =IFERROR('Rates Table'!T24*High_OffPeak,0)/100 -> 0 | U24: =IFERROR('Rates Table'!U24*High_OffPeak,0)/100 -> 0 | V24: =IFERROR('Rates Table'!V24*High_OffPeak,0)/100 -> 0 | W24: =IFERROR('Rates Table'!W24*High_OffPeak,0)/100 -> 0 | X24: =IFERROR('Rates Table'!X24*High_OffPeak,0)/100 -> 0 | Y24: =IFERROR('Rates Table'!Y24*High_OffPeak,0)/100 -> 0 | Z24: =IFERROR('Rates Table'!Z24*High_OffPeak,0)/100 -> 0 | AA24: =IFERROR('Rates Table'!AA24*High_OffPeak,0)/100 -> 0 | AB24: =IFERROR('Rates Table'!AB24*High_OffPeak,0)/100 -> 0 | AC24: =IFERROR('Rates Table'!AC24*High_OffPeak,0)/100 -> 0 | AD24: =IFERROR('Rates Table'!AD24*High_OffPeak,0)/100 -> 0 | AE24: =IFERROR('Rates Table'!AE24*High_OffPeak,0)/100 -> 0 | AF24: =IFERROR('Rates Table'!AF24*High_OffPeak,0)/100 -> 0 | AG24: =IFERROR('Rates Table'!AG24*High_OffPeak,0)/100 -> 0 | AH24: =IFERROR('Rates Table'!AH24*High_OffPeak,0)/100 -> 0 | AI24: =IFERROR('Rates Table'!AI24*High_OffPeak,0)/100 -> 0 | AJ24: =IFERROR('Rates Table'!AJ24*High_OffPeak,0)/100 -> 0 | AL24: 0 | AM24: =IFERROR('Rates Table'!AM24*High_OffPeak,0)/100 -> 0 | AN24: =IFERROR('Rates Table'!AN24*High_OffPeak,0)/100 -> 0 | AO24: =IFERROR('Rates Table'!AO24*High_OffPeak,0)/100 -> 0 | AP24: =IFERROR('Rates Table'!AP24*High_OffPeak,0)/100 -> 0 | AQ24: =IFERROR('Rates Table'!AQ24*High_OffPeak,0)/100 -> 0 | AR24: =IFERROR('Rates Table'!AR24*High_OffPeak,0)/100 -> 0 | AS24: =IFERROR('Rates Table'!AS24*High_OffPeak,0)/100 -> 0 | AT24: =IFERROR('Rates Table'!AT24*High_OffPeak,0)/100 -> 0 | AU24: =IFERROR('Rates Table'!AU24*High_OffPeak,0)/100 -> 0 | AV24: =IFERROR('Rates Table'!AV24*High_OffPeak,0)/100 -> 0 | AW24: =IFERROR('Rates Table'!AW24*High_OffPeak,0)/100 -> 0 | AX24: =IFERROR('Rates Table'!AX24*High_OffPeak,0)/100 -> 0 | AY24: =IFERROR('Rates Table'!AY24*High_OffPeak,0)/100 -> 0 | AZ24: =IFERROR('Rates Table'!AZ24*High_OffPeak,0)/100 -> 0 | BA24: =IFERROR('Rates Table'!BA24*High_OffPeak,0)/100 -> 0 | BB24: =IFERROR('Rates Table'!BB24*High_OffPeak,0)/100 -> 0 | BC24: =IFERROR('Rates Table'!BC24*High_OffPeak,0)/100 -> 0 | BD24: =IFERROR('Rates Table'!BD24*High_OffPeak,0)/100 -> 0 | BE24: =IFERROR('Rates Table'!BE24*High_OffPeak,0)/100 -> 0 | BF24: =IFERROR('Rates Table'!BF24*High_OffPeak,0)/100 -> 0 | BG24: =IFERROR('Rates Table'!BG24*High_OffPeak,0)/100 -> 0 | BH24: =IFERROR('Rates Table'!BH24*High_OffPeak,0)/100 -> 0 | BI24: =IFERROR('Rates Table'!BI24*High_OffPeak,0)/100 -> 0 | BJ24: =IFERROR('Rates Table'!BJ24*High_OffPeak,0)/100 -> 0 | BK24: =IFERROR('Rates Table'!BK24*High_OffPeak,0)/100 -> 0 | BL24: =IFERROR('Rates Table'!BL24*High_OffPeak,0)/100 -> 0 | BM24: =IFERROR('Rates Table'!BM24*High_OffPeak,0)/100 -> 0 | BN24: =IFERROR('Rates Table'!BN24*High_OffPeak,0)/100 -> 0 | BO24: =IFERROR('Rates Table'!BO24*High_OffPeak,0)/100 -> 0 | BP24: =IFERROR('Rates Table'!BP24*High_OffPeak,0)/100 -> 0 | BQ24: =IFERROR('Rates Table'!BQ24*High_OffPeak,0)/100 -> 0
E25: 0 | AL25: 0
C26: Energy | D26: c/kWh | E26: 0 | F26: =IFERROR('Rates Table'!F26*(High_Total_Energy),0)/100 -> 0 | G26: =IFERROR('Rates Table'!G26*(High_Total_Energy),0)/100 -> 0 | H26: =IFERROR('Rates Table'!H26*(High_Total_Energy),0)/100 -> 0 | I26: =IFERROR('Rates Table'!I26*(High_Total_Energy),0)/100 -> 0 | J26: =IFERROR('Rates Table'!J26*(High_Total_Energy),0)/100 -> 0 | K26: =IFERROR('Rates Table'!K26*(High_Total_Energy),0)/100 -> 0 | L26: =IFERROR('Rates Table'!L26*(High_Total_Energy),0)/100 -> 0 | M26: =IFERROR('Rates Table'!M26*(High_Total_Energy),0)/100 -> 0 | N26: =IFERROR('Rates Table'!N26*(High_Total_Energy),0)/100 -> 0 | O26: =IFERROR('Rates Table'!O26*(High_Total_Energy),0)/100 -> 0 | P26: =IFERROR('Rates Table'!P26*(High_Total_Energy),0)/100 -> 0 | Q26: =IFERROR('Rates Table'!Q26*(High_Total_Energy),0)/100 -> 0 | R26: =IFERROR('Rates Table'!R26*(High_Total_Energy),0)/100 -> 0 | S26: =IFERROR('Rates Table'!S26*(High_Total_Energy),0)/100 -> 0 | T26: =IFERROR('Rates Table'!T26*(High_Total_Energy),0)/100 -> 0 | U26: =IFERROR('Rates Table'!U26*(High_Total_Energy),0)/100 -> 0 | V26: =IFERROR('Rates Table'!V26*(High_Total_Energy),0)/100 -> 0 | W26: =IFERROR('Rates Table'!W26*(High_Total_Energy),0)/100 -> 0 | X26: =IFERROR('Rates Table'!X26*(High_Total_Energy),0)/100 -> 0 | Y26: =IFERROR('Rates Table'!Y26*(High_Total_Energy),0)/100 -> 0 | Z26: =IFERROR('Rates Table'!Z26*(High_Total_Energy),0)/100 -> 0 | AA26: =IFERROR('Rates Table'!AA26*(High_Total_Energy),0)/100 -> 0 | AB26: =IFERROR('Rates Table'!AB26*(High_Total_Energy),0)/100 -> 0 | AC26: =IFERROR('Rates Table'!AC26*(High_Total_Energy),0)/100 -> 0 | AD26: =IFERROR('Rates Table'!AD26*(High_Total_Energy),0)/100 -> 0 | AE26: =IFERROR('Rates Table'!AE26*(High_Total_Energy),0)/100 -> 0 | AF26: =IFERROR('Rates Table'!AF26*(High_Total_Energy),0)/100 -> 0 | AG26: =IFERROR('Rates Table'!AG26*(High_Total_Energy),0)/100 -> 0 | AH26: =IFERROR('Rates Table'!AH26*(High_Total_Energy),0)/100 -> 0 | AI26: =IFERROR('Rates Table'!AI26*(High_Total_Energy),0)/100 -> 0 | AJ26: =IFERROR('Rates Table'!AJ26*(High_Total_Energy),0)/100 -> 0 | AL26: 0 | AM26: =IFERROR('Rates Table'!AM26*(High_Total_Energy),0)/100 -> 0 | AN26: =IFERROR('Rates Table'!AN26*(High_Total_Energy),0)/100 -> 0 | AO26: =IFERROR('Rates Table'!AO26*(High_Total_Energy),0)/100 -> 0 | AP26: =IFERROR('Rates Table'!AP26*(High_Total_Energy),0)/100 -> 0 | AQ26: =IFERROR('Rates Table'!AQ26*(High_Total_Energy),0)/100 -> 0 | AR26: =IFERROR('Rates Table'!AR26*(High_Total_Energy),0)/100 -> 0 | AS26: =IFERROR('Rates Table'!AS26*(High_Total_Energy),0)/100 -> 0 | AT26: =IFERROR('Rates Table'!AT26*(High_Total_Energy),0)/100 -> 0 | AU26: =IFERROR('Rates Table'!AU26*(High_Total_Energy),0)/100 -> 0 | AV26: =IFERROR('Rates Table'!AV26*(High_Total_Energy),0)/100 -> 0 | AW26: =IFERROR('Rates Table'!AW26*(High_Total_Energy),0)/100 -> 0 | AX26: =IFERROR('Rates Table'!AX26*(High_Total_Energy),0)/100 -> 0 | AY26: =IFERROR('Rates Table'!AY26*(High_Total_Energy),0)/100 -> 0 | AZ26: =IFERROR('Rates Table'!AZ26*(High_Total_Energy),0)/100 -> 0 | BA26: =IFERROR('Rates Table'!BA26*(High_Total_Energy),0)/100 -> 0 | BB26: =IFERROR('Rates Table'!BB26*(High_Total_Energy),0)/100 -> 0 | BC26: =IFERROR('Rates Table'!BC26*(High_Total_Energy),0)/100 -> 0 | BD26: =IFERROR('Rates Table'!BD26*(High_Total_Energy),0)/100 -> 0 | BE26: =IFERROR('Rates Table'!BE26*(High_Total_Energy),0)/100 -> 0 | BF26: =IFERROR('Rates Table'!BF26*(High_Total_Energy),0)/100 -> 0 | BG26: =IFERROR('Rates Table'!BG26*(High_Total_Energy),0)/100 -> 0 | BH26: =IFERROR('Rates Table'!BH26*(High_Total_Energy),0)/100 -> 0 | BI26: =IFERROR('Rates Table'!BI26*(High_Total_Energy),0)/100 -> 0 | BJ26: =IFERROR('Rates Table'!BJ26*(High_Total_Energy),0)/100 -> 0 | BK26: =IFERROR('Rates Table'!BK26*(High_Total_Energy),0)/100 -> 0 | BL26: =IFERROR('Rates Table'!BL26*(High_Total_Energy),0)/100 -> 0 | BM26: =IFERROR('Rates Table'!BM26*(High_Total_Energy),0)/100 -> 0 | BN26: =IFERROR('Rates Table'!BN26*(High_Total_Energy),0)/100 -> 0 | BO26: =IFERROR('Rates Table'!BO26*(High_Total_Energy),0)/100 -> 0 | BP26: =IFERROR('Rates Table'!BP26*(High_Total_Energy),0)/100 -> 0 | BQ26: =IFERROR('Rates Table'!BQ26*(High_Total_Energy),0)/100 -> 0
C27: Energy - Block 1 | D27: c/kWh | E27: 0 | F27: =IFERROR('Rates Table'!F27*(High_Block_1),0)/100 -> 0 | G27: =IFERROR('Rates Table'!G27*(High_Block_1),0)/100 -> 0 | H27: =IFERROR('Rates Table'!H27*(High_Block_1),0)/100 -> 0 | I27: =IFERROR('Rates Table'!I27*(High_Block_1),0)/100 -> 0 | J27: =IFERROR('Rates Table'!J27*(High_Block_1),0)/100 -> 0 | K27: =IFERROR('Rates Table'!K27*(High_Block_1),0)/100 -> 0 | L27: =IFERROR('Rates Table'!L27*(High_Block_1),0)/100 -> 0 | M27: =IFERROR('Rates Table'!M27*(High_Block_1),0)/100 -> 0 | N27: =IFERROR('Rates Table'!N27*(High_Block_1),0)/100 -> 0 | O27: =IFERROR('Rates Table'!O27*(High_Block_1),0)/100 -> 0 | P27: =IFERROR('Rates Table'!P27*(High_Block_1),0)/100 -> 0 | Q27: =IFERROR('Rates Table'!Q27*(High_Block_1),0)/100 -> 0 | R27: =IFERROR('Rates Table'!R27*(High_Block_1),0)/100 -> 0 | S27: =IFERROR('Rates Table'!S27*(High_Block_1),0)/100 -> 0 | T27: =IFERROR('Rates Table'!T27*(High_Block_1),0)/100 -> 0 | U27: =IFERROR('Rates Table'!U27*(High_Block_1),0)/100 -> 0 | V27: =IFERROR('Rates Table'!V27*(High_Block_1),0)/100 -> 0 | W27: =IFERROR('Rates Table'!W27*(High_Block_1),0)/100 -> 0 | X27: =IFERROR('Rates Table'!X27*(High_Block_1),0)/100 -> 0 | Y27: =IFERROR('Rates Table'!Y27*(High_Block_1),0)/100 -> 0 | Z27: =IFERROR('Rates Table'!Z27*(High_Block_1),0)/100 -> 0 | AA27: =IFERROR('Rates Table'!AA27*(High_Block_1),0)/100 -> 0 | AB27: =IFERROR('Rates Table'!AB27*(High_Block_1),0)/100 -> 0 | AC27: =IFERROR('Rates Table'!AC27*(High_Block_1),0)/100 -> 0 | AD27: =IFERROR('Rates Table'!AD27*(High_Block_1),0)/100 -> 0 | AE27: =IFERROR('Rates Table'!AE27*(High_Block_1),0)/100 -> 0 | AF27: =IFERROR('Rates Table'!AF27*(High_Block_1),0)/100 -> 0 | AG27: =IFERROR('Rates Table'!AG27*(High_Block_1),0)/100 -> 0 | AH27: =IFERROR('Rates Table'!AH27*(High_Block_1),0)/100 -> 0 | AI27: =IFERROR('Rates Table'!AI27*(High_Block_1),0)/100 -> 0 | AJ27: =IFERROR('Rates Table'!AJ27*(High_Block_1),0)/100 -> 0 | AL27: 0 | AM27: =IFERROR('Rates Table'!AM27*(High_Block_1),0)/100 -> 0 | AN27: =IFERROR('Rates Table'!AN27*(High_Block_1),0)/100 -> 0 | AO27: =IFERROR('Rates Table'!AO27*(High_Block_1),0)/100 -> 0 | AP27: =IFERROR('Rates Table'!AP27*(High_Block_1),0)/100 -> 0 | AQ27: =IFERROR('Rates Table'!AQ27*(High_Block_1),0)/100 -> 0 | AR27: =IFERROR('Rates Table'!AR27*(High_Block_1),0)/100 -> 0 | AS27: =IFERROR('Rates Table'!AS27*(High_Block_1),0)/100 -> 0 | AT27: =IFERROR('Rates Table'!AT27*(High_Block_1),0)/100 -> 0 | AU27: =IFERROR('Rates Table'!AU27*(High_Block_1),0)/100 -> 0 | AV27: =IFERROR('Rates Table'!AV27*(High_Block_1),0)/100 -> 0 | AW27: =IFERROR('Rates Table'!AW27*(High_Block_1),0)/100 -> 0 | AX27: =IFERROR('Rates Table'!AX27*(High_Block_1),0)/100 -> 0 | AY27: =IFERROR('Rates Table'!AY27*(High_Block_1),0)/100 -> 0 | AZ27: =IFERROR('Rates Table'!AZ27*(High_Block_1),0)/100 -> 0 | BA27: =IFERROR('Rates Table'!BA27*(High_Block_1),0)/100 -> 0 | BB27: =IFERROR('Rates Table'!BB27*(High_Block_1),0)/100 -> 0 | BC27: =IFERROR('Rates Table'!BC27*(High_Block_1),0)/100 -> 0 | BD27: =IFERROR('Rates Table'!BD27*(High_Block_1),0)/100 -> 0 | BE27: =IFERROR('Rates Table'!BE27*(High_Block_1),0)/100 -> 0 | BF27: =IFERROR('Rates Table'!BF27*(High_Block_1),0)/100 -> 0 | BG27: =IFERROR('Rates Table'!BG27*(High_Block_1),0)/100 -> 0 | BH27: =IFERROR('Rates Table'!BH27*(High_Block_1),0)/100 -> 0 | BI27: =IFERROR('Rates Table'!BI27*(High_Block_1),0)/100 -> 0 | BJ27: =IFERROR('Rates Table'!BJ27*(High_Block_1),0)/100 -> 0 | BK27: =IFERROR('Rates Table'!BK27*(High_Block_1),0)/100 -> 0 | BL27: =IFERROR('Rates Table'!BL27*(High_Block_1),0)/100 -> 0 | BM27: =IFERROR('Rates Table'!BM27*(High_Block_1),0)/100 -> 0 | BN27: =IFERROR('Rates Table'!BN27*(High_Block_1),0)/100 -> 0 | BO27: =IFERROR('Rates Table'!BO27*(High_Block_1),0)/100 -> 0 | BP27: =IFERROR('Rates Table'!BP27*(High_Block_1),0)/100 -> 0 | BQ27: =IFERROR('Rates Table'!BQ27*(High_Block_1),0)/100 -> 0
C28: Energy - Block 2 | D28: c/kWh | E28: 0 | F28: =IFERROR('Rates Table'!F28*(High_Block_2),0)/100 -> 0 | G28: =IFERROR('Rates Table'!G28*(High_Block_2),0)/100 -> 0 | H28: =IFERROR('Rates Table'!H28*(High_Block_2),0)/100 -> 0 | I28: =IFERROR('Rates Table'!I28*(High_Block_2),0)/100 -> 0 | J28: =IFERROR('Rates Table'!J28*(High_Block_2),0)/100 -> 0 | K28: =IFERROR('Rates Table'!K28*(High_Block_2),0)/100 -> 0 | L28: =IFERROR('Rates Table'!L28*(High_Block_2),0)/100 -> 0 | M28: =IFERROR('Rates Table'!M28*(High_Block_2),0)/100 -> 0 | N28: =IFERROR('Rates Table'!N28*(High_Block_2),0)/100 -> 0 | O28: =IFERROR('Rates Table'!O28*(High_Block_2),0)/100 -> 0 | P28: =IFERROR('Rates Table'!P28*(High_Block_2),0)/100 -> 0 | Q28: =IFERROR('Rates Table'!Q28*(High_Block_2),0)/100 -> 0 | R28: =IFERROR('Rates Table'!R28*(High_Block_2),0)/100 -> 0 | S28: =IFERROR('Rates Table'!S28*(High_Block_2),0)/100 -> 0 | T28: =IFERROR('Rates Table'!T28*(High_Block_2),0)/100 -> 0 | U28: =IFERROR('Rates Table'!U28*(High_Block_2),0)/100 -> 0 | V28: =IFERROR('Rates Table'!V28*(High_Block_2),0)/100 -> 0 | W28: =IFERROR('Rates Table'!W28*(High_Block_2),0)/100 -> 0 | X28: =IFERROR('Rates Table'!X28*(High_Block_2),0)/100 -> 0 | Y28: =IFERROR('Rates Table'!Y28*(High_Block_2),0)/100 -> 0 | Z28: =IFERROR('Rates Table'!Z28*(High_Block_2),0)/100 -> 0 | AA28: =IFERROR('Rates Table'!AA28*(High_Block_2),0)/100 -> 0 | AB28: =IFERROR('Rates Table'!AB28*(High_Block_2),0)/100 -> 0 | AC28: =IFERROR('Rates Table'!AC28*(High_Block_2),0)/100 -> 0 | AD28: =IFERROR('Rates Table'!AD28*(High_Block_2),0)/100 -> 0 | AE28: =IFERROR('Rates Table'!AE28*(High_Block_2),0)/100 -> 0 | AF28: =IFERROR('Rates Table'!AF28*(High_Block_2),0)/100 -> 0 | AG28: =IFERROR('Rates Table'!AG28*(High_Block_2),0)/100 -> 0 | AH28: =IFERROR('Rates Table'!AH28*(High_Block_2),0)/100 -> 0 | AI28: =IFERROR('Rates Table'!AI28*(High_Block_2),0)/100 -> 0 | AJ28: =IFERROR('Rates Table'!AJ28*(High_Block_2),0)/100 -> 0 | AL28: 0 | AM28: =IFERROR('Rates Table'!AM28*(High_Block_2),0)/100 -> 0 | AN28: =IFERROR('Rates Table'!AN28*(High_Block_2),0)/100 -> 0 | AO28: =IFERROR('Rates Table'!AO28*(High_Block_2),0)/100 -> 0 | AP28: =IFERROR('Rates Table'!AP28*(High_Block_2),0)/100 -> 0 | AQ28: =IFERROR('Rates Table'!AQ28*(High_Block_2),0)/100 -> 0 | AR28: =IFERROR('Rates Table'!AR28*(High_Block_2),0)/100 -> 0 | AS28: =IFERROR('Rates Table'!AS28*(High_Block_2),0)/100 -> 0 | AT28: =IFERROR('Rates Table'!AT28*(High_Block_2),0)/100 -> 0 | AU28: =IFERROR('Rates Table'!AU28*(High_Block_2),0)/100 -> 0 | AV28: =IFERROR('Rates Table'!AV28*(High_Block_2),0)/100 -> 0 | AW28: =IFERROR('Rates Table'!AW28*(High_Block_2),0)/100 -> 0 | AX28: =IFERROR('Rates Table'!AX28*(High_Block_2),0)/100 -> 0 | AY28: =IFERROR('Rates Table'!AY28*(High_Block_2),0)/100 -> 0 | AZ28: =IFERROR('Rates Table'!AZ28*(High_Block_2),0)/100 -> 0 | BA28: =IFERROR('Rates Table'!BA28*(High_Block_2),0)/100 -> 0 | BB28: =IFERROR('Rates Table'!BB28*(High_Block_2),0)/100 -> 0 | BC28: =IFERROR('Rates Table'!BC28*(High_Block_2),0)/100 -> 0 | BD28: =IFERROR('Rates Table'!BD28*(High_Block_2),0)/100 -> 0 | BE28: =IFERROR('Rates Table'!BE28*(High_Block_2),0)/100 -> 0 | BF28: =IFERROR('Rates Table'!BF28*(High_Block_2),0)/100 -> 0 | BG28: =IFERROR('Rates Table'!BG28*(High_Block_2),0)/100 -> 0 | BH28: =IFERROR('Rates Table'!BH28*(High_Block_2),0)/100 -> 0 | BI28: =IFERROR('Rates Table'!BI28*(High_Block_2),0)/100 -> 0 | BJ28: =IFERROR('Rates Table'!BJ28*(High_Block_2),0)/100 -> 0 | BK28: =IFERROR('Rates Table'!BK28*(High_Block_2),0)/100 -> 0 | BL28: =IFERROR('Rates Table'!BL28*(High_Block_2),0)/100 -> 0 | BM28: =IFERROR('Rates Table'!BM28*(High_Block_2),0)/100 -> 0 | BN28: =IFERROR('Rates Table'!BN28*(High_Block_2),0)/100 -> 0 | BO28: =IFERROR('Rates Table'!BO28*(High_Block_2),0)/100 -> 0 | BP28: =IFERROR('Rates Table'!BP28*(High_Block_2),0)/100 -> 0 | BQ28: =IFERROR('Rates Table'!BQ28*(High_Block_2),0)/100 -> 0
C29: Energy Demand | D29: R/kVA | E29: 0 | F29: =IFERROR('Rates Table'!F29*High_Demand,0) -> 0 | G29: =IFERROR('Rates Table'!G29*High_Demand,0) -> 0 | H29: =IFERROR('Rates Table'!H29*High_Demand,0) -> 0 | I29: =IFERROR('Rates Table'!I29*High_Demand,0) -> 0 | J29: =IFERROR('Rates Table'!J29*High_Demand,0) -> 0 | K29: =IFERROR('Rates Table'!K29*High_Demand,0) -> 0 | L29: =IFERROR('Rates Table'!L29*High_Demand,0) -> 0 | M29: =IFERROR('Rates Table'!M29*High_Demand,0) -> 0 | N29: =IFERROR('Rates Table'!N29*High_Demand,0) -> 0 | O29: =IFERROR('Rates Table'!O29*High_Demand,0) -> 0 | P29: =IFERROR('Rates Table'!P29*High_Demand,0) -> 0 | Q29: =IFERROR('Rates Table'!Q29*High_Demand,0) -> 0 | R29: =IFERROR('Rates Table'!R29*High_Demand,0) -> 0 | S29: =IFERROR('Rates Table'!S29*High_Demand,0) -> 0 | T29: =IFERROR('Rates Table'!T29*High_Demand,0) -> 0 | U29: =IFERROR('Rates Table'!U29*High_Demand,0) -> 0 | V29: =IFERROR('Rates Table'!V29*High_Demand,0) -> 0 | W29: =IFERROR('Rates Table'!W29*High_Demand,0) -> 0 | X29: =IFERROR('Rates Table'!X29*High_Demand,0) -> 0 | Y29: =IFERROR('Rates Table'!Y29*High_Demand,0) -> 0 | Z29: =IFERROR('Rates Table'!Z29*High_Demand,0) -> 0 | AA29: =IFERROR('Rates Table'!AA29*High_Demand,0) -> 0 | AB29: =IFERROR('Rates Table'!AB29*High_Demand,0) -> 0 | AC29: =IFERROR('Rates Table'!AC29*High_Demand,0) -> 0 | AD29: =IFERROR('Rates Table'!AD29*High_Demand,0) -> 0 | AE29: =IFERROR('Rates Table'!AE29*High_Demand,0) -> 0 | AF29: =IFERROR('Rates Table'!AF29*High_Demand,0) -> 0 | AG29: =IFERROR('Rates Table'!AG29*High_Demand,0) -> 0 | AH29: =IFERROR('Rates Table'!AH29*High_Demand,0) -> 0 | AI29: =IFERROR('Rates Table'!AI29*High_Demand,0) -> 0 | AJ29: =IFERROR('Rates Table'!AJ29*High_Demand,0) -> 0 | AL29: 0 | AM29: =IFERROR('Rates Table'!AM29*High_Demand,0) -> 0 | AN29: =IFERROR('Rates Table'!AN29*High_Demand,0) -> 0 | AO29: =IFERROR('Rates Table'!AO29*High_Demand,0) -> 0 | AP29: =IFERROR('Rates Table'!AP29*High_Demand,0) -> 0 | AQ29: =IFERROR('Rates Table'!AQ29*High_Demand,0) -> 0 | AR29: =IFERROR('Rates Table'!AR29*High_Demand,0) -> 0 | AS29: =IFERROR('Rates Table'!AS29*High_Demand,0) -> 0 | AT29: =IFERROR('Rates Table'!AT29*High_Demand,0) -> 0 | AU29: =IFERROR('Rates Table'!AU29*High_Demand,0) -> 0 | AV29: =IFERROR('Rates Table'!AV29*High_Demand,0) -> 0 | AW29: =IFERROR('Rates Table'!AW29*High_Demand,0) -> 0 | AX29: =IFERROR('Rates Table'!AX29*High_Demand,0) -> 0 | AY29: =IFERROR('Rates Table'!AY29*High_Demand,0) -> 0 | AZ29: =IFERROR('Rates Table'!AZ29*High_Demand,0) -> 0 | BA29: =IFERROR('Rates Table'!BA29*High_Demand,0) -> 0 | BB29: =IFERROR('Rates Table'!BB29*High_Demand,0) -> 0 | BC29: =IFERROR('Rates Table'!BC29*High_Demand,0) -> 0 | BD29: =IFERROR('Rates Table'!BD29*High_Demand,0) -> 0 | BE29: =IFERROR('Rates Table'!BE29*High_Demand,0) -> 0 | BF29: =IFERROR('Rates Table'!BF29*High_Demand,0) -> 0 | BG29: =IFERROR('Rates Table'!BG29*High_Demand,0) -> 0 | BH29: =IFERROR('Rates Table'!BH29*High_Demand,0) -> 0 | BI29: =IFERROR('Rates Table'!BI29*High_Demand,0) -> 0 | BJ29: =IFERROR('Rates Table'!BJ29*High_Demand,0) -> 0 | BK29: =IFERROR('Rates Table'!BK29*High_Demand,0) -> 0 | BL29: =IFERROR('Rates Table'!BL29*High_Demand,0) -> 0 | BM29: =IFERROR('Rates Table'!BM29*High_Demand,0) -> 0 | BN29: =IFERROR('Rates Table'!BN29*High_Demand,0) -> 0 | BO29: =IFERROR('Rates Table'!BO29*High_Demand,0) -> 0 | BP29: =IFERROR('Rates Table'!BP29*High_Demand,0) -> 0 | BQ29: =IFERROR('Rates Table'!BQ29*High_Demand,0) -> 0
B31: Total energy charges | E31: =SUM(E22:E29) -> 0 | F31: =SUM(F22:F29) -> 0 | G31: =SUM(G22:G29) -> 0 | H31: 0 | I31: 0 | J31: 0 | K31: 0 | L31: 0 | M31: 0 | N31: 0 | O31: 0 | P31: 0 | Q31: 0 | R31: 0 | S31: 0 | T31: 0 | U31: 0 | V31: 0 | W31: 0 | X31: 0 | Y31: 0 | Z31: 0 | AA31: 0 | AB31: =SUM(AB22:AB29) -> 0 | AC31: 0 | AD31: 0 | AE31: 0 | AF31: 0 | AG31: =SUM(AG22:AG29) -> 0 | AH31: =SUM(AH22:AH29) -> 0 | AI31: 0 | AJ31: 0 | AL31: =SUM(AL22:AL29) -> 0 | AM31: =SUM(AM22:AM29) -> 0 | AN31: 0 | AO31: 0 | AP31: 0 | AQ31: 0 | AR31: 0 | AS31: 0 | AT31: 0 | AU31: 0 | AV31: 0 | AW31: 0 | AX31: 0 | AY31: 0 | AZ31: 0 | BA31: 0 | BB31: 0 | BC31: 0 | BD31: 0 | BE31: 0 | BF31: 0 | BG31: 0 | BH31: 0 | BI31: =SUM(BI22:BI29) -> 0 | BJ31: 0 | BK31: 0 | BL31: 0 | BM31: 0 | BN31: 0 | BO31: =SUM(BO22:BO29) -> 0 | BP31: 0 | BQ31: 0
B33: Other charges | D33: Units | E33: =E$8 -> 2023/2024 Rates | F33: =F$8 -> 2023/2024 Rates | G33: 2023/2024 Rates | H33: 2023/2024 Rates | I33: 2023/2024 Rates | J33: 2023/2024 Rates | K33: 2023/2024 Rates | L33: 2023/2024 Rates | M33: 2023/2024 Rates | N33: 2023/2024 Rates | O33: 2023/2024 Rates | P33: 2023/2024 Rates | Q33: 2023/2024 Rates | R33: 2023/2024 Rates | S33: 2023/2024 Rates | T33: 2023/2024 Rates | U33: 2023/2024 Rates | V33: 2023/2024 Rates | W33: 2023/2024 Rates | X33: 2023/2024 Rates | Y33: 2023/2024 Rates | Z33: 2023/2024 Rates | AA33: 2023/2024 Rates | AB33: 2023/2024 Rates | AC33: 2023/2024 Rates | AD33: 2023/2024 Rates | AE33: 2023/2024 Rates | AF33: 2023/2024 Rates | AG33: 2023/2024 Rates | AH33: 2023/2024 Rates | AI33: 2023/2024 Rates | AJ33: 2023/2024 Rates | AL33: =AL$8 -> 2024/2025 Rates | AM33: =AM$8 -> 2024/2025 Rates | AN33: 2024/2025 Rates | AO33: 2024/2025 Rates | AP33: 2024/2025 Rates | AQ33: 2024/2025 Rates | AR33: 2024/2025 Rates | AS33: 2024/2025 Rates | AT33: 2024/2025 Rates | AU33: 2024/2025 Rates | AV33: 2024/2025 Rates | AW33: 2024/2025 Rates | AX33: 2024/2025 Rates | AY33: 2024/2025 Rates | AZ33: 2024/2025 Rates | BA33: 2024/2025 Rates | BB33: 2024/2025 Rates | BC33: 2024/2025 Rates | BD33: 2024/2025 Rates | BE33: 2024/2025 Rates | BF33: 2024/2025 Rates | BG33: 2024/2025 Rates | BH33: 2024/2025 Rates | BI33: 2024/2025 Rates | BJ33: 2024/2025 Rates | BK33: 2024/2025 Rates | BL33: 2024/2025 Rates | BM33: 2024/2025 Rates | BN33: 2024/2025 Rates | BO33: 2024/2025 Rates | BP33: 2024/2025 Rates | BQ33: 2024/2025 Rates
C35: Ancillary service charge | D35: c/kWh | E35: =INDEX(F35:AJ35,0,Selected_Tariff_ID) -> 0 | F35: =IFERROR(High_Total_Energy*'Rates Table'!F48,0)/100 -> 0 | G35: =IFERROR(High_Total_Energy*'Rates Table'!G48,0)/100 -> 0 | H35: =IFERROR(High_Total_Energy*'Rates Table'!H48,0)/100 -> 0 | I35: =IFERROR(High_Total_Energy*'Rates Table'!I48,0)/100 -> 0 | J35: =IFERROR(High_Total_Energy*'Rates Table'!J48,0)/100 -> 0 | K35: =IFERROR(High_Total_Energy*'Rates Table'!K48,0)/100 -> 0 | L35: =IFERROR(High_Total_Energy*'Rates Table'!L48,0)/100 -> 0 | M35: =IFERROR(High_Total_Energy*'Rates Table'!M48,0)/100 -> 0 | N35: =IFERROR(High_Total_Energy*'Rates Table'!N48,0)/100 -> 0 | O35: =IFERROR(High_Total_Energy*'Rates Table'!O48,0)/100 -> 0 | P35: =IFERROR(High_Total_Energy*'Rates Table'!P48,0)/100 -> 0 | Q35: =IFERROR(High_Total_Energy*'Rates Table'!Q48,0)/100 -> 0 | R35: =IFERROR(High_Total_Energy*'Rates Table'!R48,0)/100 -> 0 | S35: =IFERROR(High_Total_Energy*'Rates Table'!S48,0)/100 -> 0 | T35: =IFERROR(High_Total_Energy*'Rates Table'!T48,0)/100 -> 0 | U35: =IFERROR(High_Total_Energy*'Rates Table'!U48,0)/100 -> 0 | V35: =IFERROR(High_Total_Energy*'Rates Table'!V48,0)/100 -> 0 | W35: =IFERROR(High_Total_Energy*'Rates Table'!W48,0)/100 -> 0 | X35: =IFERROR(High_Total_Energy*'Rates Table'!X48,0)/100 -> 0 | Y35: =IFERROR(High_Total_Energy*'Rates Table'!Y48,0)/100 -> 0 | Z35: =IFERROR(High_Total_Energy*'Rates Table'!Z48,0)/100 -> 0 | AA35: =IFERROR(High_Total_Energy*'Rates Table'!AA48,0)/100 -> 0 | AB35: =IFERROR(High_Total_Energy*'Rates Table'!AB48,0)/100 -> 0 | AC35: =IFERROR(High_Total_Energy*'Rates Table'!AC48,0)/100 -> 0 | AD35: =IFERROR(High_Total_Energy*'Rates Table'!AD48,0)/100 -> 0 | AE35: =IFERROR(High_Total_Energy*'Rates Table'!AE48,0)/100 -> 0 | AF35: =IFERROR(High_Total_Energy*'Rates Table'!AF48,0)/100 -> 0 | AG35: =IFERROR(High_Total_Energy*'Rates Table'!AG48,0)/100 -> 0 | AH35: =IFERROR(High_Total_Energy*'Rates Table'!AH48,0)/100 -> 0 | AI35: =IFERROR(High_Total_Energy*'Rates Table'!AI48,0)/100 -> 0 | AJ35: =IFERROR(High_Total_Energy*'Rates Table'!AJ48,0)/100 -> 0 | AL35: =INDEX(AM35:BQ35,0,Selected_Tariff_ID) -> 0 | AM35: =IFERROR(High_Total_Energy*'Rates Table'!AM48,0)/100 -> 0 | AN35: =IFERROR(High_Total_Energy*'Rates Table'!AN48,0)/100 -> 0 | AO35: =IFERROR(High_Total_Energy*'Rates Table'!AO48,0)/100 -> 0 | AP35: =IFERROR(High_Total_Energy*'Rates Table'!AP48,0)/100 -> 0 | AQ35: =IFERROR(High_Total_Energy*'Rates Table'!AQ48,0)/100 -> 0 | AR35: =IFERROR(High_Total_Energy*'Rates Table'!AR48,0)/100 -> 0 | AS35: =IFERROR(High_Total_Energy*'Rates Table'!AS48,0)/100 -> 0 | AT35: =IFERROR(High_Total_Energy*'Rates Table'!AT48,0)/100 -> 0 | AU35: =IFERROR(High_Total_Energy*'Rates Table'!AU48,0)/100 -> 0 | AV35: =IFERROR(High_Total_Energy*'Rates Table'!AV48,0)/100 -> 0 | AW35: =IFERROR(High_Total_Energy*'Rates Table'!AW48,0)/100 -> 0 | AX35: =IFERROR(High_Total_Energy*'Rates Table'!AX48,0)/100 -> 0 | AY35: =IFERROR(High_Total_Energy*'Rates Table'!AY48,0)/100 -> 0 | AZ35: =IFERROR(High_Total_Energy*'Rates Table'!AZ48,0)/100 -> 0 | BA35: =IFERROR(High_Total_Energy*'Rates Table'!BA48,0)/100 -> 0 | BB35: =IFERROR(High_Total_Energy*'Rates Table'!BB48,0)/100 -> 0 | BC35: =IFERROR(High_Total_Energy*'Rates Table'!BC48,0)/100 -> 0 | BD35: =IFERROR(High_Total_Energy*'Rates Table'!BD48,0)/100 -> 0 | BE35: =IFERROR(High_Total_Energy*'Rates Table'!BE48,0)/100 -> 0 | BF35: =IFERROR(High_Total_Energy*'Rates Table'!BF48,0)/100 -> 0 | BG35: =IFERROR(High_Total_Energy*'Rates Table'!BG48,0)/100 -> 0 | BH35: =IFERROR(High_Total_Energy*'Rates Table'!BH48,0)/100 -> 0 | BI35: =IFERROR(High_Total_Energy*'Rates Table'!BI48,0)/100 -> 0 | BJ35: =IFERROR(High_Total_Energy*'Rates Table'!BJ48,0)/100 -> 0 | BK35: =IFERROR(High_Total_Energy*'Rates Table'!BK48,0)/100 -> 0 | BL35: =IFERROR(High_Total_Energy*'Rates Table'!BL48,0)/100 -> 0 | BM35: =IFERROR(High_Total_Energy*'Rates Table'!BM48,0)/100 -> 0 | BN35: =IFERROR(High_Total_Energy*'Rates Table'!BN48,0)/100 -> 0 | BO35: =IFERROR(High_Total_Energy*'Rates Table'!BO48,0)/100 -> 0 | BP35: =IFERROR(High_Total_Energy*'Rates Table'!BP48,0)/100 -> 0 | BQ35: =IFERROR(High_Total_Energy*'Rates Table'!BQ48,0)/100 -> 0
C36: Reactive energy charge | D36: c/kVArh | E36: 0 | F36: =IFERROR(High_Excess_RE*'Rates Table'!F49,0)/100 -> 0 | G36: =IFERROR(High_Excess_RE*'Rates Table'!G49,0)/100 -> 0 | H36: =IFERROR(High_Excess_RE*'Rates Table'!H49,0)/100 -> 0 | I36: =IFERROR(High_Excess_RE*'Rates Table'!I49,0)/100 -> 0 | J36: =IFERROR(High_Excess_RE*'Rates Table'!J49,0)/100 -> 0 | K36: =IFERROR(High_Excess_RE*'Rates Table'!K49,0)/100 -> 0 | L36: =IFERROR(High_Excess_RE*'Rates Table'!L49,0)/100 -> 0 | M36: =IFERROR(High_Excess_RE*'Rates Table'!M49,0)/100 -> 0 | N36: =IFERROR(High_Excess_RE*'Rates Table'!N49,0)/100 -> 0 | O36: =IFERROR(High_Excess_RE*'Rates Table'!O49,0)/100 -> 0 | P36: =IFERROR(High_Excess_RE*'Rates Table'!P49,0)/100 -> 0 | Q36: =IFERROR(High_Excess_RE*'Rates Table'!Q49,0)/100 -> 0 | R36: =IFERROR(High_Excess_RE*'Rates Table'!R49,0)/100 -> 0 | S36: =IFERROR(High_Excess_RE*'Rates Table'!S49,0)/100 -> 0 | T36: =IFERROR(High_Excess_RE*'Rates Table'!T49,0)/100 -> 0 | U36: =IFERROR(High_Excess_RE*'Rates Table'!U49,0)/100 -> 0 | V36: =IFERROR(High_Excess_RE*'Rates Table'!V49,0)/100 -> 0 | W36: =IFERROR(High_Excess_RE*'Rates Table'!W49,0)/100 -> 0 | X36: =IFERROR(High_Excess_RE*'Rates Table'!X49,0)/100 -> 0 | Y36: =IFERROR(High_Excess_RE*'Rates Table'!Y49,0)/100 -> 0 | Z36: =IFERROR(High_Excess_RE*'Rates Table'!Z49,0)/100 -> 0 | AA36: =IFERROR(High_Excess_RE*'Rates Table'!AA49,0)/100 -> 0 | AB36: =IFERROR(High_Excess_RE*'Rates Table'!AB49,0)/100 -> 0 | AC36: =IFERROR(High_Excess_RE*'Rates Table'!AC49,0)/100 -> 0 | AD36: =IFERROR(High_Excess_RE*'Rates Table'!AD49,0)/100 -> 0 | AE36: =IFERROR(High_Excess_RE*'Rates Table'!AE49,0)/100 -> 0 | AF36: =IFERROR(High_Excess_RE*'Rates Table'!AF49,0)/100 -> 0 | AG36: =IFERROR(High_Excess_RE*'Rates Table'!AG49,0)/100 -> 0 | AH36: =IFERROR(High_Excess_RE*'Rates Table'!AH49,0)/100 -> 0 | AI36: =IFERROR(High_Excess_RE*'Rates Table'!AI49,0)/100 -> 0 | AJ36: =IFERROR(High_Excess_RE*'Rates Table'!AJ49,0)/100 -> 0 | AL36: 0 | AM36: =IFERROR(High_Excess_RE*'Rates Table'!AM49,0)/100 -> 0 | AN36: =IFERROR(High_Excess_RE*'Rates Table'!AN49,0)/100 -> 0 | AO36: =IFERROR(High_Excess_RE*'Rates Table'!AO49,0)/100 -> 0 | AP36: =IFERROR(High_Excess_RE*'Rates Table'!AP49,0)/100 -> 0 | AQ36: =IFERROR(High_Excess_RE*'Rates Table'!AQ49,0)/100 -> 0 | AR36: =IFERROR(High_Excess_RE*'Rates Table'!AR49,0)/100 -> 0 | AS36: =IFERROR(High_Excess_RE*'Rates Table'!AS49,0)/100 -> 0 | AT36: =IFERROR(High_Excess_RE*'Rates Table'!AT49,0)/100 -> 0 | AU36: =IFERROR(High_Excess_RE*'Rates Table'!AU49,0)/100 -> 0 | AV36: =IFERROR(High_Excess_RE*'Rates Table'!AV49,0)/100 -> 0 | AW36: =IFERROR(High_Excess_RE*'Rates Table'!AW49,0)/100 -> 0 | AX36: =IFERROR(High_Excess_RE*'Rates Table'!AX49,0)/100 -> 0 | AY36: =IFERROR(High_Excess_RE*'Rates Table'!AY49,0)/100 -> 0 | AZ36: =IFERROR(High_Excess_RE*'Rates Table'!AZ49,0)/100 -> 0 | BA36: =IFERROR(High_Excess_RE*'Rates Table'!BA49,0)/100 -> 0 | BB36: =IFERROR(High_Excess_RE*'Rates Table'!BB49,0)/100 -> 0 | BC36: =IFERROR(High_Excess_RE*'Rates Table'!BC49,0)/100 -> 0 | BD36: =IFERROR(High_Excess_RE*'Rates Table'!BD49,0)/100 -> 0 | BE36: =IFERROR(High_Excess_RE*'Rates Table'!BE49,0)/100 -> 0 | BF36: =IFERROR(High_Excess_RE*'Rates Table'!BF49,0)/100 -> 0 | BG36: =IFERROR(High_Excess_RE*'Rates Table'!BG49,0)/100 -> 0 | BH36: =IFERROR(High_Excess_RE*'Rates Table'!BH49,0)/100 -> 0 | BI36: =IFERROR(High_Excess_RE*'Rates Table'!BI49,0)/100 -> 0 | BJ36: =IFERROR(High_Excess_RE*'Rates Table'!BJ49,0)/100 -> 0 | BK36: =IFERROR(High_Excess_RE*'Rates Table'!BK49,0)/100 -> 0 | BL36: =IFERROR(High_Excess_RE*'Rates Table'!BL49,0)/100 -> 0 | BM36: =IFERROR(High_Excess_RE*'Rates Table'!BM49,0)/100 -> 0 | BN36: =IFERROR(High_Excess_RE*'Rates Table'!BN49,0)/100 -> 0 | BO36: =IFERROR(High_Excess_RE*'Rates Table'!BO49,0)/100 -> 0 | BP36: =IFERROR(High_Excess_RE*'Rates Table'!BP49,0)/100 -> 0 | BQ36: =IFERROR(High_Excess_RE*'Rates Table'!BQ49,0)/100 -> 0
C37: Electrification and rural subsidy | D37: c/kWh | E37: 0 | F37: =IFERROR(High_Total_Energy*'Rates Table'!F50,0)/100 -> 0 | G37: =IFERROR(High_Total_Energy*'Rates Table'!G50,0)/100 -> 0 | H37: =IFERROR(High_Total_Energy*'Rates Table'!H50,0)/100 -> 0 | I37: =IFERROR(High_Total_Energy*'Rates Table'!I50,0)/100 -> 0 | J37: =IFERROR(High_Total_Energy*'Rates Table'!J50,0)/100 -> 0 | K37: =IFERROR(High_Total_Energy*'Rates Table'!K50,0)/100 -> 0 | L37: =IFERROR(High_Total_Energy*'Rates Table'!L50,0)/100 -> 0 | M37: =IFERROR(High_Total_Energy*'Rates Table'!M50,0)/100 -> 0 | N37: =IFERROR(High_Total_Energy*'Rates Table'!N50,0)/100 -> 0 | O37: =IFERROR(High_Total_Energy*'Rates Table'!O50,0)/100 -> 0 | P37: =IFERROR(High_Total_Energy*'Rates Table'!P50,0)/100 -> 0 | Q37: =IFERROR(High_Total_Energy*'Rates Table'!Q50,0)/100 -> 0 | R37: =IFERROR(High_Total_Energy*'Rates Table'!R50,0)/100 -> 0 | S37: =IFERROR(High_Total_Energy*'Rates Table'!S50,0)/100 -> 0 | T37: =IFERROR(High_Total_Energy*'Rates Table'!T50,0)/100 -> 0 | U37: =IFERROR(High_Total_Energy*'Rates Table'!U50,0)/100 -> 0 | V37: =IFERROR(High_Total_Energy*'Rates Table'!V50,0)/100 -> 0 | W37: =IFERROR(High_Total_Energy*'Rates Table'!W50,0)/100 -> 0 | X37: =IFERROR(High_Total_Energy*'Rates Table'!X50,0)/100 -> 0 | Y37: =IFERROR(High_Total_Energy*'Rates Table'!Y50,0)/100 -> 0 | Z37: =IFERROR(High_Total_Energy*'Rates Table'!Z50,0)/100 -> 0 | AA37: =IFERROR(High_Total_Energy*'Rates Table'!AA50,0)/100 -> 0 | AB37: =IFERROR(High_Total_Energy*'Rates Table'!AB50,0)/100 -> 0 | AC37: =IFERROR(High_Total_Energy*'Rates Table'!AC50,0)/100 -> 0 | AD37: =IFERROR(High_Total_Energy*'Rates Table'!AD50,0)/100 -> 0 | AE37: =IFERROR(High_Total_Energy*'Rates Table'!AE50,0)/100 -> 0 | AF37: =IFERROR(High_Total_Energy*'Rates Table'!AF50,0)/100 -> 0 | AG37: =IFERROR(High_Total_Energy*'Rates Table'!AG50,0)/100 -> 0 | AH37: =IFERROR(High_Total_Energy*'Rates Table'!AH50,0)/100 -> 0 | AI37: =IFERROR(High_Total_Energy*'Rates Table'!AI50,0)/100 -> 0 | AJ37: =IFERROR(High_Total_Energy*'Rates Table'!AJ50,0)/100 -> 0 | AL37: 0 | AM37: =IFERROR(High_Total_Energy*'Rates Table'!AM50,0)/100 -> 0 | AN37: =IFERROR(High_Total_Energy*'Rates Table'!AN50,0)/100 -> 0 | AO37: =IFERROR(High_Total_Energy*'Rates Table'!AO50,0)/100 -> 0 | AP37: =IFERROR(High_Total_Energy*'Rates Table'!AP50,0)/100 -> 0 | AQ37: =IFERROR(High_Total_Energy*'Rates Table'!AQ50,0)/100 -> 0 | AR37: =IFERROR(High_Total_Energy*'Rates Table'!AR50,0)/100 -> 0 | AS37: =IFERROR(High_Total_Energy*'Rates Table'!AS50,0)/100 -> 0 | AT37: =IFERROR(High_Total_Energy*'Rates Table'!AT50,0)/100 -> 0 | AU37: =IFERROR(High_Total_Energy*'Rates Table'!AU50,0)/100 -> 0 | AV37: =IFERROR(High_Total_Energy*'Rates Table'!AV50,0)/100 -> 0 | AW37: =IFERROR(High_Total_Energy*'Rates Table'!AW50,0)/100 -> 0 | AX37: =IFERROR(High_Total_Energy*'Rates Table'!AX50,0)/100 -> 0 | AY37: =IFERROR(High_Total_Energy*'Rates Table'!AY50,0)/100 -> 0 | AZ37: =IFERROR(High_Total_Energy*'Rates Table'!AZ50,0)/100 -> 0 | BA37: =IFERROR(High_Total_Energy*'Rates Table'!BA50,0)/100 -> 0 | BB37: =IFERROR(High_Total_Energy*'Rates Table'!BB50,0)/100 -> 0 | BC37: =IFERROR(High_Total_Energy*'Rates Table'!BC50,0)/100 -> 0 | BD37: =IFERROR(High_Total_Energy*'Rates Table'!BD50,0)/100 -> 0 | BE37: =IFERROR(High_Total_Energy*'Rates Table'!BE50,0)/100 -> 0 | BF37: =IFERROR(High_Total_Energy*'Rates Table'!BF50,0)/100 -> 0 | BG37: =IFERROR(High_Total_Energy*'Rates Table'!BG50,0)/100 -> 0 | BH37: =IFERROR(High_Total_Energy*'Rates Table'!BH50,0)/100 -> 0 | BI37: =IFERROR(High_Total_Energy*'Rates Table'!BI50,0)/100 -> 0 | BJ37: =IFERROR(High_Total_Energy*'Rates Table'!BJ50,0)/100 -> 0 | BK37: =IFERROR(High_Total_Energy*'Rates Table'!BK50,0)/100 -> 0 | BL37: =IFERROR(High_Total_Energy*'Rates Table'!BL50,0)/100 -> 0 | BM37: =IFERROR(High_Total_Energy*'Rates Table'!BM50,0)/100 -> 0 | BN37: =IFERROR(High_Total_Energy*'Rates Table'!BN50,0)/100 -> 0 | BO37: =IFERROR(High_Total_Energy*'Rates Table'!BO50,0)/100 -> 0 | BP37: =IFERROR(High_Total_Energy*'Rates Table'!BP50,0)/100 -> 0 | BQ37: =IFERROR(High_Total_Energy*'Rates Table'!BQ50,0)/100 -> 0
C38: Affordability subsidy | D38: c/kWh | E38: 0 | F38: =IFERROR(High_Total_Energy*'Rates Table'!F51,0)/100 -> 0 | G38: =IFERROR(High_Total_Energy*'Rates Table'!G51,0)/100 -> 0 | H38: =IFERROR(High_Total_Energy*'Rates Table'!H51,0)/100 -> 0 | I38: =IFERROR(High_Total_Energy*'Rates Table'!I51,0)/100 -> 0 | J38: =IFERROR(High_Total_Energy*'Rates Table'!J51,0)/100 -> 0 | K38: =IFERROR(High_Total_Energy*'Rates Table'!K51,0)/100 -> 0 | L38: =IFERROR(High_Total_Energy*'Rates Table'!L51,0)/100 -> 0 | M38: =IFERROR(High_Total_Energy*'Rates Table'!M51,0)/100 -> 0 | N38: =IFERROR(High_Total_Energy*'Rates Table'!N51,0)/100 -> 0 | O38: =IFERROR(High_Total_Energy*'Rates Table'!O51,0)/100 -> 0 | P38: =IFERROR(High_Total_Energy*'Rates Table'!P51,0)/100 -> 0 | Q38: =IFERROR(High_Total_Energy*'Rates Table'!Q51,0)/100 -> 0 | R38: =IFERROR(High_Total_Energy*'Rates Table'!R51,0)/100 -> 0 | S38: =IFERROR(High_Total_Energy*'Rates Table'!S51,0)/100 -> 0 | T38: =IFERROR(High_Total_Energy*'Rates Table'!T51,0)/100 -> 0 | U38: =IFERROR(High_Total_Energy*'Rates Table'!U51,0)/100 -> 0 | V38: =IFERROR(High_Total_Energy*'Rates Table'!V51,0)/100 -> 0 | W38: =IFERROR(High_Total_Energy*'Rates Table'!W51,0)/100 -> 0 | X38: =IFERROR(High_Total_Energy*'Rates Table'!X51,0)/100 -> 0 | Y38: =IFERROR(High_Total_Energy*'Rates Table'!Y51,0)/100 -> 0 | Z38: =IFERROR(High_Total_Energy*'Rates Table'!Z51,0)/100 -> 0 | AA38: =IFERROR(High_Total_Energy*'Rates Table'!AA51,0)/100 -> 0 | AB38: =IFERROR(High_Total_Energy*'Rates Table'!AB51,0)/100 -> 0 | AC38: =IFERROR(High_Total_Energy*'Rates Table'!AC51,0)/100 -> 0 | AD38: =IFERROR(High_Total_Energy*'Rates Table'!AD51,0)/100 -> 0 | AE38: =IFERROR(High_Total_Energy*'Rates Table'!AE51,0)/100 -> 0 | AF38: =IFERROR(High_Total_Energy*'Rates Table'!AF51,0)/100 -> 0 | AG38: =IFERROR(High_Total_Energy*'Rates Table'!AG51,0)/100 -> 0 | AH38: =IFERROR(High_Total_Energy*'Rates Table'!AH51,0)/100 -> 0 | AI38: =IFERROR(High_Total_Energy*'Rates Table'!AI51,0)/100 -> 0 | AJ38: =IFERROR(High_Total_Energy*'Rates Table'!AJ51,0)/100 -> 0 | AL38: 0 | AM38: =IFERROR(High_Total_Energy*'Rates Table'!AM51,0)/100 -> 0 | AN38: =IFERROR(High_Total_Energy*'Rates Table'!AN51,0)/100 -> 0 | AO38: =IFERROR(High_Total_Energy*'Rates Table'!AO51,0)/100 -> 0 | AP38: =IFERROR(High_Total_Energy*'Rates Table'!AP51,0)/100 -> 0 | AQ38: =IFERROR(High_Total_Energy*'Rates Table'!AQ51,0)/100 -> 0 | AR38: =IFERROR(High_Total_Energy*'Rates Table'!AR51,0)/100 -> 0 | AS38: =IFERROR(High_Total_Energy*'Rates Table'!AS51,0)/100 -> 0 | AT38: =IFERROR(High_Total_Energy*'Rates Table'!AT51,0)/100 -> 0 | AU38: =IFERROR(High_Total_Energy*'Rates Table'!AU51,0)/100 -> 0 | AV38: =IFERROR(High_Total_Energy*'Rates Table'!AV51,0)/100 -> 0 | AW38: =IFERROR(High_Total_Energy*'Rates Table'!AW51,0)/100 -> 0 | AX38: =IFERROR(High_Total_Energy*'Rates Table'!AX51,0)/100 -> 0 | AY38: =IFERROR(High_Total_Energy*'Rates Table'!AY51,0)/100 -> 0 | AZ38: =IFERROR(High_Total_Energy*'Rates Table'!AZ51,0)/100 -> 0 | BA38: =IFERROR(High_Total_Energy*'Rates Table'!BA51,0)/100 -> 0 | BB38: =IFERROR(High_Total_Energy*'Rates Table'!BB51,0)/100 -> 0 | BC38: =IFERROR(High_Total_Energy*'Rates Table'!BC51,0)/100 -> 0 | BD38: =IFERROR(High_Total_Energy*'Rates Table'!BD51,0)/100 -> 0 | BE38: =IFERROR(High_Total_Energy*'Rates Table'!BE51,0)/100 -> 0 | BF38: =IFERROR(High_Total_Energy*'Rates Table'!BF51,0)/100 -> 0 | BG38: =IFERROR(High_Total_Energy*'Rates Table'!BG51,0)/100 -> 0 | BH38: =IFERROR(High_Total_Energy*'Rates Table'!BH51,0)/100 -> 0 | BI38: =IFERROR(High_Total_Energy*'Rates Table'!BI51,0)/100 -> 0 | BJ38: =IFERROR(High_Total_Energy*'Rates Table'!BJ51,0)/100 -> 0 | BK38: =IFERROR(High_Total_Energy*'Rates Table'!BK51,0)/100 -> 0 | BL38: =IFERROR(High_Total_Energy*'Rates Table'!BL51,0)/100 -> 0 | BM38: =IFERROR(High_Total_Energy*'Rates Table'!BM51,0)/100 -> 0 | BN38: =IFERROR(High_Total_Energy*'Rates Table'!BN51,0)/100 -> 0 | BO38: =IFERROR(High_Total_Energy*'Rates Table'!BO51,0)/100 -> 0 | BP38: =IFERROR(High_Total_Energy*'Rates Table'!BP51,0)/100 -> 0 | BQ38: =IFERROR(High_Total_Energy*'Rates Table'!BQ51,0)/100 -> 0
C39: Administration charge | D39: R/day | E39: 0 | F39: =IFERROR('Rates Table'!F52*PODs*High_Days,0) -> 0 | G39: =IFERROR('Rates Table'!G52*PODs*High_Days,0) -> 0 | H39: =IFERROR('Rates Table'!H52*PODs*High_Days,0) -> 0 | I39: =IFERROR('Rates Table'!I52*PODs*High_Days,0) -> 0 | J39: =IFERROR('Rates Table'!J52*PODs*High_Days,0) -> 0 | K39: =IFERROR('Rates Table'!K52*PODs*High_Days,0) -> 0 | L39: =IFERROR('Rates Table'!L52*PODs*High_Days,0) -> 0 | M39: =IFERROR('Rates Table'!M52*PODs*High_Days,0) -> 0 | N39: =IFERROR('Rates Table'!N52*PODs*High_Days,0) -> 0 | O39: =IFERROR('Rates Table'!O52*PODs*High_Days,0) -> 0 | P39: =IFERROR('Rates Table'!P52*PODs*High_Days,0) -> 0 | Q39: =IFERROR('Rates Table'!Q52*PODs*High_Days,0) -> 0 | R39: =IFERROR('Rates Table'!R52*PODs*High_Days,0) -> 0 | S39: =IFERROR('Rates Table'!S52*PODs*High_Days,0) -> 0 | T39: =IFERROR('Rates Table'!T52*PODs*High_Days,0) -> 0 | U39: =IFERROR('Rates Table'!U52*PODs*High_Days,0) -> 0 | V39: =IFERROR('Rates Table'!V52*PODs*High_Days,0) -> 509.68 | W39: =IFERROR('Rates Table'!W52*PODs*High_Days,0) -> 509.68 | X39: =IFERROR('Rates Table'!X52*PODs*High_Days,0) -> 509.68 | Y39: =IFERROR('Rates Table'!Y52*PODs*High_Days,0) -> 833.52 | Z39: =IFERROR('Rates Table'!Z52*PODs*High_Days,0) -> 509.68 | AA39: =IFERROR('Rates Table'!AA52*PODs*High_Days,0) -> 833.52 | AB39: =IFERROR('Rates Table'!AB52*PODs*High_Days,0) -> 0 | AC39: =IFERROR('Rates Table'!AC52*PODs*High_Days,0) -> 0 | AD39: =IFERROR('Rates Table'!AD52*PODs*High_Days,0) -> 0 | AE39: =IFERROR('Rates Table'!AE52*PODs*High_Days,0) -> 0 | AF39: =IFERROR('Rates Table'!AF52*PODs*High_Days,0) -> 0 | AG39: =IFERROR('Rates Table'!AG52*PODs*High_Days,0) -> 0 | AH39: =IFERROR('Rates Table'!AH52*PODs*High_Days,0) -> 0 | AI39: =IFERROR('Rates Table'!AI52*PODs*High_Days,0) -> 0 | AJ39: =IFERROR('Rates Table'!AJ52*PODs*High_Days,0) -> 0 | AL39: 0 | AM39: =IFERROR('Rates Table'!AM52*PODs*High_Days,0) -> 0 | AN39: =IFERROR('Rates Table'!AN52*PODs*High_Days,0) -> 0 | AO39: =IFERROR('Rates Table'!AO52*PODs*High_Days,0) -> 0 | AP39: =IFERROR('Rates Table'!AP52*PODs*High_Days,0) -> 0 | AQ39: =IFERROR('Rates Table'!AQ52*PODs*High_Days,0) -> 0 | AR39: =IFERROR('Rates Table'!AR52*PODs*High_Days,0) -> 0 | AS39: =IFERROR('Rates Table'!AS52*PODs*High_Days,0) -> 0 | AT39: =IFERROR('Rates Table'!AT52*PODs*High_Days,0) -> 0 | AU39: =IFERROR('Rates Table'!AU52*PODs*High_Days,0) -> 0 | AV39: =IFERROR('Rates Table'!AV52*PODs*High_Days,0) -> 0 | AW39: =IFERROR('Rates Table'!AW52*PODs*High_Days,0) -> 0 | AX39: =IFERROR('Rates Table'!AX52*PODs*High_Days,0) -> 0 | AY39: =IFERROR('Rates Table'!AY52*PODs*High_Days,0) -> 0 | AZ39: =IFERROR('Rates Table'!AZ52*PODs*High_Days,0) -> 0 | BA39: =IFERROR('Rates Table'!BA52*PODs*High_Days,0) -> 0 | BB39: =IFERROR('Rates Table'!BB52*PODs*High_Days,0) -> 0 | BC39: =IFERROR('Rates Table'!BC52*PODs*High_Days,0) -> 575 | BD39: =IFERROR('Rates Table'!BD52*PODs*High_Days,0) -> 575 | BE39: =IFERROR('Rates Table'!BE52*PODs*High_Days,0) -> 575 | BF39: =IFERROR('Rates Table'!BF52*PODs*High_Days,0) -> 939.32 | BG39: =IFERROR('Rates Table'!BG52*PODs*High_Days,0) -> 575 | BH39: =IFERROR('Rates Table'!BH52*PODs*High_Days,0) -> 939.32 | BI39: =IFERROR('Rates Table'!BI52*PODs*High_Days,0) -> 0 | BJ39: =IFERROR('Rates Table'!BJ52*PODs*High_Days,0) -> 0 | BK39: =IFERROR('Rates Table'!BK52*PODs*High_Days,0) -> 0 | BL39: =IFERROR('Rates Table'!BL52*PODs*High_Days,0) -> 0 | BM39: =IFERROR('Rates Table'!BM52*PODs*High_Days,0) -> 0 | BN39: =IFERROR('Rates Table'!BN52*PODs*High_Days,0) -> 0 | BO39: =IFERROR('Rates Table'!BO52*PODs*High_Days,0) -> 0 | BP39: =IFERROR('Rates Table'!BP52*PODs*High_Days,0) -> 0 | BQ39: =IFERROR('Rates Table'!BQ52*PODs*High_Days,0) -> 0
C40: Service charge | D40: =IF(Table_1=1,"R/day","R/day") -> R/day | E40: 0 | F40: =IFERROR(IF(F$52=1,'Rates Table'!F53*PODs*High_Days,'Rates Table'!F53*PODs*High_Days),0) -> 2995.52 | G40: =IFERROR(IF(G$52=1,'Rates Table'!G53*PODs*High_Days,'Rates Table'!G53*PODs*High_Days),0) -> 2995.52 | H40: =IFERROR(IF(H$52=1,'Rates Table'!H53*PODs*High_Days,'Rates Table'!H53*PODs*High_Days),0) -> 2995.52 | I40: =IFERROR(IF(I$52=1,'Rates Table'!I53*PODs*High_Days,'Rates Table'!I53*PODs*High_Days),0) -> 0 | J40: =IFERROR(IF(J$52=1,'Rates Table'!J53*PODs*High_Days,'Rates Table'!J53*PODs*High_Days),0) -> 0 | K40: =IFERROR(IF(K$52=1,'Rates Table'!K53*PODs*High_Days,'Rates Table'!K53*PODs*High_Days),0) -> 0 | L40: =IFERROR(IF(L$52=1,'Rates Table'!L53*PODs*High_Days,'Rates Table'!L53*PODs*High_Days),0) -> 0 | M40: =IFERROR(IF(M$52=1,'Rates Table'!M53*PODs*High_Days,'Rates Table'!M53*PODs*High_Days),0) -> 0 | N40: =IFERROR(IF(N$52=1,'Rates Table'!N53*PODs*High_Days,'Rates Table'!N53*PODs*High_Days),0) -> 0 | O40: =IFERROR(IF(O$52=1,'Rates Table'!O53*PODs*High_Days,'Rates Table'!O53*PODs*High_Days),0) -> 0 | P40: =IFERROR(IF(P$52=1,'Rates Table'!P53*PODs*High_Days,'Rates Table'!P53*PODs*High_Days),0) -> 0 | Q40: =IFERROR(IF(Q$52=1,'Rates Table'!Q53*PODs*High_Days,'Rates Table'!Q53*PODs*High_Days),0) -> 3773.84 | R40: =IFERROR(IF(R$52=1,'Rates Table'!R53*PODs*High_Days,'Rates Table'!R53*PODs*High_Days),0) -> 3773.84 | S40: =IFERROR(IF(S$52=1,'Rates Table'!S53*PODs*High_Days,'Rates Table'!S53*PODs*High_Days),0) -> 3773.84 | T40: =IFERROR(IF(T$52=1,'Rates Table'!T53*PODs*High_Days,'Rates Table'!T53*PODs*High_Days),0) -> 0 | U40: =IFERROR(IF(U$52=1,'Rates Table'!U53*PODs*High_Days,'Rates Table'!U53*PODs*High_Days),0) -> 8093.24 | V40: =IFERROR(IF(V$52=1,'Rates Table'!V53*PODs*High_Days,'Rates Table'!V53*PODs*High_Days),0) -> 2319.32 | W40: =IFERROR(IF(W$52=1,'Rates Table'!W53*PODs*High_Days,'Rates Table'!W53*PODs*High_Days),0) -> 2319.32 | X40: =IFERROR(IF(X$52=1,'Rates Table'!X53*PODs*High_Days,'Rates Table'!X53*PODs*High_Days),0) -> 2319.32 | Y40: =IFERROR(IF(Y$52=1,'Rates Table'!Y53*PODs*High_Days,'Rates Table'!Y53*PODs*High_Days),0) -> 2937.56 | Z40: =IFERROR(IF(Z$52=1,'Rates Table'!Z53*PODs*High_Days,'Rates Table'!Z53*PODs*High_Days),0) -> 2319.32 | AA40: =IFERROR(IF(AA$52=1,'Rates Table'!AA53*PODs*High_Days,'Rates Table'!AA53*PODs*High_Days),0) -> 2937.56 | AB40: =IFERROR(IF(AB$52=1,'Rates Table'!AB53*PODs*High_Days,'Rates Table'!AB53*PODs*High_Days),0) -> 0 | AC40: =IFERROR(IF(AC$52=1,'Rates Table'!AC53*PODs*High_Days,'Rates Table'!AC53*PODs*High_Days),0) -> 0 | AD40: =IFERROR(IF(AD$52=1,'Rates Table'!AD53*PODs*High_Days,'Rates Table'!AD53*PODs*High_Days),0) -> 0 | AE40: =IFERROR(IF(AE$52=1,'Rates Table'!AE53*PODs*High_Days,'Rates Table'!AE53*PODs*High_Days),0) -> 0 | AF40: =IFERROR(IF(AF$52=1,'Rates Table'!AF53*PODs*High_Days,'Rates Table'!AF53*PODs*High_Days),0) -> 894.24 | AG40: =IFERROR(IF(AG$52=1,'Rates Table'!AG53*PODs*High_Days,'Rates Table'!AG53*PODs*High_Days),0) -> 0 | AH40: =IFERROR(IF(AH$52=1,'Rates Table'!AH53*PODs*High_Days,'Rates Table'!AH53*PODs*High_Days),0) -> 0 | AI40: =IFERROR(IF(AI$52=1,'Rates Table'!AI53*PODs*High_Days,'Rates Table'!AI53*PODs*High_Days),0) -> 0 | AJ40: =IFERROR(IF(AJ$52=1,'Rates Table'!AJ53*PODs*High_Days,'Rates Table'!AJ53*PODs*High_Days),0) -> 0 | AL40: 0 | AM40: =IFERROR(IF(AM$52=1,'Rates Table'!AM53*PODs*High_Days,'Rates Table'!AM53*PODs*High_Days),0) -> 3377.32 | AN40: =IFERROR(IF(AN$52=1,'Rates Table'!AN53*PODs*High_Days,'Rates Table'!AN53*PODs*High_Days),0) -> 3377.32 | AO40: =IFERROR(IF(AO$52=1,'Rates Table'!AO53*PODs*High_Days,'Rates Table'!AO53*PODs*High_Days),0) -> 3377.32 | AP40: =IFERROR(IF(AP$52=1,'Rates Table'!AP53*PODs*High_Days,'Rates Table'!AP53*PODs*High_Days),0) -> 0 | AQ40: =IFERROR(IF(AQ$52=1,'Rates Table'!AQ53*PODs*High_Days,'Rates Table'!AQ53*PODs*High_Days),0) -> 0 | AR40: =IFERROR(IF(AR$52=1,'Rates Table'!AR53*PODs*High_Days,'Rates Table'!AR53*PODs*High_Days),0) -> 0 | AS40: =IFERROR(IF(AS$52=1,'Rates Table'!AS53*PODs*High_Days,'Rates Table'!AS53*PODs*High_Days),0) -> 0 | AT40: =IFERROR(IF(AT$52=1,'Rates Table'!AT53*PODs*High_Days,'Rates Table'!AT53*PODs*High_Days),0) -> 0 | AU40: =IFERROR(IF(AU$52=1,'Rates Table'!AU53*PODs*High_Days,'Rates Table'!AU53*PODs*High_Days),0) -> 0 | AV40: =IFERROR(IF(AV$52=1,'Rates Table'!AV53*PODs*High_Days,'Rates Table'!AV53*PODs*High_Days),0) -> 0 | AW40: =IFERROR(IF(AW$52=1,'Rates Table'!AW53*PODs*High_Days,'Rates Table'!AW53*PODs*High_Days),0) -> 0 | AX40: =IFERROR(IF(AX$52=1,'Rates Table'!AX53*PODs*High_Days,'Rates Table'!AX53*PODs*High_Days),0) -> 4255 | AY40: =IFERROR(IF(AY$52=1,'Rates Table'!AY53*PODs*High_Days,'Rates Table'!AY53*PODs*High_Days),0) -> 4255 | AZ40: =IFERROR(IF(AZ$52=1,'Rates Table'!AZ53*PODs*High_Days,'Rates Table'!AZ53*PODs*High_Days),0) -> 4255 | BA40: =IFERROR(IF(BA$52=1,'Rates Table'!BA53*PODs*High_Days,'Rates Table'!BA53*PODs*High_Days),0) -> 0 | BB40: =IFERROR(IF(BB$52=1,'Rates Table'!BB53*PODs*High_Days,'Rates Table'!BB53*PODs*High_Days),0) -> 9124.56 | BC40: =IFERROR(IF(BC$52=1,'Rates Table'!BC53*PODs*High_Days,'Rates Table'!BC53*PODs*High_Days),0) -> 2614.64 | BD40: =IFERROR(IF(BD$52=1,'Rates Table'!BD53*PODs*High_Days,'Rates Table'!BD53*PODs*High_Days),0) -> 2614.64 | BE40: =IFERROR(IF(BE$52=1,'Rates Table'!BE53*PODs*High_Days,'Rates Table'!BE53*PODs*High_Days),0) -> 2614.64 | BF40: =IFERROR(IF(BF$52=1,'Rates Table'!BF53*PODs*High_Days,'Rates Table'!BF53*PODs*High_Days),0) -> 3312 | BG40: =IFERROR(IF(BG$52=1,'Rates Table'!BG53*PODs*High_Days,'Rates Table'!BG53*PODs*High_Days),0) -> 2614.64 | BH40: =IFERROR(IF(BH$52=1,'Rates Table'!BH53*PODs*High_Days,'Rates Table'!BH53*PODs*High_Days),0) -> 3312 | BI40: =IFERROR(IF(BI$52=1,'Rates Table'!BI53*PODs*High_Days,'Rates Table'!BI53*PODs*High_Days),0) -> 0 | BJ40: =IFERROR(IF(BJ$52=1,'Rates Table'!BJ53*PODs*High_Days,'Rates Table'!BJ53*PODs*High_Days),0) -> 0 | BK40: =IFERROR(IF(BK$52=1,'Rates Table'!BK53*PODs*High_Days,'Rates Table'!BK53*PODs*High_Days),0) -> 0 | BL40: =IFERROR(IF(BL$52=1,'Rates Table'!BL53*PODs*High_Days,'Rates Table'!BL53*PODs*High_Days),0) -> 0 | BM40: =IFERROR(IF(BM$52=1,'Rates Table'!BM53*PODs*High_Days,'Rates Table'!BM53*PODs*High_Days),0) -> 1008.32 | BN40: =IFERROR(IF(BN$52=1,'Rates Table'!BN53*PODs*High_Days,'Rates Table'!BN53*PODs*High_Days),0) -> 770.96 | BO40: =IFERROR(IF(BO$52=1,'Rates Table'!BO53*PODs*High_Days,'Rates Table'!BO53*PODs*High_Days),0) -> 770.96 | BP40: =IFERROR(IF(BP$52=1,'Rates Table'!BP53*PODs*High_Days,'Rates Table'!BP53*PODs*High_Days),0) -> 770.96 | BQ40: =IFERROR(IF(BQ$52=1,'Rates Table'!BQ53*PODs*High_Days,'Rates Table'!BQ53*PODs*High_Days),0) -> 770.96
B42: Total other charges | E42: =SUM(E34:E40) -> 0 | F42: 2995.52 | G42: 2995.52 | H42: 2995.52 | I42: 0 | J42: 0 | K42: 0 | L42: 0 | M42: 0 | N42: 0 | O42: 0 | P42: 0 | Q42: 3773.84 | R42: 3773.84 | S42: 3773.84 | T42: 0 | U42: 8093.24 | V42: 2829 | W42: 2829 | X42: 2829 | Y42: 3771.08 | Z42: 2829 | AA42: 3771.08 | AB42: =SUM(AB34:AB40) -> 0 | AC42: 0 | AD42: 0 | AE42: 0 | AF42: 894.24 | AG42: =SUM(AG34:AG40) -> 0 | AH42: =SUM(AH34:AH40) -> 0 | AI42: 0 | AJ42: 0 | AL42: =SUM(AL34:AL40) -> 0 | AM42: 3377.32 | AN42: 3377.32 | AO42: 3377.32 | AP42: 0 | AQ42: 0 | AR42: 0 | AS42: 0 | AT42: 0 | AU42: 0 | AV42: 0 | AW42: 0 | AX42: 4255 | AY42: 4255 | AZ42: 4255 | BA42: 0 | BB42: 9124.56 | BC42: 3189.64 | BD42: 3189.64 | BE42: 3189.64 | BF42: 4251.32 | BG42: 3189.64 | BH42: 4251.32 | BI42: =SUM(BI34:BI40) -> 0 | BJ42: 0 | BK42: 0 | BL42: 0 | BM42: 1008.32 | BN42: 770.96 | BO42: =SUM(BO34:BO40) -> 770.96 | BP42: 770.96 | BQ42: 770.96
B44: Total excl VAT | E44: =E42+E31+E18 -> 1608.16 | F44: 6461.16 | G44: 8835.68 | H44: 13085.16 | I44: 0 | J44: 0 | K44: 0 | L44: 858.36 | M44: 1608.16 | N44: 3320.28 | O44: 524.4 | P44: 5444.56 | Q44: 8317.72 | R44: 10758.48 | S44: 14940.8 | T44: 3618.36 | U44: 8093.24 | V44: 2829 | W44: 2829 | X44: 2829 | Y44: 3771.08 | Z44: 2829 | AA44: 3771.08 | AB44: =AB42+AB31+AB18 -> 0 | AC44: 0 | AD44: 0 | AE44: 0 | AF44: 894.24 | AG44: =AG42+AG31+AG18 -> 0 | AH44: =AH42+AH31+AH18 -> 0 | AI44: 0 | AJ44: 0 | AL44: =AL42+AL31+AL18 -> 1813.32 | AM44: 7284.56 | AN44: 9961.76 | AO44: 14752.2 | AP44: 0 | AQ44: 0 | AR44: 0 | AS44: 967.84 | AT44: 1813.32 | AU44: 3743.48 | AV44: 591.56 | AW44: 6138.24 | AX44: 9377.56 | AY44: 12129.28 | AZ44: 16844.28 | BA44: 4079.28 | BB44: 9124.56 | BC44: 3189.64 | BD44: 3189.64 | BE44: 3189.64 | BF44: 4251.32 | BG44: 3189.64 | BH44: 4251.32 | BI44: =BI42+BI31+BI18 -> 0 | BJ44: 0 | BK44: 0 | BL44: 0 | BM44: 1008.32 | BN44: 1738.8 | BO44: =BO42+BO31+BO18 -> 2584.28 | BP44: 4514.44 | BQ44: 1362.52
B45: VAT | D45: ='Bill Comparison'!D57 -> 0.15 | E45: =E44*$D45 -> 241.224 | F45: =F44*$D45 -> 969.174 | G45: 1325.352 | H45: 1962.774 | I45: 0 | J45: 0 | K45: 0 | L45: 128.754 | M45: 241.224 | N45: 498.042 | O45: 78.66 | P45: 816.684 | Q45: 1247.658 | R45: 1613.772 | S45: 2241.12 | T45: 542.754 | U45: 1213.986 | V45: 424.35 | W45: 424.35 | X45: 424.35 | Y45: 565.662 | Z45: 424.35 | AA45: 565.662 | AB45: =AB44*$D45 -> 0 | AC45: 0 | AD45: 0 | AE45: 0 | AF45: 134.136 | AG45: =AG44*$D45 -> 0 | AH45: =AH44*$D45 -> 0 | AI45: 0 | AJ45: 0 | AL45: =AL44*$D45 -> 271.998 | AM45: =AM44*$D45 -> 1092.684 | AN45: =AN44*$D45 -> 1494.264 | AO45: =AO44*$D45 -> 2212.83 | AP45: =AP44*$D45 -> 0 | AQ45: =AQ44*$D45 -> 0 | AR45: =AR44*$D45 -> 0 | AS45: =AS44*$D45 -> 145.176 | AT45: =AT44*$D45 -> 271.998 | AU45: =AU44*$D45 -> 561.522 | AV45: =AV44*$D45 -> 88.734 | AW45: =AW44*$D45 -> 920.736 | AX45: =AX44*$D45 -> 1406.634 | AY45: =AY44*$D45 -> 1819.392 | AZ45: =AZ44*$D45 -> 2526.642 | BA45: =BA44*$D45 -> 611.892 | BB45: =BB44*$D45 -> 1368.684 | BC45: =BC44*$D45 -> 478.446 | BD45: =BD44*$D45 -> 478.446 | BE45: =BE44*$D45 -> 478.446 | BF45: =BF44*$D45 -> 637.698 | BG45: =BG44*$D45 -> 478.446 | BH45: =BH44*$D45 -> 637.698 | BI45: 0 | BJ45: 0 | BK45: 0 | BL45: 0 | BM45: 151.248 | BN45: 260.82 | BO45: =BO44*$D45 -> 387.642 | BP45: 677.166 | BQ45: 204.378
B47: Total account | E47: =SUM(E44:E45) -> 1849.384 | F47: =SUM(F44:F45) -> 7430.334 | G47: 10161.032 | H47: 15047.934 | I47: 0 | J47: 0 | K47: 0 | L47: 987.114 | M47: 1849.384 | N47: 3818.322 | O47: 603.06 | P47: 6261.244 | Q47: 9565.378 | R47: 12372.252 | S47: 17181.92 | T47: 4161.114 | U47: 9307.226 | V47: 3253.35 | W47: 3253.35 | X47: 3253.35 | Y47: 4336.742 | Z47: 3253.35 | AA47: 4336.742 | AB47: =SUM(AB44:AB45) -> 0 | AC47: 0 | AD47: 0 | AE47: 0 | AF47: 1028.376 | AG47: =SUM(AG44:AG45) -> 0 | AH47: =SUM(AH44:AH45) -> 0 | AI47: 0 | AJ47: 0 | AL47: =SUM(AL44:AL45) -> 2085.318 | AM47: =SUM(AM44:AM45) -> 8377.244 | AN47: 11456.024 | AO47: 16965.03 | AP47: 0 | AQ47: 0 | AR47: 0 | AS47: 1113.016 | AT47: 2085.318 | AU47: 4305.002 | AV47: 680.294 | AW47: 7058.976 | AX47: 10784.194 | AY47: 13948.672 | AZ47: 19370.922 | BA47: 4691.172 | BB47: 10493.244 | BC47: 3668.086 | BD47: 3668.086 | BE47: 3668.086 | BF47: 4889.018 | BG47: 3668.086 | BH47: 4889.018 | BI47: =SUM(BI44:BI45) -> 0 | BJ47: 0 | BK47: 0 | BL47: 0 | BM47: 1159.568 | BN47: 1999.62 | BO47: =SUM(BO44:BO45) -> 2971.922 | BP47: 5191.606 | BQ47: 1566.898
B49: Average price c/kWh | E49: =E44/High_Total_Energy*100 ->  | AB49: =AB44/High_Total_Energy*100 ->  | AG49: =AG44/High_Total_Energy*100 ->  | AH49: =AH44/High_Total_Energy*100 ->  | AL49: =AL44/High_Total_Energy*100 ->  | BI49: =BI44/High_Total_Energy*100 ->  | BO49: =BO44/High_Total_Energy*100 -> 
B51: Check tables
C52: Table 1 | E52: =INDEX(F52:AJ52,0,Selected_Tariff_ID) -> 0 | F52: ='Rates Table'!F64 -> 0 | G52: ='Rates Table'!G64 -> 0 | H52: ='Rates Table'!H64 -> 0 | I52: ='Rates Table'!I64 -> 0 | J52: ='Rates Table'!J64 -> 0 | K52: ='Rates Table'!K64 -> 0 | L52: ='Rates Table'!L64 -> 0 | M52: ='Rates Table'!M64 -> 0 | N52: ='Rates Table'!N64 -> 0 | O52: ='Rates Table'!O64 -> 0 | P52: ='Rates Table'!P64 -> 0 | Q52: ='Rates Table'!Q64 -> 0 | R52: ='Rates Table'!R64 -> 0 | S52: ='Rates Table'!S64 -> 0 | T52: ='Rates Table'!T64 -> 0 | U52: ='Rates Table'!U64 -> 0 | V52: ='Rates Table'!V64 -> 1 | W52: ='Rates Table'!W64 -> 1 | X52: ='Rates Table'!X64 -> 1 | Y52: ='Rates Table'!Y64 -> 1 | Z52: ='Rates Table'!Z64 -> 1 | AA52: ='Rates Table'!AA64 -> 1 | AB52: ='Rates Table'!AB64 -> 0 | AC52: ='Rates Table'!AC64 -> 0 | AD52: ='Rates Table'!AD64 -> 0 | AE52: ='Rates Table'!AE64 -> 0 | AF52: ='Rates Table'!AF64 -> 0 | AG52: ='Rates Table'!AG64 -> 0 | AH52: ='Rates Table'!AH64 -> 0 | AI52: ='Rates Table'!AI64 -> 0 | AJ52: ='Rates Table'!AJ64 -> 0 | AL52: =INDEX(AM52:BQ52,0,Selected_Tariff_ID) -> 0 | AM52: =F52 -> 0 | AN52: 0 | AO52: 0 | AP52: 0 | AQ52: 0 | AR52: 0 | AS52: 0 | AT52: 0 | AU52: 0 | AV52: 0 | AW52: 0 | AX52: 0 | AY52: 0 | AZ52: 0 | BA52: 0 | BB52: 0 | BC52: =V52 -> 1 | BD52: 1 | BE52: 1 | BF52: 1 | BG52: 1 | BH52: 1 | BI52: =AB52 -> 0 | BJ52: =AC52 -> 0 | BK52: =AD52 -> 0 | BL52: =AE52 -> 0 | BM52: =AF52 -> 0 | BN52: =AG52 -> 0 | BO52: =AH52 -> 0 | BP52: =AI52 -> 0 | BQ52: =AJ52 -> 0
C53: Tariff Type | E53: =Selected_Tariff_Type -> Urban | F53: =INDEX(Full_Tariff_Type,F$7,) -> Urban | G53: Urban | H53: Urban | I53: Urban | J53: Urban | K53: Urban | L53: Urban | M53: Urban | N53: Urban | O53: Urban | P53: Urban | Q53: Rural | R53: Rural | S53: Rural | T53: Rural | U53: Rural | V53: Urban | W53: Urban | X53: Urban | Y53: Rural | Z53: Urban | AA53: Rural | AB53: Rural | AC53: Rural | AD53: Urban | AE53: Urban | AF53: Urban | AG53: Urban | AH53: Urban | AI53: Urban | AJ53: Urban | AL53: =E53 -> Urban | AM53: Urban | AN53: Urban | AO53: Urban | AP53: Urban | AQ53: Urban | AR53: Urban | AS53: Urban | AT53: Urban | AU53: Urban | AV53: Urban | AW53: Urban | AX53: Rural | AY53: Rural | AZ53: Rural | BA53: Rural | BB53: Rural | BC53: Urban | BD53: Urban | BE53: Urban | BF53: Rural | BG53: Urban | BH53: Rural | BI53: Rural | BJ53: Rural | BK53: Urban | BL53: Urban | BM53: Urban | BN53: Urban | BO53: Urban | BP53: Urban | BQ53: Urban

Sheet Workings Low (hidden)
B4: Calculations for Low Demand by Tariff
B6: Tariffs | E6: =Selected_Base_Tariff -> Homepower 2 | F6: =INDEX(Full_Tariff_List,F$7,) -> Businessrate 1 | G6: Businessrate 2 | H6: Businessrate 3 | I6: Businessrate 4 | J6: Homelight 20A | K6: Homelight 60A | L6: Homepower 1 | M6: Homepower 2 | N6: Homepower 3 | O6: Homepower 4 | P6: Homepower Bulk | Q6: Landrate 1 | R6: Landrate 2 | S6: Landrate 3 | T6: Landrate 4 | U6: Landrate Dx | V6: Megaflex | W6: Miniflex | X6: Nightsave Large | Y6: Nightsave Rural | Z6: Nightsave Small | AA6: Ruraflex | AB6: Landlight 20A | AC6: Landlight 60A | AD6: Public Lighting 24 Hours | AE6: Public Lighting All Night | AF6: Public Lighting Urban Fixed | AG6: Homeflex 1 | AH6: Homeflex 2 | AI6: Homeflex 3 | AJ6: Homeflex 4 | AL6: =E6 -> Homepower 2 | AM6: Businessrate 1 | AN6: Businessrate 2 | AO6: Businessrate 3 | AP6: Businessrate 4 | AQ6: Homelight 20A | AR6: Homelight 60A | AS6: Homepower 1 | AT6: Homepower 2 | AU6: Homepower 3 | AV6: Homepower 4 | AW6: Homepower Bulk | AX6: Landrate 1 | AY6: Landrate 2 | AZ6: Landrate 3 | BA6: Landrate 4 | BB6: Landrate Dx | BC6: Megaflex | BD6: Miniflex | BE6: Nightsave Large | BF6: Nightsave Rural | BG6: Nightsave Small | BH6: Ruraflex | BI6: Landlight 20A | BJ6: Landlight 60A | BK6: Public Lighting 24 Hours | BL6: Public Lighting All Night | BM6: Public Lighting Urban Fixed | BN6: Homeflex 1 | BO6: Homeflex 2 | BP6: Homeflex 3 | BQ6: Homeflex 4
F7: 1 | G7: =F7+1 -> 2 | H7: =G7+1 -> 3 | I7: 4 | J7: 5 | K7: 6 | L7: 7 | M7: 8 | N7: 9 | O7: 10 | P7: 11 | Q7: 12 | R7: 13 | S7: 14 | T7: 15 | U7: 16 | V7: 17 | W7: 18 | X7: 19 | Y7: 20 | Z7: 21 | AA7: 22 | AB7: =AA7+1 -> 23 | AC7: =AB7+1 -> 24 | AD7: =AC7+1 -> 25 | AE7: =AD7+1 -> 26 | AF7: =AE7+1 -> 27 | AG7: =AF7+1 -> 28 | AH7: =AG7+1 -> 29 | AI7: =AH7+1 -> 30 | AJ7: =AI7+1 -> 31
B8: Network charges | D8: Units | E8: =Current_Period&" Rates" -> 2023/2024 Rates | F8: =E8 -> 2023/2024 Rates | G8: =F8 -> 2023/2024 Rates | H8: 2023/2024 Rates | I8: 2023/2024 Rates | J8: 2023/2024 Rates | K8: 2023/2024 Rates | L8: 2023/2024 Rates | M8: 2023/2024 Rates | N8: 2023/2024 Rates | O8: 2023/2024 Rates | P8: 2023/2024 Rates | Q8: 2023/2024 Rates | R8: 2023/2024 Rates | S8: 2023/2024 Rates | T8: 2023/2024 Rates | U8: 2023/2024 Rates | V8: 2023/2024 Rates | W8: 2023/2024 Rates | X8: 2023/2024 Rates | Y8: 2023/2024 Rates | Z8: 2023/2024 Rates | AA8: 2023/2024 Rates | AB8: =AA8 -> 2023/2024 Rates | AC8: =AB8 -> 2023/2024 Rates | AD8: =AC8 -> 2023/2024 Rates | AE8: =AD8 -> 2023/2024 Rates | AF8: =AE8 -> 2023/2024 Rates | AG8: =AF8 -> 2023/2024 Rates | AH8: =AG8 -> 2023/2024 Rates | AI8: =AH8 -> 2023/2024 Rates | AJ8: =AI8 -> 2023/2024 Rates | AL8: =New_Period&" Rates" -> 2024/2025 Rates | AM8: =AL8 -> 2024/2025 Rates | AN8: =AM8 -> 2024/2025 Rates | AO8: 2024/2025 Rates | AP8: 2024/2025 Rates | AQ8: 2024/2025 Rates | AR8: 2024/2025 Rates | AS8: 2024/2025 Rates | AT8: 2024/2025 Rates | AU8: 2024/2025 Rates | AV8: 2024/2025 Rates | AW8: 2024/2025 Rates | AX8: 2024/2025 Rates | AY8: 2024/2025 Rates | AZ8: 2024/2025 Rates | BA8: 2024/2025 Rates | BB8: 2024/2025 Rates | BC8: 2024/2025 Rates | BD8: 2024/2025 Rates | BE8: 2024/2025 Rates | BF8: 2024/2025 Rates | BG8: 2024/2025 Rates | BH8: 2024/2025 Rates | BI8: =BH8 -> 2024/2025 Rates | BJ8: =BI8 -> 2024/2025 Rates | BK8: =BJ8 -> 2024/2025 Rates | BL8: =BK8 -> 2024/2025 Rates | BM8: =BL8 -> 2024/2025 Rates | BN8: =BM8 -> 2024/2025 Rates | BO8: =BN8 -> 2024/2025 Rates | BP8: =BO8 -> 2024/2025 Rates | BQ8: =BP8 -> 2024/2025 Rates
C10: Transmission network charge | D10: R/kVA | E10: =INDEX(F10:AJ10,0,Selected_Tariff_ID) -> 0 | F10: =IFERROR('Rates Table'!F10*Low_Utilised_Capacity,0) -> 0 | G10: =IFERROR('Rates Table'!G10*Low_Utilised_Capacity,0) -> 0 | H10: =IFERROR('Rates Table'!H10*Low_Utilised_Capacity,0) -> 0 | I10: =IFERROR('Rates Table'!I10*Low_Utilised_Capacity,0) -> 0 | J10: =IFERROR('Rates Table'!J10*Low_Utilised_Capacity,0) -> 0 | K10: =IFERROR('Rates Table'!K10*Low_Utilised_Capacity,0) -> 0 | L10: =IFERROR('Rates Table'!L10*Low_Utilised_Capacity,0) -> 0 | M10: =IFERROR('Rates Table'!M10*Low_Utilised_Capacity,0) -> 0 | N10: =IFERROR('Rates Table'!N10*Low_Utilised_Capacity,0) -> 0 | O10: =IFERROR('Rates Table'!O10*Low_Utilised_Capacity,0) -> 0 | P10: =IFERROR('Rates Table'!P10*Low_Utilised_Capacity,0) -> 0 | Q10: =IFERROR('Rates Table'!Q10*Low_Utilised_Capacity,0) -> 0 | R10: =IFERROR('Rates Table'!R10*Low_Utilised_Capacity,0) -> 0 | S10: =IFERROR('Rates Table'!S10*Low_Utilised_Capacity,0) -> 0 | T10: =IFERROR('Rates Table'!T10*Low_Utilised_Capacity,0) -> 0 | U10: =IFERROR('Rates Table'!U10*Low_Utilised_Capacity,0) -> 0 | V10: =IFERROR('Rates Table'!V10*Low_Utilised_Capacity,0) -> 0 | W10: =IFERROR('Rates Table'!W10*Low_Utilised_Capacity,0) -> 0 | X10: =IFERROR('Rates Table'!X10*Low_Utilised_Capacity,0) -> 0 | Y10: =IFERROR('Rates Table'!Y10*Low_Utilised_Capacity,0) -> 0 | Z10: =IFERROR('Rates Table'!Z10*Low_Utilised_Capacity,0) -> 0 | AA10: =IFERROR('Rates Table'!AA10*Low_Utilised_Capacity,0) -> 0 | AB10: =IFERROR('Rates Table'!AB10*Low_Utilised_Capacity,0) -> 0 | AC10: =IFERROR('Rates Table'!AC10*Low_Utilised_Capacity,0) -> 0 | AD10: =IFERROR('Rates Table'!AD10*Low_Utilised_Capacity,0) -> 0 | AE10: =IFERROR('Rates Table'!AE10*Low_Utilised_Capacity,0) -> 0 | AF10: =IFERROR('Rates Table'!AF10*Low_Utilised_Capacity,0) -> 0 | AG10: =IFERROR('Rates Table'!AG10*Low_Utilised_Capacity,0) -> 0 | AH10: =IFERROR('Rates Table'!AH10*Low_Utilised_Capacity,0) -> 0 | AI10: =IFERROR('Rates Table'!AI10*Low_Utilised_Capacity,0) -> 0 | AJ10: =IFERROR('Rates Table'!AJ10*Low_Utilised_Capacity,0) -> 0 | AL10: =INDEX(AM10:BQ10,0,Selected_Tariff_ID) -> 0 | AM10: =IFERROR('Rates Table'!AM10*Low_Utilised_Capacity,0) -> 0 | AN10: =IFERROR('Rates Table'!AN10*Low_Utilised_Capacity,0) -> 0 | AO10: =IFERROR('Rates Table'!AO10*Low_Utilised_Capacity,0) -> 0 | AP10: =IFERROR('Rates Table'!AP10*Low_Utilised_Capacity,0) -> 0 | AQ10: =IFERROR('Rates Table'!AQ10*Low_Utilised_Capacity,0) -> 0 | AR10: =IFERROR('Rates Table'!AR10*Low_Utilised_Capacity,0) -> 0 | AS10: =IFERROR('Rates Table'!AS10*Low_Utilised_Capacity,0) -> 0 | AT10: =IFERROR('Rates Table'!AT10*Low_Utilised_Capacity,0) -> 0 | AU10: =IFERROR('Rates Table'!AU10*Low_Utilised_Capacity,0) -> 0 | AV10: =IFERROR('Rates Table'!AV10*Low_Utilised_Capacity,0) -> 0 | AW10: =IFERROR('Rates Table'!AW10*Low_Utilised_Capacity,0) -> 0 | AX10: =IFERROR('Rates Table'!AX10*Low_Utilised_Capacity,0) -> 0 | AY10: =IFERROR('Rates Table'!AY10*Low_Utilised_Capacity,0) -> 0 | AZ10: =IFERROR('Rates Table'!AZ10*Low_Utilised_Capacity,0) -> 0 | BA10: =IFERROR('Rates Table'!BA10*Low_Utilised_Capacity,0) -> 0 | BB10: =IFERROR('Rates Table'!BB10*Low_Utilised_Capacity,0) -> 0 | BC10: =IFERROR('Rates Table'!BC10*Low_Utilised_Capacity,0) -> 0 | BD10: =IFERROR('Rates Table'!BD10*Low_Utilised_Capacity,0) -> 0 | BE10: =IFERROR('Rates Table'!BE10*Low_Utilised_Capacity,0) -> 0 | BF10: =IFERROR('Rates Table'!BF10*Low_Utilised_Capacity,0) -> 0 | BG10: =IFERROR('Rates Table'!BG10*Low_Utilised_Capacity,0) -> 0 | BH10: =IFERROR('Rates Table'!BH10*Low_Utilised_Capacity,0) -> 0 | BI10: =IFERROR('Rates Table'!BI10*Low_Utilised_Capacity,0) -> 0 | BJ10: =IFERROR('Rates Table'!BJ10*Low_Utilised_Capacity,0) -> 0 | BK10: =IFERROR('Rates Table'!BK10*Low_Utilised_Capacity,0) -> 0 | BL10: =IFERROR('Rates Table'!BL10*Low_Utilised_Capacity,0) -> 0 | BM10: =IFERROR('Rates Table'!BM10*Low_Utilised_Capacity,0) -> 0 | BN10: =IFERROR('Rates Table'!BN10*Low_Utilised_Capacity,0) -> 0 | BO10: =IFERROR('Rates Table'!BO10*Low_Utilised_Capacity,0) -> 0 | BP10: =IFERROR('Rates Table'!BP10*Low_Utilised_Capacity,0) -> 0 | BQ10: =IFERROR('Rates Table'!BQ10*Low_Utilised_Capacity,0) -> 0
C11: Distribution network capacity charge | D11: R/kVA | E11: 0 | F11: =IFERROR('Rates Table'!F11*Low_Utilised_Capacity,0) -> 0 | G11: =IFERROR('Rates Table'!G11*Low_Utilised_Capacity,0) -> 0 | H11: =IFERROR('Rates Table'!H11*Low_Utilised_Capacity,0) -> 0 | I11: =IFERROR('Rates Table'!I11*Low_Utilised_Capacity,0) -> 0 | J11: =IFERROR('Rates Table'!J11*Low_Utilised_Capacity,0) -> 0 | K11: =IFERROR('Rates Table'!K11*Low_Utilised_Capacity,0) -> 0 | L11: =IFERROR('Rates Table'!L11*Low_Utilised_Capacity,0) -> 0 | M11: =IFERROR('Rates Table'!M11*Low_Utilised_Capacity,0) -> 0 | N11: =IFERROR('Rates Table'!N11*Low_Utilised_Capacity,0) -> 0 | O11: =IFERROR('Rates Table'!O11*Low_Utilised_Capacity,0) -> 0 | P11: =IFERROR('Rates Table'!P11*Low_Utilised_Capacity,0) -> 0 | Q11: =IFERROR('Rates Table'!Q11*Low_Utilised_Capacity,0) -> 0 | R11: =IFERROR('Rates Table'!R11*Low_Utilised_Capacity,0) -> 0 | S11: =IFERROR('Rates Table'!S11*Low_Utilised_Capacity,0) -> 0 | T11: =IFERROR('Rates Table'!T11*Low_Utilised_Capacity,0) -> 0 | U11: =IFERROR('Rates Table'!U11*Low_Utilised_Capacity,0) -> 0 | V11: =IFERROR('Rates Table'!V11*Low_Utilised_Capacity,0) -> 0 | W11: =IFERROR('Rates Table'!W11*Low_Utilised_Capacity,0) -> 0 | X11: =IFERROR('Rates Table'!X11*Low_Utilised_Capacity,0) -> 0 | Y11: =IFERROR('Rates Table'!Y11*Low_Utilised_Capacity,0) -> 0 | Z11: =IFERROR('Rates Table'!Z11*Low_Utilised_Capacity,0) -> 0 | AA11: =IFERROR('Rates Table'!AA11*Low_Utilised_Capacity,0) -> 0 | AB11: =IFERROR('Rates Table'!AB11*Low_Utilised_Capacity,0) -> 0 | AC11: =IFERROR('Rates Table'!AC11*Low_Utilised_Capacity,0) -> 0 | AD11: =IFERROR('Rates Table'!AD11*Low_Utilised_Capacity,0) -> 0 | AE11: =IFERROR('Rates Table'!AE11*Low_Utilised_Capacity,0) -> 0 | AF11: =IFERROR('Rates Table'!AF11*Low_Utilised_Capacity,0) -> 0 | AG11: =IFERROR('Rates Table'!AG11*Low_Utilised_Capacity,0) -> 0 | AH11: =IFERROR('Rates Table'!AH11*Low_Utilised_Capacity,0) -> 0 | AI11: =IFERROR('Rates Table'!AI11*Low_Utilised_Capacity,0) -> 0 | AJ11: =IFERROR('Rates Table'!AJ11*Low_Utilised_Capacity,0) -> 0 | AL11: 0 | AM11: =IFERROR('Rates Table'!AM11*Low_Utilised_Capacity,0) -> 0 | AN11: =IFERROR('Rates Table'!AN11*Low_Utilised_Capacity,0) -> 0 | AO11: =IFERROR('Rates Table'!AO11*Low_Utilised_Capacity,0) -> 0 | AP11: =IFERROR('Rates Table'!AP11*Low_Utilised_Capacity,0) -> 0 | AQ11: =IFERROR('Rates Table'!AQ11*Low_Utilised_Capacity,0) -> 0 | AR11: =IFERROR('Rates Table'!AR11*Low_Utilised_Capacity,0) -> 0 | AS11: =IFERROR('Rates Table'!AS11*Low_Utilised_Capacity,0) -> 0 | AT11: =IFERROR('Rates Table'!AT11*Low_Utilised_Capacity,0) -> 0 | AU11: =IFERROR('Rates Table'!AU11*Low_Utilised_Capacity,0) -> 0 | AV11: =IFERROR('Rates Table'!AV11*Low_Utilised_Capacity,0) -> 0 | AW11: =IFERROR('Rates Table'!AW11*Low_Utilised_Capacity,0) -> 0 | AX11: =IFERROR('Rates Table'!AX11*Low_Utilised_Capacity,0) -> 0 | AY11: =IFERROR('Rates Table'!AY11*Low_Utilised_Capacity,0) -> 0 | AZ11: =IFERROR('Rates Table'!AZ11*Low_Utilised_Capacity,0) -> 0 | BA11: =IFERROR('Rates Table'!BA11*Low_Utilised_Capacity,0) -> 0 | BB11: =IFERROR('Rates Table'!BB11*Low_Utilised_Capacity,0) -> 0 | BC11: =IFERROR('Rates Table'!BC11*Low_Utilised_Capacity,0) -> 0 | BD11: =IFERROR('Rates Table'!BD11*Low_Utilised_Capacity,0) -> 0 | BE11: =IFERROR('Rates Table'!BE11*Low_Utilised_Capacity,0) -> 0 | BF11: =IFERROR('Rates Table'!BF11*Low_Utilised_Capacity,0) -> 0 | BG11: =IFERROR('Rates Table'!BG11*Low_Utilised_Capacity,0) -> 0 | BH11: =IFERROR('Rates Table'!BH11*Low_Utilised_Capacity,0) -> 0 | BI11: =IFERROR('Rates Table'!BI11*Low_Utilised_Capacity,0) -> 0 | BJ11: =IFERROR('Rates Table'!BJ11*Low_Utilised_Capacity,0) -> 0 | BK11: =IFERROR('Rates Table'!BK11*Low_Utilised_Capacity,0) -> 0 | BL11: =IFERROR('Rates Table'!BL11*Low_Utilised_Capacity,0) -> 0 | BM11: =IFERROR('Rates Table'!BM11*Low_Utilised_Capacity,0) -> 0 | BN11: =IFERROR('Rates Table'!BN11*Low_Utilised_Capacity,0) -> 0 | BO11: =IFERROR('Rates Table'!BO11*Low_Utilised_Capacity,0) -> 0 | BP11: =IFERROR('Rates Table'!BP11*Low_Utilised_Capacity,0) -> 0 | BQ11: =IFERROR('Rates Table'!BQ11*Low_Utilised_Capacity,0) -> 0
C12: Distribution network demand charge | D12: R/kVA | E12: 0 | F12: =IFERROR('Rates Table'!F12*Low_Demand,0) -> 0 | G12: =IFERROR('Rates Table'!G12*Low_Demand,0) -> 0 | H12: =IFERROR('Rates Table'!H12*Low_Demand,0) -> 0 | I12: =IFERROR('Rates Table'!I12*Low_Demand,0) -> 0 | J12: =IFERROR('Rates Table'!J12*Low_Demand,0) -> 0 | K12: =IFERROR('Rates Table'!K12*Low_Demand,0) -> 0 | L12: =IFERROR('Rates Table'!L12*Low_Demand,0) -> 0 | M12: =IFERROR('Rates Table'!M12*Low_Demand,0) -> 0 | N12: =IFERROR('Rates Table'!N12*Low_Demand,0) -> 0 | O12: =IFERROR('Rates Table'!O12*Low_Demand,0) -> 0 | P12: =IFERROR('Rates Table'!P12*Low_Demand,0) -> 0 | Q12: =IFERROR('Rates Table'!Q12*Low_Demand,0) -> 0 | R12: =IFERROR('Rates Table'!R12*Low_Demand,0) -> 0 | S12: =IFERROR('Rates Table'!S12*Low_Demand,0) -> 0 | T12: =IFERROR('Rates Table'!T12*Low_Demand,0) -> 0 | U12: =IFERROR('Rates Table'!U12*Low_Demand,0) -> 0 | V12: =IFERROR('Rates Table'!V12*Low_Demand,0) -> 0 | W12: =IFERROR('Rates Table'!W12*Low_Demand,0) -> 0 | X12: =IFERROR('Rates Table'!X12*Low_Demand,0) -> 0 | Y12: =IFERROR('Rates Table'!Y12*Low_Demand,0) -> 0 | Z12: =IFERROR('Rates Table'!Z12*Low_Demand,0) -> 0 | AA12: =IFERROR('Rates Table'!AA12*Low_Demand,0) -> 0 | AB12: =IFERROR('Rates Table'!AB12*Low_Demand,0) -> 0 | AC12: =IFERROR('Rates Table'!AC12*Low_Demand,0) -> 0 | AD12: =IFERROR('Rates Table'!AD12*Low_Demand,0) -> 0 | AE12: =IFERROR('Rates Table'!AE12*Low_Demand,0) -> 0 | AF12: =IFERROR('Rates Table'!AF12*Low_Demand,0) -> 0 | AG12: =IFERROR('Rates Table'!AG12*Low_Demand,0) -> 0 | AH12: =IFERROR('Rates Table'!AH12*Low_Demand,0) -> 0 | AI12: =IFERROR('Rates Table'!AI12*Low_Demand,0) -> 0 | AJ12: =IFERROR('Rates Table'!AJ12*Low_Demand,0) -> 0 | AL12: 0 | AM12: =IFERROR('Rates Table'!AM12*Low_Demand,0) -> 0 | AN12: =IFERROR('Rates Table'!AN12*Low_Demand,0) -> 0 | AO12: =IFERROR('Rates Table'!AO12*Low_Demand,0) -> 0 | AP12: =IFERROR('Rates Table'!AP12*Low_Demand,0) -> 0 | AQ12: =IFERROR('Rates Table'!AQ12*Low_Demand,0) -> 0 | AR12: =IFERROR('Rates Table'!AR12*Low_Demand,0) -> 0 | AS12: =IFERROR('Rates Table'!AS12*Low_Demand,0) -> 0 | AT12: =IFERROR('Rates Table'!AT12*Low_Demand,0) -> 0 | AU12: =IFERROR('Rates Table'!AU12*Low_Demand,0) -> 0 | AV12: =IFERROR('Rates Table'!AV12*Low_Demand,0) -> 0 | AW12: =IFERROR('Rates Table'!AW12*Low_Demand,0) -> 0 | AX12: =IFERROR('Rates Table'!AX12*Low_Demand,0) -> 0 | AY12: =IFERROR('Rates Table'!AY12*Low_Demand,0) -> 0 | AZ12: =IFERROR('Rates Table'!AZ12*Low_Demand,0) -> 0 | BA12: =IFERROR('Rates Table'!BA12*Low_Demand,0) -> 0 | BB12: =IFERROR('Rates Table'!BB12*Low_Demand,0) -> 0 | BC12: =IFERROR('Rates Table'!BC12*Low_Demand,0) -> 0 | BD12: =IFERROR('Rates Table'!BD12*Low_Demand,0) -> 0 | BE12: =IFERROR('Rates Table'!BE12*Low_Demand,0) -> 0 | BF12: =IFERROR('Rates Table'!BF12*Low_Demand,0) -> 0 | BG12: =IFERROR('Rates Table'!BG12*Low_Demand,0) -> 0 | BH12: =IFERROR('Rates Table'!BH12*Low_Demand,0) -> 0 | BI12: =IFERROR('Rates Table'!BI12*Low_Demand,0) -> 0 | BJ12: =IFERROR('Rates Table'!BJ12*Low_Demand,0) -> 0 | BK12: =IFERROR('Rates Table'!BK12*Low_Demand,0) -> 0 | BL12: =IFERROR('Rates Table'!BL12*Low_Demand,0) -> 0 | BM12: =IFERROR('Rates Table'!BM12*Low_Demand,0) -> 0 | BN12: =IFERROR('Rates Table'!BN12*Low_Demand,0) -> 0 | BO12: =IFERROR('Rates Table'!BO12*Low_Demand,0) -> 0 | BP12: =IFERROR('Rates Table'!BP12*Low_Demand,0) -> 0 | BQ12: =IFERROR('Rates Table'!BQ12*Low_Demand,0) -> 0
C13: Distribution network demand charge | D13: c/kWh | E13: 0 | F13: =IFERROR('Rates Table'!F13*IF(F$6="Miniflex",(Low_Peak+Low_Standard),Low_Total_Energy),0)/100 -> 0 | G13: =IFERROR('Rates Table'!G13*IF(G$6="Miniflex",(Low_Peak+Low_Standard),Low_Total_Energy),0)/100 -> 0 | H13: =IFERROR('Rates Table'!H13*IF(H$6="Miniflex",(Low_Peak+Low_Standard),Low_Total_Energy),0)/100 -> 0 | I13: =IFERROR('Rates Table'!I13*IF(I$6="Miniflex",(Low_Peak+Low_Standard),Low_Total_Energy),0)/100 -> 0 | J13: =IFERROR('Rates Table'!J13*IF(J$6="Miniflex",(Low_Peak+Low_Standard),Low_Total_Energy),0)/100 -> 0 | K13: =IFERROR('Rates Table'!K13*IF(K$6="Miniflex",(Low_Peak+Low_Standard),Low_Total_Energy),0)/100 -> 0 | L13: =IFERROR('Rates Table'!L13*IF(L$6="Miniflex",(Low_Peak+Low_Standard),Low_Total_Energy),0)/100 -> 0 | M13: =IFERROR('Rates Table'!M13*IF(M$6="Miniflex",(Low_Peak+Low_Standard),Low_Total_Energy),0)/100 -> 0 | N13: =IFERROR('Rates Table'!N13*IF(N$6="Miniflex",(Low_Peak+Low_Standard),Low_Total_Energy),0)/100 -> 0 | O13: =IFERROR('Rates Table'!O13*IF(O$6="Miniflex",(Low_Peak+Low_Standard),Low_Total_Energy),0)/100 -> 0 | P13: =IFERROR('Rates Table'!P13*IF(P$6="Miniflex",(Low_Peak+Low_Standard),Low_Total_Energy),0)/100 -> 0 | Q13: =IFERROR('Rates Table'!Q13*IF(Q$6="Miniflex",(Low_Peak+Low_Standard),Low_Total_Energy),0)/100 -> 0 | R13: =IFERROR('Rates Table'!R13*IF(R$6="Miniflex",(Low_Peak+Low_Standard),Low_Total_Energy),0)/100 -> 0 | S13: =IFERROR('Rates Table'!S13*IF(S$6="Miniflex",(Low_Peak+Low_Standard),Low_Total_Energy),0)/100 -> 0 | T13: =IFERROR('Rates Table'!T13*IF(T$6="Miniflex",(Low_Peak+Low_Standard),Low_Total_Energy),0)/100 -> 0 | U13: =IFERROR('Rates Table'!U13*IF(U$6="Miniflex",(Low_Peak+Low_Standard),Low_Total_Energy),0)/100 -> 0 | V13: =IFERROR('Rates Table'!V13*IF(V$6="Miniflex",(Low_Peak+Low_Standard),Low_Total_Energy),0)/100 -> 0 | W13: =IFERROR('Rates Table'!W13*IF(W$6="Miniflex",(Low_Peak+Low_Standard),Low_Total_Energy),0)/100 -> 0 | X13: =IFERROR('Rates Table'!X13*IF(X$6="Miniflex",(Low_Peak+Low_Standard),Low_Total_Energy),0)/100 -> 0 | Y13: =IFERROR('Rates Table'!Y13*IF(Y$6="Miniflex",(Low_Peak+Low_Standard),Low_Total_Energy),0)/100 -> 0 | Z13: =IFERROR('Rates Table'!Z13*IF(Z$6="Miniflex",(Low_Peak+Low_Standard),Low_Total_Energy),0)/100 -> 0 | AA13: =IFERROR('Rates Table'!AA13*IF(AA$6="Miniflex",(Low_Peak+Low_Standard),Low_Total_Energy),0)/100 -> 0 | AB13: =IFERROR('Rates Table'!AB13*IF(AB$6="Miniflex",(Low_Peak+Low_Standard),Low_Total_Energy),0)/100 -> 0 | AC13: =IFERROR('Rates Table'!AC13*IF(AC$6="Miniflex",(Low_Peak+Low_Standard),Low_Total_Energy),0)/100 -> 0 | AD13: =IFERROR('Rates Table'!AD13*IF(AD$6="Miniflex",(Low_Peak+Low_Standard),Low_Total_Energy),0)/100 -> 0 | AE13: =IFERROR('Rates Table'!AE13*IF(AE$6="Miniflex",(Low_Peak+Low_Standard),Low_Total_Energy),0)/100 -> 0 | AF13: =IFERROR('Rates Table'!AF13*IF(AF$6="Miniflex",(Low_Peak+Low_Standard),Low_Total_Energy),0)/100 -> 0 | AG13: =IFERROR('Rates Table'!AG13*IF(AG$6="Miniflex",(Low_Peak+Low_Standard),Low_Total_Energy),0)/100 -> 0 | AH13: =IFERROR('Rates Table'!AH13*IF(AH$6="Miniflex",(Low_Peak+Low_Standard),Low_Total_Energy),0)/100 -> 0 | AI13: =IFERROR('Rates Table'!AI13*IF(AI$6="Miniflex",(Low_Peak+Low_Standard),Low_Total_Energy),0)/100 -> 0 | AJ13: =IFERROR('Rates Table'!AJ13*IF(AJ$6="Miniflex",(Low_Peak+Low_Standard),Low_Total_Energy),0)/100 -> 0 | AL13: 0 | AM13: =IFERROR('Rates Table'!AM13*IF(AM$6="Miniflex",(Low_Peak+Low_Standard),Low_Total_Energy),0)/100 -> 0 | AN13: =IFERROR('Rates Table'!AN13*IF(AN$6="Miniflex",(Low_Peak+Low_Standard),Low_Total_Energy),0)/100 -> 0 | AO13: =IFERROR('Rates Table'!AO13*IF(AO$6="Miniflex",(Low_Peak+Low_Standard),Low_Total_Energy),0)/100 -> 0 | AP13: =IFERROR('Rates Table'!AP13*IF(AP$6="Miniflex",(Low_Peak+Low_Standard),Low_Total_Energy),0)/100 -> 0 | AQ13: =IFERROR('Rates Table'!AQ13*IF(AQ$6="Miniflex",(Low_Peak+Low_Standard),Low_Total_Energy),0)/100 -> 0 | AR13: =IFERROR('Rates Table'!AR13*IF(AR$6="Miniflex",(Low_Peak+Low_Standard),Low_Total_Energy),0)/100 -> 0 | AS13: =IFERROR('Rates Table'!AS13*IF(AS$6="Miniflex",(Low_Peak+Low_Standard),Low_Total_Energy),0)/100 -> 0 | AT13: =IFERROR('Rates Table'!AT13*IF(AT$6="Miniflex",(Low_Peak+Low_Standard),Low_Total_Energy),0)/100 -> 0 | AU13: =IFERROR('Rates Table'!AU13*IF(AU$6="Miniflex",(Low_Peak+Low_Standard),Low_Total_Energy),0)/100 -> 0 | AV13: =IFERROR('Rates Table'!AV13*IF(AV$6="Miniflex",(Low_Peak+Low_Standard),Low_Total_Energy),0)/100 -> 0 | AW13: =IFERROR('Rates Table'!AW13*IF(AW$6="Miniflex",(Low_Peak+Low_Standard),Low_Total_Energy),0)/100 -> 0 | AX13: =IFERROR('Rates Table'!AX13*IF(AX$6="Miniflex",(Low_Peak+Low_Standard),Low_Total_Energy),0)/100 -> 0 | AY13: =IFERROR('Rates Table'!AY13*IF(AY$6="Miniflex",(Low_Peak+Low_Standard),Low_Total_Energy),0)/100 -> 0 | AZ13: =IFERROR('Rates Table'!AZ13*IF(AZ$6="Miniflex",(Low_Peak+Low_Standard),Low_Total_Energy),0)/100 -> 0 | BA13: =IFERROR('Rates Table'!BA13*IF(BA$6="Miniflex",(Low_Peak+Low_Standard),Low_Total_Energy),0)/100 -> 0 | BB13: =IFERROR('Rates Table'!BB13*IF(BB$6="Miniflex",(Low_Peak+Low_Standard),Low_Total_Energy),0)/100 -> 0 | BC13: =IFERROR('Rates Table'!BC13*IF(BC$6="Miniflex",(Low_Peak+Low_Standard),Low_Total_Energy),0)/100 -> 0 | BD13: =IFERROR('Rates Table'!BD13*IF(BD$6="Miniflex",(Low_Peak+Low_Standard),Low_Total_Energy),0)/100 -> 0 | BE13: =IFERROR('Rates Table'!BE13*IF(BE$6="Miniflex",(Low_Peak+Low_Standard),Low_Total_Energy),0)/100 -> 0 | BF13: =IFERROR('Rates Table'!BF13*IF(BF$6="Miniflex",(Low_Peak+Low_Standard),Low_Total_Energy),0)/100 -> 0 | BG13: =IFERROR('Rates Table'!BG13*IF(BG$6="Miniflex",(Low_Peak+Low_Standard),Low_Total_Energy),0)/100 -> 0 | BH13: =IFERROR('Rates Table'!BH13*IF(BH$6="Miniflex",(Low_Peak+Low_Standard),Low_Total_Energy),0)/100 -> 0 | BI13: =IFERROR('Rates Table'!BI13*IF(BI$6="Miniflex",(Low_Peak+Low_Standard),Low_Total_Energy),0)/100 -> 0 | BJ13: =IFERROR('Rates Table'!BJ13*IF(BJ$6="Miniflex",(Low_Peak+Low_Standard),Low_Total_Energy),0)/100 -> 0 | BK13: =IFERROR('Rates Table'!BK13*IF(BK$6="Miniflex",(Low_Peak+Low_Standard),Low_Total_Energy),0)/100 -> 0 | BL13: =IFERROR('Rates Table'!BL13*IF(BL$6="Miniflex",(Low_Peak+Low_Standard),Low_Total_Energy),0)/100 -> 0 | BM13: =IFERROR('Rates Table'!BM13*IF(BM$6="Miniflex",(Low_Peak+Low_Standard),Low_Total_Energy),0)/100 -> 0 | BN13: =IFERROR('Rates Table'!BN13*IF(BN$6="Miniflex",(Low_Peak+Low_Standard),Low_Total_Energy),0)/100 -> 0 | BO13: =IFERROR('Rates Table'!BO13*IF(BO$6="Miniflex",(Low_Peak+Low_Standard),Low_Total_Energy),0)/100 -> 0 | BP13: =IFERROR('Rates Table'!BP13*IF(BP$6="Miniflex",(Low_Peak+Low_Standard),Low_Total_Energy),0)/100 -> 0 | BQ13: =IFERROR('Rates Table'!BQ13*IF(BQ$6="Miniflex",(Low_Peak+Low_Standard),Low_Total_Energy),0)/100 -> 0
C14: Network demand charge, Ancillary service charge and retail | D14: c/kWh | E14: =INDEX(F14:AJ14,0,Selected_Tariff_ID) -> 0 | F14: =IFERROR('Rates Table'!F14*IF(F$6="Miniflex",(Low_Peak+Low_Standard),Low_Total_Energy),0)/100 -> 0 | G14: =IFERROR('Rates Table'!G14*IF(G$6="Miniflex",(Low_Peak+Low_Standard),Low_Total_Energy),0)/100 -> 0 | H14: =IFERROR('Rates Table'!H14*IF(H$6="Miniflex",(Low_Peak+Low_Standard),Low_Total_Energy),0)/100 -> 0 | I14: =IFERROR('Rates Table'!I14*IF(I$6="Miniflex",(Low_Peak+Low_Standard),Low_Total_Energy),0)/100 -> 0 | J14: =IFERROR('Rates Table'!J14*IF(J$6="Miniflex",(Low_Peak+Low_Standard),Low_Total_Energy),0)/100 -> 0 | K14: =IFERROR('Rates Table'!K14*IF(K$6="Miniflex",(Low_Peak+Low_Standard),Low_Total_Energy),0)/100 -> 0 | L14: =IFERROR('Rates Table'!L14*IF(L$6="Miniflex",(Low_Peak+Low_Standard),Low_Total_Energy),0)/100 -> 0 | M14: =IFERROR('Rates Table'!M14*IF(M$6="Miniflex",(Low_Peak+Low_Standard),Low_Total_Energy),0)/100 -> 0 | N14: =IFERROR('Rates Table'!N14*IF(N$6="Miniflex",(Low_Peak+Low_Standard),Low_Total_Energy),0)/100 -> 0 | O14: =IFERROR('Rates Table'!O14*IF(O$6="Miniflex",(Low_Peak+Low_Standard),Low_Total_Energy),0)/100 -> 0 | P14: =IFERROR('Rates Table'!P14*IF(P$6="Miniflex",(Low_Peak+Low_Standard),Low_Total_Energy),0)/100 -> 0 | Q14: =IFERROR('Rates Table'!Q14*IF(Q$6="Miniflex",(Low_Peak+Low_Standard),Low_Total_Energy),0)/100 -> 0 | R14: =IFERROR('Rates Table'!R14*IF(R$6="Miniflex",(Low_Peak+Low_Standard),Low_Total_Energy),0)/100 -> 0 | S14: =IFERROR('Rates Table'!S14*IF(S$6="Miniflex",(Low_Peak+Low_Standard),Low_Total_Energy),0)/100 -> 0 | T14: =IFERROR('Rates Table'!T14*IF(T$6="Miniflex",(Low_Peak+Low_Standard),Low_Total_Energy),0)/100 -> 0 | U14: =IFERROR('Rates Table'!U14*IF(U$6="Miniflex",(Low_Peak+Low_Standard),Low_Total_Energy),0)/100 -> 0 | V14: =IFERROR('Rates Table'!V14*IF(V$6="Miniflex",(Low_Peak+Low_Standard),Low_Total_Energy),0)/100 -> 0 | W14: =IFERROR('Rates Table'!W14*IF(W$6="Miniflex",(Low_Peak+Low_Standard),Low_Total_Energy),0)/100 -> 0 | X14: =IFERROR('Rates Table'!X14*IF(X$6="Miniflex",(Low_Peak+Low_Standard),Low_Total_Energy),0)/100 -> 0 | Y14: =IFERROR('Rates Table'!Y14*IF(Y$6="Miniflex",(Low_Peak+Low_Standard),Low_Total_Energy),0)/100 -> 0 | Z14: =IFERROR('Rates Table'!Z14*IF(Z$6="Miniflex",(Low_Peak+Low_Standard),Low_Total_Energy),0)/100 -> 0 | AA14: =IFERROR('Rates Table'!AA14*IF(AA$6="Miniflex",(Low_Peak+Low_Standard),Low_Total_Energy),0)/100 -> 0 | AB14: =IFERROR('Rates Table'!AB14*IF(AB$6="Miniflex",(Low_Peak+Low_Standard),Low_Total_Energy),0)/100 -> 0 | AC14: =IFERROR('Rates Table'!AC14*IF(AC$6="Miniflex",(Low_Peak+Low_Standard),Low_Total_Energy),0)/100 -> 0 | AD14: =IFERROR('Rates Table'!AD14*IF(AD$6="Miniflex",(Low_Peak+Low_Standard),Low_Total_Energy),0)/100 -> 0 | AE14: =IFERROR('Rates Table'!AE14*IF(AE$6="Miniflex",(Low_Peak+Low_Standard),Low_Total_Energy),0)/100 -> 0 | AF14: =IFERROR('Rates Table'!AF14*IF(AF$6="Miniflex",(Low_Peak+Low_Standard),Low_Total_Energy),0)/100 -> 0 | AG14: =IFERROR('Rates Table'!AG14*IF(AG$6="Miniflex",(Low_Peak+Low_Standard),Low_Total_Energy),0)/100 -> 0 | AH14: =IFERROR('Rates Table'!AH14*IF(AH$6="Miniflex",(Low_Peak+Low_Standard),Low_Total_Energy),0)/100 -> 0 | AI14: =IFERROR('Rates Table'!AI14*IF(AI$6="Miniflex",(Low_Peak+Low_Standard),Low_Total_Energy),0)/100 -> 0 | AJ14: =IFERROR('Rates Table'!AJ14*IF(AJ$6="Miniflex",(Low_Peak+Low_Standard),Low_Total_Energy),0)/100 -> 0 | AL14: =INDEX(AM14:BQ14,0,Selected_Tariff_ID) -> 0 | AM14: =IFERROR('Rates Table'!AM14*IF(AM$6="Miniflex",(Low_Peak+Low_Standard),Low_Total_Energy),0)/100 -> 0 | AN14: =IFERROR('Rates Table'!AN14*IF(AN$6="Miniflex",(Low_Peak+Low_Standard),Low_Total_Energy),0)/100 -> 0 | AO14: =IFERROR('Rates Table'!AO14*IF(AO$6="Miniflex",(Low_Peak+Low_Standard),Low_Total_Energy),0)/100 -> 0 | AP14: =IFERROR('Rates Table'!AP14*IF(AP$6="Miniflex",(Low_Peak+Low_Standard),Low_Total_Energy),0)/100 -> 0 | AQ14: =IFERROR('Rates Table'!AQ14*IF(AQ$6="Miniflex",(Low_Peak+Low_Standard),Low_Total_Energy),0)/100 -> 0 | AR14: =IFERROR('Rates Table'!AR14*IF(AR$6="Miniflex",(Low_Peak+Low_Standard),Low_Total_Energy),0)/100 -> 0 | AS14: =IFERROR('Rates Table'!AS14*IF(AS$6="Miniflex",(Low_Peak+Low_Standard),Low_Total_Energy),0)/100 -> 0 | AT14: =IFERROR('Rates Table'!AT14*IF(AT$6="Miniflex",(Low_Peak+Low_Standard),Low_Total_Energy),0)/100 -> 0 | AU14: =IFERROR('Rates Table'!AU14*IF(AU$6="Miniflex",(Low_Peak+Low_Standard),Low_Total_Energy),0)/100 -> 0 | AV14: =IFERROR('Rates Table'!AV14*IF(AV$6="Miniflex",(Low_Peak+Low_Standard),Low_Total_Energy),0)/100 -> 0 | AW14: =IFERROR('Rates Table'!AW14*IF(AW$6="Miniflex",(Low_Peak+Low_Standard),Low_Total_Energy),0)/100 -> 0 | AX14: =IFERROR('Rates Table'!AX14*IF(AX$6="Miniflex",(Low_Peak+Low_Standard),Low_Total_Energy),0)/100 -> 0 | AY14: =IFERROR('Rates Table'!AY14*IF(AY$6="Miniflex",(Low_Peak+Low_Standard),Low_Total_Energy),0)/100 -> 0 | AZ14: =IFERROR('Rates Table'!AZ14*IF(AZ$6="Miniflex",(Low_Peak+Low_Standard),Low_Total_Energy),0)/100 -> 0 | BA14: =IFERROR('Rates Table'!BA14*IF(BA$6="Miniflex",(Low_Peak+Low_Standard),Low_Total_Energy),0)/100 -> 0 | BB14: =IFERROR('Rates Table'!BB14*IF(BB$6="Miniflex",(Low_Peak+Low_Standard),Low_Total_Energy),0)/100 -> 0 | BC14: =IFERROR('Rates Table'!BC14*IF(BC$6="Miniflex",(Low_Peak+Low_Standard),Low_Total_Energy),0)/100 -> 0 | BD14: =IFERROR('Rates Table'!BD14*IF(BD$6="Miniflex",(Low_Peak+Low_Standard),Low_Total_Energy),0)/100 -> 0 | BE14: =IFERROR('Rates Table'!BE14*IF(BE$6="Miniflex",(Low_Peak+Low_Standard),Low_Total_Energy),0)/100 -> 0 | BF14: =IFERROR('Rates Table'!BF14*IF(BF$6="Miniflex",(Low_Peak+Low_Standard),Low_Total_Energy),0)/100 -> 0 | BG14: =IFERROR('Rates Table'!BG14*IF(BG$6="Miniflex",(Low_Peak+Low_Standard),Low_Total_Energy),0)/100 -> 0 | BH14: =IFERROR('Rates Table'!BH14*IF(BH$6="Miniflex",(Low_Peak+Low_Standard),Low_Total_Energy),0)/100 -> 0 | BI14: =IFERROR('Rates Table'!BI14*IF(BI$6="Miniflex",(Low_Peak+Low_Standard),Low_Total_Energy),0)/100 -> 0 | BJ14: =IFERROR('Rates Table'!BJ14*IF(BJ$6="Miniflex",(Low_Peak+Low_Standard),Low_Total_Energy),0)/100 -> 0 | BK14: =IFERROR('Rates Table'!BK14*IF(BK$6="Miniflex",(Low_Peak+Low_Standard),Low_Total_Energy),0)/100 -> 0 | BL14: =IFERROR('Rates Table'!BL14*IF(BL$6="Miniflex",(Low_Peak+Low_Standard),Low_Total_Energy),0)/100 -> 0 | BM14: =IFERROR('Rates Table'!BM14*IF(BM$6="Miniflex",(Low_Peak+Low_Standard),Low_Total_Energy),0)/100 -> 0 | BN14: =IFERROR('Rates Table'!BN14*IF(BN$6="Miniflex",(Low_Peak+Low_Standard),Low_Total_Energy),0)/100 -> 0 | BO14: =IFERROR('Rates Table'!BO14*IF(BO$6="Miniflex",(Low_Peak+Low_Standard),Low_Total_Energy),0)/100 -> 0 | BP14: =IFERROR('Rates Table'!BP14*IF(BP$6="Miniflex",(Low_Peak+Low_Standard),Low_Total_Energy),0)/100 -> 0 | BQ14: =IFERROR('Rates Table'!BQ14*IF(BQ$6="Miniflex",(Low_Peak+Low_Standard),Low_Total_Energy),0)/100 -> 0
C15: LV Subsidy Charge | D15: R/kVA | E15: 0 | F15: =IFERROR('Rates Table'!F15*Low_Utilised_Capacity,0) -> 0 | G15: =IFERROR('Rates Table'!G15*Low_Utilised_Capacity,0) -> 0 | H15: =IFERROR('Rates Table'!H15*Low_Utilised_Capacity,0) -> 0 | I15: =IFERROR('Rates Table'!I15*Low_Utilised_Capacity,0) -> 0 | J15: =IFERROR('Rates Table'!J15*Low_Utilised_Capacity,0) -> 0 | K15: =IFERROR('Rates Table'!K15*Low_Utilised_Capacity,0) -> 0 | L15: =IFERROR('Rates Table'!L15*Low_Utilised_Capacity,0) -> 0 | M15: =IFERROR('Rates Table'!M15*Low_Utilised_Capacity,0) -> 0 | N15: =IFERROR('Rates Table'!N15*Low_Utilised_Capacity,0) -> 0 | O15: =IFERROR('Rates Table'!O15*Low_Utilised_Capacity,0) -> 0 | P15: =IFERROR('Rates Table'!P15*Low_Utilised_Capacity,0) -> 0 | Q15: =IFERROR('Rates Table'!Q15*Low_Utilised_Capacity,0) -> 0 | R15: =IFERROR('Rates Table'!R15*Low_Utilised_Capacity,0) -> 0 | S15: =IFERROR('Rates Table'!S15*Low_Utilised_Capacity,0) -> 0 | T15: =IFERROR('Rates Table'!T15*Low_Utilised_Capacity,0) -> 0 | U15: =IFERROR('Rates Table'!U15*Low_Utilised_Capacity,0) -> 0 | V15: =IFERROR('Rates Table'!V15*Low_Utilised_Capacity,0) -> 0 | W15: =IFERROR('Rates Table'!W15*Low_Utilised_Capacity,0) -> 0 | X15: =IFERROR('Rates Table'!X15*Low_Utilised_Capacity,0) -> 0 | Y15: =IFERROR('Rates Table'!Y15*Low_Utilised_Capacity,0) -> 0 | Z15: =IFERROR('Rates Table'!Z15*Low_Utilised_Capacity,0) -> 0 | AA15: =IFERROR('Rates Table'!AA15*Low_Utilised_Capacity,0) -> 0 | AB15: =IFERROR('Rates Table'!AB15*Low_Utilised_Capacity,0) -> 0 | AC15: =IFERROR('Rates Table'!AC15*Low_Utilised_Capacity,0) -> 0 | AD15: =IFERROR('Rates Table'!AD15*Low_Utilised_Capacity,0) -> 0 | AE15: =IFERROR('Rates Table'!AE15*Low_Utilised_Capacity,0) -> 0 | AF15: =IFERROR('Rates Table'!AF15*Low_Utilised_Capacity,0) -> 0 | AG15: =IFERROR('Rates Table'!AG15*Low_Utilised_Capacity,0) -> 0 | AH15: =IFERROR('Rates Table'!AH15*Low_Utilised_Capacity,0) -> 0 | AI15: =IFERROR('Rates Table'!AI15*Low_Utilised_Capacity,0) -> 0 | AJ15: =IFERROR('Rates Table'!AJ15*Low_Utilised_Capacity,0) -> 0 | AL15: 0 | AM15: =IFERROR('Rates Table'!AM15*Low_Utilised_Capacity,0) -> 0 | AN15: =IFERROR('Rates Table'!AN15*Low_Utilised_Capacity,0) -> 0 | AO15: =IFERROR('Rates Table'!AO15*Low_Utilised_Capacity,0) -> 0 | AP15: =IFERROR('Rates Table'!AP15*Low_Utilised_Capacity,0) -> 0 | AQ15: =IFERROR('Rates Table'!AQ15*Low_Utilised_Capacity,0) -> 0 | AR15: =IFERROR('Rates Table'!AR15*Low_Utilised_Capacity,0) -> 0 | AS15: =IFERROR('Rates Table'!AS15*Low_Utilised_Capacity,0) -> 0 | AT15: =IFERROR('Rates Table'!AT15*Low_Utilised_Capacity,0) -> 0 | AU15: =IFERROR('Rates Table'!AU15*Low_Utilised_Capacity,0) -> 0 | AV15: =IFERROR('Rates Table'!AV15*Low_Utilised_Capacity,0) -> 0 | AW15: =IFERROR('Rates Table'!AW15*Low_Utilised_Capacity,0) -> 0 | AX15: =IFERROR('Rates Table'!AX15*Low_Utilised_Capacity,0) -> 0 | AY15: =IFERROR('Rates Table'!AY15*Low_Utilised_Capacity,0) -> 0 | AZ15: =IFERROR('Rates Table'!AZ15*Low_Utilised_Capacity,0) -> 0 | BA15: =IFERROR('Rates Table'!BA15*Low_Utilised_Capacity,0) -> 0 | BB15: =IFERROR('Rates Table'!BB15*Low_Utilised_Capacity,0) -> 0 | BC15: =IFERROR('Rates Table'!BC15*Low_Utilised_Capacity,0) -> 0 | BD15: =IFERROR('Rates Table'!BD15*Low_Utilised_Capacity,0) -> 0 | BE15: =IFERROR('Rates Table'!BE15*Low_Utilised_Capacity,0) -> 0 | BF15: =IFERROR('Rates Table'!BF15*Low_Utilised_Capacity,0) -> 0 | BG15: =IFERROR('Rates Table'!BG15*Low_Utilised_Capacity,0) -> 0 | BH15: =IFERROR('Rates Table'!BH15*Low_Utilised_Capacity,0) -> 0 | BI15: =IFERROR('Rates Table'!BI15*Low_Utilised_Capacity,0) -> 0 | BJ15: =IFERROR('Rates Table'!BJ15*Low_Utilised_Capacity,0) -> 0 | BK15: =IFERROR('Rates Table'!BK15*Low_Utilised_Capacity,0) -> 0 | BL15: =IFERROR('Rates Table'!BL15*Low_Utilised_Capacity,0) -> 0 | BM15: =IFERROR('Rates Table'!BM15*Low_Utilised_Capacity,0) -> 0 | BN15: =IFERROR('Rates Table'!BN15*Low_Utilised_Capacity,0) -> 0 | BO15: =IFERROR('Rates Table'!BO15*Low_Utilised_Capacity,0) -> 0 | BP15: =IFERROR('Rates Table'!BP15*Low_Utilised_Capacity,0) -> 0 | BQ15: =IFERROR('Rates Table'!BQ15*Low_Utilised_Capacity,0) -> 0
C16: Network capacity charge | D16: =IF(Table_1=1,"R/kVA","R/day") -> R/day | E16: 4772.04 | F16: =IFERROR(IF(F52=1,'Rates Table'!F16*Low_Utilised_Capacity,'Rates Table'!F16*PODs*Low_Days),0) -> 10283.91 | G16: =IFERROR(IF(G52=1,'Rates Table'!G16*Low_Utilised_Capacity,'Rates Table'!G16*PODs*Low_Days),0) -> 17330.04 | H16: =IFERROR(IF(H52=1,'Rates Table'!H16*Low_Utilised_Capacity,'Rates Table'!H16*PODs*Low_Days),0) -> 29939.91 | I16: =IFERROR(IF(I52=1,'Rates Table'!I16*Low_Utilised_Capacity,'Rates Table'!I16*PODs*Low_Days),0) -> 0 | J16: =IFERROR(IF(J52=1,'Rates Table'!J16*Low_Utilised_Capacity,'Rates Table'!J16*PODs*Low_Days),0) -> 0 | K16: =IFERROR(IF(K52=1,'Rates Table'!K16*Low_Utilised_Capacity,'Rates Table'!K16*PODs*Low_Days),0) -> 0 | L16: =IFERROR(IF(L52=1,'Rates Table'!L16*Low_Utilised_Capacity,'Rates Table'!L16*PODs*Low_Days),0) -> 2547.09 | M16: =IFERROR(IF(M52=1,'Rates Table'!M16*Low_Utilised_Capacity,'Rates Table'!M16*PODs*Low_Days),0) -> 4772.04 | N16: =IFERROR(IF(N52=1,'Rates Table'!N16*Low_Utilised_Capacity,'Rates Table'!N16*PODs*Low_Days),0) -> 9852.57 | O16: =IFERROR(IF(O52=1,'Rates Table'!O16*Low_Utilised_Capacity,'Rates Table'!O16*PODs*Low_Days),0) -> 1556.1 | P16: =IFERROR(IF(P52=1,'Rates Table'!P16*Low_Utilised_Capacity,'Rates Table'!P16*PODs*Low_Days),0) -> 16156.14 | Q16: =IFERROR(IF(Q52=1,'Rates Table'!Q16*Low_Utilised_Capacity,'Rates Table'!Q16*PODs*Low_Days),0) -> 13483.47 | R16: =IFERROR(IF(R52=1,'Rates Table'!R16*Low_Utilised_Capacity,'Rates Table'!R16*PODs*Low_Days),0) -> 20726.16 | S16: =IFERROR(IF(S52=1,'Rates Table'!S16*Low_Utilised_Capacity,'Rates Table'!S16*PODs*Low_Days),0) -> 33136.74 | T16: =IFERROR(IF(T52=1,'Rates Table'!T16*Low_Utilised_Capacity,'Rates Table'!T16*PODs*Low_Days),0) -> 10737.09 | U16: =IFERROR(IF(U52=1,'Rates Table'!U16*Low_Utilised_Capacity,'Rates Table'!U16*PODs*Low_Days),0) -> 0 | V16: =IFERROR(IF(V52=1,'Rates Table'!V16*Low_Utilised_Capacity,'Rates Table'!V16*PODs*Low_Days),0) -> 0 | W16: =IFERROR(IF(W52=1,'Rates Table'!W16*Low_Utilised_Capacity,'Rates Table'!W16*PODs*Low_Days),0) -> 0 | X16: =IFERROR(IF(X52=1,'Rates Table'!X16*Low_Utilised_Capacity,'Rates Table'!X16*PODs*Low_Days),0) -> 0 | Y16: =IFERROR(IF(Y52=1,'Rates Table'!Y16*Low_Utilised_Capacity,'Rates Table'!Y16*PODs*Low_Days),0) -> 0 | Z16: =IFERROR(IF(Z52=1,'Rates Table'!Z16*Low_Utilised_Capacity,'Rates Table'!Z16*PODs*Low_Days),0) -> 0 | AA16: =IFERROR(IF(AA52=1,'Rates Table'!AA16*Low_Utilised_Capacity,'Rates Table'!AA16*PODs*Low_Days),0) -> 0 | AB16: =IFERROR(IF(AB52=1,'Rates Table'!AB16*Low_Utilised_Capacity,'Rates Table'!AB16*PODs*Low_Days),0) -> 0 | AC16: =IFERROR(IF(AC52=1,'Rates Table'!AC16*Low_Utilised_Capacity,'Rates Table'!AC16*PODs*Low_Days),0) -> 0 | AD16: =IFERROR(IF(AD52=1,'Rates Table'!AD16*Low_Utilised_Capacity,'Rates Table'!AD16*PODs*Low_Days),0) -> 0 | AE16: =IFERROR(IF(AE52=1,'Rates Table'!AE16*Low_Utilised_Capacity,'Rates Table'!AE16*PODs*Low_Days),0) -> 0 | AF16: =IFERROR(IF(AF52=1,'Rates Table'!AF16*Low_Utilised_Capacity,'Rates Table'!AF16*PODs*Low_Days),0) -> 0 | AG16: =IFERROR(IF(AG52=1,'Rates Table'!AG16*Low_Utilised_Capacity,'Rates Table'!AG16*PODs*Low_Days),0) -> 0 | AH16: =IFERROR(IF(AH52=1,'Rates Table'!AH16*Low_Utilised_Capacity,'Rates Table'!AH16*PODs*Low_Days),0) -> 0 | AI16: =IFERROR(IF(AI52=1,'Rates Table'!AI16*Low_Utilised_Capacity,'Rates Table'!AI16*PODs*Low_Days),0) -> 0 | AJ16: =IFERROR(IF(AJ52=1,'Rates Table'!AJ16*Low_Utilised_Capacity,'Rates Table'!AJ16*PODs*Low_Days),0) -> 0 | AL16: 5380.83 | AM16: =IFERROR(IF(AM52=1,'Rates Table'!AM16*Low_Utilised_Capacity,'Rates Table'!AM16*PODs*Low_Days),0) -> 11594.31 | AN16: =IFERROR(IF(AN52=1,'Rates Table'!AN16*Low_Utilised_Capacity,'Rates Table'!AN16*PODs*Low_Days),0) -> 19538.61 | AO16: =IFERROR(IF(AO52=1,'Rates Table'!AO16*Low_Utilised_Capacity,'Rates Table'!AO16*PODs*Low_Days),0) -> 33753.72 | AP16: =IFERROR(IF(AP52=1,'Rates Table'!AP16*Low_Utilised_Capacity,'Rates Table'!AP16*PODs*Low_Days),0) -> 0 | AQ16: =IFERROR(IF(AQ52=1,'Rates Table'!AQ16*Low_Utilised_Capacity,'Rates Table'!AQ16*PODs*Low_Days),0) -> 0 | AR16: =IFERROR(IF(AR52=1,'Rates Table'!AR16*Low_Utilised_Capacity,'Rates Table'!AR16*PODs*Low_Days),0) -> 0 | AS16: =IFERROR(IF(AS52=1,'Rates Table'!AS16*Low_Utilised_Capacity,'Rates Table'!AS16*PODs*Low_Days),0) -> 2871.96 | AT16: =IFERROR(IF(AT52=1,'Rates Table'!AT16*Low_Utilised_Capacity,'Rates Table'!AT16*PODs*Low_Days),0) -> 5380.83 | AU16: =IFERROR(IF(AU52=1,'Rates Table'!AU16*Low_Utilised_Capacity,'Rates Table'!AU16*PODs*Low_Days),0) -> 11108.37 | AV16: =IFERROR(IF(AV52=1,'Rates Table'!AV16*Low_Utilised_Capacity,'Rates Table'!AV16*PODs*Low_Days),0) -> 1755.39 | AW16: =IFERROR(IF(AW52=1,'Rates Table'!AW16*Low_Utilised_Capacity,'Rates Table'!AW16*PODs*Low_Days),0) -> 18214.56 | AX16: =IFERROR(IF(AX52=1,'Rates Table'!AX16*Low_Utilised_Capacity,'Rates Table'!AX16*PODs*Low_Days),0) -> 15200.64 | AY16: =IFERROR(IF(AY52=1,'Rates Table'!AY16*Low_Utilised_Capacity,'Rates Table'!AY16*PODs*Low_Days),0) -> 23366.07 | AZ16: =IFERROR(IF(AZ52=1,'Rates Table'!AZ16*Low_Utilised_Capacity,'Rates Table'!AZ16*PODs*Low_Days),0) -> 37357.32 | BA16: =IFERROR(IF(BA52=1,'Rates Table'!BA16*Low_Utilised_Capacity,'Rates Table'!BA16*PODs*Low_Days),0) -> 12104.82 | BB16: =IFERROR(IF(BB52=1,'Rates Table'!BB16*Low_Utilised_Capacity,'Rates Table'!BB16*PODs*Low_Days),0) -> 0 | BC16: =IFERROR(IF(BC52=1,'Rates Table'!BC16*Low_Utilised_Capacity,'Rates Table'!BC16*PODs*Low_Days),0) -> 0 | BD16: =IFERROR(IF(BD52=1,'Rates Table'!BD16*Low_Utilised_Capacity,'Rates Table'!BD16*PODs*Low_Days),0) -> 0 | BE16: =IFERROR(IF(BE52=1,'Rates Table'!BE16*Low_Utilised_Capacity,'Rates Table'!BE16*PODs*Low_Days),0) -> 0 | BF16: =IFERROR(IF(BF52=1,'Rates Table'!BF16*Low_Utilised_Capacity,'Rates Table'!BF16*PODs*Low_Days),0) -> 0 | BG16: =IFERROR(IF(BG52=1,'Rates Table'!BG16*Low_Utilised_Capacity,'Rates Table'!BG16*PODs*Low_Days),0) -> 0 | BH16: =IFERROR(IF(BH52=1,'Rates Table'!BH16*Low_Utilised_Capacity,'Rates Table'!BH16*PODs*Low_Days),0) -> 0 | BI16: =IFERROR(IF(BI52=1,'Rates Table'!BI16*Low_Utilised_Capacity,'Rates Table'!BI16*PODs*Low_Days),0) -> 0 | BJ16: =IFERROR(IF(BJ52=1,'Rates Table'!BJ16*Low_Utilised_Capacity,'Rates Table'!BJ16*PODs*Low_Days),0) -> 0 | BK16: =IFERROR(IF(BK52=1,'Rates Table'!BK16*Low_Utilised_Capacity,'Rates Table'!BK16*PODs*Low_Days),0) -> 0 | BL16: =IFERROR(IF(BL52=1,'Rates Table'!BL16*Low_Utilised_Capacity,'Rates Table'!BL16*PODs*Low_Days),0) -> 0 | BM16: =IFERROR(IF(BM52=1,'Rates Table'!BM16*Low_Utilised_Capacity,'Rates Table'!BM16*PODs*Low_Days),0) -> 0 | BN16: =IFERROR(IF(BN52=1,'Rates Table'!BN16*Low_Utilised_Capacity,'Rates Table'!BN16*PODs*Low_Days),0) -> 2871.96 | BO16: =IFERROR(IF(BO52=1,'Rates Table'!BO16*Low_Utilised_Capacity,'Rates Table'!BO16*PODs*Low_Days),0) -> 5380.83 | BP16: =IFERROR(IF(BP52=1,'Rates Table'!BP16*Low_Utilised_Capacity,'Rates Table'!BP16*PODs*Low_Days),0) -> 11108.37 | BQ16: =IFERROR(IF(BQ52=1,'Rates Table'!BQ16*Low_Utilised_Capacity,'Rates Table'!BQ16*PODs*Low_Days),0) -> 1755.39
B18: Total network charges | E18: =SUM(E10:E16) -> 4772.04 | F18: =SUM(F10:F16) -> 10283.91 | G18: 17330.04 | H18: 29939.91 | I18: 0 | J18: 0 | K18: 0 | L18: 2547.09 | M18: 4772.04 | N18: 9852.57 | O18: 1556.1 | P18: 16156.14 | Q18: 13483.47 | R18: 20726.16 | S18: 33136.74 | T18: 10737.09 | U18: 0 | V18: 0 | W18: 0 | X18: 0 | Y18: 0 | Z18: 0 | AA18: 0 | AB18: =SUM(AB10:AB16) -> 0 | AC18: 0 | AD18: 0 | AE18: 0 | AF18: 0 | AG18: 0 | AH18: =SUM(AH10:AH16) -> 0 | AI18: 0 | AJ18: 0 | AL18: =SUM(AL10:AL16) -> 5380.83 | AM18: =SUM(AM10:AM16) -> 11594.31 | AN18: 19538.61 | AO18: 33753.72 | AP18: 0 | AQ18: 0 | AR18: 0 | AS18: 2871.96 | AT18: 5380.83 | AU18: 11108.37 | AV18: 1755.39 | AW18: 18214.56 | AX18: 15200.64 | AY18: 23366.07 | AZ18: 37357.32 | BA18: 12104.82 | BB18: 0 | BC18: 0 | BD18: 0 | BE18: 0 | BF18: 0 | BG18: 0 | BH18: 0 | BI18: =SUM(BI10:BI16) -> 0 | BJ18: 0 | BK18: 0 | BL18: 0 | BM18: 0 | BN18: 2871.96 | BO18: =SUM(BO10:BO16) -> 5380.83 | BP18: 11108.37 | BQ18: 1755.39
B20: Energy charges - low | D20: Units | E20: =E$8 -> 2023/2024 Rates | F20: =F$8 -> 2023/2024 Rates | G20: 2023/2024 Rates | H20: 2023/2024 Rates | I20: 2023/2024 Rates | J20: 2023/2024 Rates | K20: 2023/2024 Rates | L20: 2023/2024 Rates | M20: 2023/2024 Rates | N20: 2023/2024 Rates | O20: 2023/2024 Rates | P20: 2023/2024 Rates | Q20: 2023/2024 Rates | R20: 2023/2024 Rates | S20: 2023/2024 Rates | T20: 2023/2024 Rates | U20: 2023/2024 Rates | V20: 2023/2024 Rates | W20: 2023/2024 Rates | X20: 2023/2024 Rates | Y20: 2023/2024 Rates | Z20: 2023/2024 Rates | AA20: 2023/2024 Rates | AB20: 2023/2024 Rates | AC20: 2023/2024 Rates | AD20: 2023/2024 Rates | AE20: 2023/2024 Rates | AF20: 2023/2024 Rates | AG20: 2023/2024 Rates | AH20: 2023/2024 Rates | AI20: 2023/2024 Rates | AJ20: 2023/2024 Rates | AL20: =AL$8 -> 2024/2025 Rates | AM20: =AM$8 -> 2024/2025 Rates | AN20: 2024/2025 Rates | AO20: 2024/2025 Rates | AP20: 2024/2025 Rates | AQ20: 2024/2025 Rates | AR20: 2024/2025 Rates | AS20: 2024/2025 Rates | AT20: 2024/2025 Rates | AU20: 2024/2025 Rates | AV20: 2024/2025 Rates | AW20: 2024/2025 Rates | AX20: 2024/2025 Rates | AY20: 2024/2025 Rates | AZ20: 2024/2025 Rates | BA20: 2024/2025 Rates | BB20: 2024/2025 Rates | BC20: 2024/2025 Rates | BD20: 2024/2025 Rates | BE20: 2024/2025 Rates | BF20: 2024/2025 Rates | BG20: 2024/2025 Rates | BH20: 2024/2025 Rates | BI20: 2024/2025 Rates | BJ20: 2024/2025 Rates | BK20: 2024/2025 Rates | BL20: 2024/2025 Rates | BM20: 2024/2025 Rates | BN20: 2024/2025 Rates | BO20: 2024/2025 Rates | BP20: 2024/2025 Rates | BQ20: 2024/2025 Rates
C22: Peak consumption | D22: c/kWh | E22: =INDEX(F22:AJ22,0,Selected_Tariff_ID) -> 0 | F22: =IFERROR('Rates Table'!F35*Low_Peak,0)/100 -> 0 | G22: =IFERROR('Rates Table'!G35*Low_Peak,0)/100 -> 0 | H22: =IFERROR('Rates Table'!H35*Low_Peak,0)/100 -> 0 | I22: =IFERROR('Rates Table'!I35*Low_Peak,0)/100 -> 0 | J22: =IFERROR('Rates Table'!J35*Low_Peak,0)/100 -> 0 | K22: =IFERROR('Rates Table'!K35*Low_Peak,0)/100 -> 0 | L22: =IFERROR('Rates Table'!L35*Low_Peak,0)/100 -> 0 | M22: =IFERROR('Rates Table'!M35*Low_Peak,0)/100 -> 0 | N22: =IFERROR('Rates Table'!N35*Low_Peak,0)/100 -> 0 | O22: =IFERROR('Rates Table'!O35*Low_Peak,0)/100 -> 0 | P22: =IFERROR('Rates Table'!P35*Low_Peak,0)/100 -> 0 | Q22: =IFERROR('Rates Table'!Q35*Low_Peak,0)/100 -> 0 | R22: =IFERROR('Rates Table'!R35*Low_Peak,0)/100 -> 0 | S22: =IFERROR('Rates Table'!S35*Low_Peak,0)/100 -> 0 | T22: =IFERROR('Rates Table'!T35*Low_Peak,0)/100 -> 0 | U22: =IFERROR('Rates Table'!U35*Low_Peak,0)/100 -> 0 | V22: =IFERROR('Rates Table'!V35*Low_Peak,0)/100 -> 0 | W22: =IFERROR('Rates Table'!W35*Low_Peak,0)/100 -> 0 | X22: =IFERROR('Rates Table'!X35*Low_Peak,0)/100 -> 0 | Y22: =IFERROR('Rates Table'!Y35*Low_Peak,0)/100 -> 0 | Z22: =IFERROR('Rates Table'!Z35*Low_Peak,0)/100 -> 0 | AA22: =IFERROR('Rates Table'!AA35*Low_Peak,0)/100 -> 0 | AB22: =IFERROR('Rates Table'!AB35*Low_Peak,0)/100 -> 0 | AC22: =IFERROR('Rates Table'!AC35*Low_Peak,0)/100 -> 0 | AD22: =IFERROR('Rates Table'!AD35*Low_Peak,0)/100 -> 0 | AE22: =IFERROR('Rates Table'!AE35*Low_Peak,0)/100 -> 0 | AF22: =IFERROR('Rates Table'!AF35*Low_Peak,0)/100 -> 0 | AG22: =IFERROR('Rates Table'!AG35*Low_Peak,0)/100 -> 0 | AH22: =IFERROR('Rates Table'!AH35*Low_Peak,0)/100 -> 0 | AI22: =IFERROR('Rates Table'!AI35*Low_Peak,0)/100 -> 0 | AJ22: =IFERROR('Rates Table'!AJ35*Low_Peak,0)/100 -> 0 | AL22: =INDEX(AM22:BQ22,0,Selected_Tariff_ID) -> 0 | AM22: =IFERROR('Rates Table'!AM35*Low_Peak,0)/100 -> 0 | AN22: =IFERROR('Rates Table'!AN35*Low_Peak,0)/100 -> 0 | AO22: =IFERROR('Rates Table'!AO35*Low_Peak,0)/100 -> 0 | AP22: =IFERROR('Rates Table'!AP35*Low_Peak,0)/100 -> 0 | AQ22: =IFERROR('Rates Table'!AQ35*Low_Peak,0)/100 -> 0 | AR22: =IFERROR('Rates Table'!AR35*Low_Peak,0)/100 -> 0 | AS22: =IFERROR('Rates Table'!AS35*Low_Peak,0)/100 -> 0 | AT22: =IFERROR('Rates Table'!AT35*Low_Peak,0)/100 -> 0 | AU22: =IFERROR('Rates Table'!AU35*Low_Peak,0)/100 -> 0 | AV22: =IFERROR('Rates Table'!AV35*Low_Peak,0)/100 -> 0 | AW22: =IFERROR('Rates Table'!AW35*Low_Peak,0)/100 -> 0 | AX22: =IFERROR('Rates Table'!AX35*Low_Peak,0)/100 -> 0 | AY22: =IFERROR('Rates Table'!AY35*Low_Peak,0)/100 -> 0 | AZ22: =IFERROR('Rates Table'!AZ35*Low_Peak,0)/100 -> 0 | BA22: =IFERROR('Rates Table'!BA35*Low_Peak,0)/100 -> 0 | BB22: =IFERROR('Rates Table'!BB35*Low_Peak,0)/100 -> 0 | BC22: =IFERROR('Rates Table'!BC35*Low_Peak,0)/100 -> 0 | BD22: =IFERROR('Rates Table'!BD35*Low_Peak,0)/100 -> 0 | BE22: =IFERROR('Rates Table'!BE35*Low_Peak,0)/100 -> 0 | BF22: =IFERROR('Rates Table'!BF35*Low_Peak,0)/100 -> 0 | BG22: =IFERROR('Rates Table'!BG35*Low_Peak,0)/100 -> 0 | BH22: =IFERROR('Rates Table'!BH35*Low_Peak,0)/100 -> 0 | BI22: =IFERROR('Rates Table'!BI35*Low_Peak,0)/100 -> 0 | BJ22: =IFERROR('Rates Table'!BJ35*Low_Peak,0)/100 -> 0 | BK22: =IFERROR('Rates Table'!BK35*Low_Peak,0)/100 -> 0 | BL22: =IFERROR('Rates Table'!BL35*Low_Peak,0)/100 -> 0 | BM22: =IFERROR('Rates Table'!BM35*Low_Peak,0)/100 -> 0 | BN22: =IFERROR('Rates Table'!BN35*Low_Peak,0)/100 -> 0 | BO22: =IFERROR('Rates Table'!BO35*Low_Peak,0)/100 -> 0 | BP22: =IFERROR('Rates Table'!BP35*Low_Peak,0)/100 -> 0 | BQ22: =IFERROR('Rates Table'!BQ35*Low_Peak,0)/100 -> 0
C23: Standard consumption | D23: c/kWh | E23: 0 | F23: =IFERROR('Rates Table'!F36*Low_Standard,0)/100 -> 0 | G23: =IFERROR('Rates Table'!G36*Low_Standard,0)/100 -> 0 | H23: =IFERROR('Rates Table'!H36*Low_Standard,0)/100 -> 0 | I23: =IFERROR('Rates Table'!I36*Low_Standard,0)/100 -> 0 | J23: =IFERROR('Rates Table'!J36*Low_Standard,0)/100 -> 0 | K23: =IFERROR('Rates Table'!K36*Low_Standard,0)/100 -> 0 | L23: =IFERROR('Rates Table'!L36*Low_Standard,0)/100 -> 0 | M23: =IFERROR('Rates Table'!M36*Low_Standard,0)/100 -> 0 | N23: =IFERROR('Rates Table'!N36*Low_Standard,0)/100 -> 0 | O23: =IFERROR('Rates Table'!O36*Low_Standard,0)/100 -> 0 | P23: =IFERROR('Rates Table'!P36*Low_Standard,0)/100 -> 0 | Q23: =IFERROR('Rates Table'!Q36*Low_Standard,0)/100 -> 0 | R23: =IFERROR('Rates Table'!R36*Low_Standard,0)/100 -> 0 | S23: =IFERROR('Rates Table'!S36*Low_Standard,0)/100 -> 0 | T23: =IFERROR('Rates Table'!T36*Low_Standard,0)/100 -> 0 | U23: =IFERROR('Rates Table'!U36*Low_Standard,0)/100 -> 0 | V23: =IFERROR('Rates Table'!V36*Low_Standard,0)/100 -> 0 | W23: =IFERROR('Rates Table'!W36*Low_Standard,0)/100 -> 0 | X23: =IFERROR('Rates Table'!X36*Low_Standard,0)/100 -> 0 | Y23: =IFERROR('Rates Table'!Y36*Low_Standard,0)/100 -> 0 | Z23: =IFERROR('Rates Table'!Z36*Low_Standard,0)/100 -> 0 | AA23: =IFERROR('Rates Table'!AA36*Low_Standard,0)/100 -> 0 | AB23: =IFERROR('Rates Table'!AB36*Low_Standard,0)/100 -> 0 | AC23: =IFERROR('Rates Table'!AC36*Low_Standard,0)/100 -> 0 | AD23: =IFERROR('Rates Table'!AD36*Low_Standard,0)/100 -> 0 | AE23: =IFERROR('Rates Table'!AE36*Low_Standard,0)/100 -> 0 | AF23: =IFERROR('Rates Table'!AF36*Low_Standard,0)/100 -> 0 | AG23: =IFERROR('Rates Table'!AG36*Low_Standard,0)/100 -> 0 | AH23: =IFERROR('Rates Table'!AH36*Low_Standard,0)/100 -> 0 | AI23: =IFERROR('Rates Table'!AI36*Low_Standard,0)/100 -> 0 | AJ23: =IFERROR('Rates Table'!AJ36*Low_Standard,0)/100 -> 0 | AL23: 0 | AM23: =IFERROR('Rates Table'!AM36*Low_Standard,0)/100 -> 0 | AN23: =IFERROR('Rates Table'!AN36*Low_Standard,0)/100 -> 0 | AO23: =IFERROR('Rates Table'!AO36*Low_Standard,0)/100 -> 0 | AP23: =IFERROR('Rates Table'!AP36*Low_Standard,0)/100 -> 0 | AQ23: =IFERROR('Rates Table'!AQ36*Low_Standard,0)/100 -> 0 | AR23: =IFERROR('Rates Table'!AR36*Low_Standard,0)/100 -> 0 | AS23: =IFERROR('Rates Table'!AS36*Low_Standard,0)/100 -> 0 | AT23: =IFERROR('Rates Table'!AT36*Low_Standard,0)/100 -> 0 | AU23: =IFERROR('Rates Table'!AU36*Low_Standard,0)/100 -> 0 | AV23: =IFERROR('Rates Table'!AV36*Low_Standard,0)/100 -> 0 | AW23: =IFERROR('Rates Table'!AW36*Low_Standard,0)/100 -> 0 | AX23: =IFERROR('Rates Table'!AX36*Low_Standard,0)/100 -> 0 | AY23: =IFERROR('Rates Table'!AY36*Low_Standard,0)/100 -> 0 | AZ23: =IFERROR('Rates Table'!AZ36*Low_Standard,0)/100 -> 0 | BA23: =IFERROR('Rates Table'!BA36*Low_Standard,0)/100 -> 0 | BB23: =IFERROR('Rates Table'!BB36*Low_Standard,0)/100 -> 0 | BC23: =IFERROR('Rates Table'!BC36*Low_Standard,0)/100 -> 0 | BD23: =IFERROR('Rates Table'!BD36*Low_Standard,0)/100 -> 0 | BE23: =IFERROR('Rates Table'!BE36*Low_Standard,0)/100 -> 0 | BF23: =IFERROR('Rates Table'!BF36*Low_Standard,0)/100 -> 0 | BG23: =IFERROR('Rates Table'!BG36*Low_Standard,0)/100 -> 0 | BH23: =IFERROR('Rates Table'!BH36*Low_Standard,0)/100 -> 0 | BI23: =IFERROR('Rates Table'!BI36*Low_Standard,0)/100 -> 0 | BJ23: =IFERROR('Rates Table'!BJ36*Low_Standard,0)/100 -> 0 | BK23: =IFERROR('Rates Table'!BK36*Low_Standard,0)/100 -> 0 | BL23: =IFERROR('Rates Table'!BL36*Low_Standard,0)/100 -> 0 | BM23: =IFERROR('Rates Table'!BM36*Low_Standard,0)/100 -> 0 | BN23: =IFERROR('Rates Table'!BN36*Low_Standard,0)/100 -> 0 | BO23: =IFERROR('Rates Table'!BO36*Low_Standard,0)/100 -> 0 | BP23: =IFERROR('Rates Table'!BP36*Low_Standard,0)/100 -> 0 | BQ23: =IFERROR('Rates Table'!BQ36*Low_Standard,0)/100 -> 0
C24: Off-Peak consumption | D24: c/kWh | E24: 0 | F24: =IFERROR('Rates Table'!F37*Low_OffPeak,0)/100 -> 0 | G24: =IFERROR('Rates Table'!G37*Low_OffPeak,0)/100 -> 0 | H24: =IFERROR('Rates Table'!H37*Low_OffPeak,0)/100 -> 0 | I24: =IFERROR('Rates Table'!I37*Low_OffPeak,0)/100 -> 0 | J24: =IFERROR('Rates Table'!J37*Low_OffPeak,0)/100 -> 0 | K24: =IFERROR('Rates Table'!K37*Low_OffPeak,0)/100 -> 0 | L24: =IFERROR('Rates Table'!L37*Low_OffPeak,0)/100 -> 0 | M24: =IFERROR('Rates Table'!M37*Low_OffPeak,0)/100 -> 0 | N24: =IFERROR('Rates Table'!N37*Low_OffPeak,0)/100 -> 0 | O24: =IFERROR('Rates Table'!O37*Low_OffPeak,0)/100 -> 0 | P24: =IFERROR('Rates Table'!P37*Low_OffPeak,0)/100 -> 0 | Q24: =IFERROR('Rates Table'!Q37*Low_OffPeak,0)/100 -> 0 | R24: =IFERROR('Rates Table'!R37*Low_OffPeak,0)/100 -> 0 | S24: =IFERROR('Rates Table'!S37*Low_OffPeak,0)/100 -> 0 | T24: =IFERROR('Rates Table'!T37*Low_OffPeak,0)/100 -> 0 | U24: =IFERROR('Rates Table'!U37*Low_OffPeak,0)/100 -> 0 | V24: =IFERROR('Rates Table'!V37*Low_OffPeak,0)/100 -> 0 | W24: =IFERROR('Rates Table'!W37*Low_OffPeak,0)/100 -> 0 | X24: =IFERROR('Rates Table'!X37*Low_OffPeak,0)/100 -> 0 | Y24: =IFERROR('Rates Table'!Y37*Low_OffPeak,0)/100 -> 0 | Z24: =IFERROR('Rates Table'!Z37*Low_OffPeak,0)/100 -> 0 | AA24: =IFERROR('Rates Table'!AA37*Low_OffPeak,0)/100 -> 0 | AB24: =IFERROR('Rates Table'!AB37*Low_OffPeak,0)/100 -> 0 | AC24: =IFERROR('Rates Table'!AC37*Low_OffPeak,0)/100 -> 0 | AD24: =IFERROR('Rates Table'!AD37*Low_OffPeak,0)/100 -> 0 | AE24: =IFERROR('Rates Table'!AE37*Low_OffPeak,0)/100 -> 0 | AF24: =IFERROR('Rates Table'!AF37*Low_OffPeak,0)/100 -> 0 | AG24: =IFERROR('Rates Table'!AG37*Low_OffPeak,0)/100 -> 0 | AH24: =IFERROR('Rates Table'!AH37*Low_OffPeak,0)/100 -> 0 | AI24: =IFERROR('Rates Table'!AI37*Low_OffPeak,0)/100 -> 0 | AJ24: =IFERROR('Rates Table'!AJ37*Low_OffPeak,0)/100 -> 0 | AL24: 0 | AM24: =IFERROR('Rates Table'!AM37*Low_OffPeak,0)/100 -> 0 | AN24: =IFERROR('Rates Table'!AN37*Low_OffPeak,0)/100 -> 0 | AO24: =IFERROR('Rates Table'!AO37*Low_OffPeak,0)/100 -> 0 | AP24: =IFERROR('Rates Table'!AP37*Low_OffPeak,0)/100 -> 0 | AQ24: =IFERROR('Rates Table'!AQ37*Low_OffPeak,0)/100 -> 0 | AR24: =IFERROR('Rates Table'!AR37*Low_OffPeak,0)/100 -> 0 | AS24: =IFERROR('Rates Table'!AS37*Low_OffPeak,0)/100 -> 0 | AT24: =IFERROR('Rates Table'!AT37*Low_OffPeak,0)/100 -> 0 | AU24: =IFERROR('Rates Table'!AU37*Low_OffPeak,0)/100 -> 0 | AV24: =IFERROR('Rates Table'!AV37*Low_OffPeak,0)/100 -> 0 | AW24: =IFERROR('Rates Table'!AW37*Low_OffPeak,0)/100 -> 0 | AX24: =IFERROR('Rates Table'!AX37*Low_OffPeak,0)/100 -> 0 | AY24: =IFERROR('Rates Table'!AY37*Low_OffPeak,0)/100 -> 0 | AZ24: =IFERROR('Rates Table'!AZ37*Low_OffPeak,0)/100 -> 0 | BA24: =IFERROR('Rates Table'!BA37*Low_OffPeak,0)/100 -> 0 | BB24: =IFERROR('Rates Table'!BB37*Low_OffPeak,0)/100 -> 0 | BC24: =IFERROR('Rates Table'!BC37*Low_OffPeak,0)/100 -> 0 | BD24: =IFERROR('Rates Table'!BD37*Low_OffPeak,0)/100 -> 0 | BE24: =IFERROR('Rates Table'!BE37*Low_OffPeak,0)/100 -> 0 | BF24: =IFERROR('Rates Table'!BF37*Low_OffPeak,0)/100 -> 0 | BG24: =IFERROR('Rates Table'!BG37*Low_OffPeak,0)/100 -> 0 | BH24: =IFERROR('Rates Table'!BH37*Low_OffPeak,0)/100 -> 0 | BI24: =IFERROR('Rates Table'!BI37*Low_OffPeak,0)/100 -> 0 | BJ24: =IFERROR('Rates Table'!BJ37*Low_OffPeak,0)/100 -> 0 | BK24: =IFERROR('Rates Table'!BK37*Low_OffPeak,0)/100 -> 0 | BL24: =IFERROR('Rates Table'!BL37*Low_OffPeak,0)/100 -> 0 | BM24: =IFERROR('Rates Table'!BM37*Low_OffPeak,0)/100 -> 0 | BN24: =IFERROR('Rates Table'!BN37*Low_OffPeak,0)/100 -> 0 | BO24: =IFERROR('Rates Table'!BO37*Low_OffPeak,0)/100 -> 0 | BP24: =IFERROR('Rates Table'!BP37*Low_OffPeak,0)/100 -> 0 | BQ24: =IFERROR('Rates Table'!BQ37*Low_OffPeak,0)/100 -> 0
E25: 0 | AL25: 0
C26: Energy | D26: c/kWh | E26: 0 | F26: =IFERROR('Rates Table'!F39*(Low_Total_Energy),0)/100 -> 0 | G26: =IFERROR('Rates Table'!G39*(Low_Total_Energy),0)/100 -> 0 | H26: =IFERROR('Rates Table'!H39*(Low_Total_Energy),0)/100 -> 0 | I26: =IFERROR('Rates Table'!I39*(Low_Total_Energy),0)/100 -> 0 | J26: =IFERROR('Rates Table'!J39*(Low_Total_Energy),0)/100 -> 0 | K26: =IFERROR('Rates Table'!K39*(Low_Total_Energy),0)/100 -> 0 | L26: =IFERROR('Rates Table'!L39*(Low_Total_Energy),0)/100 -> 0 | M26: =IFERROR('Rates Table'!M39*(Low_Total_Energy),0)/100 -> 0 | N26: =IFERROR('Rates Table'!N39*(Low_Total_Energy),0)/100 -> 0 | O26: =IFERROR('Rates Table'!O39*(Low_Total_Energy),0)/100 -> 0 | P26: =IFERROR('Rates Table'!P39*(Low_Total_Energy),0)/100 -> 0 | Q26: =IFERROR('Rates Table'!Q39*(Low_Total_Energy),0)/100 -> 0 | R26: =IFERROR('Rates Table'!R39*(Low_Total_Energy),0)/100 -> 0 | S26: =IFERROR('Rates Table'!S39*(Low_Total_Energy),0)/100 -> 0 | T26: =IFERROR('Rates Table'!T39*(Low_Total_Energy),0)/100 -> 0 | U26: =IFERROR('Rates Table'!U39*(Low_Total_Energy),0)/100 -> 0 | V26: =IFERROR('Rates Table'!V39*(Low_Total_Energy),0)/100 -> 0 | W26: =IFERROR('Rates Table'!W39*(Low_Total_Energy),0)/100 -> 0 | X26: =IFERROR('Rates Table'!X39*(Low_Total_Energy),0)/100 -> 0 | Y26: =IFERROR('Rates Table'!Y39*(Low_Total_Energy),0)/100 -> 0 | Z26: =IFERROR('Rates Table'!Z39*(Low_Total_Energy),0)/100 -> 0 | AA26: =IFERROR('Rates Table'!AA39*(Low_Total_Energy),0)/100 -> 0 | AB26: =IFERROR('Rates Table'!AB39*(Low_Total_Energy),0)/100 -> 0 | AC26: =IFERROR('Rates Table'!AC39*(Low_Total_Energy),0)/100 -> 0 | AD26: =IFERROR('Rates Table'!AD39*(Low_Total_Energy),0)/100 -> 0 | AE26: =IFERROR('Rates Table'!AE39*(Low_Total_Energy),0)/100 -> 0 | AF26: =IFERROR('Rates Table'!AF39*(Low_Total_Energy),0)/100 -> 0 | AG26: =IFERROR('Rates Table'!AG39*(Low_Total_Energy),0)/100 -> 0 | AH26: =IFERROR('Rates Table'!AH39*(Low_Total_Energy),0)/100 -> 0 | AI26: =IFERROR('Rates Table'!AI39*(Low_Total_Energy),0)/100 -> 0 | AJ26: =IFERROR('Rates Table'!AJ39*(Low_Total_Energy),0)/100 -> 0 | AL26: 0 | AM26: =IFERROR('Rates Table'!AM39*(Low_Total_Energy),0)/100 -> 0 | AN26: =IFERROR('Rates Table'!AN39*(Low_Total_Energy),0)/100 -> 0 | AO26: =IFERROR('Rates Table'!AO39*(Low_Total_Energy),0)/100 -> 0 | AP26: =IFERROR('Rates Table'!AP39*(Low_Total_Energy),0)/100 -> 0 | AQ26: =IFERROR('Rates Table'!AQ39*(Low_Total_Energy),0)/100 -> 0 | AR26: =IFERROR('Rates Table'!AR39*(Low_Total_Energy),0)/100 -> 0 | AS26: =IFERROR('Rates Table'!AS39*(Low_Total_Energy),0)/100 -> 0 | AT26: =IFERROR('Rates Table'!AT39*(Low_Total_Energy),0)/100 -> 0 | AU26: =IFERROR('Rates Table'!AU39*(Low_Total_Energy),0)/100 -> 0 | AV26: =IFERROR('Rates Table'!AV39*(Low_Total_Energy),0)/100 -> 0 | AW26: =IFERROR('Rates Table'!AW39*(Low_Total_Energy),0)/100 -> 0 | AX26: =IFERROR('Rates Table'!AX39*(Low_Total_Energy),0)/100 -> 0 | AY26: =IFERROR('Rates Table'!AY39*(Low_Total_Energy),0)/100 -> 0 | AZ26: =IFERROR('Rates Table'!AZ39*(Low_Total_Energy),0)/100 -> 0 | BA26: =IFERROR('Rates Table'!BA39*(Low_Total_Energy),0)/100 -> 0 | BB26: =IFERROR('Rates Table'!BB39*(Low_Total_Energy),0)/100 -> 0 | BC26: =IFERROR('Rates Table'!BC39*(Low_Total_Energy),0)/100 -> 0 | BD26: =IFERROR('Rates Table'!BD39*(Low_Total_Energy),0)/100 -> 0 | BE26: =IFERROR('Rates Table'!BE39*(Low_Total_Energy),0)/100 -> 0 | BF26: =IFERROR('Rates Table'!BF39*(Low_Total_Energy),0)/100 -> 0 | BG26: =IFERROR('Rates Table'!BG39*(Low_Total_Energy),0)/100 -> 0 | BH26: =IFERROR('Rates Table'!BH39*(Low_Total_Energy),0)/100 -> 0 | BI26: =IFERROR('Rates Table'!BI39*(Low_Total_Energy),0)/100 -> 0 | BJ26: =IFERROR('Rates Table'!BJ39*(Low_Total_Energy),0)/100 -> 0 | BK26: =IFERROR('Rates Table'!BK39*(Low_Total_Energy),0)/100 -> 0 | BL26: =IFERROR('Rates Table'!BL39*(Low_Total_Energy),0)/100 -> 0 | BM26: =IFERROR('Rates Table'!BM39*(Low_Total_Energy),0)/100 -> 0 | BN26: =IFERROR('Rates Table'!BN39*(Low_Total_Energy),0)/100 -> 0 | BO26: =IFERROR('Rates Table'!BO39*(Low_Total_Energy),0)/100 -> 0 | BP26: =IFERROR('Rates Table'!BP39*(Low_Total_Energy),0)/100 -> 0 | BQ26: =IFERROR('Rates Table'!BQ39*(Low_Total_Energy),0)/100 -> 0
C27: Energy - Block 1 | D27: c/kWh | E27: 0 | F27: =IFERROR('Rates Table'!F40*(Low_Block_1),0)/100 -> 0 | G27: =IFERROR('Rates Table'!G40*(Low_Block_1),0)/100 -> 0 | H27: =IFERROR('Rates Table'!H40*(Low_Block_1),0)/100 -> 0 | I27: =IFERROR('Rates Table'!I40*(Low_Block_1),0)/100 -> 0 | J27: =IFERROR('Rates Table'!J40*(Low_Block_1),0)/100 -> 0 | K27: =IFERROR('Rates Table'!K40*(Low_Block_1),0)/100 -> 0 | L27: =IFERROR('Rates Table'!L40*(Low_Block_1),0)/100 -> 0 | M27: =IFERROR('Rates Table'!M40*(Low_Block_1),0)/100 -> 0 | N27: =IFERROR('Rates Table'!N40*(Low_Block_1),0)/100 -> 0 | O27: =IFERROR('Rates Table'!O40*(Low_Block_1),0)/100 -> 0 | P27: =IFERROR('Rates Table'!P40*(Low_Block_1),0)/100 -> 0 | Q27: =IFERROR('Rates Table'!Q40*(Low_Block_1),0)/100 -> 0 | R27: =IFERROR('Rates Table'!R40*(Low_Block_1),0)/100 -> 0 | S27: =IFERROR('Rates Table'!S40*(Low_Block_1),0)/100 -> 0 | T27: =IFERROR('Rates Table'!T40*(Low_Block_1),0)/100 -> 0 | U27: =IFERROR('Rates Table'!U40*(Low_Block_1),0)/100 -> 0 | V27: =IFERROR('Rates Table'!V40*(Low_Block_1),0)/100 -> 0 | W27: =IFERROR('Rates Table'!W40*(Low_Block_1),0)/100 -> 0 | X27: =IFERROR('Rates Table'!X40*(Low_Block_1),0)/100 -> 0 | Y27: =IFERROR('Rates Table'!Y40*(Low_Block_1),0)/100 -> 0 | Z27: =IFERROR('Rates Table'!Z40*(Low_Block_1),0)/100 -> 0 | AA27: =IFERROR('Rates Table'!AA40*(Low_Block_1),0)/100 -> 0 | AB27: =IFERROR('Rates Table'!AB40*(Low_Block_1),0)/100 -> 0 | AC27: =IFERROR('Rates Table'!AC40*(Low_Block_1),0)/100 -> 0 | AD27: =IFERROR('Rates Table'!AD40*(Low_Block_1),0)/100 -> 0 | AE27: =IFERROR('Rates Table'!AE40*(Low_Block_1),0)/100 -> 0 | AF27: =IFERROR('Rates Table'!AF40*(Low_Block_1),0)/100 -> 0 | AG27: =IFERROR('Rates Table'!AG40*(Low_Block_1),0)/100 -> 0 | AH27: =IFERROR('Rates Table'!AH40*(Low_Block_1),0)/100 -> 0 | AI27: =IFERROR('Rates Table'!AI40*(Low_Block_1),0)/100 -> 0 | AJ27: =IFERROR('Rates Table'!AJ40*(Low_Block_1),0)/100 -> 0 | AL27: 0 | AM27: =IFERROR('Rates Table'!AM40*(Low_Block_1),0)/100 -> 0 | AN27: =IFERROR('Rates Table'!AN40*(Low_Block_1),0)/100 -> 0 | AO27: =IFERROR('Rates Table'!AO40*(Low_Block_1),0)/100 -> 0 | AP27: =IFERROR('Rates Table'!AP40*(Low_Block_1),0)/100 -> 0 | AQ27: =IFERROR('Rates Table'!AQ40*(Low_Block_1),0)/100 -> 0 | AR27: =IFERROR('Rates Table'!AR40*(Low_Block_1),0)/100 -> 0 | AS27: =IFERROR('Rates Table'!AS40*(Low_Block_1),0)/100 -> 0 | AT27: =IFERROR('Rates Table'!AT40*(Low_Block_1),0)/100 -> 0 | AU27: =IFERROR('Rates Table'!AU40*(Low_Block_1),0)/100 -> 0 | AV27: =IFERROR('Rates Table'!AV40*(Low_Block_1),0)/100 -> 0 | AW27: =IFERROR('Rates Table'!AW40*(Low_Block_1),0)/100 -> 0 | AX27: =IFERROR('Rates Table'!AX40*(Low_Block_1),0)/100 -> 0 | AY27: =IFERROR('Rates Table'!AY40*(Low_Block_1),0)/100 -> 0 | AZ27: =IFERROR('Rates Table'!AZ40*(Low_Block_1),0)/100 -> 0 | BA27: =IFERROR('Rates Table'!BA40*(Low_Block_1),0)/100 -> 0 | BB27: =IFERROR('Rates Table'!BB40*(Low_Block_1),0)/100 -> 0 | BC27: =IFERROR('Rates Table'!BC40*(Low_Block_1),0)/100 -> 0 | BD27: =IFERROR('Rates Table'!BD40*(Low_Block_1),0)/100 -> 0 | BE27: =IFERROR('Rates Table'!BE40*(Low_Block_1),0)/100 -> 0 | BF27: =IFERROR('Rates Table'!BF40*(Low_Block_1),0)/100 -> 0 | BG27: =IFERROR('Rates Table'!BG40*(Low_Block_1),0)/100 -> 0 | BH27: =IFERROR('Rates Table'!BH40*(Low_Block_1),0)/100 -> 0 | BI27: =IFERROR('Rates Table'!BI40*(Low_Block_1),0)/100 -> 0 | BJ27: =IFERROR('Rates Table'!BJ40*(Low_Block_1),0)/100 -> 0 | BK27: =IFERROR('Rates Table'!BK40*(Low_Block_1),0)/100 -> 0 | BL27: =IFERROR('Rates Table'!BL40*(Low_Block_1),0)/100 -> 0 | BM27: =IFERROR('Rates Table'!BM40*(Low_Block_1),0)/100 -> 0 | BN27: =IFERROR('Rates Table'!BN40*(Low_Block_1),0)/100 -> 0 | BO27: =IFERROR('Rates Table'!BO40*(Low_Block_1),0)/100 -> 0 | BP27: =IFERROR('Rates Table'!BP40*(Low_Block_1),0)/100 -> 0 | BQ27: =IFERROR('Rates Table'!BQ40*(Low_Block_1),0)/100 -> 0
C28: Energy - Block 2 | D28: c/kWh | E28: 0 | F28: =IFERROR('Rates Table'!F41*(Low_Block_2),0)/100 -> 0 | G28: =IFERROR('Rates Table'!G41*(Low_Block_2),0)/100 -> 0 | H28: =IFERROR('Rates Table'!H41*(Low_Block_2),0)/100 -> 0 | I28: =IFERROR('Rates Table'!I41*(Low_Block_2),0)/100 -> 0 | J28: =IFERROR('Rates Table'!J41*(Low_Block_2),0)/100 -> 0 | K28: =IFERROR('Rates Table'!K41*(Low_Block_2),0)/100 -> 0 | L28: =IFERROR('Rates Table'!L41*(Low_Block_2),0)/100 -> 0 | M28: =IFERROR('Rates Table'!M41*(Low_Block_2),0)/100 -> 0 | N28: =IFERROR('Rates Table'!N41*(Low_Block_2),0)/100 -> 0 | O28: =IFERROR('Rates Table'!O41*(Low_Block_2),0)/100 -> 0 | P28: =IFERROR('Rates Table'!P41*(Low_Block_2),0)/100 -> 0 | Q28: =IFERROR('Rates Table'!Q41*(Low_Block_2),0)/100 -> 0 | R28: =IFERROR('Rates Table'!R41*(Low_Block_2),0)/100 -> 0 | S28: =IFERROR('Rates Table'!S41*(Low_Block_2),0)/100 -> 0 | T28: =IFERROR('Rates Table'!T41*(Low_Block_2),0)/100 -> 0 | U28: =IFERROR('Rates Table'!U41*(Low_Block_2),0)/100 -> 0 | V28: =IFERROR('Rates Table'!V41*(Low_Block_2),0)/100 -> 0 | W28: =IFERROR('Rates Table'!W41*(Low_Block_2),0)/100 -> 0 | X28: =IFERROR('Rates Table'!X41*(Low_Block_2),0)/100 -> 0 | Y28: =IFERROR('Rates Table'!Y41*(Low_Block_2),0)/100 -> 0 | Z28: =IFERROR('Rates Table'!Z41*(Low_Block_2),0)/100 -> 0 | AA28: =IFERROR('Rates Table'!AA41*(Low_Block_2),0)/100 -> 0 | AB28: =IFERROR('Rates Table'!AB41*(Low_Block_2),0)/100 -> 0 | AC28: =IFERROR('Rates Table'!AC41*(Low_Block_2),0)/100 -> 0 | AD28: =IFERROR('Rates Table'!AD41*(Low_Block_2),0)/100 -> 0 | AE28: =IFERROR('Rates Table'!AE41*(Low_Block_2),0)/100 -> 0 | AF28: =IFERROR('Rates Table'!AF41*(Low_Block_2),0)/100 -> 0 | AG28: =IFERROR('Rates Table'!AG41*(Low_Block_2),0)/100 -> 0 | AH28: =IFERROR('Rates Table'!AH41*(Low_Block_2),0)/100 -> 0 | AI28: =IFERROR('Rates Table'!AI41*(Low_Block_2),0)/100 -> 0 | AJ28: =IFERROR('Rates Table'!AJ41*(Low_Block_2),0)/100 -> 0 | AL28: 0 | AM28: =IFERROR('Rates Table'!AM41*(Low_Block_2),0)/100 -> 0 | AN28: =IFERROR('Rates Table'!AN41*(Low_Block_2),0)/100 -> 0 | AO28: =IFERROR('Rates Table'!AO41*(Low_Block_2),0)/100 -> 0 | AP28: =IFERROR('Rates Table'!AP41*(Low_Block_2),0)/100 -> 0 | AQ28: =IFERROR('Rates Table'!AQ41*(Low_Block_2),0)/100 -> 0 | AR28: =IFERROR('Rates Table'!AR41*(Low_Block_2),0)/100 -> 0 | AS28: =IFERROR('Rates Table'!AS41*(Low_Block_2),0)/100 -> 0 | AT28: =IFERROR('Rates Table'!AT41*(Low_Block_2),0)/100 -> 0 | AU28: =IFERROR('Rates Table'!AU41*(Low_Block_2),0)/100 -> 0 | AV28: =IFERROR('Rates Table'!AV41*(Low_Block_2),0)/100 -> 0 | AW28: =IFERROR('Rates Table'!AW41*(Low_Block_2),0)/100 -> 0 | AX28: =IFERROR('Rates Table'!AX41*(Low_Block_2),0)/100 -> 0 | AY28: =IFERROR('Rates Table'!AY41*(Low_Block_2),0)/100 -> 0 | AZ28: =IFERROR('Rates Table'!AZ41*(Low_Block_2),0)/100 -> 0 | BA28: =IFERROR('Rates Table'!BA41*(Low_Block_2),0)/100 -> 0 | BB28: =IFERROR('Rates Table'!BB41*(Low_Block_2),0)/100 -> 0 | BC28: =IFERROR('Rates Table'!BC41*(Low_Block_2),0)/100 -> 0 | BD28: =IFERROR('Rates Table'!BD41*(Low_Block_2),0)/100 -> 0 | BE28: =IFERROR('Rates Table'!BE41*(Low_Block_2),0)/100 -> 0 | BF28: =IFERROR('Rates Table'!BF41*(Low_Block_2),0)/100 -> 0 | BG28: =IFERROR('Rates Table'!BG41*(Low_Block_2),0)/100 -> 0 | BH28: =IFERROR('Rates Table'!BH41*(Low_Block_2),0)/100 -> 0 | BI28: =IFERROR('Rates Table'!BI41*(Low_Block_2),0)/100 -> 0 | BJ28: =IFERROR('Rates Table'!BJ41*(Low_Block_2),0)/100 -> 0 | BK28: =IFERROR('Rates Table'!BK41*(Low_Block_2),0)/100 -> 0 | BL28: =IFERROR('Rates Table'!BL41*(Low_Block_2),0)/100 -> 0 | BM28: =IFERROR('Rates Table'!BM41*(Low_Block_2),0)/100 -> 0 | BN28: =IFERROR('Rates Table'!BN41*(Low_Block_2),0)/100 -> 0 | BO28: =IFERROR('Rates Table'!BO41*(Low_Block_2),0)/100 -> 0 | BP28: =IFERROR('Rates Table'!BP41*(Low_Block_2),0)/100 -> 0 | BQ28: =IFERROR('Rates Table'!BQ41*(Low_Block_2),0)/100 -> 0
C29: Energy Demand | D29: R/kVA | E29: 0 | F29: =IFERROR('Rates Table'!F42*Low_Demand,0) -> 0 | G29: =IFERROR('Rates Table'!G42*Low_Demand,0) -> 0 | H29: =IFERROR('Rates Table'!H42*Low_Demand,0) -> 0 | I29: =IFERROR('Rates Table'!I42*Low_Demand,0) -> 0 | J29: =IFERROR('Rates Table'!J42*Low_Demand,0) -> 0 | K29: =IFERROR('Rates Table'!K42*Low_Demand,0) -> 0 | L29: =IFERROR('Rates Table'!L42*Low_Demand,0) -> 0 | M29: =IFERROR('Rates Table'!M42*Low_Demand,0) -> 0 | N29: =IFERROR('Rates Table'!N42*Low_Demand,0) -> 0 | O29: =IFERROR('Rates Table'!O42*Low_Demand,0) -> 0 | P29: =IFERROR('Rates Table'!P42*Low_Demand,0) -> 0 | Q29: =IFERROR('Rates Table'!Q42*Low_Demand,0) -> 0 | R29: =IFERROR('Rates Table'!R42*Low_Demand,0) -> 0 | S29: =IFERROR('Rates Table'!S42*Low_Demand,0) -> 0 | T29: =IFERROR('Rates Table'!T42*Low_Demand,0) -> 0 | U29: =IFERROR('Rates Table'!U42*Low_Demand,0) -> 0 | V29: =IFERROR('Rates Table'!V42*Low_Demand,0) -> 0 | W29: =IFERROR('Rates Table'!W42*Low_Demand,0) -> 0 | X29: =IFERROR('Rates Table'!X42*Low_Demand,0) -> 0 | Y29: =IFERROR('Rates Table'!Y42*Low_Demand,0) -> 0 | Z29: =IFERROR('Rates Table'!Z42*Low_Demand,0) -> 0 | AA29: =IFERROR('Rates Table'!AA42*Low_Demand,0) -> 0 | AB29: =IFERROR('Rates Table'!AB42*Low_Demand,0) -> 0 | AC29: =IFERROR('Rates Table'!AC42*Low_Demand,0) -> 0 | AD29: =IFERROR('Rates Table'!AD42*Low_Demand,0) -> 0 | AE29: =IFERROR('Rates Table'!AE42*Low_Demand,0) -> 0 | AF29: =IFERROR('Rates Table'!AF42*Low_Demand,0) -> 0 | AG29: =IFERROR('Rates Table'!AG42*Low_Demand,0) -> 0 | AH29: =IFERROR('Rates Table'!AH42*Low_Demand,0) -> 0 | AI29: =IFERROR('Rates Table'!AI42*Low_Demand,0) -> 0 | AJ29: =IFERROR('Rates Table'!AJ42*Low_Demand,0) -> 0 | AL29: 0 | AM29: =IFERROR('Rates Table'!AM42*Low_Demand,0) -> 0 | AN29: =IFERROR('Rates Table'!AN42*Low_Demand,0) -> 0 | AO29: =IFERROR('Rates Table'!AO42*Low_Demand,0) -> 0 | AP29: =IFERROR('Rates Table'!AP42*Low_Demand,0) -> 0 | AQ29: =IFERROR('Rates Table'!AQ42*Low_Demand,0) -> 0 | AR29: =IFERROR('Rates Table'!AR42*Low_Demand,0) -> 0 | AS29: =IFERROR('Rates Table'!AS42*Low_Demand,0) -> 0 | AT29: =IFERROR('Rates Table'!AT42*Low_Demand,0) -> 0 | AU29: =IFERROR('Rates Table'!AU42*Low_Demand,0) -> 0 | AV29: =IFERROR('Rates Table'!AV42*Low_Demand,0) -> 0 | AW29: =IFERROR('Rates Table'!AW42*Low_Demand,0) -> 0 | AX29: =IFERROR('Rates Table'!AX42*Low_Demand,0) -> 0 | AY29: =IFERROR('Rates Table'!AY42*Low_Demand,0) -> 0 | AZ29: =IFERROR('Rates Table'!AZ42*Low_Demand,0) -> 0 | BA29: =IFERROR('Rates Table'!BA42*Low_Demand,0) -> 0 | BB29: =IFERROR('Rates Table'!BB42*Low_Demand,0) -> 0 | BC29: =IFERROR('Rates Table'!BC42*Low_Demand,0) -> 0 | BD29: =IFERROR('Rates Table'!BD42*Low_Demand,0) -> 0 | BE29: =IFERROR('Rates Table'!BE42*Low_Demand,0) -> 0 | BF29: =IFERROR('Rates Table'!BF42*Low_Demand,0) -> 0 | BG29: =IFERROR('Rates Table'!BG42*Low_Demand,0) -> 0 | BH29: =IFERROR('Rates Table'!BH42*Low_Demand,0) -> 0 | BI29: =IFERROR('Rates Table'!BI42*Low_Demand,0) -> 0 | BJ29: =IFERROR('Rates Table'!BJ42*Low_Demand,0) -> 0 | BK29: =IFERROR('Rates Table'!BK42*Low_Demand,0) -> 0 | BL29: =IFERROR('Rates Table'!BL42*Low_Demand,0) -> 0 | BM29: =IFERROR('Rates Table'!BM42*Low_Demand,0) -> 0 | BN29: =IFERROR('Rates Table'!BN42*Low_Demand,0) -> 0 | BO29: =IFERROR('Rates Table'!BO42*Low_Demand,0) -> 0 | BP29: =IFERROR('Rates Table'!BP42*Low_Demand,0) -> 0 | BQ29: =IFERROR('Rates Table'!BQ42*Low_Demand,0) -> 0
B31: Total energy charges | E31: =SUM(E22:E29) -> 0 | F31: =SUM(F22:F29) -> 0 | G31: 0 | H31: 0 | I31: 0 | J31: 0 | K31: 0 | L31: 0 | M31: 0 | N31: 0 | O31: 0 | P31: 0 | Q31: 0 | R31: 0 | S31: 0 | T31: 0 | U31: 0 | V31: 0 | W31: 0 | X31: 0 | Y31: 0 | Z31: 0 | AA31: 0 | AB31: =SUM(AB22:AB29) -> 0 | AC31: 0 | AD31: 0 | AE31: 0 | AF31: 0 | AG31: 0 | AH31: =SUM(AH22:AH29) -> 0 | AI31: 0 | AJ31: 0 | AL31: =SUM(AL22:AL29) -> 0 | AM31: =SUM(AM22:AM29) -> 0 | AN31: 0 | AO31: 0 | AP31: 0 | AQ31: 0 | AR31: 0 | AS31: 0 | AT31: 0 | AU31: 0 | AV31: 0 | AW31: 0 | AX31: 0 | AY31: 0 | AZ31: 0 | BA31: 0 | BB31: 0 | BC31: 0 | BD31: 0 | BE31: 0 | BF31: 0 | BG31: 0 | BH31: 0 | BI31: =SUM(BI22:BI29) -> 0 | BJ31: 0 | BK31: 0 | BL31: 0 | BM31: 0 | BN31: 0 | BO31: =SUM(BO22:BO29) -> 0 | BP31: 0 | BQ31: 0
B33: Other charges | D33: Units | E33: =E$8 -> 2023/2024 Rates | F33: =F$8 -> 2023/2024 Rates | G33: 2023/2024 Rates | H33: 2023/2024 Rates | I33: 2023/2024 Rates | J33: 2023/2024 Rates | K33: 2023/2024 Rates | L33: 2023/2024 Rates | M33: 2023/2024 Rates | N33: 2023/2024 Rates | O33: 2023/2024 Rates | P33: 2023/2024 Rates | Q33: 2023/2024 Rates | R33: 2023/2024 Rates | S33: 2023/2024 Rates | T33: 2023/2024 Rates | U33: 2023/2024 Rates | V33: 2023/2024 Rates | W33: 2023/2024 Rates | X33: 2023/2024 Rates | Y33: 2023/2024 Rates | Z33: 2023/2024 Rates | AA33: 2023/2024 Rates | AB33: 2023/2024 Rates | AC33: 2023/2024 Rates | AD33: 2023/2024 Rates | AE33: 2023/2024 Rates | AF33: 2023/2024 Rates | AG33: 2023/2024 Rates | AH33: 2023/2024 Rates | AI33: 2023/2024 Rates | AJ33: 2023/2024 Rates | AL33: =AL$8 -> 2024/2025 Rates | AM33: =AM$8 -> 2024/2025 Rates | AN33: 2024/2025 Rates | AO33: 2024/2025 Rates | AP33: 2024/2025 Rates | AQ33: 2024/2025 Rates | AR33: 2024/2025 Rates | AS33: 2024/2025 Rates | AT33: 2024/2025 Rates | AU33: 2024/2025 Rates | AV33: 2024/2025 Rates | AW33: 2024/2025 Rates | AX33: 2024/2025 Rates | AY33: 2024/2025 Rates | AZ33: 2024/2025 Rates | BA33: 2024/2025 Rates | BB33: 2024/2025 Rates | BC33: 2024/2025 Rates | BD33: 2024/2025 Rates | BE33: 2024/2025 Rates | BF33: 2024/2025 Rates | BG33: 2024/2025 Rates | BH33: 2024/2025 Rates | BI33: 2024/2025 Rates | BJ33: 2024/2025 Rates | BK33: 2024/2025 Rates | BL33: 2024/2025 Rates | BM33: 2024/2025 Rates | BN33: 2024/2025 Rates | BO33: 2024/2025 Rates | BP33: 2024/2025 Rates | BQ33: 2024/2025 Rates
C35: Ancillary service charge | D35: c/kWh | E35: =INDEX(F35:AJ35,0,Selected_Tariff_ID) -> 0 | F35: =IFERROR(Low_Total_Energy*'Rates Table'!F48,0)/100 -> 0 | G35: =IFERROR(Low_Total_Energy*'Rates Table'!G48,0)/100 -> 0 | H35: =IFERROR(Low_Total_Energy*'Rates Table'!H48,0)/100 -> 0 | I35: =IFERROR(Low_Total_Energy*'Rates Table'!I48,0)/100 -> 0 | J35: =IFERROR(Low_Total_Energy*'Rates Table'!J48,0)/100 -> 0 | K35: =IFERROR(Low_Total_Energy*'Rates Table'!K48,0)/100 -> 0 | L35: =IFERROR(Low_Total_Energy*'Rates Table'!L48,0)/100 -> 0 | M35: =IFERROR(Low_Total_Energy*'Rates Table'!M48,0)/100 -> 0 | N35: =IFERROR(Low_Total_Energy*'Rates Table'!N48,0)/100 -> 0 | O35: =IFERROR(Low_Total_Energy*'Rates Table'!O48,0)/100 -> 0 | P35: =IFERROR(Low_Total_Energy*'Rates Table'!P48,0)/100 -> 0 | Q35: =IFERROR(Low_Total_Energy*'Rates Table'!Q48,0)/100 -> 0 | R35: =IFERROR(Low_Total_Energy*'Rates Table'!R48,0)/100 -> 0 | S35: =IFERROR(Low_Total_Energy*'Rates Table'!S48,0)/100 -> 0 | T35: =IFERROR(Low_Total_Energy*'Rates Table'!T48,0)/100 -> 0 | U35: =IFERROR(Low_Total_Energy*'Rates Table'!U48,0)/100 -> 0 | V35: =IFERROR(Low_Total_Energy*'Rates Table'!V48,0)/100 -> 0 | W35: =IFERROR(Low_Total_Energy*'Rates Table'!W48,0)/100 -> 0 | X35: =IFERROR(Low_Total_Energy*'Rates Table'!X48,0)/100 -> 0 | Y35: =IFERROR(Low_Total_Energy*'Rates Table'!Y48,0)/100 -> 0 | Z35: =IFERROR(Low_Total_Energy*'Rates Table'!Z48,0)/100 -> 0 | AA35: =IFERROR(Low_Total_Energy*'Rates Table'!AA48,0)/100 -> 0 | AB35: =IFERROR(Low_Total_Energy*'Rates Table'!AB48,0)/100 -> 0 | AC35: =IFERROR(Low_Total_Energy*'Rates Table'!AC48,0)/100 -> 0 | AD35: =IFERROR(Low_Total_Energy*'Rates Table'!AD48,0)/100 -> 0 | AE35: =IFERROR(Low_Total_Energy*'Rates Table'!AE48,0)/100 -> 0 | AF35: =IFERROR(Low_Total_Energy*'Rates Table'!AF48,0)/100 -> 0 | AG35: =IFERROR(Low_Total_Energy*'Rates Table'!AG48,0)/100 -> 0 | AH35: =IFERROR(Low_Total_Energy*'Rates Table'!AH48,0)/100 -> 0 | AI35: =IFERROR(Low_Total_Energy*'Rates Table'!AI48,0)/100 -> 0 | AJ35: =IFERROR(Low_Total_Energy*'Rates Table'!AJ48,0)/100 -> 0 | AL35: =INDEX(AM35:BQ35,0,Selected_Tariff_ID) -> 0 | AM35: =IFERROR(Low_Total_Energy*'Rates Table'!AM48,0)/100 -> 0 | AN35: =IFERROR(Low_Total_Energy*'Rates Table'!AN48,0)/100 -> 0 | AO35: =IFERROR(Low_Total_Energy*'Rates Table'!AO48,0)/100 -> 0 | AP35: =IFERROR(Low_Total_Energy*'Rates Table'!AP48,0)/100 -> 0 | AQ35: =IFERROR(Low_Total_Energy*'Rates Table'!AQ48,0)/100 -> 0 | AR35: =IFERROR(Low_Total_Energy*'Rates Table'!AR48,0)/100 -> 0 | AS35: =IFERROR(Low_Total_Energy*'Rates Table'!AS48,0)/100 -> 0 | AT35: =IFERROR(Low_Total_Energy*'Rates Table'!AT48,0)/100 -> 0 | AU35: =IFERROR(Low_Total_Energy*'Rates Table'!AU48,0)/100 -> 0 | AV35: =IFERROR(Low_Total_Energy*'Rates Table'!AV48,0)/100 -> 0 | AW35: =IFERROR(Low_Total_Energy*'Rates Table'!AW48,0)/100 -> 0 | AX35: =IFERROR(Low_Total_Energy*'Rates Table'!AX48,0)/100 -> 0 | AY35: =IFERROR(Low_Total_Energy*'Rates Table'!AY48,0)/100 -> 0 | AZ35: =IFERROR(Low_Total_Energy*'Rates Table'!AZ48,0)/100 -> 0 | BA35: =IFERROR(Low_Total_Energy*'Rates Table'!BA48,0)/100 -> 0 | BB35: =IFERROR(Low_Total_Energy*'Rates Table'!BB48,0)/100 -> 0 | BC35: =IFERROR(Low_Total_Energy*'Rates Table'!BC48,0)/100 -> 0 | BD35: =IFERROR(Low_Total_Energy*'Rates Table'!BD48,0)/100 -> 0 | BE35: =IFERROR(Low_Total_Energy*'Rates Table'!BE48,0)/100 -> 0 | BF35: =IFERROR(Low_Total_Energy*'Rates Table'!BF48,0)/100 -> 0 | BG35: =IFERROR(Low_Total_Energy*'Rates Table'!BG48,0)/100 -> 0 | BH35: =IFERROR(Low_Total_Energy*'Rates Table'!BH48,0)/100 -> 0 | BI35: =IFERROR(Low_Total_Energy*'Rates Table'!BI48,0)/100 -> 0 | BJ35: =IFERROR(Low_Total_Energy*'Rates Table'!BJ48,0)/100 -> 0 | BK35: =IFERROR(Low_Total_Energy*'Rates Table'!BK48,0)/100 -> 0 | BL35: =IFERROR(Low_Total_Energy*'Rates Table'!BL48,0)/100 -> 0 | BM35: =IFERROR(Low_Total_Energy*'Rates Table'!BM48,0)/100 -> 0 | BN35: =IFERROR(Low_Total_Energy*'Rates Table'!BN48,0)/100 -> 0 | BO35: =IFERROR(Low_Total_Energy*'Rates Table'!BO48,0)/100 -> 0 | BP35: =IFERROR(Low_Total_Energy*'Rates Table'!BP48,0)/100 -> 0 | BQ35: =IFERROR(Low_Total_Energy*'Rates Table'!BQ48,0)/100 -> 0
C36: Reactive energy charge | D36: c/kVArh | E36: 0 | F36: 0 | G36: 0 | H36: 0 | I36: 0 | J36: 0 | K36: 0 | L36: 0 | M36: 0 | N36: 0 | O36: 0 | P36: 0 | Q36: 0 | R36: 0 | S36: 0 | T36: 0 | U36: 0 | V36: 0 | W36: 0 | X36: 0 | Y36: 0 | Z36: 0 | AA36: 0 | AB36: 0 | AC36: 0 | AD36: 0 | AE36: 0 | AF36: 0 | AG36: 0 | AH36: 0 | AI36: 0 | AJ36: 0 | AL36: 0 | AM36: 0 | AN36: 0 | AO36: 0 | AP36: 0 | AQ36: 0 | AR36: 0 | AS36: 0 | AT36: 0 | AU36: 0 | AV36: 0 | AW36: 0 | AX36: 0 | AY36: 0 | AZ36: 0 | BA36: 0 | BB36: 0 | BC36: 0 | BD36: 0 | BE36: 0 | BF36: 0 | BG36: 0 | BH36: 0 | BI36: 0 | BJ36: 0 | BK36: 0 | BL36: 0 | BM36: 0 | BN36: 0 | BO36: 0 | BP36: 0 | BQ36: 0
C37: Electrification and rural subsidy | D37: c/kWh | E37: 0 | F37: =IFERROR(Low_Total_Energy*'Rates Table'!F50,0)/100 -> 0 | G37: =IFERROR(Low_Total_Energy*'Rates Table'!G50,0)/100 -> 0 | H37: =IFERROR(Low_Total_Energy*'Rates Table'!H50,0)/100 -> 0 | I37: =IFERROR(Low_Total_Energy*'Rates Table'!I50,0)/100 -> 0 | J37: =IFERROR(Low_Total_Energy*'Rates Table'!J50,0)/100 -> 0 | K37: =IFERROR(Low_Total_Energy*'Rates Table'!K50,0)/100 -> 0 | L37: =IFERROR(Low_Total_Energy*'Rates Table'!L50,0)/100 -> 0 | M37: =IFERROR(Low_Total_Energy*'Rates Table'!M50,0)/100 -> 0 | N37: =IFERROR(Low_Total_Energy*'Rates Table'!N50,0)/100 -> 0 | O37: =IFERROR(Low_Total_Energy*'Rates Table'!O50,0)/100 -> 0 | P37: =IFERROR(Low_Total_Energy*'Rates Table'!P50,0)/100 -> 0 | Q37: =IFERROR(Low_Total_Energy*'Rates Table'!Q50,0)/100 -> 0 | R37: =IFERROR(Low_Total_Energy*'Rates Table'!R50,0)/100 -> 0 | S37: =IFERROR(Low_Total_Energy*'Rates Table'!S50,0)/100 -> 0 | T37: =IFERROR(Low_Total_Energy*'Rates Table'!T50,0)/100 -> 0 | U37: =IFERROR(Low_Total_Energy*'Rates Table'!U50,0)/100 -> 0 | V37: =IFERROR(Low_Total_Energy*'Rates Table'!V50,0)/100 -> 0 | W37: =IFERROR(Low_Total_Energy*'Rates Table'!W50,0)/100 -> 0 | X37: =IFERROR(Low_Total_Energy*'Rates Table'!X50,0)/100 -> 0 | Y37: =IFERROR(Low_Total_Energy*'Rates Table'!Y50,0)/100 -> 0 | Z37: =IFERROR(Low_Total_Energy*'Rates Table'!Z50,0)/100 -> 0 | AA37: =IFERROR(Low_Total_Energy*'Rates Table'!AA50,0)/100 -> 0 | AB37: =IFERROR(Low_Total_Energy*'Rates Table'!AB50,0)/100 -> 0 | AC37: =IFERROR(Low_Total_Energy*'Rates Table'!AC50,0)/100 -> 0 | AD37: =IFERROR(Low_Total_Energy*'Rates Table'!AD50,0)/100 -> 0 | AE37: =IFERROR(Low_Total_Energy*'Rates Table'!AE50,0)/100 -> 0 | AF37: =IFERROR(Low_Total_Energy*'Rates Table'!AF50,0)/100 -> 0 | AG37: =IFERROR(Low_Total_Energy*'Rates Table'!AG50,0)/100 -> 0 | AH37: =IFERROR(Low_Total_Energy*'Rates Table'!AH50,0)/100 -> 0 | AI37: =IFERROR(Low_Total_Energy*'Rates Table'!AI50,0)/100 -> 0 | AJ37: =IFERROR(Low_Total_Energy*'Rates Table'!AJ50,0)/100 -> 0 | AL37: 0 | AM37: =IFERROR(Low_Total_Energy*'Rates Table'!AM50,0)/100 -> 0 | AN37: =IFERROR(Low_Total_Energy*'Rates Table'!AN50,0)/100 -> 0 | AO37: =IFERROR(Low_Total_Energy*'Rates Table'!AO50,0)/100 -> 0 | AP37: =IFERROR(Low_Total_Energy*'Rates Table'!AP50,0)/100 -> 0 | AQ37: =IFERROR(Low_Total_Energy*'Rates Table'!AQ50,0)/100 -> 0 | AR37: =IFERROR(Low_Total_Energy*'Rates Table'!AR50,0)/100 -> 0 | AS37: =IFERROR(Low_Total_Energy*'Rates Table'!AS50,0)/100 -> 0 | AT37: =IFERROR(Low_Total_Energy*'Rates Table'!AT50,0)/100 -> 0 | AU37: =IFERROR(Low_Total_Energy*'Rates Table'!AU50,0)/100 -> 0 | AV37: =IFERROR(Low_Total_Energy*'Rates Table'!AV50,0)/100 -> 0 | AW37: =IFERROR(Low_Total_Energy*'Rates Table'!AW50,0)/100 -> 0 | AX37: =IFERROR(Low_Total_Energy*'Rates Table'!AX50,0)/100 -> 0 | AY37: =IFERROR(Low_Total_Energy*'Rates Table'!AY50,0)/100 -> 0 | AZ37: =IFERROR(Low_Total_Energy*'Rates Table'!AZ50,0)/100 -> 0 | BA37: =IFERROR(Low_Total_Energy*'Rates Table'!BA50,0)/100 -> 0 | BB37: =IFERROR(Low_Total_Energy*'Rates Table'!BB50,0)/100 -> 0 | BC37: =IFERROR(Low_Total_Energy*'Rates Table'!BC50,0)/100 -> 0 | BD37: =IFERROR(Low_Total_Energy*'Rates Table'!BD50,0)/100 -> 0 | BE37: =IFERROR(Low_Total_Energy*'Rates Table'!BE50,0)/100 -> 0 | BF37: =IFERROR(Low_Total_Energy*'Rates Table'!BF50,0)/100 -> 0 | BG37: =IFERROR(Low_Total_Energy*'Rates Table'!BG50,0)/100 -> 0 | BH37: =IFERROR(Low_Total_Energy*'Rates Table'!BH50,0)/100 -> 0 | BI37: =IFERROR(Low_Total_Energy*'Rates Table'!BI50,0)/100 -> 0 | BJ37: =IFERROR(Low_Total_Energy*'Rates Table'!BJ50,0)/100 -> 0 | BK37: =IFERROR(Low_Total_Energy*'Rates Table'!BK50,0)/100 -> 0 | BL37: =IFERROR(Low_Total_Energy*'Rates Table'!BL50,0)/100 -> 0 | BM37: =IFERROR(Low_Total_Energy*'Rates Table'!BM50,0)/100 -> 0 | BN37: =IFERROR(Low_Total_Energy*'Rates Table'!BN50,0)/100 -> 0 | BO37: =IFERROR(Low_Total_Energy*'Rates Table'!BO50,0)/100 -> 0 | BP37: =IFERROR(Low_Total_Energy*'Rates Table'!BP50,0)/100 -> 0 | BQ37: =IFERROR(Low_Total_Energy*'Rates Table'!BQ50,0)/100 -> 0
C38: Affordability subsidy | D38: c/kWh | E38: 0 | F38: =IFERROR(Low_Total_Energy*'Rates Table'!F51,0)/100 -> 0 | G38: =IFERROR(Low_Total_Energy*'Rates Table'!G51,0)/100 -> 0 | H38: =IFERROR(Low_Total_Energy*'Rates Table'!H51,0)/100 -> 0 | I38: =IFERROR(Low_Total_Energy*'Rates Table'!I51,0)/100 -> 0 | J38: =IFERROR(Low_Total_Energy*'Rates Table'!J51,0)/100 -> 0 | K38: =IFERROR(Low_Total_Energy*'Rates Table'!K51,0)/100 -> 0 | L38: =IFERROR(Low_Total_Energy*'Rates Table'!L51,0)/100 -> 0 | M38: =IFERROR(Low_Total_Energy*'Rates Table'!M51,0)/100 -> 0 | N38: =IFERROR(Low_Total_Energy*'Rates Table'!N51,0)/100 -> 0 | O38: =IFERROR(Low_Total_Energy*'Rates Table'!O51,0)/100 -> 0 | P38: =IFERROR(Low_Total_Energy*'Rates Table'!P51,0)/100 -> 0 | Q38: =IFERROR(Low_Total_Energy*'Rates Table'!Q51,0)/100 -> 0 | R38: =IFERROR(Low_Total_Energy*'Rates Table'!R51,0)/100 -> 0 | S38: =IFERROR(Low_Total_Energy*'Rates Table'!S51,0)/100 -> 0 | T38: =IFERROR(Low_Total_Energy*'Rates Table'!T51,0)/100 -> 0 | U38: =IFERROR(Low_Total_Energy*'Rates Table'!U51,0)/100 -> 0 | V38: =IFERROR(Low_Total_Energy*'Rates Table'!V51,0)/100 -> 0 | W38: =IFERROR(Low_Total_Energy*'Rates Table'!W51,0)/100 -> 0 | X38: =IFERROR(Low_Total_Energy*'Rates Table'!X51,0)/100 -> 0 | Y38: =IFERROR(Low_Total_Energy*'Rates Table'!Y51,0)/100 -> 0 | Z38: =IFERROR(Low_Total_Energy*'Rates Table'!Z51,0)/100 -> 0 | AA38: =IFERROR(Low_Total_Energy*'Rates Table'!AA51,0)/100 -> 0 | AB38: =IFERROR(Low_Total_Energy*'Rates Table'!AB51,0)/100 -> 0 | AC38: =IFERROR(Low_Total_Energy*'Rates Table'!AC51,0)/100 -> 0 | AD38: =IFERROR(Low_Total_Energy*'Rates Table'!AD51,0)/100 -> 0 | AE38: =IFERROR(Low_Total_Energy*'Rates Table'!AE51,0)/100 -> 0 | AF38: =IFERROR(Low_Total_Energy*'Rates Table'!AF51,0)/100 -> 0 | AG38: =IFERROR(Low_Total_Energy*'Rates Table'!AG51,0)/100 -> 0 | AH38: =IFERROR(Low_Total_Energy*'Rates Table'!AH51,0)/100 -> 0 | AI38: =IFERROR(Low_Total_Energy*'Rates Table'!AI51,0)/100 -> 0 | AJ38: =IFERROR(Low_Total_Energy*'Rates Table'!AJ51,0)/100 -> 0 | AL38: 0 | AM38: =IFERROR(Low_Total_Energy*'Rates Table'!AM51,0)/100 -> 0 | AN38: =IFERROR(Low_Total_Energy*'Rates Table'!AN51,0)/100 -> 0 | AO38: =IFERROR(Low_Total_Energy*'Rates Table'!AO51,0)/100 -> 0 | AP38: =IFERROR(Low_Total_Energy*'Rates Table'!AP51,0)/100 -> 0 | AQ38: =IFERROR(Low_Total_Energy*'Rates Table'!AQ51,0)/100 -> 0 | AR38: =IFERROR(Low_Total_Energy*'Rates Table'!AR51,0)/100 -> 0 | AS38: =IFERROR(Low_Total_Energy*'Rates Table'!AS51,0)/100 -> 0 | AT38: =IFERROR(Low_Total_Energy*'Rates Table'!AT51,0)/100 -> 0 | AU38: =IFERROR(Low_Total_Energy*'Rates Table'!AU51,0)/100 -> 0 | AV38: =IFERROR(Low_Total_Energy*'Rates Table'!AV51,0)/100 -> 0 | AW38: =IFERROR(Low_Total_Energy*'Rates Table'!AW51,0)/100 -> 0 | AX38: =IFERROR(Low_Total_Energy*'Rates Table'!AX51,0)/100 -> 0 | AY38: =IFERROR(Low_Total_Energy*'Rates Table'!AY51,0)/100 -> 0 | AZ38: =IFERROR(Low_Total_Energy*'Rates Table'!AZ51,0)/100 -> 0 | BA38: =IFERROR(Low_Total_Energy*'Rates Table'!BA51,0)/100 -> 0 | BB38: =IFERROR(Low_Total_Energy*'Rates Table'!BB51,0)/100 -> 0 | BC38: =IFERROR(Low_Total_Energy*'Rates Table'!BC51,0)/100 -> 0 | BD38: =IFERROR(Low_Total_Energy*'Rates Table'!BD51,0)/100 -> 0 | BE38: =IFERROR(Low_Total_Energy*'Rates Table'!BE51,0)/100 -> 0 | BF38: =IFERROR(Low_Total_Energy*'Rates Table'!BF51,0)/100 -> 0 | BG38: =IFERROR(Low_Total_Energy*'Rates Table'!BG51,0)/100 -> 0 | BH38: =IFERROR(Low_Total_Energy*'Rates Table'!BH51,0)/100 -> 0 | BI38: =IFERROR(Low_Total_Energy*'Rates Table'!BI51,0)/100 -> 0 | BJ38: =IFERROR(Low_Total_Energy*'Rates Table'!BJ51,0)/100 -> 0 | BK38: =IFERROR(Low_Total_Energy*'Rates Table'!BK51,0)/100 -> 0 | BL38: =IFERROR(Low_Total_Energy*'Rates Table'!BL51,0)/100 -> 0 | BM38: =IFERROR(Low_Total_Energy*'Rates Table'!BM51,0)/100 -> 0 | BN38: =IFERROR(Low_Total_Energy*'Rates Table'!BN51,0)/100 -> 0 | BO38: =IFERROR(Low_Total_Energy*'Rates Table'!BO51,0)/100 -> 0 | BP38: =IFERROR(Low_Total_Energy*'Rates Table'!BP51,0)/100 -> 0 | BQ38: =IFERROR(Low_Total_Energy*'Rates Table'!BQ51,0)/100 -> 0
C39: Administration charge | D39: R/day | E39: 0 | F39: =IFERROR('Rates Table'!F52*PODs*Low_Days,0) -> 0 | G39: =IFERROR('Rates Table'!G52*PODs*Low_Days,0) -> 0 | H39: =IFERROR('Rates Table'!H52*PODs*Low_Days,0) -> 0 | I39: =IFERROR('Rates Table'!I52*PODs*Low_Days,0) -> 0 | J39: =IFERROR('Rates Table'!J52*PODs*Low_Days,0) -> 0 | K39: =IFERROR('Rates Table'!K52*PODs*Low_Days,0) -> 0 | L39: =IFERROR('Rates Table'!L52*PODs*Low_Days,0) -> 0 | M39: =IFERROR('Rates Table'!M52*PODs*Low_Days,0) -> 0 | N39: =IFERROR('Rates Table'!N52*PODs*Low_Days,0) -> 0 | O39: =IFERROR('Rates Table'!O52*PODs*Low_Days,0) -> 0 | P39: =IFERROR('Rates Table'!P52*PODs*Low_Days,0) -> 0 | Q39: =IFERROR('Rates Table'!Q52*PODs*Low_Days,0) -> 0 | R39: =IFERROR('Rates Table'!R52*PODs*Low_Days,0) -> 0 | S39: =IFERROR('Rates Table'!S52*PODs*Low_Days,0) -> 0 | T39: =IFERROR('Rates Table'!T52*PODs*Low_Days,0) -> 0 | U39: =IFERROR('Rates Table'!U52*PODs*Low_Days,0) -> 0 | V39: =IFERROR('Rates Table'!V52*PODs*Low_Days,0) -> 1512.42 | W39: =IFERROR('Rates Table'!W52*PODs*Low_Days,0) -> 1512.42 | X39: =IFERROR('Rates Table'!X52*PODs*Low_Days,0) -> 1512.42 | Y39: =IFERROR('Rates Table'!Y52*PODs*Low_Days,0) -> 2473.38 | Z39: =IFERROR('Rates Table'!Z52*PODs*Low_Days,0) -> 1512.42 | AA39: =IFERROR('Rates Table'!AA52*PODs*Low_Days,0) -> 2473.38 | AB39: =IFERROR('Rates Table'!AB52*PODs*Low_Days,0) -> 0 | AC39: =IFERROR('Rates Table'!AC52*PODs*Low_Days,0) -> 0 | AD39: =IFERROR('Rates Table'!AD52*PODs*Low_Days,0) -> 0 | AE39: =IFERROR('Rates Table'!AE52*PODs*Low_Days,0) -> 0 | AF39: =IFERROR('Rates Table'!AF52*PODs*Low_Days,0) -> 0 | AG39: =IFERROR('Rates Table'!AG52*PODs*Low_Days,0) -> 0 | AH39: =IFERROR('Rates Table'!AH52*PODs*Low_Days,0) -> 0 | AI39: =IFERROR('Rates Table'!AI52*PODs*Low_Days,0) -> 0 | AJ39: =IFERROR('Rates Table'!AJ52*PODs*Low_Days,0) -> 0 | AL39: 0 | AM39: =IFERROR('Rates Table'!AM52*PODs*Low_Days,0) -> 0 | AN39: =IFERROR('Rates Table'!AN52*PODs*Low_Days,0) -> 0 | AO39: =IFERROR('Rates Table'!AO52*PODs*Low_Days,0) -> 0 | AP39: =IFERROR('Rates Table'!AP52*PODs*Low_Days,0) -> 0 | AQ39: =IFERROR('Rates Table'!AQ52*PODs*Low_Days,0) -> 0 | AR39: =IFERROR('Rates Table'!AR52*PODs*Low_Days,0) -> 0 | AS39: =IFERROR('Rates Table'!AS52*PODs*Low_Days,0) -> 0 | AT39: =IFERROR('Rates Table'!AT52*PODs*Low_Days,0) -> 0 | AU39: =IFERROR('Rates Table'!AU52*PODs*Low_Days,0) -> 0 | AV39: =IFERROR('Rates Table'!AV52*PODs*Low_Days,0) -> 0 | AW39: =IFERROR('Rates Table'!AW52*PODs*Low_Days,0) -> 0 | AX39: =IFERROR('Rates Table'!AX52*PODs*Low_Days,0) -> 0 | AY39: =IFERROR('Rates Table'!AY52*PODs*Low_Days,0) -> 0 | AZ39: =IFERROR('Rates Table'!AZ52*PODs*Low_Days,0) -> 0 | BA39: =IFERROR('Rates Table'!BA52*PODs*Low_Days,0) -> 0 | BB39: =IFERROR('Rates Table'!BB52*PODs*Low_Days,0) -> 0 | BC39: =IFERROR('Rates Table'!BC52*PODs*Low_Days,0) -> 1706.25 | BD39: =IFERROR('Rates Table'!BD52*PODs*Low_Days,0) -> 1706.25 | BE39: =IFERROR('Rates Table'!BE52*PODs*Low_Days,0) -> 1706.25 | BF39: =IFERROR('Rates Table'!BF52*PODs*Low_Days,0) -> 2787.33 | BG39: =IFERROR('Rates Table'!BG52*PODs*Low_Days,0) -> 1706.25 | BH39: =IFERROR('Rates Table'!BH52*PODs*Low_Days,0) -> 2787.33 | BI39: =IFERROR('Rates Table'!BI52*PODs*Low_Days,0) -> 0 | BJ39: =IFERROR('Rates Table'!BJ52*PODs*Low_Days,0) -> 0 | BK39: =IFERROR('Rates Table'!BK52*PODs*Low_Days,0) -> 0 | BL39: =IFERROR('Rates Table'!BL52*PODs*Low_Days,0) -> 0 | BM39: =IFERROR('Rates Table'!BM52*PODs*Low_Days,0) -> 0 | BN39: =IFERROR('Rates Table'!BN52*PODs*Low_Days,0) -> 0 | BO39: =IFERROR('Rates Table'!BO52*PODs*Low_Days,0) -> 0 | BP39: =IFERROR('Rates Table'!BP52*PODs*Low_Days,0) -> 0 | BQ39: =IFERROR('Rates Table'!BQ52*PODs*Low_Days,0) -> 0
C40: Service charge | D40: =IF(Table_1=1,"R/day","R/day") -> R/day | E40: 0 | F40: =IFERROR(IF(F$52=1,'Rates Table'!F53*PODs*Low_Days,'Rates Table'!F53*PODs*Low_Days),0) -> 8888.88 | G40: =IFERROR(IF(G$52=1,'Rates Table'!G53*PODs*Low_Days,'Rates Table'!G53*PODs*Low_Days),0) -> 8888.88 | H40: =IFERROR(IF(H$52=1,'Rates Table'!H53*PODs*Low_Days,'Rates Table'!H53*PODs*Low_Days),0) -> 8888.88 | I40: =IFERROR(IF(I$52=1,'Rates Table'!I53*PODs*Low_Days,'Rates Table'!I53*PODs*Low_Days),0) -> 0 | J40: =IFERROR(IF(J$52=1,'Rates Table'!J53*PODs*Low_Days,'Rates Table'!J53*PODs*Low_Days),0) -> 0 | K40: =IFERROR(IF(K$52=1,'Rates Table'!K53*PODs*Low_Days,'Rates Table'!K53*PODs*Low_Days),0) -> 0 | L40: =IFERROR(IF(L$52=1,'Rates Table'!L53*PODs*Low_Days,'Rates Table'!L53*PODs*Low_Days),0) -> 0 | M40: =IFERROR(IF(M$52=1,'Rates Table'!M53*PODs*Low_Days,'Rates Table'!M53*PODs*Low_Days),0) -> 0 | N40: =IFERROR(IF(N$52=1,'Rates Table'!N53*PODs*Low_Days,'Rates Table'!N53*PODs*Low_Days),0) -> 0 | O40: =IFERROR(IF(O$52=1,'Rates Table'!O53*PODs*Low_Days,'Rates Table'!O53*PODs*Low_Days),0) -> 0 | P40: =IFERROR(IF(P$52=1,'Rates Table'!P53*PODs*Low_Days,'Rates Table'!P53*PODs*Low_Days),0) -> 0 | Q40: =IFERROR(IF(Q$52=1,'Rates Table'!Q53*PODs*Low_Days,'Rates Table'!Q53*PODs*Low_Days),0) -> 11198.46 | R40: =IFERROR(IF(R$52=1,'Rates Table'!R53*PODs*Low_Days,'Rates Table'!R53*PODs*Low_Days),0) -> 11198.46 | S40: =IFERROR(IF(S$52=1,'Rates Table'!S53*PODs*Low_Days,'Rates Table'!S53*PODs*Low_Days),0) -> 11198.46 | T40: =IFERROR(IF(T$52=1,'Rates Table'!T53*PODs*Low_Days,'Rates Table'!T53*PODs*Low_Days),0) -> 0 | U40: =IFERROR(IF(U$52=1,'Rates Table'!U53*PODs*Low_Days,'Rates Table'!U53*PODs*Low_Days),0) -> 24015.81 | V40: =IFERROR(IF(V$52=1,'Rates Table'!V53*PODs*Low_Days,'Rates Table'!V53*PODs*Low_Days),0) -> 6882.33 | W40: =IFERROR(IF(W$52=1,'Rates Table'!W53*PODs*Low_Days,'Rates Table'!W53*PODs*Low_Days),0) -> 6882.33 | X40: =IFERROR(IF(X$52=1,'Rates Table'!X53*PODs*Low_Days,'Rates Table'!X53*PODs*Low_Days),0) -> 6882.33 | Y40: =IFERROR(IF(Y$52=1,'Rates Table'!Y53*PODs*Low_Days,'Rates Table'!Y53*PODs*Low_Days),0) -> 8716.89 | Z40: =IFERROR(IF(Z$52=1,'Rates Table'!Z53*PODs*Low_Days,'Rates Table'!Z53*PODs*Low_Days),0) -> 6882.33 | AA40: =IFERROR(IF(AA$52=1,'Rates Table'!AA53*PODs*Low_Days,'Rates Table'!AA53*PODs*Low_Days),0) -> 8716.89 | AB40: =IFERROR(IF(AB$52=1,'Rates Table'!AB53*PODs*Low_Days,'Rates Table'!AB53*PODs*Low_Days),0) -> 0 | AC40: =IFERROR(IF(AC$52=1,'Rates Table'!AC53*PODs*Low_Days,'Rates Table'!AC53*PODs*Low_Days),0) -> 0 | AD40: =IFERROR(IF(AD$52=1,'Rates Table'!AD53*PODs*Low_Days,'Rates Table'!AD53*PODs*Low_Days),0) -> 0 | AE40: =IFERROR(IF(AE$52=1,'Rates Table'!AE53*PODs*Low_Days,'Rates Table'!AE53*PODs*Low_Days),0) -> 0 | AF40: =IFERROR(IF(AF$52=1,'Rates Table'!AF53*PODs*Low_Days,'Rates Table'!AF53*PODs*Low_Days),0) -> 2653.56 | AG40: =IFERROR(IF(AG$52=1,'Rates Table'!AG53*PODs*Low_Days,'Rates Table'!AG53*PODs*Low_Days),0) -> 0 | AH40: =IFERROR(IF(AH$52=1,'Rates Table'!AH53*PODs*Low_Days,'Rates Table'!AH53*PODs*Low_Days),0) -> 0 | AI40: =IFERROR(IF(AI$52=1,'Rates Table'!AI53*PODs*Low_Days,'Rates Table'!AI53*PODs*Low_Days),0) -> 0 | AJ40: =IFERROR(IF(AJ$52=1,'Rates Table'!AJ53*PODs*Low_Days,'Rates Table'!AJ53*PODs*Low_Days),0) -> 0 | AL40: 0 | AM40: =IFERROR(IF(AM$52=1,'Rates Table'!AM53*PODs*Low_Days,'Rates Table'!AM53*PODs*Low_Days),0) -> 10021.83 | AN40: =IFERROR(IF(AN$52=1,'Rates Table'!AN53*PODs*Low_Days,'Rates Table'!AN53*PODs*Low_Days),0) -> 10021.83 | AO40: =IFERROR(IF(AO$52=1,'Rates Table'!AO53*PODs*Low_Days,'Rates Table'!AO53*PODs*Low_Days),0) -> 10021.83 | AP40: =IFERROR(IF(AP$52=1,'Rates Table'!AP53*PODs*Low_Days,'Rates Table'!AP53*PODs*Low_Days),0) -> 0 | AQ40: =IFERROR(IF(AQ$52=1,'Rates Table'!AQ53*PODs*Low_Days,'Rates Table'!AQ53*PODs*Low_Days),0) -> 0 | AR40: =IFERROR(IF(AR$52=1,'Rates Table'!AR53*PODs*Low_Days,'Rates Table'!AR53*PODs*Low_Days),0) -> 0 | AS40: =IFERROR(IF(AS$52=1,'Rates Table'!AS53*PODs*Low_Days,'Rates Table'!AS53*PODs*Low_Days),0) -> 0 | AT40: =IFERROR(IF(AT$52=1,'Rates Table'!AT53*PODs*Low_Days,'Rates Table'!AT53*PODs*Low_Days),0) -> 0 | AU40: =IFERROR(IF(AU$52=1,'Rates Table'!AU53*PODs*Low_Days,'Rates Table'!AU53*PODs*Low_Days),0) -> 0 | AV40: =IFERROR(IF(AV$52=1,'Rates Table'!AV53*PODs*Low_Days,'Rates Table'!AV53*PODs*Low_Days),0) -> 0 | AW40: =IFERROR(IF(AW$52=1,'Rates Table'!AW53*PODs*Low_Days,'Rates Table'!AW53*PODs*Low_Days),0) -> 0 | AX40: =IFERROR(IF(AX$52=1,'Rates Table'!AX53*PODs*Low_Days,'Rates Table'!AX53*PODs*Low_Days),0) -> 12626.25 | AY40: =IFERROR(IF(AY$52=1,'Rates Table'!AY53*PODs*Low_Days,'Rates Table'!AY53*PODs*Low_Days),0) -> 12626.25 | AZ40: =IFERROR(IF(AZ$52=1,'Rates Table'!AZ53*PODs*Low_Days,'Rates Table'!AZ53*PODs*Low_Days),0) -> 12626.25 | BA40: =IFERROR(IF(BA$52=1,'Rates Table'!BA53*PODs*Low_Days,'Rates Table'!BA53*PODs*Low_Days),0) -> 0 | BB40: =IFERROR(IF(BB$52=1,'Rates Table'!BB53*PODs*Low_Days,'Rates Table'!BB53*PODs*Low_Days),0) -> 27076.14 | BC40: =IFERROR(IF(BC$52=1,'Rates Table'!BC53*PODs*Low_Days,'Rates Table'!BC53*PODs*Low_Days),0) -> 7758.66 | BD40: =IFERROR(IF(BD$52=1,'Rates Table'!BD53*PODs*Low_Days,'Rates Table'!BD53*PODs*Low_Days),0) -> 7758.66 | BE40: =IFERROR(IF(BE$52=1,'Rates Table'!BE53*PODs*Low_Days,'Rates Table'!BE53*PODs*Low_Days),0) -> 7758.66 | BF40: =IFERROR(IF(BF$52=1,'Rates Table'!BF53*PODs*Low_Days,'Rates Table'!BF53*PODs*Low_Days),0) -> 9828 | BG40: =IFERROR(IF(BG$52=1,'Rates Table'!BG53*PODs*Low_Days,'Rates Table'!BG53*PODs*Low_Days),0) -> 7758.66 | BH40: =IFERROR(IF(BH$52=1,'Rates Table'!BH53*PODs*Low_Days,'Rates Table'!BH53*PODs*Low_Days),0) -> 9828 | BI40: =IFERROR(IF(BI$52=1,'Rates Table'!BI53*PODs*Low_Days,'Rates Table'!BI53*PODs*Low_Days),0) -> 0 | BJ40: =IFERROR(IF(BJ$52=1,'Rates Table'!BJ53*PODs*Low_Days,'Rates Table'!BJ53*PODs*Low_Days),0) -> 0 | BK40: =IFERROR(IF(BK$52=1,'Rates Table'!BK53*PODs*Low_Days,'Rates Table'!BK53*PODs*Low_Days),0) -> 0 | BL40: =IFERROR(IF(BL$52=1,'Rates Table'!BL53*PODs*Low_Days,'Rates Table'!BL53*PODs*Low_Days),0) -> 0 | BM40: =IFERROR(IF(BM$52=1,'Rates Table'!BM53*PODs*Low_Days,'Rates Table'!BM53*PODs*Low_Days),0) -> 2992.08 | BN40: =IFERROR(IF(BN$52=1,'Rates Table'!BN53*PODs*Low_Days,'Rates Table'!BN53*PODs*Low_Days),0) -> 2287.74 | BO40: =IFERROR(IF(BO$52=1,'Rates Table'!BO53*PODs*Low_Days,'Rates Table'!BO53*PODs*Low_Days),0) -> 2287.74 | BP40: =IFERROR(IF(BP$52=1,'Rates Table'!BP53*PODs*Low_Days,'Rates Table'!BP53*PODs*Low_Days),0) -> 2287.74 | BQ40: =IFERROR(IF(BQ$52=1,'Rates Table'!BQ53*PODs*Low_Days,'Rates Table'!BQ53*PODs*Low_Days),0) -> 2287.74
B42: Total other charges | E42: =SUM(E34:E40) -> 0 | F42: 8888.88 | G42: 8888.88 | H42: 8888.88 | I42: 0 | J42: 0 | K42: 0 | L42: 0 | M42: 0 | N42: 0 | O42: 0 | P42: 0 | Q42: 11198.46 | R42: 11198.46 | S42: 11198.46 | T42: 0 | U42: 24015.81 | V42: 8394.75 | W42: 8394.75 | X42: 8394.75 | Y42: 11190.27 | Z42: 8394.75 | AA42: 11190.27 | AB42: =SUM(AB34:AB40) -> 0 | AC42: 0 | AD42: 0 | AE42: 0 | AF42: 2653.56 | AG42: =SUM(AG34:AG40) -> 0 | AH42: =SUM(AH34:AH40) -> 0 | AI42: 0 | AJ42: 0 | AL42: =SUM(AL34:AL40) -> 0 | AM42: 10021.83 | AN42: 10021.83 | AO42: 10021.83 | AP42: 0 | AQ42: 0 | AR42: 0 | AS42: 0 | AT42: 0 | AU42: 0 | AV42: 0 | AW42: 0 | AX42: 12626.25 | AY42: 12626.25 | AZ42: 12626.25 | BA42: 0 | BB42: 27076.14 | BC42: 9464.91 | BD42: 9464.91 | BE42: 9464.91 | BF42: 12615.33 | BG42: 9464.91 | BH42: 12615.33 | BI42: =SUM(BI34:BI40) -> 0 | BJ42: 0 | BK42: 0 | BL42: 0 | BM42: 2992.08 | BN42: 2287.74 | BO42: =SUM(BO34:BO40) -> 2287.74 | BP42: 2287.74 | BQ42: 2287.74
B44: Total excl VAT | E44: =E42+E31+E18 -> 4772.04 | F44: 19172.79 | G44: 26218.92 | H44: 38828.79 | I44: 0 | J44: 0 | K44: 0 | L44: 2547.09 | M44: 4772.04 | N44: 9852.57 | O44: 1556.1 | P44: 16156.14 | Q44: 24681.93 | R44: 31924.62 | S44: 44335.2 | T44: 10737.09 | U44: 24015.81 | V44: 8394.75 | W44: 8394.75 | X44: 8394.75 | Y44: 11190.27 | Z44: 8394.75 | AA44: 11190.27 | AB44: =AB42+AB31+AB18 -> 0 | AC44: 0 | AD44: 0 | AE44: 0 | AF44: 2653.56 | AG44: 0 | AH44: =AH42+AH31+AH18 -> 0 | AI44: 0 | AJ44: 0 | AL44: =AL42+AL31+AL18 -> 5380.83 | AM44: 21616.14 | AN44: 29560.44 | AO44: 43775.55 | AP44: 0 | AQ44: 0 | AR44: 0 | AS44: 2871.96 | AT44: 5380.83 | AU44: 11108.37 | AV44: 1755.39 | AW44: 18214.56 | AX44: 27826.89 | AY44: 35992.32 | AZ44: 49983.57 | BA44: 12104.82 | BB44: 27076.14 | BC44: 9464.91 | BD44: 9464.91 | BE44: 9464.91 | BF44: 12615.33 | BG44: 9464.91 | BH44: 12615.33 | BI44: =BI42+BI31+BI18 -> 0 | BJ44: 0 | BK44: 0 | BL44: 0 | BM44: 2992.08 | BN44: 5159.7 | BO44: =BO42+BO31+BO18 -> 7668.57 | BP44: 13396.11 | BQ44: 4043.13
B45: VAT | D45: ='Bill Comparison'!D57 -> 0.15 | E45: =E44*$D45 -> 715.806 | F45: =F44*$D45 -> 2875.9185 | G45: 3932.838 | H45: 5824.3185 | I45: 0 | J45: 0 | K45: 0 | L45: 382.0635 | M45: 715.806 | N45: 1477.8855 | O45: 233.415 | P45: 2423.421 | Q45: 3702.2895 | R45: 4788.693 | S45: 6650.28 | T45: 1610.5635 | U45: 3602.3715 | V45: 1259.2125 | W45: 1259.2125 | X45: 1259.2125 | Y45: 1678.5405 | Z45: 1259.2125 | AA45: 1678.5405 | AB45: =AB44*$D45 -> 0 | AC45: 0 | AD45: 0 | AE45: 0 | AF45: 398.034 | AG45: 0 | AH45: =AH44*$D45 -> 0 | AI45: 0 | AJ45: 0 | AL45: =AL44*$D45 -> 807.1245 | AM45: =AM44*$D45 -> 3242.421 | AN45: 4434.066 | AO45: 6566.3325 | AP45: 0 | AQ45: 0 | AR45: 0 | AS45: 430.794 | AT45: 807.1245 | AU45: 1666.2555 | AV45: 263.3085 | AW45: 2732.184 | AX45: 4174.0335 | AY45: 5398.848 | AZ45: 7497.5355 | BA45: 1815.723 | BB45: 4061.421 | BC45: 1419.7365 | BD45: 1419.7365 | BE45: 1419.7365 | BF45: 1892.2995 | BG45: 1419.7365 | BH45: 1892.2995 | BI45: =BI44*$D45 -> 0 | BJ45: 0 | BK45: 0 | BL45: 0 | BM45: 448.812 | BN45: 773.955 | BO45: =BO44*$D45 -> 1150.2855 | BP45: 2009.4165 | BQ45: 606.4695
B47: Total account | E47: =SUM(E44:E45) -> 5487.846 | F47: =SUM(F44:F45) -> 22048.7085 | G47: 30151.758 | H47: 44653.1085 | I47: 0 | J47: 0 | K47: 0 | L47: 2929.1535 | M47: 5487.846 | N47: 11330.4555 | O47: 1789.515 | P47: 18579.561 | Q47: 28384.2195 | R47: 36713.313 | S47: 50985.48 | T47: 12347.6535 | U47: 27618.1815 | V47: 9653.9625 | W47: 9653.9625 | X47: 9653.9625 | Y47: 12868.8105 | Z47: 9653.9625 | AA47: 12868.8105 | AB47: =SUM(AB44:AB45) -> 0 | AC47: 0 | AD47: 0 | AE47: 0 | AF47: 3051.594 | AG47: 0 | AH47: =SUM(AH44:AH45) -> 0 | AI47: 0 | AJ47: 0 | AL47: =SUM(AL44:AL45) -> 6187.9545 | AM47: =SUM(AM44:AM45) -> 24858.561 | AN47: 33994.506 | AO47: 50341.8825 | AP47: 0 | AQ47: 0 | AR47: 0 | AS47: 3302.754 | AT47: 6187.9545 | AU47: 12774.6255 | AV47: 2018.6985 | AW47: 20946.744 | AX47: 32000.9235 | AY47: 41391.168 | AZ47: 57481.1055 | BA47: 13920.543 | BB47: 31137.561 | BC47: 10884.6465 | BD47: 10884.6465 | BE47: 10884.6465 | BF47: 14507.6295 | BG47: 10884.6465 | BH47: 14507.6295 | BI47: =SUM(BI44:BI45) -> 0 | BJ47: 0 | BK47: 0 | BL47: 0 | BM47: 3440.892 | BN47: 5933.655 | BO47: =SUM(BO44:BO45) -> 8818.8555 | BP47: 15405.5265 | BQ47: 4649.5995
B49: Average price c/kWh | E49: =E44/Low_Total_Energy*100 ->  | AB49: =AB44/Low_Total_Energy*100 ->  | AH49: =AH44/Low_Total_Energy*100 ->  | AL49: =AL44/Low_Total_Energy*100 ->  | BI49: =BI44/Low_Total_Energy*100 ->  | BO49: =BO44/Low_Total_Energy*100 -> 
B51: Check tables
C52: Table 1 | E52: =INDEX(F52:AJ52,0,Selected_Tariff_ID) -> 0 | F52: ='Rates Table'!F64 -> 0 | G52: ='Rates Table'!G64 -> 0 | H52: ='Rates Table'!H64 -> 0 | I52: ='Rates Table'!I64 -> 0 | J52: ='Rates Table'!J64 -> 0 | K52: ='Rates Table'!K64 -> 0 | L52: ='Rates Table'!L64 -> 0 | M52: ='Rates Table'!M64 -> 0 | N52: ='Rates Table'!N64 -> 0 | O52: ='Rates Table'!O64 -> 0 | P52: ='Rates Table'!P64 -> 0 | Q52: ='Rates Table'!Q64 -> 0 | R52: ='Rates Table'!R64 -> 0 | S52: ='Rates Table'!S64 -> 0 | T52: ='Rates Table'!T64 -> 0 | U52: ='Rates Table'!U64 -> 0 | V52: ='Rates Table'!V64 -> 1 | W52: ='Rates Table'!W64 -> 1 | X52: ='Rates Table'!X64 -> 1 | Y52: ='Rates Table'!Y64 -> 1 | Z52: ='Rates Table'!Z64 -> 1 | AA52: ='Rates Table'!AA64 -> 1 | AB52: ='Rates Table'!AB64 -> 0 | AC52: ='Rates Table'!AC64 -> 0 | AD52: ='Rates Table'!AD64 -> 0 | AE52: ='Rates Table'!AE64 -> 0 | AF52: ='Rates Table'!AF64 -> 0 | AG52: ='Rates Table'!AG64 -> 0 | AH52: ='Rates Table'!AH64 -> 0 | AI52: ='Rates Table'!AI64 -> 0 | AJ52: ='Rates Table'!AJ64 -> 0 | AL52: =INDEX(AM52:BQ52,0,Selected_Tariff_ID) -> 0 | AM52: =F52 -> 0 | AN52: 0 | AO52: 0 | AP52: 0 | AQ52: 0 | AR52: 0 | AS52: 0 | AT52: 0 | AU52: 0 | AV52: 0 | AW52: 0 | AX52: 0 | AY52: 0 | AZ52: 0 | BA52: 0 | BB52: 0 | BC52: 1 | BD52: 1 | BE52: 1 | BF52: 1 | BG52: 1 | BH52: 1 | BI52: =AB52 -> 0 | BJ52: =AC52 -> 0 | BK52: =AD52 -> 0 | BL52: =AE52 -> 0 | BM52: =AF52 -> 0 | BN52: =AG52 -> 0 | BO52: =AH52 -> 0 | BP52: =AI52 -> 0 | BQ52: =AJ52 -> 0
